Workbook

Sheet タイヤ条件サマリ
A1: 冬タイヤ基本割引率 2018-19 | G1: 2018-10-12 | I1: 工賃 | N1: ナット代（1台分） | R1: パンク
A2: ﾌﾞﾗﾝﾄﾞ | B2: ﾊﾟﾀｰﾝ | C2: 仕切 | D2: A表比 通常売価 | E2: タイヤ 基本割引率 | F2: 発注先 | G2: 備考 | I2: インチ | J2: 工賃 | K2: バルブ | L2: 処分料 | N2: 設定 | O2: 売価 | P2: 車種 | R2: 保証額 | S2: 売価
A3: BRIDGESTONE | B3: BLIZZAK VRX2 | C3: 0.72 | D3: メーカー希望 | E3: 0.15 | F3: ZAC | I3: 10 | J3: 500 | K3: 500 | L3: 300 | N3: 1240 | O3: 2400 | P3: 軽カー | R3: 10000 | S3: 3000
B4: BLIZZAK VRX2特 | C4: 0.65 | I4: 12 | J4: 500 | N4: 1340 | O4: 2400 | R4: 20000 | S4: 3000
B5: BLIZZAK VRX | C5: 0.62 | D5: 1.15 | E5: 0.2 | I5: 12.5 | J5: 500 | N5: 1445 | O5: 2400 | R5: 30000 | S5: 4000
B6: BLIZZAK VRX 特 | C6: 0.55 | D6: 1.15 | E6: 0.35 | G6: 在庫限り ※軽ｻｲｽﾞは別途割引率設定 | I6: 13 | J6: 500 | N6: 1545 | O6: 2400 | R6: 40000 | S6: 4000
B7: BLIZZAK REVO GZ | C7: 0.62 | D7: 1.15 | E7: 0.2 | I7: 13.5 | J7: 500 | N7: 1650 | O7: 2400 | R7: 50000 | S7: 5000
B8: BLIZZAK REVO 2 / 1 | C8: 0.62 | D8: 1.15 | E8: 0.2 | I8: 14 | J8: 500 | N8: 1350 | O8: 1600 | P8: コンパクトカー | R8: 60000 | S8: 5000
B9: BLIZZAK DM-V2 | C9: 0.72 | D9: 1.15 | E9: 0.15 | I9: 14.5 | J9: 500 | N9: 1455 | O9: 1600 | R9: 70000 | S9: 5000
B10: BLIZZAK VL1 | C10: 0.72 | D10: 1.15 | E10: 0.15 | I10: 15 | J10: 500 | N10: 1555 | O10: 1600 | R10: 80000 | S10: 6000
B11: BLIZZAK W965/979/969 | C11: 0.72 | D11: 1.15 | E11: 0.15 | I11: 15.5 | J11: 500 | N11: 1660 | O11: 1600 | R11: 90000 | S11: 6000
B12: BLIZZAK RFT | C12: 0.72 | D12: 1.15 | E12: 0.15 | I12: 16 | J12: 500 | N12: 1765c | O12: 1600 | R12: 100000 | S12: 6000
B13: NV ologic | C13: 0.72 | D13: 1.15 | E13: 0.15 | G13: BMW i3専用品 | I13: 17 | J13: 500 | N13: 1560 | O13: 2000 | R13: 110000 | S13: 8000
A14: MICHELIN | B14: X-ICE 3+ | C14: 0.5 | D14: 1.1 | E14: 0.37 | F14: 販社 | I14: 17.5 | J14: 500 | N14: 1565p | O14: 2000 | R14: 120000 | S14: 8000
B15: X-ICE XI3 | C15: 0.5 | D15: 1.1 | E15: 0.37 | I15: 18 | J15: 500 | N15: 1665 | O15: 2000 | R15: 130000 | S15: 8000
B16: Latitude X-ICE XI2 | C16: 0.5 | D16: 1.1 | E16: 0.25 | I16: 19 | J16: 1200 | N16: 1770 | O16: 2000 | R16: 140000 | S16: 8000
B17: Agilis X-ICE | C17: 0.5 | D17: 1.1 | E17: 0.25 | I17: 20 | J17: 1750 | N17: 1875 | O17: 2000 | R17: 150000 | S17: 8000
B18: Pilot Alpin PA4 | C18: 0.5 | D18: 1.1 | E18: 0.25 | I18: 21 | J18: 2500 | N18: 1780 | O18: 2000 | R18: 160000 | S18: 10000
B19: Pilot Alpin 5 (SUV) | C19: 0.5 | D19: 1.1 | E19: 0.25 | I19: 22 | J19: 2500 | N19: 1880 | O19: 2000 | R19: 16万以上は1万円
B20: LATITUDE Alpin LA2 | C20: 0.5 | D20: 1.1 | E20: 0.25 | I20: 22.5 | J20: 2500 | N20: 1885 | O20: 2000
B21: LATITUDE Alpin | C21: 0.5 | D21: 1.1 | E21: 0.25 | I21: 23 | J21: 4000 | N21: 1970 | O21: 2000
A22: YOKOHAMA | B22: iceGUARD 6 特 | C22: 0.55 | D22: 1.1 | E22: 0.25 | F22: ZAC | I22: 24 | J22: 4000 | N22: 1980l | O22: 0 | P22: LEXUS LS / LC
B23: iceGUARD 6 | C23: 0.65 | D23: 1.1 | E23: 0.2 | F23: 販社 | I23: 25 | J23: 4000 | N23: 1980h | O23: 0 | P23: HONDA ﾚｼﾞｪﾝﾄﾞ
B24: iceGUARD 5 PLUS | C24: 0.52 | D24: 1.1 | E24: 0.4 | G24: 在庫限り含む | I24: 26 | J24: 4000 | N24: 2085l | O24: 0 | P24: LEXUS LS / LC
B25: iceGUARD 5 | C25: 0.66 | D25: 1.1 | E25: 0.1 | G25: 在庫限り含む | I25: 27 | J25: 4000 | N25: 1550s | O25: 2400 | P25: ﾃﾘｵｽｷｯﾄﾞ
B26: iceGUARD TRIPLE ZPS | C26: 0.66 | D26: 1.1 | E26: 0.1 | I26: 28 | J26: 4000 | N26: 1555s | O26: 2000 | P26: ﾊﾟｼﾞｪﾛﾐﾆ
B27: iceGUARD SUV G075 | C27: 0.59 | D27: 1.1 | E27: 0.2 | I27: 29 | J27: 5000 | N27: 1555v | O27: 2400
B28: GEOLANDER i/T-S(G073)・ i/T(G072) | C28: 0.59 | D28: 1.1 | E28: 0.2 | G28: 在庫限り含む | I28: 30 | J28: 5000 | N28: 1560v | O28: 2400
B29: iceGUARD IG91 for VAN / iG91 | C29: 0.59 | D29: 1.1 | E29: 0.2 | I29: 31 | J29: 5000 | N29: 1655s | O29: 2000 | P29: ジムニー
A30: CONTINENTAL | B30: ContiVikingContact 7 NEW | C30: 0.65 | D30: 1.08 | E30: 0.2 | F30: 販社 | I30: 32 | J30: 5000 | N30: 1775s | O30: 2400
B31: ContiVikingContact 7 NEW 特 | C31: 0.62 | D31: 1.08 | E31: 0.2 | F31: ZAC | I31: ランフラット工賃 | N31: 1565s | O31: 2400
B32: ContiVikingContact 6(suv) | C32: 0.47 | D32: 1.08 | E32: 0.3 | F32: 販社 | I32: 14 | J32: 1500 | N32: 1665s | O32: 2400
B33: ContiVikingContact 6(suv) 特 | C33: 0.42 | D33: 1.08 | E33: 0.35 | G33: 在庫限り | I33: 16 | J33: 1500 | N33: 1680s | P33: ランクル100系
B34: ContiVikingContact 6(suv) 特旧年 | C34: 0.3 | D34: 1.08 | E34: 0.4 | G34: 在庫限り | I34: 17 | J34: 1500 | N34: 1780s | O34: 2400
A35: GOODYEAR | B35: ICE NAVI 7 | D35: 1.1 | E35: 0.25 | F35: 販社 | I35: 18 | J35: 2500 | N35: 1780l | O35: 0 | P35: ランクル100･200系
B36: ICE NAVI 6/ZEA2/ZEA (現行品) | D36: 1.1 | E36: 0.4 | I36: 19 | J36: 2500 | N36: 1880l | O36: 0 | P36: ランクル100･200系
B37: ICE NAVI 6 RFT | D37: 1.1 | E37: 0.1 | I37: 20 | J37: 4000 | N37: 1880s | O37: 2400
B38: ICE NAVI 6 | D38: 1.1 | E38: 0.6 | G38: サイズ・数量限定 2017年製 | I38: 21 | J38: 4000 | N38: 1980s | O38: 2400
B39: ICE NAVI 6 | D39: 1.1 | E39: 0.6 | G39: サイズ・数量限定 2016年製 | N39: 1555ss | O39: 2000 | P39: ｼﾞﾑﾆｰﾜｲﾄﾞ
B40: ICE NAVI SUV | D40: 1.1 | E40: 0.3 | N40: 1570s | O40: 2400
B41: WRANGLER IP/N | D41: 1.1 | E41: 0.3 | N41: 1670s | O41: 2400
B42: ICE NAVI CARGO | D42: 1.1 | E42: 0.3 | N42: 1455m | O42: 1600
B43: ICE NAVI CARGO(一部サイズ) | D43: 1.1 | E43: 0.15 | N43: 1560m | O43: 1600
B44: UG FLEXSTEEL / その他 | D44: 1.1 | E44: 0.15 | N44: 1350v | O44: 1600
A45: PIRELLI | B45: WINTER SOTTO ZERO 3 | C45: 0.55 | D45: 1.05 | E45: 0.25 | F45: 販社 | N45: 1455v | O45: 1600
B46: WINTER SOTTO ZERO serie2 | C46: 0.55 | D46: 1.05 | E46: 0.25 | N46: 1235v | O46: 1600
B47: WINTER SNOW CONTROL SERIE3 | C47: 0.55 | D47: 1.05 | E47: 0.25 | N47: 1235v | O47: 1600
B48: SCORPION ICE & SNOW | C48: 0.55 | D48: 1.05 | E48: 0.25 | N48: 1240v | O48: 2400
B49: SCORPION WINTER | C49: 0.55 | D49: 1.05 | E49: 0.25 | N49: 1340v | O49: 1600
B50: ICE ASIMMETRICO | C50: 0.3 | D50: 1.05 | E50: 0.55 | N50: 1450v | O50: 1600
B51: ICE ASIMMETRICO(特) | C51: 0.28 | D51: 1.05 | E51: 0.6 | F51: ZAC | G51: サイズ・数量限定 2017年製 | N51: 1450vv | O51: 2400 | P51: ボンゴ
B52: ICE ASIMMETRICO(特) | C52: 0.22 | D52: 1.05 | E52: 0.65 | G52: サイズ・数量限定 2016年製
A53: TOYO | B53: OBSERVE GARIT GIZ | C53: 0.61 | D53: 1.1 | E53: 0.25 | F53: ZAC
B54: OBSERVE GSi-5 | C54: 0.5 | D54: 1.1 | E54: 0.3
B55: Winter TRANPATH S1 | C55: 0.58 | D55: 1.1 | E55: 0.25
B56: GARIT G5 | C56: 0.39 | D56: 1.1 | E56: 0.5
B57: GARIT G4 | C57: 0.58 | D57: 1.1 | E57: 0.25
B58: Winter TRANPATH TX | C58: 0.52 | D58: 1.1 | E58: 0.3 | G58: MK4α現行品含む
B59: Winter TRANPATH MK4α | C59: 0.45 | D59: 1.1 | E59: 0.3 | G59: 在庫限り
B60: DELVEX 934 | C60: 0.62 | D60: 1.1 | E60: 0.2
B61: DELVEX M934/M917 | C61: 0.62 | D61: 1.1 | E61: 0.2
A62: DUNLOP | B62: WINTER MAXX WM02(CUV)NEW | C62: 0.63 | D62: 1.1 | E62: 0.2 | F62: ZAC
B63: WINTER MAXX WM01 | C63: 0.5 | D63: 1.1 | E63: 0.4
B64: WINTER MAXX WM01(特) | C64: 0.42 | D64: 1.1 | E64: 0.55 | G64: サイズ・数量限定
B65: WINTER MAXX RFT(WM02･01) | C65: 0.63 | D65: 1.1 | E65: 0.1
B66: WINTER MAXX SJ8 | C66: 0.63 | D66: 1.1 | E66: 0.2
B67: GRANDTREK SJ7/SJ6/SJ5 | C67: 0.63 | D67: 1.1 | E67: 0.2
B68: WINTER MAXX SV01 | C68: 0.63 | D68: 1.1 | E68: 0.2
A69: FALKEN | B69: ESPIA EPZ F | D69: 1.1 | F69: ZAC
B70: EUROWINTER HS449 | D70: 1.1
A71: HANKOOK | B71: Winter i*cept IZ2A(W626) | C71: 0.34 | D71: 1.05 | E71: 55%-71% | F71: 販社
B72: Dynapro i*cept(RW08) | C72: 40-43% | D72: 1.05 | E72: 55%-60%
B73: Winter RW06 | C73: 40-47% | D73: 1.05 | E73: 0.55
A74: KUMHO | B74: WINTERCRAFT ice Wi61 | C74: 27-39% | D74: 1.05 | F74: 販社
B75: WINTERCRAFT SUV WS61 | C75: 39-42% | D75: 1.05
B76: Winter PorTran CW61 | C76: 0.42 | D76: 1.05
A77: KENDA | B77: ICETEC NEO KR36 | C77: 単価 | D77: 単価 | E77: 単価 | F77: ZAC
B78: ICETEC VAN'Z | C78: 単価 | D78: 単価 | E78: 単価
A79: LANDSAIL | B79: 4-Seasons | C79: 単価 | D79: 単価 | E79: 単価 | F79: ZAC
A80: GRENLANDER | B80: Winter GL868 | C80: 単価 | D80: 単価 | E80: 単価 | F80: ZAC | G80: サイズ・数量限定
A81: ILINK | B81: L-SNOW98 | C81: 単価 | D81: 単価 | E81: 単価 | F81: ZAC | G81: サイズ・数量限定

Sheet タイヤホイールサイズ
D1: ※国産車
A2: サイズ | B2: LI/速度記号 | C2: 設定 | D2: 参考車種 | E2: カテゴリー | F2: 幅 | G2: 扁平 | H2: ｲﾝﾁ | I2: 文字数
A3: 135/80R12 | B3: 68Q | C3: 1240v | D3: アルト･ミラ など | E3: ベーシック | F3: =LEFTB(A3,3) -> 135 | G3: =MIDB(A3,5,2) -> 80 | H3: =RIGHTB(A3,2) -> 12 | I3: =COUNT(D3) -> 0
A4: 145/80R12 | B4: 74Q | C4: 1240v | D4: ザッツ･ライフ･エッセ･ミラ など | E4: ベーシック | F4: 145 | G4: 80 | H4: 12
A5: 145/70R12 | B5: 69Q | C5: 1240v | D5: ミラ･ムーヴ･プレオ など | E5: ベーシック | F5: 145 | G5: 70 | H5: 12
A6: 155/70R12 | B6: 73Q | C6: 1240v | D6: キャロル･プレオ･アルト など | E6: ベーシック | F6: 155 | G6: 70 | H6: 12
A7: 155/80R12 | C7: 1240v | E7: VAN | F7: 155 | G7: 80 | H7: 12
A8: 135/80R13 | B8: 70Q | C8: 1340 | D8: トッポBJ･ミニカ など | E8: ベーシック | F8: 135 | G8: 80 | H8: 13
A9: 145/80R13 | B9: 75Q | C9: 1340 | D9: N-BOX･アルト･キャロル･ミラ など | E9: ベーシック | F9: 145 | G9: 80 | H9: 13
A10: 155/80R13 | B10: 79Q | C10: 1350 | D10: 初代パッソ･初代ヴィッツ など | E10: ベーシック | F10: 155 | G10: 80 | H10: 13
A11: 165/80R13 | B11: 83Q | C11: 1350 | D11: カリーナ･サクシード など | E11: ベーシック | F11: 165 | G11: 80 | H11: 13
A12: 155/70R13 | B12: 75Q | C12: 1340 | D12: ミライース・バモス･スクラム･トッポBJ など | E12: ベーシック | F12: 155 | G12: 70 | H12: 13
A13: 165/70R13 | B13: 79Q | C13: 1340 | D13: ディアスワゴン･アトレー･初代デミオ など | E13: ベーシック | F13: 165 | G13: 70 | H13: 13
A14: 175/70R13 | B14: 82Q | C14: 1350 | D14: カローラⅡ･コルサ など | E14: ベーシック | F14: 175 | G14: 70 | H14: 13
A15: 185/70R13 | B15: 86Q | C15: 1350 | E15: ベーシック | F15: 185 | G15: 70 | H15: 13
A16: 155/65R13 | B16: 73Q | C16: 1340 | D16: ゼスト･ルークス・ライフ・セルボ・パレット など | E16: ベーシック | F16: 155 | G16: 65 | H16: 13
A17: 165/65R13 | B17: 77Q | C17: 1340 | D17: スクラム･タウンボックス･エヴリィワゴン など | E17: ベーシック | F17: 165 | G17: 65 | H17: 13
A18: 175/80R14 | B18: 88Q | C18: 1450v | D18: S10クラウン･K30クルー など | E18: ベーシック | F18: 175 | G18: 80 | H18: 14
A19: 185/80R14 | B19: 91Ｑ | C19: 1455m | D19: Y31グロリア･ボンゴ など | E19: ベーシック | F19: 185 | G19: 80 | H19: 4
A20: 165/70R14 | B20: 81Q | C20: 1455 | D20: マーチ･ヴィッツ･スイフト・ソリオ など | E20: ベーシック | F20: 165 | G20: 70 | H20: 14
A21: 175/70R14 | B21: 84Q | C21: 1455 | D21: フィット・ヴィッツ・ポルテ･シエンタ など | E21: ベーシック | F21: 175 | G21: 70 | H21: 14
A22: 185/70R14 | B22: 88Q | C22: 1455 | D22: アリオン･フリード･ノート・ウイングロード など | E22: ベーシック | F22: 185 | G22: 70 | H22: 14
A23: 195/70R14 | B23: 91Q | C23: 1455m | D23: タウンエースノア･ライトエースノア など | E23: ベーシック | F23: 195 | G23: 70 | H23: 14
A24: 195/70R14 | B24: 91Q | C24: 1455 | D24: タウンエースノア･ライトエースノア など | E24: ベーシック | F24: 195 | G24: 70 | H24: 14
A25: 205/70R14 | B25: 94Q | C25: 1455m | D25: TCR10エスティマ･センチュリー など | E25: ベーシック | F25: 205 | G25: 70 | H25: 14
A26: 155/65R14 | B26: 75Q | C26: 1445 | D26: タント・スペーシア・N-BOX･ムーヴ･ミラトコット など | E26: ベーシック | F26: 155 | G26: 65 | H26: 14
A27: 165/65R14 | B27: 79Q | C27: 1455 | D27: パッソ・タンク・ルーミー・ソリオ・ミラージュ など | E27: ベーシック | F27: 165 | G27: 65 | H27: 14
A28: 175/65R14 | B28: 82Q | C28: 1455 | D28: bB･初代フィット･先代キューブ･先代デミオ など | E28: ベーシック | F28: 175 | G28: 65 | H28: 14
A29: 185/65R14 | B29: 86Q | C29: 1455 | D29: エアウェイブ･モビリオスパイク など | E29: ベーシック | F29: 185 | G29: 65 | H29: 14
A30: 195/65R14 | B30: 89Q | C30: 1455m | D30: 初代イプサム･ガイア･アベニール など | E30: ベーシック | F30: 195 | G30: 65 | H30: 14
A31: 165/60R14 | B31: 75Q | C31: 1445 | D31: スクラムワゴン･トッポBJ･エブリィワゴン など | E31: ベーシック | F31: 165 | G31: 60 | H31: 14
A32: 175/60R14 | B32: 79Q | C32: 1455 | D32: デュエット･初代キューブ･初代デミオ・YRV など | E32: ベーシック | F32: 175 | G32: 60 | H32: 14
A33: 185/60R14 | B33: 82Q | C33: 1455 | D33: カローラ･CR-X･ロードスター など | E33: ベーシック | F33: 185 | G33: 60 | H33: 14
A34: 155/55R14 | B34: 69Q | C34: 1445 | D34: オッティ･ekワゴン･アルトワークス など | E34: ベーシック | F34: 155 | G34: 55 | H34: 14
A35: 165/55R14 | B35: 72Q | C35: 1445 | D35: ゼスト･ライフ･モコ･ルークス･ワゴンR･パレット など | E35: ベーシック | F35: 165 | G35: 55 | H35: 14
A36: 175/80R15 | B36: 90Q | C36: 1550s | D36: パジェロミニ･テリオスキッド･KIX など | E36: SUV | F36: 175 | G36: 80 | H36: 15
A37: 195/80R15 | B37: 96Q | C37: 1555ss | D37: ジムニーワイド・シエラ など | E37: SUV | F37: 195 | G37: 80 | H37: 5
A38: 195/70R15 | B38: 92Q | C38: 1560 | D38: HR-V･W11アベニール など | E38: ベーシック・SUV | F38: 195 | G38: 70 | H38: 15
A39: 205/70R15 | B39: 96Q | C39: 1560 | D39: CR-V･エクストレイル など | E39: ベーシック・SUV | F39: 205 | G39: 70 | H39: 15
A40: 215/70R15 | B40: 98Q | C40: 1560 | D40: エクストレイル･グランビア･MPV など | E40: ベーシック・SUV | F40: 215 | G40: 70 | H40: 15
A41: 265/70R15 | B41: 112Q | C41: 1570s | D41: テラノ･チャレンジャー など | E41: SUV | F41: 265 | G41: 70 | H41: 15
A42: 145/65R15 | B42: 72Q | C42: 1545 | E42: ベーシック | F42: 145 | G42: 65 | H42: 15
A43: 165/65R15 | B43: 81Q | C43: 1545 | D43: ソリオ・デリカD:2・Will・プラッツ・初代プリウス など | E43: ベーシック | F43: 165 | G43: 65 | H43: 15
A44: 175/65R15 | B44: 84Q | C44: 1555 | D44: 先代アクア･ポルテ･カローラ･フィット･キューブ など | E44: ベーシック | F44: 175 | G44: 65 | H44: 15
A45: 185/65R15 | B45: 88Q | C45: 1555 | D45: フリード・ノート・デミオ・ティーダ･プリウス(20系) など | E45: ベーシック | F45: 185 | G45: 65 | H45: 15
A46: 195/65R15 | B46: 91Q | C46: 1560 | D46: プリウス･セレナ･エスクァイア･ アイシス・プレマシー など | E46: ベーシック | F46: 195 | G46: 65 | H46: 15
A47: 205/65R15 | B47: 94Q | C47: 1560 | D47: イプサム・ステップワゴン(RG系)･カムリグラシア など | E47: ベーシック | F47: 205 | G47: 65 | H47: 15
A48: 215/65R15 | B48: 96Q | C48: 1560 | D48: 先代センチュリー･エスティマルシーダ など | E48: ベーシック | F48: 215 | G48: 65 | H48: 15
A49: 155/60R15 | B49: 74Q | C49: 1545 | D49: R1･R2 など | E49: ベーシック | F49: 155 | G49: 60 | H49: 15
A50: 165/60R15 | B50: 77Q | C50: 1545 | D50: ハスラー･キャストACTIVA・ソリオ・デリカD2･Kei など | E50: ベーシック | F50: 165 | G50: 60 | H50: 15
A51: 175/60R15 | B51: 81Q | C51: 1555 | D51: 先代キューブ･先代ノート･マーチ など | E51: ベーシック | F51: 175 | G51: 60 | H51: 15
A52: 185/60R15 | B52: 84Q | C52: 1555 | D52: シャトル･グレイス・シエンタ・アクア・スプラッシュ など | E52: ベーシック | F52: 185 | G52: 60 | H52: 15
A53: 195/60R15 | B53: 88Q | C53: 1560 | D53: トルネオ･ギャラン･シビック・レグナム など | E53: ベーシック | F53: 195 | G53: 60 | H53: 15
A54: 205/60R15 | B54: 91Q | C54: 1560 | D54: クレスタ･インスパイア･180SX など | E54: ベーシック | F54: 205 | G54: 60 | H54: 15
A55: 165/55R15 | B55: 75Q | C55: 1545 | D55: ムーヴカスタム･アルトワークス･N-BOXカスタム など | E55: ベーシック | F55: 165 | G55: 55 | H55: 15
A56: 175/55R15 | B56: 77Q | C56: 1555 | D56: トール・ルーミー・タンク・ジャスティ・ミラージュ など | E56: ベーシック | F56: 175 | G56: 55 | H56: 15
A57: 185/55R15 | B57: 82Q | C57: 1555 | D57: 先代デミオ・ベリーサ･bB･マーチ など | E57: ベーシック | F57: 185 | G57: 55 | H57: 15
A58: 195/55R15 | B58: 85Q | C58: 1555 | D58: モビリオスパイク･エアウェイブ など | E58: ベーシック | F58: 195 | G58: 55 | H58: 15
A59: 165/50R15 | B59: 73Q | C59: 1545 | D59: MAX･先代コペン など | E59: ベーシック | F59: 165 | G59: 50 | H59: 15
A60: 195/50R15 | B60: 82Q | C60: 1555 | E60: ベーシック | F60: 195 | G60: 50 | H60: 15
A61: 185/85R16 | C61: 1655s | D61: ジムニー･AZオフロード など | E61: SUV | F61: 185 | G61: 85 | H61: 16
A62: 175/80R16 | B62: 91Q | C62: 1655s | D62: ジムニー･AZオフロード など | E62: SUV | F62: 175 | G62: 80 | H62: 16
A63: 215/70R16 | B63: 100Q | C63: 1665 | D63: エクリプスクロス･アウトランダー･デリカD:5 など | E63: ベーシック・SUV | F63: 215 | G63: 70 | H63: 16
A64: 225/70R16 | B64: 103Q | C64: 1665 | D64: エクリプスクロス･アウトランダー･デリカD:5 など | E64: ベーシック・SUV | F64: 225 | G64: 70 | H64: 16
A65: 235/70R16 | B65: 106Q | F65: 235 | G65: 70 | H65: 16
A66: 245/70R16 | B66: 107Q | C66: 1670s | D66: ホライゾン･ビックホーン など | E66: SUV | F66: 245 | G66: 70 | H66: 16
A67: 265/70R16 | B67: 112Q | C67: 1670s | D67: パジェロ･プラド･サーフ など | E67: SUV | F67: 265 | G67: 70 | H67: 16
A68: 275/70R16 | B68: 114Q | C68: 1680s | D68: ランドクルーザー･サファリ など | E68: SUV | F68: 275 | G68: 70 | H68: 16
A69: 195/65R16 | B69: 92Q | C69: 1665 | D69: 先代アテンザ など | E69: ベーシック | F69: =LEFTB(A69,3) -> 195 | G69: =MIDB(A69,5,2) -> 65 | H69: 16
A70: 205/65R16 | B70: 95Q | C70: 1665 | D70: カムリハイブリッド・ティアナ(J32系) ･アルファード(10系) など | E70: ベーシック | F70: 205 | G70: 65 | H70: =RIGHTB(A70,2) -> 16
A71: 215/65R16 | B71: 98Q | C71: 1665 | D71: アルファード(20系以降)･ヴェルファイア･エリシオン など | E71: ベーシック | F71: 215 | G71: 65 | H71: 16
A72: 175/60R16 | B72: 82Q | C72: 1660 | D72: イグニス・X-BEE･ラクティス･トレジア など | E72: ベーシック | F72: 175 | G72: 60 | H72: 16
A73: 185/60R16 | B73: 86Q | C73: 1660 | D73: デミオ・ラクティス・トレジア など | E73: ベーシック | F73: 185 | G73: 60 | H73: 16
A74: 195/60R16 | B74: 89Q | C74: 1665 | D74: シルフィ・イスト・セレナ･ウィッシュ･ラフェスタ など | E74: ベーシック | F74: 195 | G74: 60 | H74: 16
A75: 205/60R16 | B75: 92Q | C75: 1665 | D75: アクセラ･プリウスα・ヴォクシー(ワイド)・ステップワゴン・ジェイド など | E75: ベーシック | F75: 205 | G75: 60 | H75: 16
A76: 215/60R16 | B76: 95Q | C76: 1665 | D76: クラウン･マークX･ティアナ(L33系)・オデッセィ・ヴェゼル など | E76: ベーシック・SUV | F76: 215 | G76: 60 | H76: 16
A77: 225/60R16 | B77: 98Q | C77: 1665 | D77: 先代センチュリー・セルシオ(20系以前)･シーマ など | E77: ベーシック | F77: 225 | G77: 60 | H77: 16
A78: 235/60R16 | B78: 100Q | C78: 1665 | D78: RAV4･ハイラックス･グランドエスクード など | E78: ベーシック・SUV | F78: 235 | G78: 60 | H78: 16
A79: 185/55R16 | B79: 83Q | C79: 1660 | D79: スイフト・フィット・グレイス・シャトル・インサイト など | E79: ベーシック | F79: 185 | G79: 55 | H79: 16
A80: 195/55R16 | B80: 87Q | C80: 1660 | D80: ノート・CR-Z･キューブ など | E80: ベーシック | F80: 195 | G80: 55 | H80: 16
A81: 205/55R16 | B81: 91Q | C81: 1665 | D81: インプレッサスポーツ･CT200ｈ･カローラスポーツ・BRZ・先代リーフ など | E81: ベーシック | F81: 205 | G81: 55 | H81: 16
A82: 215/55R16 | B82: 93Q | C82: 1665 | D82: 新型シビック など | E82: ベーシック | F82: 215 | G82: 55 | H82: 16
A83: 225/55R16 | B83: 99Q XL | C83: 1665 | D83: アリスト･RX-8 など | E83: ベーシック | F83: 225 | G83: 55 | H83: 16
A84: 225/55R16 | B84: 95Q | C84: 1665 | D84: アリスト･RX-8 など | E84: ベーシック | F84: 225 | G84: 55 | H84: 16
A85: 165/50R16 | B85: 75Q | C85: 1650 | D85: ムーヴカスタム・ピクシスジョイ・キャストスポーツ・コペン など | E85: ベーシック | F85: 165 | G85: 50 | H85: 16
A86: 195/50R16 | B86: 88Q XL | C86: 1660 | D86: ロードスター(ND系)・ヴィッツRS･アクア・スイフトスポーツ など | E86: ベーシック | F86: 195 | G86: 50 | H86: 16
A87: 195/50R16 | B87: 84Q | C87: 1660 | D87: ロードスター(ND系)・ヴィッツRS･アクア・スイフトスポーツ など | E87: ベーシック | F87: 195 | G87: 50 | H87: 16
A88: 205/50R16 | B88: 87Q | C88: 1665 | D88: アコードトルネオ･ロードスター･レガシィ など | E88: ベーシック | F88: 205 | G88: 50 | H88: 16
A89: 225/50R16 | B89: 92Q | C89: 1665 | D89: スカイライン･RX-7 など | E89: ベーシック | F89: 225 | G89: 50 | H89: 16
A90: 195/45R16 | B90: 80Q | C90: 1660 | D90: デミオSPORT･オペルヴィータ など | E90: ベーシック | F90: 195 | G90: 45 | H90: 16
A91: 205/45R16 | B91: 83Q | C91: 1660 | D91: マーチNISMO など | E91: ベーシック | F91: 205 | G91: 45 | H91: 16
A92: 265/70R17 | B92: 115Q | C92: 1775s | D92: FJクルーザー など | E92: SUV | F92: 265 | G92: 70 | H92: 17
A93: 225/65R17 | B93: 102Q | C93: 1770 | D93: ハリアー･レクサスNX･X-TRAIL･CX5・CX8 など | E93: ベーシック・SUV | F93: 225 | G93: 65 | H93: 17
A94: 235/65R17 | B94: 108Q XL | C94: 1770 | D94: 新型CR-V・エスクード･MDX など | E94: ベーシック・SUV | F94: 235 | G94: 65 | H94: 17
A95: 245/65R17 | B95: 107Q | E95: ベーシック | F95: 245 | G95: 65 | H95: 17
A96: 265/65R17 | B96: 112Q | C96: 1775s | D96: パジェロ･ランドクルーザープラド･ハイラックス など | E96: SUV | F96: 265 | G96: 65 | H96: 17
A97: 275/65R17 | B97: 115Q | C97: 1780 | D97: ランドクルーザー200 など | E97: SUV | F97: 275 | G97: 65 | H97: 17
A98: 215/60R17 | B98: 96Q | C98: 1770 | D98: アルファード(20系)･ヴェルファイア(20系)・CH-R・MPV など | E98: ベーシック・SUV | F98: 215 | G98: 60 | H98: 17
A99: 225/60R17 | B99: 99Q | C99: 1770 | D99: アルファード(30系)・ヴェルファイア(30系)・フォレスタ－・※XV(GT系) など | E99: ベーシック・SUV | F99: 225 | G99: 60 | H99: 17
A100: 235/60R17 | C100: 1770 | D100: レクサスRX など | E100: SUV | F100: 235 | G100: 60 | H100: 17
A101: 205/55R17 | B101: 91Q | C101: 1770 | D101: ステップワゴン･ストリーム など | E101: ベーシック | F101: 205 | G101: 55 | H101: 17
A102: 215/55R17 | B102: 94Q | C102: 1770 | D102: クラウン･マークX･カムリ・オデッセィ・ヴェゼル など | E102: ベーシック・SUV | F102: 215 | G102: 55 | H102: 17
A103: 225/55R17 | B103: 97Q | C103: 1770 | D103: レガシィB4・スカイライン(V37)･アテンザ・アルファード(10系) など | E103: ベーシック・SUV | F103: 225 | G103: 55 | H103: 17
A104: 235/55R17 | B104: 99Q | E104: ベーシック | F104: 235 | G104: 55 | H104: 17
A105: 205/50R17 | B105: 93Q XL | C105: 1770 | D105: プレマシー･インプレッサスポーツ･SX4 など | E105: ベーシック | F105: 205 | G105: 50 | H105: 17
A106: 205/50R17 | B106: 89Q | C106: 1770 | D106: プレマシー･インプレッサスポーツ･SX4 など | E106: ベーシック | F106: 205 | G106: 50 | H106: 17
A107: 215/50R17 | B107: 91Q | C107: 1770 | D107: レヴォーグ･リーフ・ジェイド・ウィッシュ・プリウスα・アクセラ など | E107: ベーシック | F107: 215 | G107: 50 | H107: 17
A108: 225/50R17 | B108: 94Q | C108: 1770 | D108: レクサスGS･RC･クラウンマジェスタ・アコードハイブリッド など | E108: ベーシック | F108: 225 | G108: 50 | H108: 17
A109: 235/50R17 | B109: 96Q | C109: 1770 | D109: クラウンマジェスタ(180系) など | E109: ベーシック | F109: 235 | G109: 50 | H109: 17
A110: 195/45R17 | B110: 81Q | C110: 1765c | D110: スイフトスポーツ・ヴィッツG's･アクアG's など | E110: ベーシック | F110: 195 | G110: 45 | H110: 17
A111: 205/45R17 | B111: 84Q | C111: 1765c | D111: ノートNISMO・NCロードスター など | E111: ベーシック | F111: 205 | G111: 45 | H111: 17
A112: 215/45R17 | B112: 87Q | C112: 1770 | D112: プリウス･CT200h･86･BRZ など | E112: ベーシック | F112: 215 | G112: 45 | H112: 17
A113: 225/45R17 | B113: 91Q | C113: 1770 | D113: オーリス･レクサスIS・カローラスポーツ など | E113: ベーシック | F113: 225 | G113: 45 | H113: 17
A114: 235/45R17 | B114: 94Q | C114: 1780 | D114: WRX STI(4POT車インチダウン)･WRX S4･新型シビック など | E114: ベーシック | F114: 235 | G114: 45 | H114: 17
A115: 245/45R17 | B115: 99Q XL | E115: ベーシック | F115: 245 | G115: 45 | H115: 17
A116: 245/45R17 | B116: 95Q | E116: ベーシック | F116: 245 | G116: 45 | H116: 17
A117: 215/40R17 | C117: 1770 | D117: コンパクトカーインチアップ・VWクロスポロ など | E117: ベーシック | F117: 215 | G117: 40 | H117: 17
A118: 225/65R18 | B118: 103Q | C118: 1875 | D118: ムラーノ など | E118: SUV | F118: 225 | G118: 65 | H118: 18
A119: 235/65R18 | B119: 106Q | C119: 1875 | D119: ムラーノ・先代レクサスRX など | E119: SUV | F119: 235 | G119: 65 | H119: 18
A120: 225/60R18 | B120: 100Q | C120: 1875 | D120: レクサスNX・アウトバック・先代CR-V･エスクード など | E120: SUV | F120: 225 | G120: 60 | H120: 18
A121: 235/60R18 | B121: 107Q XL | C121: 1875 | D121: レクサスRX･CX-7･新型CR-V など | E121: SUV | F121: 235 | G121: 60 | H121: 18
A122: 245/60R18 | B122: 105Q | E122: ベーシック | F122: 245 | G122: 60 | H122: 18
A123: 265/60R18 | B123: 110Q | C123: 1880s | D123: ランドクルーザープラド・パジェロ など | E123: SUV | F123: 265 | G123: 60 | H123: 18
A124: 275/60R18 | B124: 113Q | C124: 1880s | D124: ランドクルーザー100 など | E124: SUV | F124: 275 | G124: 60 | H124: 18
A125: 285/60R18 | B125: 116Q | C125: 1880s | D125: ランドクルーザー200 など | E125: SUV | F125: 285 | G125: 60 | H125: 18
A126: 215/55R18 | B126: 95Q | C126: 1875 | D126: デュアリス･MPV など | E126: ベーシック・SUV | F126: 215 | G126: 55 | H126: 18
A127: 225/55R18 | B127: 98Q | C127: 1875 | D127: エルグランド･デリカD:5・新型センチュリー・フォレスター・エクリプスクロス など | E127: ベーシック・SUV | F127: 225 | G127: 55 | H127: 18
A128: 235/55R18 | B128: 100Q | C128: 1875 | D128: レクサスNX・ハリアー･ヴァンガード・シエナ など | E128: ベーシック・SUV | F128: 235 | G128: 55 | H128: 18
A129: 255/55R18 | B129: 109Q XL | E129: SUV | F129: 255 | G129: 55 | H129: 18
A130: 215/50R18 | B130: 92Q | C130: 1875 | D130: CX-3 など | E130: SUV | F130: 215 | G130: 50 | H130: 18
A131: 225/50R18 | B131: 95Q | C131: 1875 | D131: C-HR・レガシィB4・エスティマ･ヴェゼル・エリシオン など | E131: ベーシック・SUV | F131: 225 | G131: 50 | H131: 18
A132: 235/50R18 | B132: 97Q | C132: 1875 | D132: レクサスLS･アルファード(20系以降)・ヴェルファイア など | E132: ベーシック | F132: 235 | G132: 50 | H132: 18
A133: 245/50R18 | B133: 104Q XL | C133: 1880 | D133: フーガ(51系)・シーマ(51系) など | E133: ベーシック | F133: 245 | G133: 50 | H133: 18
A134: 245/50R18 | B134: 100Q | C134: 1880 | D134: フーガ(51系)・シーマ(51系) など | E134: ベーシック | F134: =LEFTB(A134,3) -> 245 | G134: =MIDB(A134,5,2) -> 50 | H134: 18
A135: 215/45R18 | B135: 89Q | C135: 1875 | D135: ノア(GRスポーツ)・プリウスα(G's)・ギャランフォルティス など | E135: ベーシック | F135: 215 | G135: 45 | H135: =RIGHTB(A135,2) -> 18
A136: 225/45R18 | B136: 91Q | C136: 1875 | D136: クラウン・レヴォーグ・オデッセィ・WRX S4・MIRAI など | E136: ベーシック | F136: 225 | G136: 45 | H136: 18
A137: 235/45R18 | B137: 94Q | C137: 1880 | D137: レクサスGS･RC・アコードツアラー･マークX など | E137: ベーシック | F137: 235 | G137: 45 | H137: 18
A138: 245/45R18 | B138: 100Q XL | C138: 1880 | D138: フーガ(50系)･セルシオ･シーマ(50系)・スカイライン(V37) など | E138: ベーシック | F138: 245 | G138: 45 | H138: 18
A139: 245/45R18 | B139: 96Q | C139: 1880 | D139: フーガ(50系)･セルシオ･シーマ(50系)・スカイライン(V37) など | E139: ベーシック | F139: 245 | G139: 45 | H139: 18
A140: 255/45R18 | B140: 99Q | E140: ベーシック | F140: 255 | G140: 45 | H140: 18
A141: 215/40R18 | B141: 89Q XL | C141: 1875 | D141: プリウスG’ｓ･86･BRZ など | E141: ベーシック | F141: 215 | G141: 40 | H141: 18
A142: 225/40R18 | B142: 88Q | C142: 1875 | D142: 86・インプレッサスポーツ・カローラスポーツ・FD2シビック・BRZ など | E142: ベーシック | F142: 225 | G142: 40 | H142: 18
A143: 235/40R18 | B143: 95Q XL | C143: 1880 | D143: 新型シビック など | E143: ベーシック | F143: 235 | G143: 40 | H143: 18
A144: 245/40R18 | B144: 93Q | C144: 1885 | D144: ランサーエボリューションX・WRX STI・レクサスGS・SC など | E144: ベーシック | F144: 245 | G144: 40 | H144: 18
A145: 255/40R18 | B145: 95Q | E145: ベーシック | F145: 255 | G145: 40 | H145: 18
A146: 255/35R18 | B146: 90Q | E146: ベーシック | F146: 255 | G146: 35 | H146: 18
A147: 225/55R19 | B147: 99Q | C147: 1970 | D147: CX-5・CX-8 など | E147: SUV | F147: 225 | G147: 55 | H147: 19
A148: 235/55R19 | B148: 101Q | C148: 1980 | D148: レクサスRX･CR-V など | E148: SUV | F148: 235 | G148: 55 | H148: 19
A149: 255/55R19 | B149: 111Q XL | E149: SUV | F149: 255 | G149: 55 | H149: 19
A150: 265/55R19 | B150: 109Q | C150: 1980s | D150: ランドクルーザー など | E150: SUV | F150: 265 | G150: 55 | H150: 19
A151: 235/50R19 | C151: 1980 | E151: SUV | F151: 235 | G151: 50 | H151: 19
A152: 255/50R19 | B152: 107Q XL | E152: SUV | F152: 255 | G152: 50 | H152: 19
A153: 265/50R19 | B153: 110Q XL | E153: SUV | F153: 265 | G153: 50 | H153: 19
A154: 225/45R19 | B154: 92Q | C154: 1980 | D154: アテンザ など | E154: ベーシック | F154: 225 | G154: 45 | H154: 19
A155: 245/45R19 | B155: 98Q | C155: 1980l | D155: レクサスLS(40系) など | E155: ベーシック | F155: 245 | G155: 45 | H155: 19
A156: 225/40R19 | B156: 89Q | C156: 1980 | D156: レクサスIS･RX-8 など | E156: ベーシック | F156: 225 | G156: 40 | H156: 19
A157: 235/40R19 | B157: 92Q | C157: 1980 | D157: レクサスGS･マークX など | E157: ベーシック | F157: 235 | G157: 40 | H157: 19
A158: 245/40R19 | B158: 94Q | C158: 1980h | D158: レジェンドハイブリッド など | E158: ベーシック | F158: 245 | G158: 40 | H158: 19
A159: 255/40R19 | B159: 100Q XL | E159: ベーシック | F159: 255 | G159: 40 | H159: 19
A160: 245/35R19 | C160: 1980 | D160: WRX STI など | E160: ベーシック | F160: 245 | G160: 35 | H160: 19
A161: 255/35R19 | B161: 92Q | C161: 1985 | D161: WRX STI S207・S208・S4ts など | E161: ベーシック | F161: 255 | G161: 35 | H161: 19
A162: 265/35R19 | B162: 94Q | E162: ベーシック | F162: 265 | G162: 35 | H162: 19
A163: 275/35R19 | B163: 96Q | E163: ベーシック | F163: 275 | G163: 35 | H163: 19
A164: 245/60R20 | B164: 107Q | E164: ベーシック | F164: 245 | G164: 60 | H164: 20
A165: 235/55R20 | B165: 102Q | C165: 2085 | D165: レクサスRX・ムラーノ など | E165: SUV | F165: 235 | G165: 55 | H165: 20
A166: 275/50R20 | B166: 113Q XL | E166: ベーシック | F166: 275 | G166: 50 | H166: 20
A167: 285/50R20 | B167: 112Q | C167: 2085s | D167: レクサスLX など | E167: SUV | F167: 285 | G167: 50 | H167: 20
A168: 245/45R20 | B168: 103Q XL | C168: 2085l | D168: レクサスLS(50系)･LC など | E168: ベーシック | F168: 245 | G168: 45 | H168: 20
A169: 275/45R20 | B169: 110Q XL | E169: ベーシック | F169: 275 | G169: 45 | H169: 20
A170: 245/40R20 | B170: 95Q | C170: 2085 | D170: フーガ(51系) など | E170: ベーシック | F170: 245 | G170: 40 | H170: 20
A171: 275/40R20 | B171: 106Q XL | E171: ベーシック | F171: 275 | G171: 40 | H171: 20
A172: 245/50RF19 | B172: 101Q | C172: 1980l | D172: レクサスLS(50系)･LC など | E172: ベーシック | F172: 245 | G172: 50 | H172: 19
A173: 245/45RF19 | B173: 98Q | C173: 1980l | D173: レクサスLS(40系) など | E173: ベーシック | F173: 245 | G173: 45 | H173: 19
A174: 245/40RF19 | B174: 94Q | E174: ベーシック | F174: 245 | G174: 40 | H174: 19
A175: 245/45RF20 | B175: 99Q | C175: 2085l | D175: レクサスLS(50系)･LC など | E175: ベーシック | F175: 245 | G175: 45 | H175: 20
A176: 215/80R15 | B176: 102Q | C176: 1560v | D176: デリカスペースギア(4WD) | E176: SUV | F176: 215 | G176: 80 | H176: 15
A177: 225/80R15 | B177: 105Q | C177: 1560v | D177: デリカスペースギア(4WD) | E177: SUV | F177: 225 | G177: 80 | H177: 15
A178: 30x9.50R15 | B178: 104Q | C178: 1560 | F178: =LEFTB(A178,2) -> 30 | G178: =MIDB(A178,4,4) -> 9.50 | H178: 15
A179: 31x10.50R15 | B179: 109Q | C179: 1560v | F179: =LEFTB(A179,2) -> 31 | G179: =MIDB(A179,4,4) -> 10.5 | H179: 15
A180: 225/70R15 | B180: 100Q | F180: =LEFTB(A180,3) -> 225 | G180: =MIDB(A180,5,2) -> 70 | H180: 15
A181: 235/70R15 | B181: 103Q | F181: 235 | G181: 70 | H181: 15
A182: 255/70R15 | B182: 112L | F182: 255 | G182: 70 | H182: 15
A183: 205/80R16 | B183: 100Q | F183: 205 | G183: 80 | H183: 16
A184: 215/80R16 | B184: 103Q | F184: 215 | G184: 80 | H184: 16
A185: 235/80R16 | B185: 109Q | F185: 235 | G185: 80 | H185: 16
A186: 285/75R16 | B186: 116Q | F186: 285 | G186: 75 | H186: 16
A187: 205/65R16 | B187: 95Q | F187: 205 | G187: 65 | H187: 16
A188: 255/65R16 | B188: 109Q XL | F188: 255 | G188: 65 | H188: 16
A189: 255/60R18 | B189: 112Q XL | F189: 255 | G189: 60 | H189: 18
A190: 255/50R19 | B190: 103Q | F190: 255 | G190: 50 | H190: 19
A191: 215/80R16 | B191: 107L | F191: 215 | G191: 80 | H191: 16
A192: 155/70R19 | B192: 84Q | C192: 1950 | F192: 155 | G192: 70 | H192: 19
A193: 155/70R19 | B193: 88Q XL | C193: 1950 | F193: 155 | G193: 70 | H193: 19
A194: 155/65RF14 | B194: 75Q | F194: 155 | G194: 65 | H194: 14
A195: 205/60RF16 | B195: 92Q | C195: 1670 | F195: 205 | G195: 60 | H195: 16
A196: 195/55R16 | B196: 87Q | C196: 1660 | F196: 195 | G196: 55 | H196: 16
A197: 205/55RF16 | B197: 91Q | C197: 1670 | F197: 205 | G197: 55 | H197: 16
A198: 225/60RF17 | B198: 99Q | C198: 1775 | F198: 225 | G198: 60 | H198: 17
A199: 205/55RF17 | B199: 91Q | C199: 1770 | F199: 205 | G199: 55 | H199: 17
A200: 225/55R17 | B200: 97Q | C200: 1775 | F200: 225 | G200: 55 | H200: 17
... 55 more rows

Sheet ホイール売価(国産)
P1: ジャパン三陽 | V1: Weds
A2: 廉価ホイール | P2: ZACK SERIES【SP01/JP710/JP812/JP110】 KAZERA HYPERⅡ/Ⅲ | V2: JOKER / VELVA SERIES KEELER FORCE / PRODITA HC
A3: 商品名 | B3: ﾘﾑ&幅 | C3: INSET | D3: HOLE | E3: P.C.D | F3: 色 | G3: 店仕切 | H3: 車種情報 | I3: 4枚売価 | J3: 粗利 | K3: 粗利額 | L3: プラス金額 | M3: メーカー | N3: 発注 | P3: 店仕切 | Q3: 4枚売価 | R3: 粗利 | S3: 粗利額 | T3: プラス金額 | V3: 店仕切 | W3: 4枚売価 | X3: 粗利 | Y3: 粗利額 | Z3: プラス金額
A4: Z-meist VS-T7 | B4: 1240 | C4: 42 | D4: 4 | E4: 100 | F4: MS | G4: 3000 | I4: 14000 | J4: =1-G4/(I4/4) -> 0.1428571429 | K4: =I4-(G4*4) -> 2000 | M4: ZAC | N4: ﾁｬｰﾀｰ便配送 | P4: 3100 | Q4: 15000 | R4: =1-P4/(Q4/4) -> 0.1733333333 | S4: =Q4-(P4*4) -> 2600 | T4: =Q4-I4 -> 1000 | V4: 3330 | W4: 16000 | X4: =1-V4/(W4/4) -> 0.1675 | Y4: =W4-(V4*4) -> 2680 | Z4: =W4-I4 -> 2000
A5: Z-meist VS-T7 | B5: 1340 | C5: 43 | D5: 4 | E5: 100 | F5: MS | G5: 3000 | I5: 14000 | J5: 0.1428571429 | K5: 2000 | M5: ZAC | N5: ﾁｬｰﾀｰ便配送 | P5: 3150 | Q5: 15000 | R5: =1-P5/(Q5/4) -> 0.16 | S5: =Q5-(P5*4) -> 2400 | T5: =Q5-I5 -> 1000 | V5: 3610 | W5: 17000 | X5: =1-V5/(W5/4) -> 0.1505882353 | Y5: =W5-(V5*4) -> 2560 | Z5: =W5-I5 -> 3000
A6: Z-meist VS-T7 | B6: 1455 | C6: 38 | D6: 4 | E6: 100 | F6: MS | G6: 3780 | I6: 19000 | J6: 0.2042105263 | K6: 3880 | M6: ZAC | N6: ﾁｬｰﾀｰ便配送 | P6: 3830 | Q6: 20000 | R6: 0.234 | S6: 4680 | T6: 1000 | V6: 4390 | W6: 22000 | X6: 0.2018181818 | Y6: 4440 | Z6: 3000
A7: Z-meist VS-T7 | B7: 1455 | C7: 45 | D7: 4 | E7: 100 | F7: MS | G7: 3780 | I7: 19000 | J7: 0.2042105263 | K7: 3880 | M7: ZAC | N7: ﾁｬｰﾀｰ便配送 | P7: 3830 | Q7: 20000 | R7: 0.234 | S7: 4680 | T7: 1000 | V7: 4390 | W7: 22000 | X7: 0.2018181818 | Y7: 4440 | Z7: 3000
A8: Z-meist VS-T7 | B8: 1545 | C8: 45 | D8: 4 | E8: 100 | F8: MS | G8: 4380 | I8: 20000 | J8: 0.124 | K8: 2480 | M8: ZAC | N8: ﾁｬｰﾀｰ便配送 | P8: 4380 | Q8: 22000 | R8: 0.2036363636 | S8: 4480 | T8: 2000 | V8: 4640 | W8: 24000 | X8: 0.2266666667 | Y8: 5440 | Z8: 4000
A9: Z-meist VS-T7 | B9: 1555 | C9: 43 | D9: 4 | E9: 100 | F9: MS | G9: 4400 | I9: 21000 | J9: 0.1619047619 | K9: 3400 | M9: ZAC | N9: ﾁｬｰﾀｰ便配送 | P9: 4450 | Q9: 23000 | R9: 0.2260869565 | S9: 5200 | T9: 2000 | V9: 4810 | W9: 25000 | X9: 0.2304 | Y9: 5760 | Z9: 4000
A10: Z-meist VS-T7 | B10: 1555 | C10: 50 | D10: 4 | E10: 100 | F10: MS | G10: 4400 | I10: 21000 | J10: 0.1619047619 | K10: 3400 | M10: ZAC | N10: ﾁｬｰﾀｰ便配送 | P10: 4450 | Q10: 23000 | R10: 0.2260869565 | S10: 5200 | T10: 2000 | V10: 4810 | W10: 25000 | X10: 0.2304 | Y10: 5760 | Z10: 4000
A11: Z-meist VS-T7 | B11: 1560 | C11: 45 | D11: 5 | E11: 100 | F11: MS | G11: 4450 | I11: 22000 | J11: 0.1909090909 | K11: 4200 | M11: ZAC | N11: ﾁｬｰﾀｰ便配送 | P11: 4450 | Q11: 24000 | R11: 0.2583333333 | S11: 6200 | T11: 2000 | V11: 4940 | W11: 26000 | X11: 0.24 | Y11: 6240 | Z11: 4000
A12: Z-meist VS-T7 | B12: 1560 | C12: 45 | D12: 5 | E12: 114.3 | F12: MS | G12: 4450 | I12: 22000 | J12: 0.1909090909 | K12: 4200 | M12: ZAC | N12: ﾁｬｰﾀｰ便配送 | P12: 4450 | Q12: 24000 | R12: 0.2583333333 | S12: 6200 | T12: =Q12-I12 -> 2000 | V12: 4940 | W12: 26000 | X12: 0.24 | Y12: 6240 | Z12: =W12-I12 -> 4000
A13: Z-meist VS-T7 | B13: 1560 | C13: 52 | D13: 5 | E13: 114.3 | F13: MS | G13: 4450 | I13: 22000 | J13: 0.1909090909 | K13: 4200 | M13: ZAC | N13: ﾁｬｰﾀｰ便配送 | P13: 4450 | Q13: 24000 | R13: 0.2583333333 | S13: 6200 | T13: 2000 | V13: 4940 | W13: 26000 | X13: 0.24 | Y13: 6240 | Z13: =W13-I13 -> 4000
A14: Z-meist VS-1 | B14: 1560 | C14: 45 | D14: 5 | E14: 100 | G14: 4000 | H14: 送料別 | I14: 20000 | J14: 0.2 | K14: 4000 | M14: ZAC | N14: ﾁｬｰﾀｰ便配送 | P14: 4450 | Q14: 24000 | R14: 0.2583333333 | S14: 6200 | T14: 4000 | V14: 4940 | W14: 26000 | X14: 0.24 | Y14: 6240 | Z14: =W14-I14 -> 6000
A15: Z-meist VS-1 | B15: 1560 | C15: 48 | D15: 5 | E15: 114.3 | G15: 4000 | H15: 送料別 | I15: 20000 | J15: 0.2 | K15: 4000 | M15: ZAC | N15: ﾁｬｰﾀｰ便配送 | P15: 4450 | Q15: 24000 | R15: 0.2583333333 | S15: 6200 | T15: 4000 | V15: 4940 | W15: 26000 | X15: 0.24 | Y15: 6240 | Z15: =W15-I15 -> 6000
A16: Z-meist VS-1 | B16: 1560 | C16: 53 | D16: 5 | E16: 114.3 | G16: 4000 | H16: 送料別 | I16: 20000 | J16: 0.2 | K16: 4000 | M16: ZAC | N16: ﾁｬｰﾀｰ便配送 | P16: 4450 | Q16: 24000 | R16: 0.2583333333 | S16: 6200 | T16: 4000 | V16: 4940 | W16: 26000 | X16: 0.24 | Y16: 6240 | Z16: 6000
A17: Z-meist VS-1 | B17: 1665 | C17: 38 | D17: 5 | E17: 114.3 | G17: 4610 | H17: 送料別 | I17: 23000 | J17: 0.1982608696 | K17: 4560 | M17: ZAC | N17: ﾁｬｰﾀｰ便配送 | P17: 5220 | Q17: 26000 | R17: 0.1969230769 | S17: 5120 | T17: 3000 | V17: 5670 | W17: 29000 | X17: 0.2179310345 | Y17: 6320 | Z17: 6000
A18: Z-meist VS-1 | B18: 1665 | C18: 48 | D18: 5 | E18: 100 | G18: 4610 | H18: 送料別 | I18: 23000 | J18: 0.1982608696 | K18: 4560 | M18: ZAC | N18: ﾁｬｰﾀｰ便配送 | P18: 5220 | Q18: 26000 | R18: 0.1969230769 | S18: 5120 | T18: 3000 | V18: 5670 | W18: 29000 | X18: 0.2179310345 | Y18: 6320 | Z18: 6000
A19: Z-meist VS-1 | B19: 1665 | C19: 48 | D19: 5 | E19: 114.3 | G19: 4610 | H19: 送料別 | I19: 23000 | J19: 0.1982608696 | K19: 4560 | M19: ZAC | N19: ﾁｬｰﾀｰ便配送 | P19: 5220 | Q19: 26000 | R19: 0.1969230769 | S19: 5120 | T19: 3000 | V19: 5670 | W19: 29000 | X19: 0.2179310345 | Y19: 6320 | Z19: 6000
A20: Z-meist VS-1 | B20: 1665 | C20: 53 | D20: 5 | E20: 114.3 | G20: 4610 | H20: 送料別 | I20: 23000 | J20: 0.1982608696 | K20: 4560 | M20: ZAC | N20: ﾁｬｰﾀｰ便配送 | P20: 5220 | Q20: 26000 | R20: 0.1969230769 | S20: 5120 | T20: 3000 | V20: 5670 | W20: 29000 | X20: 0.2179310345 | Y20: 6320 | Z20: 6000
A21: Z-meist VS-1 | B21: 1770 | C21: 38 | D21: 5 | E21: 114.3 | G21: 5480 | H21: 送料別 | I21: 27000 | J21: 0.1881481481 | K21: 5080 | M21: ZAC | N21: ﾁｬｰﾀｰ便配送 | P21: 6170 | Q21: 31000 | R21: 0.2038709677 | S21: 6320 | T21: 4000 | V21: 7330 | W21: 37000 | X21: 0.2075675676 | Y21: 7680 | Z21: 10000
A22: Z-meist VS-1 | B22: 1770 | C22: 48 | D22: 5 | E22: 100 | G22: 5480 | H22: 送料別 | I22: 27000 | J22: 0.1881481481 | K22: 5080 | M22: ZAC | N22: ﾁｬｰﾀｰ便配送 | P22: 6170 | Q22: 31000 | R22: 0.2038709677 | S22: 6320 | T22: 4000 | V22: 7330 | W22: 37000 | X22: 0.2075675676 | Y22: 7680 | Z22: 10000
A23: Z-meist VS-1 | B23: 1770 | C23: 48 | D23: 5 | E23: 114.3 | G23: 5480 | H23: 送料別 | I23: 27000 | J23: 0.1881481481 | K23: 5080 | M23: ZAC | N23: ﾁｬｰﾀｰ便配送 | P23: 6170 | Q23: 31000 | R23: 0.2038709677 | S23: 6320 | T23: 4000 | V23: 7330 | W23: 37000 | X23: 0.2075675676 | Y23: 7680 | Z23: 10000
A24: Z-meist VS-1 | B24: 1770 | C24: 53 | D24: 5 | E24: 114.3 | G24: 5480 | H24: 送料別 | I24: 27000 | J24: 0.1881481481 | K24: 5080 | M24: ZAC | N24: ﾁｬｰﾀｰ便配送 | P24: 6170 | Q24: 31000 | R24: 0.2038709677 | S24: 6320 | T24: 4000 | V24: 7330 | W24: 37000 | X24: 0.2075675676 | Y24: 7680 | Z24: 10000
A25: Z-meist VS-1 | B25: 1875 | C25: 38 | D25: 5 | E25: 114.3 | G25: 6900 | H25: 送料別 | I25: 34000 | J25: 0.1882352941 | K25: 6400 | M25: ZAC | N25: ﾁｬｰﾀｰ便配送 | P25: 7720 | Q25: 38000 | R25: 0.1873684211 | S25: 7120 | T25: 4000 | V25: 7330 | W25: 37000 | X25: 0.2075675676 | Y25: 7680 | Z25: 3000
A26: Z-meist VS-8 | B26: 1445 | C26: 45 | D26: 4 | E26: 100 | F26: SIL | G26: 3000 | H26: 送料別 | I26: 14000 | J26: 0.1428571429 | K26: =I26-((G26+200)*4) -> 1200 | M26: ZAC | N26: ﾁｬｰﾀｰ便配送 | P26: 3700 | Q26: 17000 | R26: =1-P26/(Q26/4) -> 0.1294117647 | S26: 2200 | T26: 3000 | V26: 4200 | W26: 20000 | X26: 0.16 | Y26: 3200 | Z26: 6000
A27: Z-meist VS-8 | B27: 1555 | C27: 42 | D27: 4 | E27: 100 | F27: SIL | G27: 3700 | H27: 送料別 | I27: 19000 | J27: 0.2210526316 | K27: 3400 | M27: ZAC | N27: ﾁｬｰﾀｰ便配送 | P27: 4400 | Q27: 23000 | R27: 0.2347826087 | S27: 5400 | T27: 4000 | V27: 4810 | W27: 25000 | X27: 0.2304 | Y27: 5760 | Z27: 6000
A28: Z-meist VS-8 | B28: 1555 | C28: 50 | D28: 4 | E28: 100 | F28: SIL | G28: 3700 | H28: 送料別 | I28: 19000 | J28: 0.2210526316 | K28: 3400 | M28: ZAC | N28: ﾁｬｰﾀｰ便配送 | P28: 4400 | Q28: 23000 | R28: 0.2347826087 | S28: 5400 | T28: 4000 | V28: 4810 | W28: 25000 | X28: 0.2304 | Y28: 5760 | Z28: 6000
A29: EUROSPEED V25 | B29: 1350 | C29: 35 | D29: 4 | E29: 100 | F29: MG | G29: 3390 | H29: JWL-T規格対応 | I29: 16000 | J29: 0.1525 | K29: =I29-((G29+200)*4) -> 1640 | M29: マルカ | N29: E/O対応 | P29: 3560 | Q29: 17000 | R29: 0.1623529412 | S29: =Q29-(P29*4) -> 2760 | T29: 1000 | V29: 3780 | W29: 18000 | X29: 0.16 | Y29: =W29-(V29*4) -> 2880 | Z29: 2000
A30: EUROSPEED C-07 | B30: 1765c | C30: 45 | D30: 4 | E30: 100 | F30: MS | G30: 6640 | I30: 33000 | J30: 0.1951515152 | K30: =I30-((G30+200)*4) -> 5640 | M30: マルカ | N30: E/O対応
A31: ZACK SPORT-1 | B31: 1445 | C31: 50 | D31: 4 | E31: 100 | F31: HG | G31: 3670 | H31: 現行ｴﾌﾞﾘｨﾜｺﾞﾝ専用【VS-8より差額有】 | I31: 17000 | J31: 0.1364705882 | K31: =I31-((G31+200)*4) -> 1520 | L31: 3000 | M31: ジャパ三 | N31: E/O対応
A32: ZACK SPORT-1 | B32: 1650 | C32: 40 | D32: 4 | E32: 100 | F32: HG | G32: 5220 | H32: XBEE･ｲｸﾞﾆｽ対応 | I32: 26000 | J32: 0.1969230769 | K32: 4320 | M32: ジャパ三 | N32: E/O対応
A33: ZACK JP-812 | B33: 1565p | C33: 40 | D33: 5 | E33: 100 | F33: BKS | G33: 4670 | H33: 現行プリウス専用【VS-T7より差額有】 | I33: 25000 | J33: 0.2528 | K33: 5520 | L33: 3000 | M33: ジャパ三 | N33: E/O対応
A34: ZACK JP-812 | B34: 1660 | C34: 42 | D34: 4 | E34: 100 | F34: BKS | G34: 5220 | H34: ｺﾝﾊﾟｸﾄｶｰ | I34: 26000 | J34: 0.1969230769 | K34: 4320 | M34: ジャパ三 | N34: E/O対応 | V34: 5560 | W34: 28000 | X34: =1-V34/(W34/4) -> 0.2057142857 | Y34: =W34-(V34*4) -> 5760 | Z34: =W34-I34 -> 2000
A35: ZACK JP-520 | B35: 1770 | C35: 55 | D35: 5 | E35: 100 | F35: DG | G35: 6330 | H35: 現行ｽﾊﾞﾙXV【LAUFより差額有】 | I35: 30000 | J35: 0.156 | K35: =I35-(G35*4) -> 4680 | L35: 3000 | M35: ジャパ三 | N35: E/O対応 | V35: 7330 | W35: 37000 | X35: =1-V35/(W35/4) -> 0.2075675676 | Y35: =W35-(V35*4) -> 7680 | Z35: =W35-I35 -> 7000
A36: ZACK JP-520 | B36: 1780 | C36: 48 | D36: 5 | E36: 114.3 | F36: DG | G36: 7650 | H36: BIGｷｬﾘﾊﾟｰ対応 | I36: 36000 | J36: 0.15 | K36: =I36-((G36+200)*4) -> 4600 | M36: ジャパ三 | N36: E/O対応
A37: ZACK SPORT-1 | B37: 1875 | C37: 38 | D37: 5 | E37: 114.3 | F37: HG | G37: 7720 | I37: 34000 | J37: =1-G37/(I37/4) -> 0.09176470588 | K37: 2320 | M37: ジャパ三 | N37: E/O対応 | V37: 8720 | W37: 42000 | X37: =1-V37/(W37/4) -> 0.1695238095 | Y37: =W37-(V37*4) -> 7120 | Z37: =W37-I37 -> 8000
A38: ZACK SPORT-1 | B38: 1875 | C38: 53 | D38: 5 | E38: 114.3 | F38: HG | G38: 7720 | I38: 34000 | J38: =1-G38/(I38/4) -> 0.09176470588 | K38: 2320 | M38: ジャパ三 | N38: E/O対応 | V38: 8720 | W38: 42000 | X38: =1-V38/(W38/4) -> 0.1695238095 | Y38: =W38-(V38*4) -> 7120 | Z38: =W38-I38 -> 8000
A39: ZACK JP-812 | B39: 1880 | C39: 40 | D39: 5 | E39: 114.3 | F39: BKS | G39: 8000 | H39: BIGｷｬﾘﾊﾟｰ対応 | I39: 38000 | J39: 0.1578947368 | K39: 5200 | M39: ジャパ三 | N39: E/O対応 | V39: 8890 | W39: 46000 | X39: =1-V39/(W39/4) -> 0.2269565217 | Y39: =W39-(V39*4) -> 10440 | Z39: =W39-I39 -> 8000
A40: ZACK JP-110 | B40: 1880 | C40: 35 | D40: 5 | E40: 120 | F40: BKS | G40: 8000 | H40: ﾚｸｻｽLS専用 | I40: 38000 | J40: 0.1578947368 | K40: 5200 | M40: ジャパ三 | N40: E/O対応
A41: ZACK JP-520 | B41: 1885 | C41: 53 | D41: 5 | E41: 114.3 | F41: DG | G41: 8330 | H41: WRX STI/S4 | I41: 40000 | J41: 0.167 | K41: 5880 | M41: ジャパ三 | N41: E/O対応
A42: ZACK SPORT-1 | B42: 1970 | C42: 45 | D42: 5 | E42: 114.3 | F42: HG | G42: 11110 | H42: CX-5/CX-5/ｱｸｾﾗ専用 | I42: 55000 | J42: 0.192 | K42: 9760 | M42: ジャパ三 | N42: E/O対応
A43: ZACK SPORT-1 | B43: 1980l | C43: 25 | D43: 5 | E43: 120 | F43: HG | G43: 11670 | H43: ﾚｸｻｽLC/LS専用 | I43: 58000 | J43: 0.1951724138 | K43: 10520 | M43: ジャパ三 | N43: E/O対応
A44: ZACK SPORT-1 | B44: 1980l | C44: 35 | D44: 5 | E44: 120 | F44: HG | G44: 11670 | H44: ﾚｸｻｽLS専用(40系) | I44: 58000 | J44: 0.1951724138 | K44: 10520 | M44: ジャパ三 | N44: E/O対応
A45: ZACK SPORT-1 | B45: 1980h | C45: 45 | D45: 5 | E45: 120 | F45: HG | G45: 11670 | H45: ﾚｼﾞｪﾝﾄﾞHV/ｼﾋﾞｯｸTYPE-R専用 | I45: 58000 | J45: 0.1951724138 | K45: 10520 | M45: ジャパ三 | N45: E/O対応
A46: Lefinada MOTION1 | B46: 2085l | C46: 25 | D46: 5 | E46: 120 | F46: BRUF | G46: 24940 | H46: ﾚｸｻｽLC/LS専用 | I46: 125000 | J46: 0.20192 | K46: 24440 | M46: マルカ | N46: E/O対応
A47: ZACK JP-710 | B47: 1550s | C47: 50 | D47: 5 | E47: 114.3 | F47: HG | G47: 4390 | H47: ﾃﾘｵｽｷｯﾄﾞ専用 | I47: 22000 | J47: 0.2018181818 | K47: 3640 | M47: ジャパ三 | N47: E/O対応 | V47: 6440 | W47: 32000 | X47: =1-V47/(W47/4) -> 0.195 | Y47: =W47-(V47*4) -> 6240 | Z47: =W47-I47 -> 10000
A48: ZACK JP-710 | B48: 1555s | C48: 45 | D48: 5 | E48: 114.3 | F48: HG | G48: 4390 | H48: ﾊﾟｼﾞｪﾛﾐﾆ専用 | I48: 22000 | J48: 0.2018181818 | K48: 3640 | M48: ジャパ三 | N48: E/O対応 | V48: 6440 | W48: 32000 | X48: =1-V48/(W48/4) -> 0.195 | Y48: =W48-(V48*4) -> 6240 | Z48: =W48-I48 -> 10000
A49: OffPerformer RT8 | B49: 1560v | C49: 33 | D49: 6 | E49: 139.7 | F49: MG | G49: 5280 | H49: 200系ﾊｲｴｰｽ専用 | I49: 26000 | J49: 0.1876923077 | K49: 4080 | M49: マルカ | N49: E/O対応 | P49: 5780 | Q49: 29000 | R49: =1-P49/(Q49/4) -> 0.2027586207 | S49: =Q49-(P49*4) -> 5880 | T49: =Q49-I49 -> 3000 | V49: 5540 | W49: 28000 | X49: =1-V49/(W49/4) -> 0.2085714286 | Y49: =W49-(V49*4) -> 5840 | Z49: =W49-I49 -> 2000
A50: OffPerformer RT8 | B50: 1655s | C50: 22 | D50: 5 | E50: 139.7 | F50: MG | G50: 5890 | H50: ｼﾞﾑﾆｰ専用 | I50: 29000 | J50: 0.1875862069 | K50: 4640 | M50: マルカ | N50: E/O対応 | P50: 6440 | Q50: 32000 | R50: =1-P50/(Q50/4) -> 0.195 | S50: =Q50-(P50*4) -> 6240 | T50: =Q50-I50 -> 3000
A51: OffPerformer RT8 | B51: 1775s | C51: 28 | D51: 6 | E51: 139.7 | F51: MG | G51: 6890 | I51: 34000 | J51: 0.1894117647 | K51: 5640 | M51: マルカ | N51: E/O対応 | P51: 8670 | Q51: 44000 | R51: =1-P51/(Q51/4) -> 0.2118181818 | S51: =Q51-(P51*4) -> 9320 | T51: =Q51-I51 -> 10000
A52: MAD RANGER | B52: 1555v | C52: 45 | D52: 6 | E52: 139.7 | F52: HS | G52: 5330 | H52: NV350ｷｬﾗﾊﾞﾝ専用【RT8より差額有】 | I52: =ROUND(G52/0.8,-3)*4 -> 28000 | J52: 0.2385714286 | K52: 5880 | L52: 2000 | M52: マルカ | N52: E/O対応
A53: MAD RANGER | B53: 1565s | C53: 30 | D53: 6 | E53: 139.7 | F53: HS | G53: 5890 | H53: 100系ﾊｲｴｰｽ など | I53: 30000 | J53: 0.2146666667 | K53: 5640 | M53: マルカ | N53: E/O対応
A54: MAD RANGER | B54: 1665s | C54: 38 | D54: 6 | E54: 139.7 | F54: HS | G54: 6440 | H54: 200系ﾊｲｴｰｽ専用 | I54: =ROUND(G54/0.8,-3)*4 -> 32000 | J54: 0.195 | K54: 5440 | M54: マルカ | N54: E/O対応
A55: MAD RANGER | B55: 1680s | C55: 5 | D55: 6 | E55: 139.7 | F55: HS | G55: 7440 | I55: 38000 | J55: 0.2168421053 | K55: 7440 | M55: マルカ | N55: E/O対応
A56: MAD RANGER | B56: 1680s | C56: 45 | D56: 5 | E56: 150 | F56: HS | G56: 7440 | H56: ﾗﾝｸﾙ100 | I56: 38000 | J56: 0.2168421053 | K56: 7440 | M56: マルカ | N56: E/O対応
A57: MAD RANGER | B57: 1780s | C57: 45 | D57: 5 | E57: 150 | F57: HS | G57: 8110 | H57: ﾗﾝｸﾙ100･200 | I57: 42000 | J57: 0.2276190476 | K57: 8760 | M57: マルカ | N57: E/O対応
A58: MAD RANGER | B58: 1880s | C58: 25 | D58: 6 | E58: 139.7 | F58: HS | G58: 9390 | I58: 48000 | J58: 0.2175 | K58: 9640 | M58: マルカ | N58: E/O対応 | V58: 11890 | W58: 63000 | X58: =1-V58/(W58/4) -> 0.2450793651 | Y58: =W58-(V58*4) -> 15440 | Z58: =W58-I58 -> 15000
A59: MAD RANGER | B59: 1880s | C59: 40 | D59: 6 | E59: 139.7 | F59: HS | G59: 9390 | H59: ﾊﾟｼﾞｪﾛ(BIGｷｬﾘﾊﾟｰ車のみ) | I59: 48000 | J59: 0.2175 | K59: 9640 | M59: マルカ | N59: E/O対応 | V59: 11890 | W59: 63000 | X59: =1-V59/(W59/4) -> 0.2450793651 | Y59: =W59-(V59*4) -> 15440 | Z59: =W59-I59 -> 15000
A60: MAD RANGER | B60: 1880s | C60: 50 | D60: 5 | E60: 150 | F60: HS | G60: 9720 | H60: ﾗﾝｸﾙ100･200 | I60: 48000 | J60: 0.19 | K60: 8320 | M60: マルカ | N60: E/O対応 | P60: 9780 | Q60: 48000 | R60: =1-P60/(Q60/4) -> 0.185 | S60: =Q60-(P60*4) -> 8880 | T60: =Q60-I60 -> 0 | V60: 13000 | W60: 68000 | X60: =1-V60/(W60/4) -> 0.2352941176 | Y60: =W60-(V60*4) -> 16000 | Z60: =W60-I60 -> 20000
A61: KAZERA HYPERⅢ | B61: 1980s | C61: 20 | D61: 6 | E61: 139.7 | F61: HG | G61: 11670 | I61: 58000 | J61: 0.1951724138 | K61: 10520 | M61: ジャパ三 | N61: E/O対応
A62: KEELER FORCE | B62: 1555ss | C62: 5 | D62: 5 | E62: 139.7 | G62: 6890 | I62: 35000 | J62: 0.2125714286 | K62: 6640 | M62: Weds | N62: E/O対応
A63: KEELER FORCE | B63: 1570s | C63: 5 | D63: 6 | E63: 139.7 | F63: HS | G63: 7890 | I63: 40000 | J63: 0.211 | K63: 7640 | M63: Weds | N63: E/O対応
A64: MUD BAHN XR-526 | B64: 1670s | C64: 26 | D64: 6 | E64: 139.7 | F64: SIL | G64: 7390 | I64: 38000 | J64: 0.2221052632 | K64: 7640 | M64: ベスト | N64: E/O対応
A65: Treffer-MH | B65: 1455m | C65: 43 | D65: 8/10M | G65: 4600 | H65: 【LAUFより差額有】 | I65: 23000 | J65: 0.2 | K65: 3800 | L65: 4000 | M65: Weds | N65: E/O対応
A66: Treffer-MH | B66: 1560m | C66: 45 | D66: 8M | G66: 5200 | H66: 【LAUFより差額有】 | I66: 26000 | J66: 0.2 | K66: 4400 | L66: 4000 | M66: Weds | N66: E/O対応
A67: ZACK JP-710 | B67: 1350v | C67: 45 | D67: 5 | E67: 114.3 | F67: HG | G67: 3780 | H67: ﾀｳﾝｴｰｽ/ﾗｲﾄｴｰｽ専用 | I67: 19000 | J67: 0.2042105263 | K67: =I67-((G67+200)*4) -> 3080 | M67: ジャパ三 | N67: E/O対応
A68: ZACK SPORT-1 | B68: 1455v | C68: 40 | D68: 4 | E68: 100 | F68: HG | G68: 3830 | H68: JWL-T規格対応 | I68: 20000 | J68: 0.234 | K68: =I68-((G68+200)*4) -> 3880 | M68: ジャパ三 | N68: E/O対応
A69: SW-2 KCA-N | B69: 1235v | C69: 45 | D69: 4 | E69: 100 | F69: ｽﾁｰﾙ | G69: 2220 | H69: 現行ｷｬﾘｨ対応 | I69: 11000 | J69: 0.1927272727 | K69: 1320 | M69: 東京車輪 | N69: E/O対応
A70: ｷｬﾛｳｨﾝ PK-354SN | B70: 1235v | C70: 45 | D70: 4 | E70: 100 | F70: ｽﾁｰﾙ | G70: 2050 | H70: 現行ｷｬﾘｨ対応 | I70: 11000 | J70: 0.2545454545 | K70: 2000 | M70: Weds | N70: ※20枚ロット価格
A71: YF-010 | B71: 1240v | C71: 40 | D71: 4 | E71: 100 | F71: ｽﾁｰﾙ | G71: 1900 | I71: 9000 | J71: 0.1555555556 | K71: 600 | M71: 東京車輪 | N71: E/O対応
A72: WAO | B72: 1240v | C72: 40 | D72: 12M | F72: ｽﾁｰﾙ | G72: 2660 | H72: 【YF-010より差額有】4/114.3車対応 | I72: 12000 | J72: 0.1133333333 | K72: 560 | L72: 3000 | M72: 東京車輪 | N72: E/O対応
A73: YF-010 | B73: 1340v | C73: 42 | D73: 4 | E73: 100 | F73: ｽﾁｰﾙ | G73: 2170 | I73: 11000 | J73: 0.2109090909 | K73: 1520 | M73: 東京車輪 | N73: E/O対応
A74: WAO | B74: 1350v | C74: 40 | D74: 12M | F74: ｽﾁｰﾙ | G74: 3130 | I74: 15000 | J74: 0.1653333333 | K74: 1680 | M74: 東京車輪 | N74: E/O対応
A75: WAO | B75: 1450v | C75: 40 | D75: 8M | F75: ｽﾁｰﾙ | G75: 3310 | H75: NV200･ﾌﾟﾛﾎﾞｯｸｽ対応 | I75: 16000 | J75: 0.1725 | K75: 1960 | M75: 東京車輪 | N75: E/O対応
A76: SW-2 KBO | B76: 1450vv | C76: 50 | D76: 5 | E76: 114.3 | F76: ｽﾁｰﾙ | G76: 3270 | H76: ﾎﾞﾝｺﾞ･ﾊﾞﾈｯﾄ(SK系) | I76: 18000 | J76: 0.2733333333 | K76: 4120 | M76: 東京車輪 | N76: E/O対応
A77: SW-2 KMB | B77: 1450vv | C77: 50 | D77: 6 | E77: 139.7 | F77: ｽﾁｰﾙ | G77: 3520 | H77: ﾎﾞﾝｺﾞ | I77: 18000 | J77: 0.2177777778 | K77: 3120 | M77: 東京車輪 | N77: E/O対応
A79: ランクアップ①
A80: 商品名 | B80: ﾘﾑ&幅 | C80: INSET | D80: HOLE | E80: P.C.D. | F80: 色 | G80: 店仕切 | H80: 車種情報 | I80: 4枚売価 | J80: 粗利 | K80: 粗利額 | L80: プラス金額 | M80: メーカー | N80: 備考
A81: Z-meist VS-1 BC | B81: 1445 | C81: 43 | D81: 4 | E81: 100 | F81: BC | G81: 3810 | H81: 送料別 | I81: 20000 | J81: 0.238 | K81: =I81-((G81+200)*4) -> 3960 | L81: =I81-VLOOKUP(B81,$B$4:$I$77,8,0) -> 6000 | M81: ZAC
A82: Z-meist VS-1 BC | B82: 1455 | C82: 40 | D82: 4 | E82: 100 | F82: BC | G82: 3900 | H82: 送料別 | I82: 25000 | J82: 0.376 | K82: 8600 | L82: 6000 | M82: ZAC
A83: Z-meist VS-1 BC | B83: 1455 | C83: 47 | D83: 4 | E83: 100 | F83: BC | G83: 3900 | H83: 送料別 | I83: 25000 | J83: 0.376 | K83: 8600 | L83: 6000 | M83: ZAC
A84: Z-meist VS-1 BC | B84: 1555 | C84: 43 | D84: 4 | E84: 100 | F84: BC | G84: 4500 | H84: 送料別 | I84: 27000 | J84: 0.3333333333 | K84: 8200 | L84: 6000 | M84: ZAC
A85: Z-meist VS-1 BC | B85: 1555 | C85: 50 | D85: 4 | E85: 100 | F85: BC | G85: 4500 | H85: 送料別 | I85: 27000 | J85: 0.3333333333 | K85: 8200 | L85: 6000 | M85: ZAC
A86: Z-meist VS-1 BC | B86: 1560 | C86: 45 | D86: 5 | E86: 100 | F86: BC | G86: 4670 | H86: 送料別 | I86: 28000 | J86: 0.3328571429 | K86: 8520 | L86: 6000 | M86: ZAC
A87: Z-meist VS-1 BC | B87: 1560 | C87: 48 | D87: 5 | E87: 114.3 | F87: BC | G87: 4670 | H87: 送料別 | I87: 28000 | J87: 0.3328571429 | K87: 8520 | L87: 6000 | M87: ZAC
A88: Z-meist VS-1 BC | B88: 1560 | C88: 53 | D88: 5 | E88: 114.3 | F88: BC | G88: 4670 | H88: 送料別 | I88: 28000 | J88: 0.3328571429 | K88: 8520 | L88: 6000 | M88: ZAC
A89: Z-meist VS-1 BC | B89: 1665 | C89: 38 | D89: 5 | E89: 114.3 | F89: BC | G89: 5380 | H89: 送料別 | I89: 31000 | J89: 0.3058064516 | K89: 8680 | L89: 8000 | M89: ZAC
A90: Z-meist VS-1 BC | B90: 1665 | C90: 48 | D90: 5 | E90: 100 | F90: BC | G90: 5380 | H90: 送料別 | I90: 31000 | J90: 0.3058064516 | K90: 8680 | L90: 8000 | M90: ZAC
A91: Z-meist VS-1 BC | B91: 1665 | C91: 48 | D91: 5 | E91: 114.3 | F91: BC | G91: 5380 | H91: 送料別 | I91: 31000 | J91: 0.3058064516 | K91: 8680 | L91: 8000 | M91: ZAC
A92: Z-meist VS-1 BC | B92: 1665 | C92: 53 | D92: 5 | E92: 114.3 | F92: BC | G92: 5380 | H92: 送料別 | I92: 31000 | J92: 0.3058064516 | K92: 8680 | L92: 8000 | M92: ZAC
A93: Z-meist VS-1 BC | B93: 1770 | C93: 38 | D93: 5 | E93: 114.3 | F93: BC | G93: 6300 | H93: 送料別 | I93: 35000 | J93: 0.28 | K93: 9000 | L93: 8000 | M93: ZAC
A94: Z-meist VS-1 BC | B94: 1770 | C94: 48 | D94: 5 | E94: 100 | F94: BC | G94: 6300 | H94: 送料別 | I94: 35000 | J94: 0.28 | K94: 9000 | L94: 8000 | M94: ZAC
A95: Z-meist VS-1 BC | B95: 1770 | C95: 48 | D95: 5 | E95: 114.3 | F95: BC | G95: 6300 | H95: 送料別 | I95: 35000 | J95: 0.28 | K95: 9000 | L95: 8000 | M95: ZAC
A96: Z-meist VS-1 BC | B96: 1770 | C96: 53 | D96: 5 | E96: 114.3 | F96: BC | G96: 6300 | H96: 送料別 | I96: 35000 | J96: 0.28 | K96: 9000 | L96: 8000 | M96: ZAC
A97: Z-meist VS-1 BC | B97: 1875 | C97: 38 | D97: 5 | E97: 114.3 | F97: BC | G97: 7770 | H97: 送料別 | I97: 42000 | J97: 0.26 | K97: 10120 | L97: 8000 | M97: ZAC
A98: Z-meist VS-1 BC | B98: 1875 | C98: 48 | D98: 5 | E98: 114.3 | F98: BC | G98: 7770 | H98: 送料別 | I98: 42000 | J98: 0.26 | K98: 10120 | L98: 8000 | M98: ZAC
A99: Z-meist VS-1 BC | B99: 1875 | C99: 55 | D99: 5 | E99: 114.3 | F99: BC | G99: 7770 | H99: 送料別 | I99: 42000 | J99: 0.26 | K99: 10120 | L99: 8000 | M99: ZAC
A100: Z-meist VS-1 BC | B100: 1980 | C100: 38 | D100: 5 | E100: 114.3 | F100: BC | G100: 9600 | H100: 送料別 | I100: 55000 | J100: 0.3018181818 | K100: 15800 | M100: ZAC
A101: Z-meist VS-1 BC | B101: 1980 | C101: 45 | D101: 5 | E101: 114.3 | F101: BC | G101: 9600 | H101: 送料別 | I101: 55000 | J101: 0.3018181818 | K101: 15800 | M101: ZAC
A102: Z-meist VS-1 BC | B102: 2085 | C102: 38 | D102: 5 | E102: 114.3 | F102: BC | G102: 10700 | H102: 送料別 | I102: 60000 | J102: 0.2866666667 | K102: 16400 | M102: ZAC
A103: EuroSpeed S810 | B103: 1240 | C103: 43 | D103: 4 | E103: 100 | F103: DGP | G103: 3200 | I103: 18000 | J103: 0.2888888889 | K103: 4400 | L103: =I103-VLOOKUP(B103,$B$4:$I$77,8,0) -> 4000 | M103: マルカ
A104: EuroSpeed S810 | B104: 1340 | C104: 43 | D104: 4 | E104: 100 | F104: DGP | G104: 3300 | I104: 20000 | J104: 0.34 | K104: 6000 | L104: 6000 | M104: マルカ
A105: EuroSpeed S810 | B105: 1545 | C105: 45 | D105: 4 | E105: 100 | F105: DGP | G105: 4500 | I105: 26000 | J105: =1-G105/(I105/4) -> 0.3076923077 | K105: 7200 | L105: 6000 | M105: マルカ
A106: EuroSpeed V25 | B106: 1660 | C106: 43 | D106: 4 | E106: 100 | F106: BKP | G106: 5730 | I106: 34000 | J106: 0.3258823529 | K106: 10280 | L106: 8000 | M106: マルカ
A107: EuroSpeed BL10 | B107: 1770c | C107: 45 | D107: 4 | E107: 100 | F107: BKP | G107: 9240 | I107: 50000 | J107: 0.2608 | K107: 12240 | L107: =I107-I30 -> 17000 | M107: マルカ
A108: JP STYLE Wolx | B108: 1650 | C108: 45 | D108: 4 | E108: 100 | F108: BKP | G108: 6075 | I108: 34000 | J108: =1-G108/(I108/4) -> 0.2852941176 | K108: 8900 | L108: 8000 | M108: ジャパ三
A109: JP STYLE Baker | B109: 1880 | C109: 40 | D109: 5 | E109: 114.3 | F109: BKSP | G109: 9720 | I109: 50000 | J109: =1-G109/(I109/4) -> 0.2224 | K109: 10320 | L109: =I109-VLOOKUP(B109,$B$4:$I$77,8,0) -> 12000 | M109: ジャパ三
A110: Lefinada MOTION1 | B110: 1980l | C110: 25 | D110: 5 | E110: 120 | F110: BRUF | G110: 20640 | H110: ﾚｸｻｽLC/LS専用 | I110: 103000 | J110: =1-G110/(I110/4) -> 0.1984466019 | K110: =I110-((G110+200)*4) -> 19640 | L110: 45000 | M110: マルカ
A111: Delmore LC.S | B111: 2085l | C111: 25 | D111: 5 | E111: 120 | F111: SBC | G111: 29680 | H111: ﾚｸｻｽLC/LS専用 | I111: 150000 | J111: =1-G111/(I111/4) -> 0.2085333333 | K111: 30480 | L111: 25000 | M111: Weds
A112: offPerformer RT-5N | B112: 1550s | C112: 50 | D112: 5 | E112: 114.3 | F112: GM | G112: 6440 | H112: ﾃﾘｵｽｷｯﾄﾞ専用 | I112: 32000 | J112: 0.195 | K112: 5440 | L112: 10000 | M112: マルカ
A113: offPerformer RT-5N | B113: 1655s | C113: 22 | D113: 5 | E113: 139.7 | F113: GM/WH | G113: 7000 | H113: ｼﾞﾑﾆｰ専用 | I113: 39000 | J113: 0.2820512821 | K113: 10200 | L113: 10000 | M113: マルカ
A114: Z-meist VS-T7 | B114: 1240v | C114: 42 | D114: 4 | E114: 100 | F114: MS | G114: 3000 | I114: 14000 | J114: 0.1428571429 | K114: =I114-(G114*4) -> 2000 | L114: 5000 | M114: ZAC | N114: ﾁｬｰﾀｰ便配送
A115: Z-meist VS-T7 | B115: 1340v | C115: 43 | D115: 4 | E115: 100 | F115: MS | G115: 3000 | I115: 14000 | J115: 0.1428571429 | K115: 2000 | L115: 3000 | M115: ZAC | N115: ﾁｬｰﾀｰ便配送
A116: REMUZEN | B116: 1560v | C116: 33 | D116: 6 | E116: 139.7 | F116: BKP | G116: 6670 | I116: 36000 | J116: 0.2588888889 | K116: 8520 | L116: 10000 | M116: 東京車輪
A117: REMUZEN | B117: 1775s | C117: 25 | D117: 6 | E117: 139.7 | F117: BKP | G117: 9300 | I117: 49000 | J117: 0.2408163265 | K117: 11000 | L117: 15000 | M117: 東京車輪
A118: XTREME-J | B118: 1670s | C118: 30 | D118: 6 | E118: 139.7 | F118: FBK | G118: 11480 | I118: 59000 | J118: 0.2216949153 | K118: 12280 | L118: 21000 | M118: ジャパ三
A119: XTREME-J | B119: 1880s | C119: 25 | D119: 6 | E119: 139.7 | F119: FBK | G119: 15580 | I119: 80000 | J119: 0.221 | K119: 16880 | L119: 32000 | M119: ジャパ三
A120: XTREME-J | B120: 1880s | C120: 50 | D120: 5 | E120: 150 | F120: FBK | G120: 15580 | H120: ﾗﾝｸﾙ100･200 | I120: 80000 | J120: 0.221 | K120: 16880 | L120: 32000 | M120: ジャパ三
A121: XTREME-J XJ04 | B121: 2085s | C121: 45 | D121: 5 | E121: 150 | F121: SB | G121: 21320 | H121: ﾗﾝｸﾙ200 | I121: 110000 | J121: 0.2247272727 | K121: 23920 | L121: - | M121: ジャパ三
A122: IGNITE XTRACK | B122: 1775 | C122: 48 | D122: 5 | E122: 100 | F122: SGP | G122: 10710 | H122: BIGｷｬﾘﾊﾟｰ対応 | I122: 56000 | J122: 0.235 | K122: 12360 | L122: =I122-VLOOKUP(1780,$B$4:$I$77,8,0) -> 20000 | M122: ジャパ三
A123: IGNITE XTRACK | B123: 1775 | C123: 35 | D123: 5 | E123: 114.3 | F123: SGP | G123: 10710 | H123: BIGｷｬﾘﾊﾟｰ対応 | I123: 56000 | J123: 0.235 | K123: 12360 | L123: =I123-VLOOKUP(1780,$B$4:$I$77,8,0) -> 20000 | M123: ジャパ三
A124: IGNITE XTRACK | B124: 1775 | C124: 48 | D124: 5 | E124: 114.3 | F124: SGP | G124: 10710 | H124: BIGｷｬﾘﾊﾟｰ対応 | I124: 56000 | J124: 0.235 | K124: 12360 | L124: =I124-VLOOKUP(1780,$B$4:$I$77,8,0) -> 20000 | M124: ジャパ三
A125: IGNITE XTRACK | B125: 1885 | C125: 35 | D125: 5 | E125: 114.3 | F125: SGP | G125: 12750 | H125: BIGｷｬﾘﾊﾟｰ対応 | I125: 65000 | J125: 0.2153846154 | K125: 13200 | L125: =I125-VLOOKUP(B125,$B$4:$I$77,8,0) -> 25000 | M125: ジャパ三
A126: IGNITE XTRACK | B126: 1885 | C126: 45 | D126: 5 | E126: 114.3 | F126: SGP | G126: 12750 | H126: BIGｷｬﾘﾊﾟｰ対応 | I126: 65000 | J126: 0.2153846154 | K126: 13200 | L126: =I126-VLOOKUP(B126,$B$4:$I$77,8,0) -> 25000 | M126: ジャパ三
A127: IGNITE XTRACK | B127: 1885 | C127: 50 | D127: 5 | E127: 114.3 | F127: SGP | G127: 12750 | H127: BIGｷｬﾘﾊﾟｰ対応 | I127: 65000 | J127: 0.2153846154 | K127: 13200 | L127: =I127-VLOOKUP(B127,$B$4:$I$77,8,0) -> 25000 | M127: ジャパ三
A128: TIRADO γ | B128: 1450v | C128: 42 | D128: 4 | E128: 114.3 | F128: SL/GM | G128: 3940 | H128: NV200専用 | I128: 22000 | J128: =1-G128/(I128/4) -> 0.2836363636 | K128: =I128-((G128+200)*4) -> 5440 | L128: =I128-VLOOKUP(B128,$B$4:$I$77,8,0) -> 6000 | M128: 阿部商会
A130: ランクアップ②
A131: 商品名 | B131: ﾘﾑ&幅 | C131: INSET | D131: HOLE | E131: P.C.D. | F131: 色 | G131: 店仕切 | H131: 車種情報 | I131: 4枚売価 | J131: 粗利 | K131: 粗利額 | L131: プラス金額 | M131: メーカー | N131: 備考
A132: SMACK Valkyrie | B132: 1340 | C132: 45 | D132: 4 | E132: 100 | F132: SBKP | G132: 4810 | I132: 28000 | J132: =1-G132/(I132/4) -> 0.3128571429 | K132: =I132-((G132+200)*4) -> 7960 | L132: =I132-VLOOKUP(B132,$B$4:$I$77,8,0) -> 14000 | M132: 共豊
A133: SMACK Valkyrie | B133: 1445 | C133: 45 | D133: 4 | E133: 100 | F133: SBKP | G133: 5460 | I133: 29000 | J133: 0.2468965517 | K133: 6360 | L133: 15000 | M133: 共豊
A134: SMACK Valkyrie | B134: 1455 | C134: 43 | D134: 4 | E134: 100 | F134: SBKP | G134: 5720 | I134: 35000 | J134: 0.3462857143 | K134: =I134-((G134+200)*4) -> 11320 | L134: 16000 | M134: 共豊
A135: SMACK Valkyrie | B135: 1545 | C135: 45 | D135: 4 | E135: 100 | F135: SBKP | G135: 6110 | I135: 36000 | J135: 0.3211111111 | K135: 10760 | L135: 16000 | M135: 共豊
A136: SMACK Valkyrie | B136: 1555 | C136: 40 | D136: 4 | E136: 100 | F136: SBKP | G136: 6370 | I136: 37000 | J136: 0.3113513514 | K136: 10720 | L136: 16000 | M136: 共豊
A137: SMACK Valkyrie | B137: 1555 | C137: 50 | D137: 4 | E137: 100 | F137: SBKP | G137: 6370 | I137: 37000 | J137: 0.3113513514 | K137: 10720 | L137: 16000 | M137: 共豊
A138: SMACK Valkyrie | B138: 1560 | C138: 45 | D138: 5 | E138: 114.3 | F138: SBKP | G138: 6500 | I138: 38000 | J138: 0.3157894737 | K138: 11200 | L138: 16000 | M138: 共豊
A139: SMACK Valkyrie | B139: 1560 | C139: 45 | D139: 5 | E139: 100 | F139: SBKP | G139: 6500 | I139: 38000 | J139: 0.3157894737 | K139: 11200 | L139: 16000 | M139: 共豊
A140: SMACK Valkyrie | B140: 1560 | C140: 53 | D140: 5 | E140: 114.3 | F140: SBKP | G140: 6500 | I140: 38000 | J140: 0.3157894737 | K140: 11200 | L140: 16000 | M140: 共豊
A141: SMACK Valkyrie | B141: 1565p | C141: 40 | D141: 5 | E141: 114.3 | F141: SBKP | G141: 6630 | H141: ※ﾄﾖﾀｽﾄﾚｰﾄﾅｯﾄ対応 | I141: 35000 | J141: 0.2422857143 | K141: 7680 | L141: 10000 | M141: 共豊
A142: SMACK Valkyrie | B142: 1665 | C142: 38 | D142: 5 | E142: 114.3 | F142: SBKP | G142: 7410 | I142: 43000 | J142: 0.3106976744 | K142: 12560 | L142: 20000 | M142: 共豊
A143: SMACK Valkyrie | B143: 1665 | C143: 45 | D143: 5 | E143: 100 | F143: SBKP | G143: 7410 | I143: 43000 | J143: 0.3106976744 | K143: 12560 | L143: 20000 | M143: 共豊
A144: SMACK Valkyrie | B144: 1665 | C144: 48 | D144: 5 | E144: 114.3 | F144: SBKP | G144: 7410 | I144: 43000 | J144: 0.3106976744 | K144: 12560 | L144: 20000 | M144: 共豊
A145: SMACK Valkyrie | B145: 1665 | C145: 53 | D145: 5 | E145: 114.3 | F145: SBKP | G145: 7410 | I145: 43000 | J145: 0.3106976744 | K145: 12560 | L145: 20000 | M145: 共豊
A146: SMACK Valkyrie | B146: 1770 | C146: 38 | D146: 5 | E146: 114.3 | F146: SBKP | G146: 8840 | I146: 50000 | J146: 0.2928 | K146: 13840 | L146: 23000 | M146: 共豊
A147: SMACK Valkyrie | B147: 1770 | C147: 40 | D147: 5 | E147: 100 | F147: SBKP | G147: 8840 | I147: 50000 | J147: 0.2928 | K147: 13840 | L147: 23000 | M147: 共豊
A148: SMACK Valkyrie | B148: 1770 | C148: 48 | D148: 5 | E148: 114.3 | F148: SBKP | G148: 8840 | I148: 50000 | J148: 0.2928 | K148: 13840 | L148: 23000 | M148: 共豊
A149: SMACK Valkyrie | B149: 1770 | C149: 53 | D149: 5 | E149: 114.3 | F149: SBKP | G149: 8840 | I149: 50000 | J149: 0.2928 | K149: 13840 | L149: 23000 | M149: 共豊
A150: SMACK Valkyrie | B150: 1870 | C150: 38 | D150: 5 | E150: 114.3 | F150: SBKP | G150: 10920 | I150: 59000 | J150: 0.2596610169 | K150: 14520 | L150: =I150-VLOOKUP(1875,$B$4:$I$77,8,0) -> 25000 | M150: 共豊
A151: SMACK Valkyrie | B151: 1870 | C151: 48 | D151: 5 | E151: 114.3 | F151: SBKP | G151: 10920 | I151: 59000 | J151: 0.2596610169 | K151: 14520 | L151: =I151-VLOOKUP(1875,$B$4:$I$77,8,0) -> 25000 | M151: 共豊
A152: SMACK Valkyrie | B152: 1870 | C152: 53 | D152: 5 | E152: 114.3 | F152: SBKP | G152: 10920 | I152: 59000 | J152: 0.2596610169 | K152: 14520 | L152: =I152-VLOOKUP(1875,$B$4:$I$77,8,0) -> 25000 | M152: 共豊
A153: SMACK Valkyrie | B153: 1880 | C153: 45 | D153: 5 | E153: 114.3 | F153: SBKP | G153: 11180 | I153: 63000 | J153: 0.2901587302 | K153: =I153-((G153+200)*4) -> 17480 | L153: =I153-VLOOKUP(B153,$B$4:$I$77,8,0) -> 25000 | M153: 共豊
A154: SMACK VANISH | B154: 1650 | C154: 45 | D154: 4 | E154: 100 | F154: BBMP | G154: 7020 | I154: 38000 | J154: 0.2610526316 | K154: =I154-((G154+200)*4) -> 9120 | L154: =I154-VLOOKUP(B154,$B$4:$I$77,8,0) -> 12000 | M154: 共豊
A155: STEINER SF-V | B155: 1980 | C155: 38 | D155: 5 | E155: 114.3 | F155: EB/POL | G155: 12900 | I155: 75000 | J155: 0.312 | K155: =I155-((G155+200)*4) -> 22600 | L155: =I155-I100 -> 20000 | M155: 共豊
A156: STEINER SF-V | B156: 2085 | C156: 38 | D156: 5 | E156: 114.3 | F156: EB/POL | G156: 15150 | I156: 85000 | J156: 0.2870588235 | K156: 23600 | L156: =I156-I102 -> 25000 | M156: 共豊
A157: JP STYLE Vercely | B157: 1660 | C157: 42 | D157: 4 | E157: 100 | F157: BK/BCP | G157: 7500 | I157: 43000 | J157: 0.3023255814 | K157: 12200 | L157: =I157-VLOOKUP(B157,$B$4:$I$77,8,0) -> 17000 | M157: ジャパ三
A158: MILANOSPEED | B158: 1770c | C158: 43 | D158: 4 | E158: 100 | F158: BKM | G158: 11360 | I158: 60000 | J158: 0.2426666667 | K158: 13760 | L158: =I158-VLOOKUP(B30,$B$4:$I$77,8,0) -> 27000 | M158: ベスト
A159: Delmore LC.S | B159: 1980l | C159: 25 | D159: 5 | E159: 120 | F159: SBC | G159: 25440 | I159: 130000 | J159: 0.2172307692 | K159: 27440 | L159: =I159-VLOOKUP(B159,$B$4:$I$77,8,0) -> 72000 | M159: Weds
A160: ZERO1 HYPER S(+J) | B160: 1655s | C160: 22 | D160: 5 | E160: 139.7 | F160: FBK/BZ | G160: 10640 | I160: 54000 | J160: 0.2118518519 | K160: 10640 | L160: =I160-VLOOKUP(B160,$B$4:$I$77,8,0) -> 25000 | M160: ドゥオール
A161: FENICE X XC6 | B161: 1780s | C161: 20 | D161: 6 | E161: 139.7 | F161: MBK/MBZ | G161: 12800 | I161: 67000 | J161: 0.2358208955 | K161: =I161-((G161+200)*4) -> 15000 | L161: =I161-VLOOKUP(B161,$B$4:$I$77,8,0) -> 25000 | M161: ドゥオール
A162: MAD RANGER | B162: 1880s | C162: 25 | D162: 6 | E162: 139.7 | F162: BP/UR | G162: 19250 | I162: 100000 | J162: 0.23 | K162: =I162-((G162+200)*4) -> 22200 | L162: =I162-VLOOKUP(B162,$B$4:$I$77,8,0) -> 52000 | M162: マルカ
A163: MAD RANGER | B163: 1880s | C163: 50 | D163: 5 | E163: 150 | F163: BP/UR | G163: 19250 | H163: ﾗﾝｸﾙ100･200 | I163: 100000 | J163: 0.23 | K163: =I163-((G163+200)*4) -> 22200 | L163: =I163-VLOOKUP(B163,$B$4:$I$77,8,0) -> 52000 | M163: マルカ
A164: IGNITE XTRACK | B164: 1775 | C164: 48 | D164: 5 | E164: 100 | F164: GBMB | G164: 12750 | H164: BIGｷｬﾘﾊﾟｰ対応 | I164: 68000 | J164: 0.25 | K164: 16200 | L164: =I164-VLOOKUP(1780,$B$4:$I$77,8,0) -> 32000 | M164: ジャパ三
A165: IGNITE XTRACK | B165: 1775 | C165: 35 | D165: 5 | E165: 114.3 | F165: GBMB | G165: 12750 | H165: BIGｷｬﾘﾊﾟｰ対応 | I165: 68000 | J165: 0.25 | K165: 16200 | L165: =I165-VLOOKUP(1780,$B$4:$I$77,8,0) -> 32000 | M165: ジャパ三
A166: IGNITE XTRACK | B166: 1775 | C166: 48 | D166: 5 | E166: 114.3 | F166: GBMB | G166: 12750 | H166: BIGｷｬﾘﾊﾟｰ対応 | I166: 68000 | J166: 0.25 | K166: 16200 | L166: =I166-VLOOKUP(1780,$B$4:$I$77,8,0) -> 32000 | M166: ジャパ三
A167: IGNITE XTRACK | B167: 1885 | C167: 35 | D167: 5 | E167: 114.3 | F167: GBMB | G167: 14790 | H167: BIGｷｬﾘﾊﾟｰ対応 | I167: 77000 | J167: 0.2316883117 | K167: 17040 | L167: =I167-VLOOKUP(B167,$B$4:$I$77,8,0) -> 37000 | M167: ジャパ三
A168: IGNITE XTRACK | B168: 1885 | C168: 45 | D168: 5 | E168: 114.3 | F168: GBMB | G168: 14790 | H168: BIGｷｬﾘﾊﾟｰ対応 | I168: 77000 | J168: 0.2316883117 | K168: 17040 | L168: =I168-VLOOKUP(B168,$B$4:$I$77,8,0) -> 37000 | M168: ジャパ三
A169: IGNITE XTRACK | B169: 1885 | C169: 50 | D169: 5 | E169: 114.3 | F169: GBMB | G169: 14790 | H169: BIGｷｬﾘﾊﾟｰ対応 | I169: 77000 | J169: 0.2316883117 | K169: 17040 | L169: =I169-VLOOKUP(B169,$B$4:$I$77,8,0) -> 37000 | M169: ジャパ三
A170: Hi-Block BALEX | B170: 1560v | C170: 33 | D170: 6 | E170: 139.7 | F170: MB/RP | G170: 9900 | I170: 51000 | J170: 0.2235294118 | K170: 10600 | L170: =I170-VLOOKUP(B170,$B$4:$I$77,8,0) -> 25000 | M170: ジャパ三
A171: EuroSpeed S810 | B171: 1240v | C171: 43 | D171: 4 | E171: 100 | F171: DGP | G171: 3200 | I171: 18000 | J171: 0.2888888889 | K171: 4400 | L171: =I171-VLOOKUP(B171,$B$4:$I$77,8,0) -> 9000 | M171: マルカ

Sheet 見積 (hidden)
B1: カテゴリ | C1: タイヤサイズ
D2: 例)155/65R14 → 1556514
A3: タイヤサイズ
A5: ◎タイヤお見積書◎ | H5: 通常 | N5: ﾐﾆﾊﾞﾝ
H6: レグノポテンザ | N6: GRV2
H7: コンチSAVER | K7: エコステEG01 | N7: CC6 SAVER
H8: VIKING | N8: RV02 | P8: RVF
H9: ASIAN | N9: VK
A10: 商品名 | C10: １本価格 （税込） | D10: ４本価格 （税込） | E10: タイヤ合計金額 （税込） | F10: 国産車ホイールセットコミコミ価格
A11: メーカー | B11: パターン
A17: 備考
A18: コミコミ価格には、”取付工賃”＆”ナット”＆”市場カード”が含まれております。
A19: タイヤ市場 加須店 | C19: TEL: 0480-48-5495 E-mail: kazo@taiyaichiba.com | E19: 担当

Sheet 見積フリー
A3: タイヤサイズ | C3: 175/80R16
A5: ◎タイヤお見積書◎
A10: 商品名 | D10: タイヤ4本 | F10: 国産車ホイールセット
A11: メーカー | B11: パターン | C11: LI/速度記号 | D11: ｺﾐｺﾐ価格 （税込） | E11: ﾊﾟﾝｸ保証付き （税込） | F11: ｺﾐｺﾐ価格 （税込） | G11: ﾊﾟﾝｸ保証付き （税込）
A12: GOODYEAR | B12: ICE NAVI 7 | C12: 84Q | D12: 85320 | E12: 91800 | F12: 106272 | G12: =IF(OR(F12=0,F12="-"),"-",F12+ROUNDDOWN(6000*1.08,0)) -> 112752
A13: BRIDGESTONE | B13: DM-V2 | C13: 91Q | D13: 70200 | E13: 75600 | F13: 100224 | G13: =IF(OR(F13=0,F13="-"),"-",F13+ROUNDDOWN(5000*1.08,0)) -> 105624
A14: CONTINENTAL | B14: CVC 6 特 | C14: 84T | D14: 66960 | E14: 72360 | F14: 87912 | G14: =IF(OR(F14=0,F14="-"),"-",F14+ROUNDDOWN(5000*1.08,0)) -> 93312
A15: DUNLOP | B15: WINTER MAXX SJ8 | C15: 91Q | D15: 61560 | E15: 66960 | F15: 91584 | G15: =IF(OR(F15=0,F15="-"),"-",F15+ROUNDDOWN(5000*1.08,0)) -> 96984
A16: GOODYEAR | B16: ICE NAVI SUV | C16: 91Q | D16: 55080 | E16: 60480 | F16: 85104 | G16: =IF(OR(F16=0,F16="-"),"-",F16+ROUNDDOWN(5000*1.08,0)) -> 90504
A17: 備考
A18: タイヤ4本 ｺﾐｺﾐ価格には、【取付工賃/タイヤ処分料/N2ｺﾞﾑﾊﾞﾙﾌﾞ/市場ｶｰﾄﾞ】が含まれております。 ﾎｲｰﾙｾｯﾄ ｺﾐｺﾐ価格には、【取付工賃/ﾅｯﾄ/市場ｶｰﾄﾞ】が含まれております。 | F18: OffPerformer RT8
A19: タイヤ市場 加須店 | C19: TEL: 0480-48-5495 E-mail: kazo@taiyaichiba.com | F19: 担当

Sheet 商品一覧
D3: サイズ
D4: 1758016
A6: チェックした商品を
A7: ”見積マニュアル”シート
A8: にコピーできます。
Q9: 最安セット | W9: ランクアップ1 | AB9: ランクアップ2
A10: chk | B10: メーカー | C10: JANCD | D10: パターン | E10: サイズ | F10: LI/速度記号 | G10: 承認/RFT | H10: 商品金額 | I10: 工賃 | J10: コミコミ | K10: 税込 | L10: ﾊﾟﾝｸ保証 | M10: ﾊﾟﾝｸ税込 | N10: カテゴリ | O10: 備考① | P10: ﾎｲｰﾙｻｲｽﾞ | Q10: ﾎｰﾙ商品 | R10: セット売価 | S10: 工賃コミ | T10: 工賃･ﾅｯﾄｺﾐｺﾐ | U10: セット税込 | V10: ﾎｰﾙ商品 | W10: セット売価 | X10: 工賃コミ | Y10: 工賃･ﾅｯﾄｺﾐｺﾐ | Z10: セット税込 | AA10: ﾎｰﾙ商品 | AB10: セット売価 | AC10: 工賃コミ | AD10: 工賃･ﾅｯﾄｺﾐｺﾐ | AE10: セット税込 | AF10: 備考１ | AG10: 備考２ | AH10: 備考３ | AI10: 備考4 | AJ10: 店舗
B11: BRIDGESTONE | C11: 4961914450229 | D11: DM-V2 | E11: 175/80R16 | F11: 91Q | H11: 59800 | I11: =J11-H11 -> 5200 | J11: 65000 | K11: =ROUNDDOWN(H11*1.08,0)+ROUNDDOWN(I11*1.08,0) -> 70200 | L11: 5000 | M11: =K11+ROUNDDOWN(L11*1.08,0) -> 75600 | N11: ベーシック;ミニバン | O11: 本部発注価格 | P11: 1655s | Q11: OffPerformer RT8 | R11: 88800 | S11: 90800 | T11: 92800 | U11: =ROUNDDOWN(T11*1.08,0) -> 100224 | V11: offPerformer RT-5N | W11: 98800 | X11: 100800 | Y11: 102800 | Z11: =ROUNDDOWN(Y11*1.08,0) -> 111024 | AA11: ZERO1 HYPER S(+J) | AB11: 113800 | AC11: 115800 | AD11: 117800 | AE11: =ROUNDDOWN(AD11*1.08,0) -> 127224 | AF11: 本部発注価格 | AI11: 現行 | AJ11: 11660
B12: GOODYEAR | C12: 4992496139561 | D12: ICE NAVI SUV | E12: 175/80R16 | F12: 91Q | H12: 45800 | I12: =J12-H12 -> 5200 | J12: 51000 | K12: =ROUNDDOWN(H12*1.08,0)+ROUNDDOWN(I12*1.08,0) -> 55080 | L12: 5000 | M12: =K12+ROUNDDOWN(L12*1.08,0) -> 60480 | N12: ベーシック;ミニバン | P12: 1655s | Q12: OffPerformer RT8 | R12: 74800 | S12: 76800 | T12: 78800 | U12: =ROUNDDOWN(T12*1.08,0) -> 85104 | V12: offPerformer RT-5N | W12: 84800 | X12: 86800 | Y12: 88800 | Z12: =ROUNDDOWN(Y12*1.08,0) -> 95904 | AA12: ZERO1 HYPER S(+J) | AB12: 99800 | AC12: 101800 | AD12: 103800 | AE12: =ROUNDDOWN(AD12*1.08,0) -> 112104 | AI12: 現行 | AJ12: 7520
B13: HANKOOK | C13: 8808563301051 | D13: Dynapro i*cept(RW08) | E13: 175/80R16 | F13: 91Q | H13: 34800 | I13: =J13-H13 -> 5200 | J13: 40000 | K13: =ROUNDDOWN(H13*1.08,0)+ROUNDDOWN(I13*1.08,0) -> 43200 | L13: 4000 | M13: =K13+ROUNDDOWN(L13*1.08,0) -> 47520 | N13: ベーシック;ミニバン | P13: 1655s | Q13: OffPerformer RT8 | R13: 63800 | S13: 65800 | T13: 67800 | U13: =ROUNDDOWN(T13*1.08,0) -> 73224 | V13: offPerformer RT-5N | W13: 73800 | X13: 75800 | Y13: 77800 | Z13: =ROUNDDOWN(Y13*1.08,0) -> 84024 | AA13: ZERO1 HYPER S(+J) | AB13: 88800 | AC13: 90800 | AD13: 92800 | AE13: =ROUNDDOWN(AD13*1.08,0) -> 100224 | AJ13: 6720
B14: DUNLOP | C14: 4981160878431 | D14: WINTER MAXX SJ8 | E14: 175/80R16 | F14: 91Q | H14: 51800 | I14: =J14-H14 -> 5200 | J14: 57000 | K14: =ROUNDDOWN(H14*1.08,0)+ROUNDDOWN(I14*1.08,0) -> 61560 | L14: 5000 | M14: =K14+ROUNDDOWN(L14*1.08,0) -> 66960 | N14: ベーシック;ミニバン | P14: 1655s | Q14: OffPerformer RT8 | R14: 80800 | S14: 82800 | T14: 84800 | U14: =ROUNDDOWN(T14*1.08,0) -> 91584 | V14: offPerformer RT-5N | W14: 90800 | X14: 92800 | Y14: 94800 | Z14: =ROUNDDOWN(Y14*1.08,0) -> 102384 | AA14: ZERO1 HYPER S(+J) | AB14: 105800 | AC14: 107800 | AD14: 109800 | AE14: =ROUNDDOWN(AD14*1.08,0) -> 118584 | AI14: 現行 | AJ14: 9950
B15: TOYO | D15: OBSERVE GSi-5 | E15: 175/80R16 | F15: 91Q | H15: 50800 | I15: =J15-H15 -> 5200 | J15: 56000 | K15: =ROUNDDOWN(H15*1.08,0)+ROUNDDOWN(I15*1.08,0) -> 60480 | L15: 5000 | M15: =K15+ROUNDDOWN(L15*1.08,0) -> 65880 | N15: ベーシック;ミニバン | P15: 1655s | Q15: OffPerformer RT8 | R15: 79800 | S15: 81800 | T15: 83800 | U15: =ROUNDDOWN(T15*1.08,0) -> 90504 | V15: offPerformer RT-5N | W15: 89800 | X15: 91800 | Y15: 93800 | Z15: =ROUNDDOWN(Y15*1.08,0) -> 101304 | AA15: ZERO1 HYPER S(+J) | AB15: 104800 | AC15: 106800 | AD15: 108800 | AE15: =ROUNDDOWN(AD15*1.08,0) -> 117504 | AJ15: 8200

Sheet base
D1: 工賃 | E1: ゴム | F1: 処分 | G1: ｶｰﾄﾞ | H1: 使用開始日 | K1: 備考
D2: 500 | E2: 500 | F2: 300 | G2: 0
X3: 0.2
A4: タイヤ | T4: ホイール最安値セット | AF4: ランクアップホイール1 | AR4: ランクアップホイール2 | BL4: 金額上が少ない | BO4: 10段階少ない方から
A5: メーカー名 | B5: ＪＡＮコード | C5: メーカー コード | D5: パターン | E5: サイズ | F5: LI/速度 記号 | G5: 承認/RFT | H5: A表 | I5: 希望 小売価格 | J5: 通常売価 | K5: 店舗仕切 | L5: 掛率 | M5: 4本割引 売価 | N5: 割引率 | O5: 粗利率 | P5: コミコミ 売価 | Q5: 粗利率 | R5: ﾎｲｰﾙ用 売価 | S5: ｾｯﾄ 割引率 | T5: ｻｲｽﾞ | U5: 商品 | V5: 原価 | W5: ｾｯﾄ 原価 | X5: ﾎｲｰﾙｾｯﾄﾌﾟﾗｽ価格 | Y5: ｾｯﾄ売価 | Z5: 粗利率 | AA5: 工賃コミ | AB5: 粗利率 | AC5: ﾅｯﾄ 1台分 | AD5: 工賃･ﾅｯﾄ ｺﾐｺﾐ | AE5: 粗利率 | AF5: ｻｲｽﾞ | AG5: 商品 | AH5: 原価 | AI5: ｾｯﾄ 原価 | AJ5: ホイール 売価 | AK5: ｾｯﾄ売価 | AL5: 粗利率 | AM5: 工賃コミ | AN5: 粗利率 | AO5: ﾅｯﾄ 1台分 | AP5: 工賃･ﾅｯﾄ ｺﾐｺﾐ | AQ5: 粗利率 | AR5: ｻｲｽﾞ | AS5: 商品 | AT5: 原価 | AU5: ｾｯﾄ 原価 | AV5: ホイール 売価 | AW5: ｾｯﾄ売価 | AX5: 粗利率 | AY5: 工賃コミ | AZ5: 粗利率 | BA5: ﾅｯﾄ 1台分 | BB5: 工賃･ﾅｯﾄ ｺﾐｺﾐ | BC5: 粗利率 | BD5: 幅 | BE5: 扁平 | BF5: インチ | BG5: 外径 | BH5: 備考① | BI5: 備考② | BJ5: 備考③ | BK5: 備考④ | BL5: 価格ランク | BM5: カテゴリ | BN5: 検索サイズ | BO5: 並び順重要度 | BP5: 車種 | BQ5: パンク保証
A6: BRIDGESTONE | D6: VRX 限定 | E6: 165/70R14 | F6: 81Q | H6: 12500 | J6: =ROUNDUP(H6*タイヤ条件サマリ!$D$6,-2) -> 14400 | K6: =ROUND(H6*L6,-1) -> 6880 | L6: 0.55 | M6: =ROUND(J6*(1-$N6)*4,-3)-200 -> 35800 | N6: 0.38 | O6: =(M6-(K6*4))/M6 -> 0.2312849162 | P6: =M6+(VLOOKUP($BF6,タイヤ条件サマリ!$I:$J,2,0)+$E$2+$F$2+$G$2)*4 -> 41000 | Q6: =(P6-(K6*4))/P6 -> 0.3287804878 | R6: =M6-$S6 -> 35800 | T6: =VLOOKUP($E6,タイヤホイールサイズ!$A:$E,3,FALSE) -> 1455 | U6: =INDEX('ホイール売価(国産)'!$A$4:$A$77,MATCH(T6,'ホイール売価(国産)'!$B$4:$B$77,0)) -> Z-meist VS-T7 | V6: =VLOOKUP($T6,'ホイール売価(国産)'!$B:$I,6,FALSE) -> 3780 | W6: =(V6+$K6)*4 -> 42640 | X6: =VLOOKUP($T6,'ホイール売価(国産)'!$B:$I,8,FALSE) -> 19000 | Y6: =$R6+X6 -> 54800 | Z6: =(Y6-W6)/Y6 -> 0.2218978102 | AA6: =Y6+(VLOOKUP($BF6,タイヤ条件サマリ!$I:$J,2,0)*4) -> 56800 | AB6: =(AA6-W6)/AA6 -> 0.2492957746 | AC6: =VLOOKUP($T6,タイヤ条件サマリ!$N:$O,2,0) -> 1600 | AD6: =AA6+AC6 -> 58400 | AE6: =(AD6-W6)/AD6 -> 0.2698630137 | AF6: =$T6 -> 1455 | AG6: =INDEX('ホイール売価(国産)'!$A$81:$A$128,MATCH(AF6,'ホイール売価(国産)'!$B$81:$B$128,0)) -> Z-meist VS-1 BC | AH6: =VLOOKUP($AF6,'ホイール売価(国産)'!$B$81:$I$128,6,0) -> 3900 | AI6: =(AH6+$K6)*4 -> 43120 | AJ6: =VLOOKUP($AF6,'ホイール売価(国産)'!$B$81:$I$128,8,0) -> 25000 | AK6: =$R6+AJ6 -> 60800 | AL6: =(AK6-AI6)/AK6 -> 0.2907894737 | AM6: =AK6+(VLOOKUP($BF6,タイヤ条件サマリ!$I:$J,2,0)*4) -> 62800 | AN6: =(AM6-AI6)/AM6 -> 0.3133757962 | AO6: =AC6 -> 1600 | AP6: =AM6+AO6 -> 64400 | AQ6: =(AP6-AI6)/AP6 -> 0.3304347826 | AR6: =$T6 -> 1455 | AS6: =INDEX('ホイール売価(国産)'!$A$132:$A$159,MATCH(AR6,'ホイール売価(国産)'!$B$132:$B$159,0)) -> SMACK Valkyrie | AT6: =VLOOKUP($AF6,'ホイール売価(国産)'!$B$132:$I$159,6,0) -> 5720 | AU6: =(AT6+$K6)*4 -> 50400 | AV6: =VLOOKUP($AF6,'ホイール売価(国産)'!$B$132:$I$159,8,0) -> 35000 | AW6: =$R6+AV6 -> 70800 | AX6: =(AW6-AU6)/AW6 -> 0.2881355932 | AY6: =AW6+(VLOOKUP($BF6,タイヤ条件サマリ!$I:$J,2,0)*4) -> 72800 | AZ6: =(AY6-AU6)/AY6 -> 0.3076923077 | BA6: =AC6 -> 1600 | BB6: =AY6+BA6 -> 74400 | BC6: =(BB6-AU6)/BB6 -> 0.3225806452 | BD6: =LEFTB(E6,3) -> 165 | BE6: =MIDB(E6,5,2) -> 70 | BF6: 14 | BG6: 570 | BH6: 数量限定 | BL6: 1 | BM6: ベーシック;ミニバン | BN6: =BD6&BE6&BF6&BO6 -> 16570141 | BO6: 1 | BQ6: =IF(OR(M6="",M6=0),"-",IF(ROUNDUP(M6,-4)>160000,10000,VLOOKUP(ROUNDUP(M6,-4),タイヤ条件サマリ!$R:$S,2,FALSE))) -> 4000
A7: BRIDGESTONE | D7: VRX 限定 | E7: 175/70R14 | F7: 84Q | H7: 13600 | J7: =ROUNDUP(H7*タイヤ条件サマリ!$D$6,-2) -> 15700 | K7: =ROUND(H7*L7,-1) -> 7480 | L7: 0.55 | M7: 38800 | N7: 0.38 | O7: 0.2288659794 | P7: =M7+(VLOOKUP($BF7,タイヤ条件サマリ!$I:$J,2,0)+$E$2+$F$2+$G$2)*4 -> 44000 | Q7: 0.32 | R7: =M7-$S7 -> 38800 | T7: =VLOOKUP($E7,タイヤホイールサイズ!$A:$E,3,FALSE) -> 1455 | U7: =INDEX('ホイール売価(国産)'!$A$4:$A$77,MATCH(T7,'ホイール売価(国産)'!$B$4:$B$77,0)) -> Z-meist VS-T7 | V7: =VLOOKUP($T7,'ホイール売価(国産)'!$B:$I,6,FALSE) -> 3780 | W7: 45040 | X7: =VLOOKUP($T7,'ホイール売価(国産)'!$B:$I,8,FALSE) -> 19000 | Y7: =$R7+X7 -> 57800 | Z7: 0.2207612457 | AA7: =Y7+(VLOOKUP($BF7,タイヤ条件サマリ!$I:$J,2,0)*4) -> 59800 | AB7: 0.2468227425 | AC7: =VLOOKUP($T7,タイヤ条件サマリ!$N:$O,2,0) -> 1600 | AD7: 61400 | AE7: 0.2664495114 | AF7: 1455 | AG7: =INDEX('ホイール売価(国産)'!$A$81:$A$128,MATCH(AF7,'ホイール売価(国産)'!$B$81:$B$128,0)) -> Z-meist VS-1 BC | AH7: =VLOOKUP($AF7,'ホイール売価(国産)'!$B$81:$I$128,6,0) -> 3900 | AI7: =(AH7+$K7)*4 -> 45520 | AJ7: =VLOOKUP($AF7,'ホイール売価(国産)'!$B$81:$I$128,8,0) -> 25000 | AK7: =$R7+AJ7 -> 63800 | AL7: =(AK7-AI7)/AK7 -> 0.2865203762 | AM7: =AK7+(VLOOKUP($BF7,タイヤ条件サマリ!$I:$J,2,0)*4) -> 65800 | AN7: =(AM7-AI7)/AM7 -> 0.3082066869 | AO7: =AC7 -> 1600 | AP7: =AM7+AO7 -> 67400 | AQ7: =(AP7-AI7)/AP7 -> 0.3246290801 | AR7: 1455 | AS7: =INDEX('ホイール売価(国産)'!$A$132:$A$159,MATCH(AR7,'ホイール売価(国産)'!$B$132:$B$159,0)) -> SMACK Valkyrie | AT7: =VLOOKUP($AF7,'ホイール売価(国産)'!$B$132:$I$159,6,0) -> 5720 | AU7: =(AT7+$K7)*4 -> 52800 | AV7: =VLOOKUP($AF7,'ホイール売価(国産)'!$B$132:$I$159,8,0) -> 35000 | AW7: =$R7+AV7 -> 73800 | AX7: =(AW7-AU7)/AW7 -> 0.2845528455 | AY7: =AW7+(VLOOKUP($BF7,タイヤ条件サマリ!$I:$J,2,0)*4) -> 75800 | AZ7: =(AY7-AU7)/AY7 -> 0.3034300792 | BA7: =AC7 -> 1600 | BB7: 77400 | BC7: =(BB7-AU7)/BB7 -> 0.3178294574 | BD7: 175 | BE7: 70 | BF7: 14 | BG7: 538 | BH7: 数量限定 | BL7: 1 | BM7: ベーシック;ミニバン | BN7: 17570141 | BO7: 1 | BQ7: =IF(OR(M7="",M7=0),"-",IF(ROUNDUP(M7,-4)>160000,10000,VLOOKUP(ROUNDUP(M7,-4),タイヤ条件サマリ!$R:$S,2,FALSE))) -> 4000
A8: BRIDGESTONE | D8: VRX 限定 | E8: 185/70R14 | F8: 88Q | H8: 15200 | J8: =ROUNDUP(H8*タイヤ条件サマリ!$D$6,-2) -> 17500 | K8: =ROUND(H8*L8,-1) -> 8360 | L8: 0.55 | M8: 42800 | N8: 0.38 | O8: 0.2186915888 | P8: =M8+(VLOOKUP($BF8,タイヤ条件サマリ!$I:$J,2,0)+$E$2+$F$2+$G$2)*4 -> 48000 | Q8: 0.3033333333 | R8: 42800 | T8: =VLOOKUP($E8,タイヤホイールサイズ!$A:$E,3,FALSE) -> 1455 | U8: =INDEX('ホイール売価(国産)'!$A$4:$A$77,MATCH(T8,'ホイール売価(国産)'!$B$4:$B$77,0)) -> Z-meist VS-T7 | V8: =VLOOKUP($T8,'ホイール売価(国産)'!$B:$I,6,FALSE) -> 3780 | W8: 48560 | X8: =VLOOKUP($T8,'ホイール売価(国産)'!$B:$I,8,FALSE) -> 19000 | Y8: 61800 | Z8: 0.2142394822 | AA8: =Y8+(VLOOKUP($BF8,タイヤ条件サマリ!$I:$J,2,0)*4) -> 63800 | AB8: 0.2388714734 | AC8: =VLOOKUP($T8,タイヤ条件サマリ!$N:$O,2,0) -> 1600 | AD8: 65400 | AE8: 0.2574923547 | AF8: 1455 | AG8: =INDEX('ホイール売価(国産)'!$A$81:$A$128,MATCH(AF8,'ホイール売価(国産)'!$B$81:$B$128,0)) -> Z-meist VS-1 BC | AH8: =VLOOKUP($AF8,'ホイール売価(国産)'!$B$81:$I$128,6,0) -> 3900 | AI8: 49040 | AJ8: =VLOOKUP($AF8,'ホイール売価(国産)'!$B$81:$I$128,8,0) -> 25000 | AK8: 67800 | AL8: =(AK8-AI8)/AK8 -> 0.2766961652 | AM8: =AK8+(VLOOKUP($BF8,タイヤ条件サマリ!$I:$J,2,0)*4) -> 69800 | AN8: =(AM8-AI8)/AM8 -> 0.2974212034 | AO8: 1600 | AP8: =AM8+AO8 -> 71400 | AQ8: =(AP8-AI8)/AP8 -> 0.3131652661 | AR8: 1455 | AS8: =INDEX('ホイール売価(国産)'!$A$132:$A$159,MATCH(AR8,'ホイール売価(国産)'!$B$132:$B$159,0)) -> SMACK Valkyrie | AT8: =VLOOKUP($AF8,'ホイール売価(国産)'!$B$132:$I$159,6,0) -> 5720 | AU8: 56320 | AV8: =VLOOKUP($AF8,'ホイール売価(国産)'!$B$132:$I$159,8,0) -> 35000 | AW8: 77800 | AX8: =(AW8-AU8)/AW8 -> 0.276092545 | AY8: =AW8+(VLOOKUP($BF8,タイヤ条件サマリ!$I:$J,2,0)*4) -> 79800 | AZ8: 0.294235589 | BA8: 1600 | BB8: 81400 | BC8: 0.3081081081 | BD8: 185 | BE8: 70 | BF8: 14 | BG8: 596 | BH8: 数量限定 | BL8: 1 | BM8: ベーシック;ミニバン | BN8: 18570141 | BO8: 1 | BQ8: =IF(OR(M8="",M8=0),"-",IF(ROUNDUP(M8,-4)>160000,10000,VLOOKUP(ROUNDUP(M8,-4),タイヤ条件サマリ!$R:$S,2,FALSE))) -> 5000
A9: BRIDGESTONE | D9: VRX 限定 | E9: 155/65R14 | F9: 75Q | H9: 11200 | J9: =ROUNDUP(H9*タイヤ条件サマリ!$D$6,-2) -> 12900 | K9: 4400 | L9: =K9/H9 -> 0.3928571429 | M9: 27800 | N9: 0.46 | O9: 0.3669064748 | P9: =M9+(VLOOKUP($BF9,タイヤ条件サマリ!$I:$J,2,0)+$E$2+$F$2+$G$2)*4 -> 33000 | Q9: 0.4666666667 | R9: 26800 | S9: 1000 | T9: =VLOOKUP($E9,タイヤホイールサイズ!$A:$E,3,FALSE) -> 1445 | U9: =INDEX('ホイール売価(国産)'!$A$4:$A$77,MATCH(T9,'ホイール売価(国産)'!$B$4:$B$77,0)) -> Z-meist VS-8 | V9: =VLOOKUP($T9,'ホイール売価(国産)'!$B:$I,6,FALSE) -> 3000 | W9: 29600 | X9: =VLOOKUP($T9,'ホイール売価(国産)'!$B:$I,8,FALSE) -> 14000 | Y9: 40800 | Z9: 0.2745098039 | AA9: =Y9+(VLOOKUP($BF9,タイヤ条件サマリ!$I:$J,2,0)*4) -> 42800 | AB9: =(AA9-W9)/AA9 -> 0.308411215 | AC9: =VLOOKUP($T9,タイヤ条件サマリ!$N:$O,2,0) -> 2400 | AD9: 45200 | AE9: 0.3451327434 | AF9: 1445 | AG9: =INDEX('ホイール売価(国産)'!$A$81:$A$128,MATCH(AF9,'ホイール売価(国産)'!$B$81:$B$128,0)) -> Z-meist VS-1 BC | AH9: =VLOOKUP($AF9,'ホイール売価(国産)'!$B$81:$I$128,6,0) -> 3810 | AI9: 32840 | AJ9: =VLOOKUP($AF9,'ホイール売価(国産)'!$B$81:$I$128,8,0) -> 20000 | AK9: 46800 | AL9: =(AK9-AI9)/AK9 -> 0.2982905983 | AM9: =AK9+(VLOOKUP($BF9,タイヤ条件サマリ!$I:$J,2,0)*4) -> 48800 | AN9: =(AM9-AI9)/AM9 -> 0.3270491803 | AO9: 2400 | AP9: =AM9+AO9 -> 51200 | AQ9: =(AP9-AI9)/AP9 -> 0.35859375 | AR9: 1445 | AS9: =INDEX('ホイール売価(国産)'!$A$132:$A$159,MATCH(AR9,'ホイール売価(国産)'!$B$132:$B$159,0)) -> SMACK Valkyrie | AT9: =VLOOKUP($AF9,'ホイール売価(国産)'!$B$132:$I$159,6,0) -> 5460 | AU9: 39440 | AV9: =VLOOKUP($AF9,'ホイール売価(国産)'!$B$132:$I$159,8,0) -> 29000 | AW9: 55800 | AX9: 0.2931899642 | AY9: =AW9+(VLOOKUP($BF9,タイヤ条件サマリ!$I:$J,2,0)*4) -> 57800 | AZ9: 0.3176470588 | BA9: 2400 | BB9: 60200 | BC9: 0.3448504983 | BD9: 155 | BE9: 65 | BF9: 14 | BG9: 597 | BH9: 数量限定 | BL9: 1 | BM9: ベーシック;ミニバン | BN9: 15565141 | BO9: 1 | BQ9: =IF(OR(M9="",M9=0),"-",IF(ROUNDUP(M9,-4)>160000,10000,VLOOKUP(ROUNDUP(M9,-4),タイヤ条件サマリ!$R:$S,2,FALSE))) -> 4000
A10: BRIDGESTONE | D10: VRX 限定 | E10: 165/65R14 | F10: 79Q | H10: 12400 | J10: =ROUNDUP(H10*タイヤ条件サマリ!$D$6,-2) -> 14300 | K10: =ROUND(H10*L10,-1) -> 6820 | L10: 0.55 | M10: 34800 | N10: 0.38 | O10: 0.216091954 | P10: =M10+(VLOOKUP($BF10,タイヤ条件サマリ!$I:$J,2,0)+$E$2+$F$2+$G$2)*4 -> 40000 | Q10: 0.318 | R10: 34800 | T10: =VLOOKUP($E10,タイヤホイールサイズ!$A:$E,3,FALSE) -> 1455 | U10: =INDEX('ホイール売価(国産)'!$A$4:$A$77,MATCH(T10,'ホイール売価(国産)'!$B$4:$B$77,0)) -> Z-meist VS-T7 | V10: =VLOOKUP($T10,'ホイール売価(国産)'!$B:$I,6,FALSE) -> 3780 | W10: 42400 | X10: =VLOOKUP($T10,'ホイール売価(国産)'!$B:$I,8,FALSE) -> 19000 | Y10: 53800 | Z10: 0.2118959108 | AA10: =Y10+(VLOOKUP($BF10,タイヤ条件サマリ!$I:$J,2,0)*4) -> 55800 | AB10: 0.2401433692 | AC10: =VLOOKUP($T10,タイヤ条件サマリ!$N:$O,2,0) -> 1600 | AD10: 57400 | AE10: 0.2613240418 | AF10: 1455 | AG10: =INDEX('ホイール売価(国産)'!$A$81:$A$128,MATCH(AF10,'ホイール売価(国産)'!$B$81:$B$128,0)) -> Z-meist VS-1 BC | AH10: =VLOOKUP($AF10,'ホイール売価(国産)'!$B$81:$I$128,6,0) -> 3900 | AI10: 42880 | AJ10: =VLOOKUP($AF10,'ホイール売価(国産)'!$B$81:$I$128,8,0) -> 25000 | AK10: 59800 | AL10: 0.2829431438 | AM10: =AK10+(VLOOKUP($BF10,タイヤ条件サマリ!$I:$J,2,0)*4) -> 61800 | AN10: 0.3061488673 | AO10: 1600 | AP10: 63400 | AQ10: 0.323659306 | AR10: 1455 | AS10: =INDEX('ホイール売価(国産)'!$A$132:$A$159,MATCH(AR10,'ホイール売価(国産)'!$B$132:$B$159,0)) -> SMACK Valkyrie | AT10: =VLOOKUP($AF10,'ホイール売価(国産)'!$B$132:$I$159,6,0) -> 5720 | AU10: 50160 | AV10: =VLOOKUP($AF10,'ホイール売価(国産)'!$B$132:$I$159,8,0) -> 35000 | AW10: 69800 | AX10: 0.2813753582 | AY10: =AW10+(VLOOKUP($BF10,タイヤ条件サマリ!$I:$J,2,0)*4) -> 71800 | AZ10: 0.3013927577 | BA10: 1600 | BB10: 73400 | BC10: 0.3166212534 | BD10: 165 | BE10: 65 | BF10: 14 | BG10: 610 | BH10: 数量限定 | BL10: 1 | BM10: ベーシック;ミニバン | BN10: 16565141 | BO10: 1 | BQ10: =IF(OR(M10="",M10=0),"-",IF(ROUNDUP(M10,-4)>160000,10000,VLOOKUP(ROUNDUP(M10,-4),タイヤ条件サマリ!$R:$S,2,FALSE))) -> 4000
A11: BRIDGESTONE | D11: VRX 限定 | E11: 175/65R14 | F11: 82Q | H11: 14400 | J11: =ROUNDUP(H11*タイヤ条件サマリ!$D$6,-2) -> 16600 | K11: 7920 | L11: 0.55 | M11: 40800 | N11: 0.38 | O11: 0.2235294118 | P11: =M11+(VLOOKUP($BF11,タイヤ条件サマリ!$I:$J,2,0)+$E$2+$F$2+$G$2)*4 -> 46000 | Q11: 0.3113043478 | R11: 40800 | T11: =VLOOKUP($E11,タイヤホイールサイズ!$A:$E,3,FALSE) -> 1455 | U11: =INDEX('ホイール売価(国産)'!$A$4:$A$77,MATCH(T11,'ホイール売価(国産)'!$B$4:$B$77,0)) -> Z-meist VS-T7 | V11: =VLOOKUP($T11,'ホイール売価(国産)'!$B:$I,6,FALSE) -> 3780 | W11: 46800 | X11: =VLOOKUP($T11,'ホイール売価(国産)'!$B:$I,8,FALSE) -> 19000 | Y11: 59800 | Z11: 0.2173913043 | AA11: =Y11+(VLOOKUP($BF11,タイヤ条件サマリ!$I:$J,2,0)*4) -> 61800 | AB11: 0.2427184466 | AC11: =VLOOKUP($T11,タイヤ条件サマリ!$N:$O,2,0) -> 1600 | AD11: 63400 | AE11: 0.261829653 | AF11: 1455 | AG11: =INDEX('ホイール売価(国産)'!$A$81:$A$128,MATCH(AF11,'ホイール売価(国産)'!$B$81:$B$128,0)) -> Z-meist VS-1 BC | AH11: =VLOOKUP($AF11,'ホイール売価(国産)'!$B$81:$I$128,6,0) -> 3900 | AI11: 47280 | AJ11: =VLOOKUP($AF11,'ホイール売価(国産)'!$B$81:$I$128,8,0) -> 25000 | AK11: 65800 | AL11: 0.2814589666 | AM11: =AK11+(VLOOKUP($BF11,タイヤ条件サマリ!$I:$J,2,0)*4) -> 67800 | AN11: 0.3026548673 | AO11: 1600 | AP11: 69400 | AQ11: 0.3187319885 | AR11: 1455 | AS11: =INDEX('ホイール売価(国産)'!$A$132:$A$159,MATCH(AR11,'ホイール売価(国産)'!$B$132:$B$159,0)) -> SMACK Valkyrie | AT11: =VLOOKUP($AF11,'ホイール売価(国産)'!$B$132:$I$159,6,0) -> 5720 | AU11: 54560 | AV11: =VLOOKUP($AF11,'ホイール売価(国産)'!$B$132:$I$159,8,0) -> 35000 | AW11: 75800 | AX11: 0.2802110818 | AY11: =AW11+(VLOOKUP($BF11,タイヤ条件サマリ!$I:$J,2,0)*4) -> 77800 | AZ11: 0.298714653 | BA11: 1600 | BB11: 79400 | BC11: 0.3128463476 | BD11: 175 | BE11: 65 | BF11: 14 | BG11: 625 | BH11: 数量限定 | BL11: 1 | BM11: ベーシック;ミニバン | BN11: 17565141 | BO11: 1 | BQ11: =IF(OR(M11="",M11=0),"-",IF(ROUNDUP(M11,-4)>160000,10000,VLOOKUP(ROUNDUP(M11,-4),タイヤ条件サマリ!$R:$S,2,FALSE))) -> 5000
A12: BRIDGESTONE | D12: VRX 限定 | E12: 175/65R15 | F12: 84Q | H12: 15600 | J12: =ROUNDUP(H12*タイヤ条件サマリ!$D$6,-2) -> 18000 | K12: 8580 | L12: 0.55 | M12: 44800 | N12: 0.38 | O12: 0.2339285714 | P12: =M12+(VLOOKUP($BF12,タイヤ条件サマリ!$I:$J,2,0)+$E$2+$F$2+$G$2)*4 -> 50000 | Q12: 0.3136 | R12: 44800 | T12: =VLOOKUP($E12,タイヤホイールサイズ!$A:$E,3,FALSE) -> 1555 | U12: =INDEX('ホイール売価(国産)'!$A$4:$A$77,MATCH(T12,'ホイール売価(国産)'!$B$4:$B$77,0)) -> Z-meist VS-T7 | V12: =VLOOKUP($T12,'ホイール売価(国産)'!$B:$I,6,FALSE) -> 4400 | W12: 51920 | X12: =VLOOKUP($T12,'ホイール売価(国産)'!$B:$I,8,FALSE) -> 21000 | Y12: 65800 | Z12: 0.2109422492 | AA12: =Y12+(VLOOKUP($BF12,タイヤ条件サマリ!$I:$J,2,0)*4) -> 67800 | AB12: 0.2342182891 | AC12: =VLOOKUP($T12,タイヤ条件サマリ!$N:$O,2,0) -> 1600 | AD12: 69400 | AE12: 0.2518731988 | AF12: 1555 | AG12: =INDEX('ホイール売価(国産)'!$A$81:$A$128,MATCH(AF12,'ホイール売価(国産)'!$B$81:$B$128,0)) -> Z-meist VS-1 BC | AH12: =VLOOKUP($AF12,'ホイール売価(国産)'!$B$81:$I$128,6,0) -> 4500 | AI12: 52320 | AJ12: =VLOOKUP($AF12,'ホイール売価(国産)'!$B$81:$I$128,8,0) -> 27000 | AK12: 71800 | AL12: 0.2713091922 | AM12: =AK12+(VLOOKUP($BF12,タイヤ条件サマリ!$I:$J,2,0)*4) -> 73800 | AN12: 0.2910569106 | AO12: 1600 | AP12: 75400 | AQ12: 0.3061007958 | AR12: 1555 | AS12: =INDEX('ホイール売価(国産)'!$A$132:$A$159,MATCH(AR12,'ホイール売価(国産)'!$B$132:$B$159,0)) -> SMACK Valkyrie | AT12: =VLOOKUP($AF12,'ホイール売価(国産)'!$B$132:$I$159,6,0) -> 6370 | AU12: 59800 | AV12: =VLOOKUP($AF12,'ホイール売価(国産)'!$B$132:$I$159,8,0) -> 37000 | AW12: 81800 | AX12: 0.2689486553 | AY12: =AW12+(VLOOKUP($BF12,タイヤ条件サマリ!$I:$J,2,0)*4) -> 83800 | AZ12: 0.2863961814 | BA12: 1600 | BB12: 85400 | BC12: 0.299765808 | BD12: 175 | BE12: 65 | BF12: 15 | BG12: 565 | BH12: 数量限定 | BL12: 1 | BM12: ベーシック;ミニバン | BN12: 17565151 | BO12: 1 | BQ12: =IF(OR(M12="",M12=0),"-",IF(ROUNDUP(M12,-4)>160000,10000,VLOOKUP(ROUNDUP(M12,-4),タイヤ条件サマリ!$R:$S,2,FALSE))) -> 5000
A13: BRIDGESTONE | D13: VRX 限定 | E13: 185/65R15 | F13: 88Q | H13: 17700 | J13: =ROUNDUP(H13*タイヤ条件サマリ!$D$6,-2) -> 20400 | K13: 9740 | L13: 0.55 | M13: 50800 | N13: 0.38 | O13: 0.2330708661 | P13: =M13+(VLOOKUP($BF13,タイヤ条件サマリ!$I:$J,2,0)+$E$2+$F$2+$G$2)*4 -> 56000 | Q13: 0.3042857143 | R13: 50800 | T13: =VLOOKUP($E13,タイヤホイールサイズ!$A:$E,3,FALSE) -> 1555 | U13: =INDEX('ホイール売価(国産)'!$A$4:$A$77,MATCH(T13,'ホイール売価(国産)'!$B$4:$B$77,0)) -> Z-meist VS-T7 | V13: =VLOOKUP($T13,'ホイール売価(国産)'!$B:$I,6,FALSE) -> 4400 | W13: 56560 | X13: =VLOOKUP($T13,'ホイール売価(国産)'!$B:$I,8,FALSE) -> 21000 | Y13: 71800 | Z13: 0.2122562674 | AA13: =Y13+(VLOOKUP($BF13,タイヤ条件サマリ!$I:$J,2,0)*4) -> 73800 | AB13: 0.233604336 | AC13: =VLOOKUP($T13,タイヤ条件サマリ!$N:$O,2,0) -> 1600 | AD13: 75400 | AE13: 0.249867374 | AF13: 1555 | AG13: =INDEX('ホイール売価(国産)'!$A$81:$A$128,MATCH(AF13,'ホイール売価(国産)'!$B$81:$B$128,0)) -> Z-meist VS-1 BC | AH13: =VLOOKUP($AF13,'ホイール売価(国産)'!$B$81:$I$128,6,0) -> 4500 | AI13: 56960 | AJ13: =VLOOKUP($AF13,'ホイール売価(国産)'!$B$81:$I$128,8,0) -> 27000 | AK13: 77800 | AL13: 0.2678663239 | AM13: =AK13+(VLOOKUP($BF13,タイヤ条件サマリ!$I:$J,2,0)*4) -> 79800 | AN13: 0.2862155388 | AO13: 1600 | AP13: 81400 | AQ13: 0.3002457002 | AR13: 1555 | AS13: =INDEX('ホイール売価(国産)'!$A$132:$A$159,MATCH(AR13,'ホイール売価(国産)'!$B$132:$B$159,0)) -> SMACK Valkyrie | AT13: =VLOOKUP($AF13,'ホイール売価(国産)'!$B$132:$I$159,6,0) -> 6370 | AU13: 64440 | AV13: =VLOOKUP($AF13,'ホイール売価(国産)'!$B$132:$I$159,8,0) -> 37000 | AW13: 87800 | AX13: 0.2660592255 | AY13: =AW13+(VLOOKUP($BF13,タイヤ条件サマリ!$I:$J,2,0)*4) -> 89800 | AZ13: 0.2824053452 | BA13: 1600 | BB13: 91400 | BC13: 0.2949671772 | BD13: 185 | BE13: 65 | BF13: 15 | BG13: 577 | BH13: 数量限定 | BL13: 1 | BM13: ベーシック;ミニバン | BN13: 18565151 | BO13: 1 | BQ13: =IF(OR(M13="",M13=0),"-",IF(ROUNDUP(M13,-4)>160000,10000,VLOOKUP(ROUNDUP(M13,-4),タイヤ条件サマリ!$R:$S,2,FALSE))) -> 5000
A14: BRIDGESTONE | D14: VRX 限定 | E14: 195/65R15 | F14: 91Q | H14: 19500 | J14: =ROUNDUP(H14*タイヤ条件サマリ!$D$6,-2) -> 22500 | K14: 10730 | L14: 0.55 | M14: 55800 | N14: 0.38 | O14: 0.2308243728 | P14: =M14+(VLOOKUP($BF14,タイヤ条件サマリ!$I:$J,2,0)+$E$2+$F$2+$G$2)*4 -> 61000 | Q14: 0.2963934426 | R14: 55800 | T14: =VLOOKUP($E14,タイヤホイールサイズ!$A:$E,3,FALSE) -> 1560 | U14: =INDEX('ホイール売価(国産)'!$A$4:$A$77,MATCH(T14,'ホイール売価(国産)'!$B$4:$B$77,0)) -> Z-meist VS-T7 | V14: =VLOOKUP($T14,'ホイール売価(国産)'!$B:$I,6,FALSE) -> 4450 | W14: 60720 | X14: =VLOOKUP($T14,'ホイール売価(国産)'!$B:$I,8,FALSE) -> 22000 | Y14: =$R14+X14 -> 77800 | Z14: 0.2195372751 | AA14: =Y14+(VLOOKUP($BF14,タイヤ条件サマリ!$I:$J,2,0)*4) -> 79800 | AB14: 0.2390977444 | AC14: =VLOOKUP($T14,タイヤ条件サマリ!$N:$O,2,0) -> 2000 | AD14: 81800 | AE14: 0.2577017115 | AF14: 1560 | AG14: =INDEX('ホイール売価(国産)'!$A$81:$A$128,MATCH(AF14,'ホイール売価(国産)'!$B$81:$B$128,0)) -> Z-meist VS-1 BC | AH14: =VLOOKUP($AF14,'ホイール売価(国産)'!$B$81:$I$128,6,0) -> 4670 | AI14: 61600 | AJ14: =VLOOKUP($AF14,'ホイール売価(国産)'!$B$81:$I$128,8,0) -> 28000 | AK14: 83800 | AL14: 0.2649164678 | AM14: =AK14+(VLOOKUP($BF14,タイヤ条件サマリ!$I:$J,2,0)*4) -> 85800 | AN14: 0.2820512821 | AO14: 2000 | AP14: 87800 | AQ14: 0.298405467 | AR14: 1560 | AS14: =INDEX('ホイール売価(国産)'!$A$132:$A$159,MATCH(AR14,'ホイール売価(国産)'!$B$132:$B$159,0)) -> SMACK Valkyrie | AT14: =VLOOKUP($AF14,'ホイール売価(国産)'!$B$132:$I$159,6,0) -> 6500 | AU14: 68920 | AV14: =VLOOKUP($AF14,'ホイール売価(国産)'!$B$132:$I$159,8,0) -> 38000 | AW14: 93800 | AX14: =(AW14-AU14)/AW14 -> 0.2652452026 | AY14: =AW14+(VLOOKUP($BF14,タイヤ条件サマリ!$I:$J,2,0)*4) -> 95800 | AZ14: 0.2805845511 | BA14: 2000 | BB14: 97800 | BC14: 0.2952965235 | BD14: 195 | BE14: 65 | BF14: 15 | BG14: 592 | BH14: 数量限定 | BL14: 1 | BM14: ベーシック;ミニバン | BN14: 19565151 | BO14: 1 | BQ14: =IF(OR(M14="",M14=0),"-",IF(ROUNDUP(M14,-4)>160000,10000,VLOOKUP(ROUNDUP(M14,-4),タイヤ条件サマリ!$R:$S,2,FALSE))) -> 5000
A15: BRIDGESTONE | D15: VRX 限定 | E15: 165/60R15 | F15: 77Q | H15: 19000 | J15: =ROUNDUP(H15*タイヤ条件サマリ!$D$6,-2) -> 21900 | K15: 10450 | L15: 0.55 | M15: 53800 | N15: 0.38 | O15: 0.2230483271 | P15: =M15+(VLOOKUP($BF15,タイヤ条件サマリ!$I:$J,2,0)+$E$2+$F$2+$G$2)*4 -> 59000 | Q15: 0.2915254237 | R15: 53800 | T15: =VLOOKUP($E15,タイヤホイールサイズ!$A:$E,3,FALSE) -> 1545 | U15: =INDEX('ホイール売価(国産)'!$A$4:$A$77,MATCH(T15,'ホイール売価(国産)'!$B$4:$B$77,0)) -> Z-meist VS-T7 | V15: =VLOOKUP($T15,'ホイール売価(国産)'!$B:$I,6,FALSE) -> 4380 | W15: 59320 | X15: =VLOOKUP($T15,'ホイール売価(国産)'!$B:$I,8,FALSE) -> 20000 | Y15: 73800 | Z15: 0.1962059621 | AA15: =Y15+(VLOOKUP($BF15,タイヤ条件サマリ!$I:$J,2,0)*4) -> 75800 | AB15: 0.217414248 | AC15: =VLOOKUP($T15,タイヤ条件サマリ!$N:$O,2,0) -> 2400 | AD15: 78200 | AE15: 0.2414322251 | AF15: 1545 | AG15: =INDEX('ホイール売価(国産)'!$A$81:$A$128,MATCH(AF15,'ホイール売価(国産)'!$B$81:$B$128,0)) -> EuroSpeed S810 | AH15: =VLOOKUP($AF15,'ホイール売価(国産)'!$B$81:$I$128,6,0) -> 4500 | AI15: 59800 | AJ15: =VLOOKUP($AF15,'ホイール売価(国産)'!$B$81:$I$128,8,0) -> 26000 | AK15: 79800 | AL15: 0.2506265664 | AM15: =AK15+(VLOOKUP($BF15,タイヤ条件サマリ!$I:$J,2,0)*4) -> 81800 | AN15: 0.2689486553 | AO15: 2400 | AP15: 84200 | AQ15: 0.2897862233 | AR15: 1545 | AS15: =INDEX('ホイール売価(国産)'!$A$132:$A$159,MATCH(AR15,'ホイール売価(国産)'!$B$132:$B$159,0)) -> SMACK Valkyrie | AT15: =VLOOKUP($AF15,'ホイール売価(国産)'!$B$132:$I$159,6,0) -> 6110 | AU15: 66240 | AV15: =VLOOKUP($AF15,'ホイール売価(国産)'!$B$132:$I$159,8,0) -> 36000 | AW15: 89800 | AX15: 0.2623608018 | AY15: =AW15+(VLOOKUP($BF15,タイヤ条件サマリ!$I:$J,2,0)*4) -> 91800 | AZ15: 0.2784313725 | BA15: 2400 | BB15: 94200 | BC15: 0.2968152866 | BD15: 165 | BE15: 60 | BF15: 15 | BG15: 617 | BH15: 数量限定 | BL15: 1 | BM15: ベーシック;ミニバン | BN15: 16560151 | BO15: 1 | BQ15: =IF(OR(M15="",M15=0),"-",IF(ROUNDUP(M15,-4)>160000,10000,VLOOKUP(ROUNDUP(M15,-4),タイヤ条件サマリ!$R:$S,2,FALSE))) -> 5000
A16: BRIDGESTONE | D16: VRX 限定 | E16: 185/60R15 | F16: 84Q | H16: 22200 | J16: =ROUNDUP(H16*タイヤ条件サマリ!$D$6,-2) -> 25600 | K16: 12210 | L16: 0.55 | M16: 62800 | N16: 0.38 | O16: 0.2222929936 | P16: =M16+(VLOOKUP($BF16,タイヤ条件サマリ!$I:$J,2,0)+$E$2+$F$2+$G$2)*4 -> 68000 | Q16: 0.2817647059 | R16: 62800 | T16: =VLOOKUP($E16,タイヤホイールサイズ!$A:$E,3,FALSE) -> 1555 | U16: =INDEX('ホイール売価(国産)'!$A$4:$A$77,MATCH(T16,'ホイール売価(国産)'!$B$4:$B$77,0)) -> Z-meist VS-T7 | V16: =VLOOKUP($T16,'ホイール売価(国産)'!$B:$I,6,FALSE) -> 4400 | W16: 66440 | X16: =VLOOKUP($T16,'ホイール売価(国産)'!$B:$I,8,FALSE) -> 21000 | Y16: 83800 | Z16: 0.2071599045 | AA16: =Y16+(VLOOKUP($BF16,タイヤ条件サマリ!$I:$J,2,0)*4) -> 85800 | AB16: 0.2256410256 | AC16: =VLOOKUP($T16,タイヤ条件サマリ!$N:$O,2,0) -> 1600 | AD16: 87400 | AE16: 0.2398169336 | AF16: 1555 | AG16: =INDEX('ホイール売価(国産)'!$A$81:$A$128,MATCH(AF16,'ホイール売価(国産)'!$B$81:$B$128,0)) -> Z-meist VS-1 BC | AH16: =VLOOKUP($AF16,'ホイール売価(国産)'!$B$81:$I$128,6,0) -> 4500 | AI16: 66840 | AJ16: =VLOOKUP($AF16,'ホイール売価(国産)'!$B$81:$I$128,8,0) -> 27000 | AK16: 89800 | AL16: 0.2556792873 | AM16: =AK16+(VLOOKUP($BF16,タイヤ条件サマリ!$I:$J,2,0)*4) -> 91800 | AN16: 0.2718954248 | AO16: 1600 | AP16: 93400 | AQ16: 0.2843683084 | AR16: 1555 | AS16: =INDEX('ホイール売価(国産)'!$A$132:$A$159,MATCH(AR16,'ホイール売価(国産)'!$B$132:$B$159,0)) -> SMACK Valkyrie | AT16: =VLOOKUP($AF16,'ホイール売価(国産)'!$B$132:$I$159,6,0) -> 6370 | AU16: 74320 | AV16: =VLOOKUP($AF16,'ホイール売価(国産)'!$B$132:$I$159,8,0) -> 37000 | AW16: 99800 | AX16: 0.2553106212 | AY16: =AW16+(VLOOKUP($BF16,タイヤ条件サマリ!$I:$J,2,0)*4) -> 101800 | AZ16: 0.2699410609 | BA16: 1600 | BB16: 103400 | BC16: 0.281237911 | BD16: 185 | BE16: 60 | BF16: 15 | BG16: 629 | BH16: 数量限定 | BL16: 1 | BM16: ベーシック;ミニバン | BN16: 18560151 | BO16: 1 | BQ16: =IF(OR(M16="",M16=0),"-",IF(ROUNDUP(M16,-4)>160000,10000,VLOOKUP(ROUNDUP(M16,-4),タイヤ条件サマリ!$R:$S,2,FALSE))) -> 5000
A17: BRIDGESTONE | D17: VRX 限定 | E17: 215/65R16 | F17: 98Q | H17: 27200 | J17: =ROUNDUP(H17*タイヤ条件サマリ!$D$6,-2) -> 31300 | K17: 14960 | L17: 0.55 | M17: 77800 | N17: 0.38 | O17: 0.230848329 | P17: =M17+(VLOOKUP($BF17,タイヤ条件サマリ!$I:$J,2,0)+$E$2+$F$2+$G$2)*4 -> 83000 | Q17: 0.2790361446 | R17: 77800 | T17: =VLOOKUP($E17,タイヤホイールサイズ!$A:$E,3,FALSE) -> 1665 | U17: =INDEX('ホイール売価(国産)'!$A$4:$A$77,MATCH(T17,'ホイール売価(国産)'!$B$4:$B$77,0)) -> Z-meist VS-1 | V17: =VLOOKUP($T17,'ホイール売価(国産)'!$B:$I,6,FALSE) -> 4610 | W17: =(V17+$K17)*4 -> 78280 | X17: =VLOOKUP($T17,'ホイール売価(国産)'!$B:$I,8,FALSE) -> 23000 | Y17: 100800 | Z17: =(Y17-W17)/Y17 -> 0.2234126984 | AA17: =Y17+(VLOOKUP($BF17,タイヤ条件サマリ!$I:$J,2,0)*4) -> 102800 | AB17: =(AA17-W17)/AA17 -> 0.2385214008 | AC17: =VLOOKUP($T17,タイヤ条件サマリ!$N:$O,2,0) -> 2000 | AD17: 104800 | AE17: 0.2530534351 | AF17: 1665 | AG17: =INDEX('ホイール売価(国産)'!$A$81:$A$128,MATCH(AF17,'ホイール売価(国産)'!$B$81:$B$128,0)) -> Z-meist VS-1 BC | AH17: =VLOOKUP($AF17,'ホイール売価(国産)'!$B$81:$I$128,6,0) -> 5380 | AI17: 81360 | AJ17: =VLOOKUP($AF17,'ホイール売価(国産)'!$B$81:$I$128,8,0) -> 31000 | AK17: 108800 | AL17: 0.2522058824 | AM17: =AK17+(VLOOKUP($BF17,タイヤ条件サマリ!$I:$J,2,0)*4) -> 110800 | AN17: 0.2657039711 | AO17: 2000 | AP17: 112800 | AQ17: 0.2787234043 | AR17: 1665 | AS17: =INDEX('ホイール売価(国産)'!$A$132:$A$159,MATCH(AR17,'ホイール売価(国産)'!$B$132:$B$159,0)) -> SMACK Valkyrie | AT17: =VLOOKUP($AF17,'ホイール売価(国産)'!$B$132:$I$159,6,0) -> 7410 | AU17: 89480 | AV17: =VLOOKUP($AF17,'ホイール売価(国産)'!$B$132:$I$159,8,0) -> 43000 | AW17: 120800 | AX17: 0.2592715232 | AY17: =AW17+(VLOOKUP($BF17,タイヤ条件サマリ!$I:$J,2,0)*4) -> 122800 | AZ17: 0.2713355049 | BA17: 2000 | BB17: 124800 | BC17: 0.2830128205 | BD17: 215 | BE17: 65 | BF17: 16 | BG17: 641 | BH17: 数量限定 | BL17: 1 | BM17: ベーシック;ミニバン | BN17: 21565161 | BO17: 1 | BQ17: =IF(OR(M17="",M17=0),"-",IF(ROUNDUP(M17,-4)>160000,10000,VLOOKUP(ROUNDUP(M17,-4),タイヤ条件サマリ!$R:$S,2,FALSE))) -> 6000
A18: BRIDGESTONE | D18: VRX 限定 | E18: 205/60R16 | F18: 92Q | H18: 27400 | J18: =ROUNDUP(H18*タイヤ条件サマリ!$D$6,-2) -> 31600 | K18: 15070 | L18: 0.55 | M18: 77800 | N18: 0.38 | O18: 0.2251928021 | P18: =M18+(VLOOKUP($BF18,タイヤ条件サマリ!$I:$J,2,0)+$E$2+$F$2+$G$2)*4 -> 83000 | Q18: 0.2737349398 | R18: 77800 | T18: =VLOOKUP($E18,タイヤホイールサイズ!$A:$E,3,FALSE) -> 1665 | U18: =INDEX('ホイール売価(国産)'!$A$4:$A$77,MATCH(T18,'ホイール売価(国産)'!$B$4:$B$77,0)) -> Z-meist VS-1 | V18: =VLOOKUP($T18,'ホイール売価(国産)'!$B:$I,6,FALSE) -> 4610 | W18: 78720 | X18: =VLOOKUP($T18,'ホイール売価(国産)'!$B:$I,8,FALSE) -> 23000 | Y18: 100800 | Z18: 0.219047619 | AA18: =Y18+(VLOOKUP($BF18,タイヤ条件サマリ!$I:$J,2,0)*4) -> 102800 | AB18: 0.2342412451 | AC18: =VLOOKUP($T18,タイヤ条件サマリ!$N:$O,2,0) -> 2000 | AD18: 104800 | AE18: 0.2488549618 | AF18: 1665 | AG18: =INDEX('ホイール売価(国産)'!$A$81:$A$128,MATCH(AF18,'ホイール売価(国産)'!$B$81:$B$128,0)) -> Z-meist VS-1 BC | AH18: =VLOOKUP($AF18,'ホイール売価(国産)'!$B$81:$I$128,6,0) -> 5380 | AI18: 81800 | AJ18: =VLOOKUP($AF18,'ホイール売価(国産)'!$B$81:$I$128,8,0) -> 31000 | AK18: 108800 | AL18: 0.2481617647 | AM18: =AK18+(VLOOKUP($BF18,タイヤ条件サマリ!$I:$J,2,0)*4) -> 110800 | AN18: 0.261732852 | AO18: 2000 | AP18: 112800 | AQ18: 0.274822695 | AR18: 1665 | AS18: =INDEX('ホイール売価(国産)'!$A$132:$A$159,MATCH(AR18,'ホイール売価(国産)'!$B$132:$B$159,0)) -> SMACK Valkyrie | AT18: =VLOOKUP($AF18,'ホイール売価(国産)'!$B$132:$I$159,6,0) -> 7410 | AU18: 89920 | AV18: =VLOOKUP($AF18,'ホイール売価(国産)'!$B$132:$I$159,8,0) -> 43000 | AW18: 120800 | AX18: 0.2556291391 | AY18: =AW18+(VLOOKUP($BF18,タイヤ条件サマリ!$I:$J,2,0)*4) -> 122800 | AZ18: 0.267752443 | BA18: 2000 | BB18: 124800 | BC18: 0.2794871795 | BD18: 205 | BE18: 60 | BF18: 16 | BG18: 654 | BH18: 数量限定 | BL18: 1 | BM18: ベーシック;ミニバン | BN18: 20560161 | BO18: 1 | BQ18: =IF(OR(M18="",M18=0),"-",IF(ROUNDUP(M18,-4)>160000,10000,VLOOKUP(ROUNDUP(M18,-4),タイヤ条件サマリ!$R:$S,2,FALSE))) -> 6000
A19: BRIDGESTONE | D19: VRX 限定 | E19: 215/60R16 | F19: 95Q | H19: 29000 | J19: =ROUNDUP(H19*タイヤ条件サマリ!$D$6,-2) -> 33400 | K19: 15950 | L19: 0.55 | M19: 82800 | N19: 0.38 | O19: 0.229468599 | P19: =M19+(VLOOKUP($BF19,タイヤ条件サマリ!$I:$J,2,0)+$E$2+$F$2+$G$2)*4 -> 88000 | Q19: 0.275 | R19: 82800 | T19: =VLOOKUP($E19,タイヤホイールサイズ!$A:$E,3,FALSE) -> 1665 | U19: =INDEX('ホイール売価(国産)'!$A$4:$A$77,MATCH(T19,'ホイール売価(国産)'!$B$4:$B$77,0)) -> Z-meist VS-1 | V19: =VLOOKUP($T19,'ホイール売価(国産)'!$B:$I,6,FALSE) -> 4610 | W19: 82240 | X19: =VLOOKUP($T19,'ホイール売価(国産)'!$B:$I,8,FALSE) -> 23000 | Y19: 105800 | Z19: 0.22268431 | AA19: =Y19+(VLOOKUP($BF19,タイヤ条件サマリ!$I:$J,2,0)*4) -> 107800 | AB19: 0.2371057514 | AC19: =VLOOKUP($T19,タイヤ条件サマリ!$N:$O,2,0) -> 2000 | AD19: 109800 | AE19: 0.2510018215 | AF19: 1665 | AG19: =INDEX('ホイール売価(国産)'!$A$81:$A$128,MATCH(AF19,'ホイール売価(国産)'!$B$81:$B$128,0)) -> Z-meist VS-1 BC | AH19: =VLOOKUP($AF19,'ホイール売価(国産)'!$B$81:$I$128,6,0) -> 5380 | AI19: 85320 | AJ19: =VLOOKUP($AF19,'ホイール売価(国産)'!$B$81:$I$128,8,0) -> 31000 | AK19: 113800 | AL19: 0.2502636204 | AM19: =AK19+(VLOOKUP($BF19,タイヤ条件サマリ!$I:$J,2,0)*4) -> 115800 | AN19: 0.2632124352 | AO19: 2000 | AP19: 117800 | AQ19: 0.275721562 | AR19: 1665 | AS19: =INDEX('ホイール売価(国産)'!$A$132:$A$159,MATCH(AR19,'ホイール売価(国産)'!$B$132:$B$159,0)) -> SMACK Valkyrie | AT19: =VLOOKUP($AF19,'ホイール売価(国産)'!$B$132:$I$159,6,0) -> 7410 | AU19: 93440 | AV19: =VLOOKUP($AF19,'ホイール売価(国産)'!$B$132:$I$159,8,0) -> 43000 | AW19: 125800 | AX19: 0.2572337043 | AY19: =AW19+(VLOOKUP($BF19,タイヤ条件サマリ!$I:$J,2,0)*4) -> 127800 | AZ19: 0.26885759 | BA19: 2000 | BB19: 129800 | BC19: 0.2801232666 | BD19: 215 | BE19: 60 | BF19: 16 | BG19: 586 | BH19: 数量限定 | BL19: 1 | BM19: ベーシック;ミニバン | BN19: 21560161 | BO19: 1 | BQ19: =IF(OR(M19="",M19=0),"-",IF(ROUNDUP(M19,-4)>160000,10000,VLOOKUP(ROUNDUP(M19,-4),タイヤ条件サマリ!$R:$S,2,FALSE))) -> 6000
A20: BRIDGESTONE | D20: VRX 限定 | E20: 205/55R16 | F20: 91Q | H20: 32500 | J20: =ROUNDUP(H20*タイヤ条件サマリ!$D$6,-2) -> 37400 | K20: 17880 | L20: 0.55 | M20: 92800 | N20: 0.38 | O20: 0.2293103448 | P20: =M20+(VLOOKUP($BF20,タイヤ条件サマリ!$I:$J,2,0)+$E$2+$F$2+$G$2)*4 -> 98000 | Q20: 0.2702040816 | R20: 92800 | T20: =VLOOKUP($E20,タイヤホイールサイズ!$A:$E,3,FALSE) -> 1665 | U20: =INDEX('ホイール売価(国産)'!$A$4:$A$77,MATCH(T20,'ホイール売価(国産)'!$B$4:$B$77,0)) -> Z-meist VS-1 | V20: =VLOOKUP($T20,'ホイール売価(国産)'!$B:$I,6,FALSE) -> 4610 | W20: 89960 | X20: =VLOOKUP($T20,'ホイール売価(国産)'!$B:$I,8,FALSE) -> 23000 | Y20: 115800 | Z20: 0.2231433506 | AA20: =Y20+(VLOOKUP($BF20,タイヤ条件サマリ!$I:$J,2,0)*4) -> 117800 | AB20: 0.2363327674 | AC20: =VLOOKUP($T20,タイヤ条件サマリ!$N:$O,2,0) -> 2000 | AD20: 119800 | AE20: 0.249081803 | AF20: 1665 | AG20: =INDEX('ホイール売価(国産)'!$A$81:$A$128,MATCH(AF20,'ホイール売価(国産)'!$B$81:$B$128,0)) -> Z-meist VS-1 BC | AH20: =VLOOKUP($AF20,'ホイール売価(国産)'!$B$81:$I$128,6,0) -> 5380 | AI20: 93040 | AJ20: =VLOOKUP($AF20,'ホイール売価(国産)'!$B$81:$I$128,8,0) -> 31000 | AK20: 123800 | AL20: 0.2484652666 | AM20: =AK20+(VLOOKUP($BF20,タイヤ条件サマリ!$I:$J,2,0)*4) -> 125800 | AN20: 0.2604133545 | AO20: 2000 | AP20: 127800 | AQ20: 0.2719874804 | AR20: 1665 | AS20: =INDEX('ホイール売価(国産)'!$A$132:$A$159,MATCH(AR20,'ホイール売価(国産)'!$B$132:$B$159,0)) -> SMACK Valkyrie | AT20: =VLOOKUP($AF20,'ホイール売価(国産)'!$B$132:$I$159,6,0) -> 7410 | AU20: 101160 | AV20: =VLOOKUP($AF20,'ホイール売価(国産)'!$B$132:$I$159,8,0) -> 43000 | AW20: 135800 | AX20: 0.2550810015 | AY20: =AW20+(VLOOKUP($BF20,タイヤ条件サマリ!$I:$J,2,0)*4) -> 137800 | AZ20: 0.265892598 | BA20: 2000 | BB20: 139800 | BC20: 0.2763948498 | BD20: 205 | BE20: 55 | BF20: 16 | BG20: 611 | BH20: 数量限定 | BL20: 1 | BM20: ベーシック;ミニバン | BN20: 20555161 | BO20: 1 | BQ20: =IF(OR(M20="",M20=0),"-",IF(ROUNDUP(M20,-4)>160000,10000,VLOOKUP(ROUNDUP(M20,-4),タイヤ条件サマリ!$R:$S,2,FALSE))) -> 6000
A21: BRIDGESTONE | D21: VRX 限定 | E21: 215/60R17 | F21: 96Q | H21: 31200 | J21: =ROUNDUP(H21*タイヤ条件サマリ!$D$6,-2) -> 35900 | K21: 17160 | L21: 0.55 | M21: 88800 | N21: 0.38 | O21: 0.227027027 | P21: =M21+(VLOOKUP($BF21,タイヤ条件サマリ!$I:$J,2,0)+$E$2+$F$2+$G$2)*4 -> 94000 | Q21: 0.269787234 | R21: 88800 | T21: =VLOOKUP($E21,タイヤホイールサイズ!$A:$E,3,FALSE) -> 1770 | U21: =INDEX('ホイール売価(国産)'!$A$4:$A$77,MATCH(T21,'ホイール売価(国産)'!$B$4:$B$77,0)) -> Z-meist VS-1 | V21: =VLOOKUP($T21,'ホイール売価(国産)'!$B:$I,6,FALSE) -> 5480 | W21: 90560 | X21: =VLOOKUP($T21,'ホイール売価(国産)'!$B:$I,8,FALSE) -> 27000 | Y21: 115800 | Z21: 0.2179620035 | AA21: =Y21+(VLOOKUP($BF21,タイヤ条件サマリ!$I:$J,2,0)*4) -> 117800 | AB21: 0.2312393888 | AC21: =VLOOKUP($T21,タイヤ条件サマリ!$N:$O,2,0) -> 2000 | AD21: 119800 | AE21: 0.2440734558 | AF21: 1770 | AG21: =INDEX('ホイール売価(国産)'!$A$81:$A$128,MATCH(AF21,'ホイール売価(国産)'!$B$81:$B$128,0)) -> Z-meist VS-1 BC | AH21: =VLOOKUP($AF21,'ホイール売価(国産)'!$B$81:$I$128,6,0) -> 6300 | AI21: 93840 | AJ21: =VLOOKUP($AF21,'ホイール売価(国産)'!$B$81:$I$128,8,0) -> 35000 | AK21: 123800 | AL21: 0.242003231 | AM21: =AK21+(VLOOKUP($BF21,タイヤ条件サマリ!$I:$J,2,0)*4) -> 125800 | AN21: 0.2540540541 | AO21: 2000 | AP21: 127800 | AQ21: 0.2657276995 | AR21: 1770 | AS21: =INDEX('ホイール売価(国産)'!$A$132:$A$159,MATCH(AR21,'ホイール売価(国産)'!$B$132:$B$159,0)) -> SMACK Valkyrie | AT21: =VLOOKUP($AF21,'ホイール売価(国産)'!$B$132:$I$159,6,0) -> 8840 | AU21: 104000 | AV21: =VLOOKUP($AF21,'ホイール売価(国産)'!$B$132:$I$159,8,0) -> 50000 | AW21: 138800 | AX21: 0.2507204611 | AY21: =AW21+(VLOOKUP($BF21,タイヤ条件サマリ!$I:$J,2,0)*4) -> 140800 | AZ21: 0.2613636364 | BA21: 2000 | BB21: 142800 | BC21: 0.2717086835 | BD21: 215 | BE21: 60 | BF21: 17 | BG21: 679 | BH21: 数量限定 | BL21: 1 | BM21: ベーシック;ミニバン | BN21: 21560171 | BO21: 1 | BQ21: =IF(OR(M21="",M21=0),"-",IF(ROUNDUP(M21,-4)>160000,10000,VLOOKUP(ROUNDUP(M21,-4),タイヤ条件サマリ!$R:$S,2,FALSE))) -> 6000
A22: BRIDGESTONE | D22: VRX 限定 | E22: 225/60R17 | F22: 99Q | H22: 32800 | J22: =ROUNDUP(H22*タイヤ条件サマリ!$D$6,-2) -> 37800 | K22: 18040 | L22: 0.55 | M22: 93800 | N22: 0.38 | O22: 0.2307036247 | P22: =M22+(VLOOKUP($BF22,タイヤ条件サマリ!$I:$J,2,0)+$E$2+$F$2+$G$2)*4 -> 99000 | Q22: 0.2711111111 | R22: 93800 | T22: =VLOOKUP($E22,タイヤホイールサイズ!$A:$E,3,FALSE) -> 1770 | U22: =INDEX('ホイール売価(国産)'!$A$4:$A$77,MATCH(T22,'ホイール売価(国産)'!$B$4:$B$77,0)) -> Z-meist VS-1 | V22: =VLOOKUP($T22,'ホイール売価(国産)'!$B:$I,6,FALSE) -> 5480 | W22: 94080 | X22: =VLOOKUP($T22,'ホイール売価(国産)'!$B:$I,8,FALSE) -> 27000 | Y22: 120800 | Z22: 0.221192053 | AA22: =Y22+(VLOOKUP($BF22,タイヤ条件サマリ!$I:$J,2,0)*4) -> 122800 | AB22: 0.2338762215 | AC22: =VLOOKUP($T22,タイヤ条件サマリ!$N:$O,2,0) -> 2000 | AD22: 124800 | AE22: 0.2461538462 | AF22: 1770 | AG22: =INDEX('ホイール売価(国産)'!$A$81:$A$128,MATCH(AF22,'ホイール売価(国産)'!$B$81:$B$128,0)) -> Z-meist VS-1 BC | AH22: =VLOOKUP($AF22,'ホイール売価(国産)'!$B$81:$I$128,6,0) -> 6300 | AI22: 97360 | AJ22: =VLOOKUP($AF22,'ホイール売価(国産)'!$B$81:$I$128,8,0) -> 35000 | AK22: 128800 | AL22: 0.2440993789 | AM22: =AK22+(VLOOKUP($BF22,タイヤ条件サマリ!$I:$J,2,0)*4) -> 130800 | AN22: 0.2556574924 | AO22: 2000 | AP22: 132800 | AQ22: 0.2668674699 | AR22: 1770 | AS22: =INDEX('ホイール売価(国産)'!$A$132:$A$159,MATCH(AR22,'ホイール売価(国産)'!$B$132:$B$159,0)) -> SMACK Valkyrie | AT22: =VLOOKUP($AF22,'ホイール売価(国産)'!$B$132:$I$159,6,0) -> 8840 | AU22: 107520 | AV22: =VLOOKUP($AF22,'ホイール売価(国産)'!$B$132:$I$159,8,0) -> 50000 | AW22: 143800 | AX22: 0.252294854 | AY22: =AW22+(VLOOKUP($BF22,タイヤ条件サマリ!$I:$J,2,0)*4) -> 145800 | AZ22: 0.2625514403 | BA22: 2000 | BB22: 147800 | BC22: 0.2725304465 | BD22: 225 | BE22: 60 | BF22: 17 | BG22: 658 | BH22: 数量限定 | BL22: 1 | BM22: ベーシック;ミニバン | BN22: 22560171 | BO22: 1 | BQ22: =IF(OR(M22="",M22=0),"-",IF(ROUNDUP(M22,-4)>160000,10000,VLOOKUP(ROUNDUP(M22,-4),タイヤ条件サマリ!$R:$S,2,FALSE))) -> 6000
A23: BRIDGESTONE | D23: VRX 限定 | E23: 215/55R17 | F23: 94Q | H23: 36900 | J23: =ROUNDUP(H23*タイヤ条件サマリ!$D$6,-2) -> 42500 | K23: 20300 | L23: 0.55 | M23: 104800 | N23: 0.38 | O23: 0.2251908397 | P23: =M23+(VLOOKUP($BF23,タイヤ条件サマリ!$I:$J,2,0)+$E$2+$F$2+$G$2)*4 -> 110000 | Q23: 0.2618181818 | R23: 104800 | T23: =VLOOKUP($E23,タイヤホイールサイズ!$A:$E,3,FALSE) -> 1770 | U23: =INDEX('ホイール売価(国産)'!$A$4:$A$77,MATCH(T23,'ホイール売価(国産)'!$B$4:$B$77,0)) -> Z-meist VS-1 | V23: =VLOOKUP($T23,'ホイール売価(国産)'!$B:$I,6,FALSE) -> 5480 | W23: 103120 | X23: =VLOOKUP($T23,'ホイール売価(国産)'!$B:$I,8,FALSE) -> 27000 | Y23: 131800 | Z23: 0.2176024279 | AA23: =Y23+(VLOOKUP($BF23,タイヤ条件サマリ!$I:$J,2,0)*4) -> 133800 | AB23: 0.2292974589 | AC23: =VLOOKUP($T23,タイヤ条件サマリ!$N:$O,2,0) -> 2000 | AD23: 135800 | AE23: 0.2406480118 | AF23: 1770 | AG23: =INDEX('ホイール売価(国産)'!$A$81:$A$128,MATCH(AF23,'ホイール売価(国産)'!$B$81:$B$128,0)) -> Z-meist VS-1 BC | AH23: =VLOOKUP($AF23,'ホイール売価(国産)'!$B$81:$I$128,6,0) -> 6300 | AI23: 106400 | AJ23: =VLOOKUP($AF23,'ホイール売価(国産)'!$B$81:$I$128,8,0) -> 35000 | AK23: 139800 | AL23: 0.2389127325 | AM23: =AK23+(VLOOKUP($BF23,タイヤ条件サマリ!$I:$J,2,0)*4) -> 141800 | AN23: 0.2496473907 | AO23: 2000 | AP23: 143800 | AQ23: 0.2600834492 | AR23: 1770 | AS23: =INDEX('ホイール売価(国産)'!$A$132:$A$159,MATCH(AR23,'ホイール売価(国産)'!$B$132:$B$159,0)) -> SMACK Valkyrie | AT23: =VLOOKUP($AF23,'ホイール売価(国産)'!$B$132:$I$159,6,0) -> 8840 | AU23: 116560 | AV23: =VLOOKUP($AF23,'ホイール売価(国産)'!$B$132:$I$159,8,0) -> 50000 | AW23: 154800 | AX23: 0.2470284238 | AY23: =AW23+(VLOOKUP($BF23,タイヤ条件サマリ!$I:$J,2,0)*4) -> 156800 | AZ23: 0.2566326531 | BA23: 2000 | BB23: 158800 | BC23: 0.2659949622 | BD23: 215 | BE23: 55 | BF23: 17 | BG23: 670 | BH23: 数量限定 | BL23: 1 | BM23: ベーシック;ミニバン | BN23: 21555171 | BO23: 1 | BQ23: =IF(OR(M23="",M23=0),"-",IF(ROUNDUP(M23,-4)>160000,10000,VLOOKUP(ROUNDUP(M23,-4),タイヤ条件サマリ!$R:$S,2,FALSE))) -> 8000
A24: BRIDGESTONE | D24: VRX2 限定 | E24: 175/65R15 | F24: 84Q | H24: 16000 | J24: 18700 | K24: 10400 | L24: 0.65 | M24: 55800 | N24: 0.25 | O24: 0.2544802867 | P24: =M24+(VLOOKUP($BF24,タイヤ条件サマリ!$I:$J,2,0)+$E$2+$F$2+$G$2)*4 -> 61000 | Q24: 0.3180327869 | R24: 55800 | T24: =VLOOKUP($E24,タイヤホイールサイズ!$A:$E,3,FALSE) -> 1555 | U24: =INDEX('ホイール売価(国産)'!$A$4:$A$77,MATCH(T24,'ホイール売価(国産)'!$B$4:$B$77,0)) -> Z-meist VS-T7 | V24: =VLOOKUP($T24,'ホイール売価(国産)'!$B:$I,6,FALSE) -> 4400 | W24: 59200 | X24: =VLOOKUP($T24,'ホイール売価(国産)'!$B:$I,8,FALSE) -> 21000 | Y24: 76800 | Z24: 0.2291666667 | AA24: =Y24+(VLOOKUP($BF24,タイヤ条件サマリ!$I:$J,2,0)*4) -> 78800 | AB24: 0.2487309645 | AC24: =VLOOKUP($T24,タイヤ条件サマリ!$N:$O,2,0) -> 1600 | AD24: 80400 | AE24: 0.263681592 | AF24: 1555 | AG24: =INDEX('ホイール売価(国産)'!$A$81:$A$128,MATCH(AF24,'ホイール売価(国産)'!$B$81:$B$128,0)) -> Z-meist VS-1 BC | AH24: =VLOOKUP($AF24,'ホイール売価(国産)'!$B$81:$I$128,6,0) -> 4500 | AI24: 59600 | AJ24: =VLOOKUP($AF24,'ホイール売価(国産)'!$B$81:$I$128,8,0) -> 27000 | AK24: 82800 | AL24: 0.2801932367 | AM24: =AK24+(VLOOKUP($BF24,タイヤ条件サマリ!$I:$J,2,0)*4) -> 84800 | AN24: 0.2971698113 | AO24: 1600 | AP24: 86400 | AQ24: 0.3101851852 | AR24: 1555 | AS24: =INDEX('ホイール売価(国産)'!$A$132:$A$159,MATCH(AR24,'ホイール売価(国産)'!$B$132:$B$159,0)) -> SMACK Valkyrie | AT24: =VLOOKUP($AF24,'ホイール売価(国産)'!$B$132:$I$159,6,0) -> 6370 | AU24: 67080 | AV24: =VLOOKUP($AF24,'ホイール売価(国産)'!$B$132:$I$159,8,0) -> 37000 | AW24: 92800 | AX24: 0.2771551724 | AY24: =AW24+(VLOOKUP($BF24,タイヤ条件サマリ!$I:$J,2,0)*4) -> 94800 | AZ24: 0.2924050633 | BA24: 1600 | BB24: 96400 | BC24: 0.3041493776 | BD24: 175 | BE24: 65 | BF24: 15 | BG24: 640 | BH24: 数量限定 | BL24: 1 | BM24: ベーシック;ミニバン | BN24: 17565153 | BO24: 3 | BQ24: =IF(OR(M24="",M24=0),"-",IF(ROUNDUP(M24,-4)>160000,10000,VLOOKUP(ROUNDUP(M24,-4),タイヤ条件サマリ!$R:$S,2,FALSE))) -> 5000
A25: BRIDGESTONE | D25: VRX2 限定 | E25: 185/65R15 | F25: 88Q | H25: 18200 | J25: 21300 | K25: 11830 | L25: 0.65 | M25: 63800 | N25: 0.25 | O25: 0.25830721 | P25: =M25+(VLOOKUP($BF25,タイヤ条件サマリ!$I:$J,2,0)+$E$2+$F$2+$G$2)*4 -> 69000 | Q25: 0.3142028986 | R25: 63800 | T25: =VLOOKUP($E25,タイヤホイールサイズ!$A:$E,3,FALSE) -> 1555 | U25: =INDEX('ホイール売価(国産)'!$A$4:$A$77,MATCH(T25,'ホイール売価(国産)'!$B$4:$B$77,0)) -> Z-meist VS-T7 | V25: =VLOOKUP($T25,'ホイール売価(国産)'!$B:$I,6,FALSE) -> 4400 | W25: =(V25+$K25)*4 -> 64920 | X25: =VLOOKUP($T25,'ホイール売価(国産)'!$B:$I,8,FALSE) -> 21000 | Y25: 84800 | Z25: 0.2344339623 | AA25: =Y25+(VLOOKUP($BF25,タイヤ条件サマリ!$I:$J,2,0)*4) -> 86800 | AB25: =(AA25-W25)/AA25 -> 0.2520737327 | AC25: =VLOOKUP($T25,タイヤ条件サマリ!$N:$O,2,0) -> 1600 | AD25: 88400 | AE25: 0.2656108597 | AF25: 1555 | AG25: =INDEX('ホイール売価(国産)'!$A$81:$A$128,MATCH(AF25,'ホイール売価(国産)'!$B$81:$B$128,0)) -> Z-meist VS-1 BC | AH25: =VLOOKUP($AF25,'ホイール売価(国産)'!$B$81:$I$128,6,0) -> 4500 | AI25: 65320 | AJ25: =VLOOKUP($AF25,'ホイール売価(国産)'!$B$81:$I$128,8,0) -> 27000 | AK25: 90800 | AL25: 0.2806167401 | AM25: =AK25+(VLOOKUP($BF25,タイヤ条件サマリ!$I:$J,2,0)*4) -> 92800 | AN25: 0.2961206897 | AO25: 1600 | AP25: 94400 | AQ25: 0.3080508475 | AR25: 1555 | AS25: =INDEX('ホイール売価(国産)'!$A$132:$A$159,MATCH(AR25,'ホイール売価(国産)'!$B$132:$B$159,0)) -> SMACK Valkyrie | AT25: =VLOOKUP($AF25,'ホイール売価(国産)'!$B$132:$I$159,6,0) -> 6370 | AU25: 72800 | AV25: =VLOOKUP($AF25,'ホイール売価(国産)'!$B$132:$I$159,8,0) -> 37000 | AW25: 100800 | AX25: 0.2777777778 | AY25: =AW25+(VLOOKUP($BF25,タイヤ条件サマリ!$I:$J,2,0)*4) -> 102800 | AZ25: 0.2918287938 | BA25: 1600 | BB25: 104400 | BC25: 0.3026819923 | BD25: 185 | BE25: 65 | BF25: 15 | BG25: 697 | BH25: 数量限定 | BL25: 1 | BM25: ベーシック;ミニバン | BN25: 18565153 | BO25: 3 | BQ25: =IF(OR(M25="",M25=0),"-",IF(ROUNDUP(M25,-4)>160000,10000,VLOOKUP(ROUNDUP(M25,-4),タイヤ条件サマリ!$R:$S,2,FALSE))) -> 5000
A26: BRIDGESTONE | D26: VRX2 限定 | E26: 195/65R15 | F26: 91Q | H26: 20100 | J26: 23500 | K26: 13070 | L26: 0.65 | M26: 68800 | N26: 0.27 | O26: 0.2401162791 | P26: =M26+(VLOOKUP($BF26,タイヤ条件サマリ!$I:$J,2,0)+$E$2+$F$2+$G$2)*4 -> 74000 | Q26: 0.2935135135 | R26: 68800 | T26: =VLOOKUP($E26,タイヤホイールサイズ!$A:$E,3,FALSE) -> 1560 | U26: =INDEX('ホイール売価(国産)'!$A$4:$A$77,MATCH(T26,'ホイール売価(国産)'!$B$4:$B$77,0)) -> Z-meist VS-T7 | V26: =VLOOKUP($T26,'ホイール売価(国産)'!$B:$I,6,FALSE) -> 4450 | W26: =(V26+$K26)*4 -> 70080 | X26: =VLOOKUP($T26,'ホイール売価(国産)'!$B:$I,8,FALSE) -> 22000 | Y26: 90800 | Z26: 0.2281938326 | AA26: =Y26+(VLOOKUP($BF26,タイヤ条件サマリ!$I:$J,2,0)*4) -> 92800 | AB26: =(AA26-W26)/AA26 -> 0.2448275862 | AC26: =VLOOKUP($T26,タイヤ条件サマリ!$N:$O,2,0) -> 2000 | AD26: 94800 | AE26: 0.2607594937 | AF26: 1560 | AG26: =INDEX('ホイール売価(国産)'!$A$81:$A$128,MATCH(AF26,'ホイール売価(国産)'!$B$81:$B$128,0)) -> Z-meist VS-1 BC | AH26: =VLOOKUP($AF26,'ホイール売価(国産)'!$B$81:$I$128,6,0) -> 4670 | AI26: 70960 | AJ26: =VLOOKUP($AF26,'ホイール売価(国産)'!$B$81:$I$128,8,0) -> 28000 | AK26: 96800 | AL26: 0.2669421488 | AM26: =AK26+(VLOOKUP($BF26,タイヤ条件サマリ!$I:$J,2,0)*4) -> 98800 | AN26: 0.2817813765 | AO26: 2000 | AP26: 100800 | AQ26: 0.296031746 | AR26: 1560 | AS26: =INDEX('ホイール売価(国産)'!$A$132:$A$159,MATCH(AR26,'ホイール売価(国産)'!$B$132:$B$159,0)) -> SMACK Valkyrie | AT26: =VLOOKUP($AF26,'ホイール売価(国産)'!$B$132:$I$159,6,0) -> 6500 | AU26: 78280 | AV26: =VLOOKUP($AF26,'ホイール売価(国産)'!$B$132:$I$159,8,0) -> 38000 | AW26: 106800 | AX26: 0.2670411985 | AY26: =AW26+(VLOOKUP($BF26,タイヤ条件サマリ!$I:$J,2,0)*4) -> 108800 | AZ26: 0.2805147059 | BA26: 2000 | BB26: 110800 | BC26: 0.2935018051 | BD26: 195 | BE26: 65 | BF26: 15 | BG26: 677 | BH26: 数量限定 | BL26: 1 | BM26: ベーシック;ミニバン | BN26: 19565153 | BO26: 3 | BQ26: =IF(OR(M26="",M26=0),"-",IF(ROUNDUP(M26,-4)>160000,10000,VLOOKUP(ROUNDUP(M26,-4),タイヤ条件サマリ!$R:$S,2,FALSE))) -> 5000
A27: BRIDGESTONE | D27: VRX2 限定 | E27: 205/60R16 | F27: 92Q | H27: 28400 | J27: 33200 | K27: 18460 | L27: 0.65 | M27: 99800 | N27: 0.25 | O27: 0.2601202405 | P27: =M27+(VLOOKUP($BF27,タイヤ条件サマリ!$I:$J,2,0)+$E$2+$F$2+$G$2)*4 -> 105000 | Q27: 0.2967619048 | R27: 99800 | T27: =VLOOKUP($E27,タイヤホイールサイズ!$A:$E,3,FALSE) -> 1665 | U27: =INDEX('ホイール売価(国産)'!$A$4:$A$77,MATCH(T27,'ホイール売価(国産)'!$B$4:$B$77,0)) -> Z-meist VS-1 | V27: =VLOOKUP($T27,'ホイール売価(国産)'!$B:$I,6,FALSE) -> 4610 | W27: =(V27+$K27)*4 -> 92280 | X27: =VLOOKUP($T27,'ホイール売価(国産)'!$B:$I,8,FALSE) -> 23000 | Y27: 122800 | Z27: 0.248534202 | AA27: =Y27+(VLOOKUP($BF27,タイヤ条件サマリ!$I:$J,2,0)*4) -> 124800 | AB27: =(AA27-W27)/AA27 -> 0.2605769231 | AC27: =VLOOKUP($T27,タイヤ条件サマリ!$N:$O,2,0) -> 2000 | AD27: =AA27+AC27 -> 126800 | AE27: =(AD27-W27)/AD27 -> 0.2722397476 | AF27: 1665 | AG27: =INDEX('ホイール売価(国産)'!$A$81:$A$128,MATCH(AF27,'ホイール売価(国産)'!$B$81:$B$128,0)) -> Z-meist VS-1 BC | AH27: =VLOOKUP($AF27,'ホイール売価(国産)'!$B$81:$I$128,6,0) -> 5380 | AI27: 95360 | AJ27: =VLOOKUP($AF27,'ホイール売価(国産)'!$B$81:$I$128,8,0) -> 31000 | AK27: 130800 | AL27: 0.2709480122 | AM27: =AK27+(VLOOKUP($BF27,タイヤ条件サマリ!$I:$J,2,0)*4) -> 132800 | AN27: 0.2819277108 | AO27: 2000 | AP27: 134800 | AQ27: 0.2925816024 | AR27: 1665 | AS27: =INDEX('ホイール売価(国産)'!$A$132:$A$159,MATCH(AR27,'ホイール売価(国産)'!$B$132:$B$159,0)) -> SMACK Valkyrie | AT27: =VLOOKUP($AF27,'ホイール売価(国産)'!$B$132:$I$159,6,0) -> 7410 | AU27: 103480 | AV27: =VLOOKUP($AF27,'ホイール売価(国産)'!$B$132:$I$159,8,0) -> 43000 | AW27: 142800 | AX27: 0.2753501401 | AY27: =AW27+(VLOOKUP($BF27,タイヤ条件サマリ!$I:$J,2,0)*4) -> 144800 | AZ27: 0.285359116 | BA27: 2000 | BB27: 146800 | BC27: 0.2950953678 | BD27: 205 | BE27: 60 | BF27: 16 | BG27: 678 | BH27: 数量限定 | BL27: 1 | BM27: ベーシック;ミニバン | BN27: 20560163 | BO27: 3 | BQ27: =IF(OR(M27="",M27=0),"-",IF(ROUNDUP(M27,-4)>160000,10000,VLOOKUP(ROUNDUP(M27,-4),タイヤ条件サマリ!$R:$S,2,FALSE))) -> 6000
A28: BRIDGESTONE | D28: VRX 逆輸入 | E28: 175/70R14 | F28: 84S | H28: 13600 | J28: 15700 | K28: 6270 | L28: =K28/H28 -> 0.4610294118 | M28: 30800 | N28: 0.5 | O28: =(M28-K28*4)/M28 -> 0.1857142857 | P28: =M28+($D$2+$E$2+$F$2)*4 -> 36000 | Q28: =(P28-K28*4)/P28 -> 0.3033333333 | R28: =M28-$S28 -> 30800 | T28: =VLOOKUP($E28,タイヤホイールサイズ!$A:$E,3,FALSE) -> 1455 | U28: =INDEX('ホイール売価(国産)'!$A$4:$A$77,MATCH(T28,'ホイール売価(国産)'!$B$4:$B$77,0)) -> Z-meist VS-T7 | V28: =VLOOKUP($T28,'ホイール売価(国産)'!$B:$I,6,FALSE) -> 3780 | W28: =(V28+$K28)*4 -> 40200 | X28: =VLOOKUP($T28,'ホイール売価(国産)'!$B:$I,8,FALSE) -> 19000 | Y28: =$R28+X28 -> 49800 | Z28: =(Y28-W28)/Y28 -> 0.1927710843 | AA28: =Y28+(VLOOKUP($BF28,タイヤ条件サマリ!$I:$J,2,0)*4) -> 51800 | AB28: =(AA28-W28)/AA28 -> 0.2239382239 | AC28: =VLOOKUP($T28,タイヤ条件サマリ!$N:$O,2,0) -> 1600 | AD28: =AA28+AC28 -> 53400 | AE28: =(AD28-W28)/AD28 -> 0.2471910112 | AF28: =T28 -> 1455 | AG28: =INDEX('ホイール売価(国産)'!$A$81:$A$128,MATCH(AF28,'ホイール売価(国産)'!$B$81:$B$128,0)) -> Z-meist VS-1 BC | AH28: =VLOOKUP($AF28,'ホイール売価(国産)'!$B$81:$I$128,6,0) -> 3900 | AI28: =(AH28+$K28)*4 -> 40680 | AJ28: =VLOOKUP($AF28,'ホイール売価(国産)'!$B$81:$I$128,8,0) -> 25000 | AK28: =$R28+AJ28 -> 55800 | AL28: =(AK28-AI28)/AK28 -> 0.2709677419 | AM28: =AK28+(VLOOKUP($BF28,タイヤ条件サマリ!$I:$J,2,0)*4) -> 57800 | AN28: =(AM28-AI28)/AM28 -> 0.2961937716 | AO28: =AC28 -> 1600 | AP28: =AM28+AO28 -> 59400 | AQ28: =(AP28-AI28)/AP28 -> 0.3151515152 | AR28: =AF28 -> 1455 | AS28: =INDEX('ホイール売価(国産)'!$A$132:$A$159,MATCH(AR28,'ホイール売価(国産)'!$B$132:$B$159,0)) -> SMACK Valkyrie | AT28: =VLOOKUP(AR28,'ホイール売価(国産)'!$B$132:$I$159,6,0) -> 5720 | AU28: 47960 | AV28: =VLOOKUP(AR28,'ホイール売価(国産)'!$B$132:$I$159,8,0) -> 35000 | AW28: 65800 | AX28: 0.2711246201 | AY28: =AW28+(VLOOKUP($BF28,タイヤ条件サマリ!$I:$J,2,0)*4) -> 67800 | AZ28: 0.2926253687 | BA28: 1600 | BB28: 69400 | BC28: 0.3089337176 | BD28: 175 | BE28: 70 | BF28: 14 | BG28: =(BD28*(BE28/100)*2)+(BF28*25.4) -> 600.6 | BH28: 数量限定 | BI28: 正規特-8,000 | BL28: 1 | BM28: ベーシック;ミニバン | BN28: 17570141 | BO28: 1 | BQ28: =IF(OR(M28="",M28=0),"-",IF(ROUNDUP(M28,-4)>160000,10000,VLOOKUP(ROUNDUP(M28,-4),タイヤ条件サマリ!$R:$S,2,FALSE))) -> 4000
A29: BRIDGESTONE | D29: VRX 逆輸入 | E29: 185/70R14 | F29: 88S | H29: 15200 | J29: 17500 | K29: 6000 | L29: 0.3947368421 | M29: 34800 | N29: 0.5 | O29: 0.3103448276 | P29: 40000 | Q29: 0.4 | R29: =M29-$S29 -> 34800 | T29: =VLOOKUP($E29,タイヤホイールサイズ!$A:$E,3,FALSE) -> 1455 | U29: =INDEX('ホイール売価(国産)'!$A$4:$A$77,MATCH(T29,'ホイール売価(国産)'!$B$4:$B$77,0)) -> Z-meist VS-T7 | V29: =VLOOKUP($T29,'ホイール売価(国産)'!$B:$I,6,FALSE) -> 3780 | W29: 39120 | X29: =VLOOKUP($T29,'ホイール売価(国産)'!$B:$I,8,FALSE) -> 19000 | Y29: =$R29+X29 -> 53800 | Z29: =(Y29-W29)/Y29 -> 0.2728624535 | AA29: =Y29+(VLOOKUP($BF29,タイヤ条件サマリ!$I:$J,2,0)*4) -> 55800 | AB29: 0.2989247312 | AC29: =VLOOKUP($T29,タイヤ条件サマリ!$N:$O,2,0) -> 1600 | AD29: 57400 | AE29: 0.318466899 | AF29: =T29 -> 1455 | AG29: =INDEX('ホイール売価(国産)'!$A$81:$A$128,MATCH(AF29,'ホイール売価(国産)'!$B$81:$B$128,0)) -> Z-meist VS-1 BC | AH29: =VLOOKUP($AF29,'ホイール売価(国産)'!$B$81:$I$128,6,0) -> 3900 | AI29: =(AH29+$K29)*4 -> 39600 | AJ29: =VLOOKUP($AF29,'ホイール売価(国産)'!$B$81:$I$128,8,0) -> 25000 | AK29: =$R29+AJ29 -> 59800 | AL29: =(AK29-AI29)/AK29 -> 0.3377926421 | AM29: =AK29+(VLOOKUP($BF29,タイヤ条件サマリ!$I:$J,2,0)*4) -> 61800 | AN29: =(AM29-AI29)/AM29 -> 0.359223301 | AO29: =AC29 -> 1600 | AP29: =AM29+AO29 -> 63400 | AQ29: =(AP29-AI29)/AP29 -> 0.3753943218 | AR29: =AF29 -> 1455 | AS29: =INDEX('ホイール売価(国産)'!$A$132:$A$159,MATCH(AR29,'ホイール売価(国産)'!$B$132:$B$159,0)) -> SMACK Valkyrie | AT29: =VLOOKUP(AR29,'ホイール売価(国産)'!$B$132:$I$159,6,0) -> 5720 | AU29: 46880 | AV29: =VLOOKUP(AR29,'ホイール売価(国産)'!$B$132:$I$159,8,0) -> 35000 | AW29: 69800 | AX29: 0.3283667622 | AY29: =AW29+(VLOOKUP($BF29,タイヤ条件サマリ!$I:$J,2,0)*4) -> 71800 | AZ29: 0.3470752089 | BA29: 1600 | BB29: 73400 | BC29: 0.3613079019 | BD29: 185 | BE29: 70 | BF29: 14 | BG29: 614.6 | BH29: 数量限定 | BI29: 正規特-8,000 | BL29: 1 | BM29: ベーシック;ミニバン | BN29: 18570141 | BO29: 1 | BQ29: =IF(OR(M29="",M29=0),"-",IF(ROUNDUP(M29,-4)>160000,10000,VLOOKUP(ROUNDUP(M29,-4),タイヤ条件サマリ!$R:$S,2,FALSE))) -> 4000
A30: BRIDGESTONE | D30: VRX 逆輸入 | E30: 185/65R15 | F30: 88S | H30: 17700 | J30: 20400 | K30: 8130 | L30: 0.4593220339 | M30: 40800 | N30: 0.5 | O30: 0.2029411765 | P30: 46000 | Q30: 0.2930434783 | R30: 40800 | T30: =VLOOKUP($E30,タイヤホイールサイズ!$A:$E,3,FALSE) -> 1555 | U30: =INDEX('ホイール売価(国産)'!$A$4:$A$77,MATCH(T30,'ホイール売価(国産)'!$B$4:$B$77,0)) -> Z-meist VS-T7 | V30: =VLOOKUP($T30,'ホイール売価(国産)'!$B:$I,6,FALSE) -> 4400 | W30: 50120 | X30: =VLOOKUP($T30,'ホイール売価(国産)'!$B:$I,8,FALSE) -> 21000 | Y30: 61800 | Z30: 0.1889967638 | AA30: =Y30+(VLOOKUP($BF30,タイヤ条件サマリ!$I:$J,2,0)*4) -> 63800 | AB30: 0.2144200627 | AC30: =VLOOKUP($T30,タイヤ条件サマリ!$N:$O,2,0) -> 1600 | AD30: 65400 | AE30: 0.2336391437 | AF30: 1555 | AG30: =INDEX('ホイール売価(国産)'!$A$81:$A$128,MATCH(AF30,'ホイール売価(国産)'!$B$81:$B$128,0)) -> Z-meist VS-1 BC | AH30: =VLOOKUP($AF30,'ホイール売価(国産)'!$B$81:$I$128,6,0) -> 4500 | AI30: 50520 | AJ30: =VLOOKUP($AF30,'ホイール売価(国産)'!$B$81:$I$128,8,0) -> 27000 | AK30: 67800 | AL30: 0.2548672566 | AM30: =AK30+(VLOOKUP($BF30,タイヤ条件サマリ!$I:$J,2,0)*4) -> 69800 | AN30: 0.276217765 | AO30: 1600 | AP30: 71400 | AQ30: 0.2924369748 | AR30: 1555 | AS30: =INDEX('ホイール売価(国産)'!$A$132:$A$159,MATCH(AR30,'ホイール売価(国産)'!$B$132:$B$159,0)) -> SMACK Valkyrie | AT30: =VLOOKUP(AR30,'ホイール売価(国産)'!$B$132:$I$159,6,0) -> 6370 | AU30: 58000 | AV30: =VLOOKUP(AR30,'ホイール売価(国産)'!$B$132:$I$159,8,0) -> 37000 | AW30: 77800 | AX30: 0.2544987147 | AY30: =AW30+(VLOOKUP($BF30,タイヤ条件サマリ!$I:$J,2,0)*4) -> 79800 | AZ30: 0.2731829574 | BA30: 1600 | BB30: 81400 | BC30: 0.2874692875 | BD30: 185 | BE30: 65 | BF30: 15 | BG30: 621.5 | BH30: 数量限定 | BI30: 正規特-10,000 | BL30: 1 | BM30: ベーシック;ミニバン | BN30: 18565151 | BO30: 1 | BQ30: =IF(OR(M30="",M30=0),"-",IF(ROUNDUP(M30,-4)>160000,10000,VLOOKUP(ROUNDUP(M30,-4),タイヤ条件サマリ!$R:$S,2,FALSE))) -> 5000
A31: BRIDGESTONE | D31: VRX 逆輸入 | E31: 195/65R15 | F31: 91S | H31: 19500 | J31: 22500 | K31: 8890 | L31: 0.4558974359 | M31: 45800 | N31: 0.485 | O31: 0.223580786 | P31: 51000 | Q31: 0.302745098 | R31: 45800 | T31: =VLOOKUP($E31,タイヤホイールサイズ!$A:$E,3,FALSE) -> 1560 | U31: =INDEX('ホイール売価(国産)'!$A$4:$A$77,MATCH(T31,'ホイール売価(国産)'!$B$4:$B$77,0)) -> Z-meist VS-T7 | V31: =VLOOKUP($T31,'ホイール売価(国産)'!$B:$I,6,FALSE) -> 4450 | W31: 53360 | X31: =VLOOKUP($T31,'ホイール売価(国産)'!$B:$I,8,FALSE) -> 22000 | Y31: 67800 | Z31: 0.212979351 | AA31: =Y31+(VLOOKUP($BF31,タイヤ条件サマリ!$I:$J,2,0)*4) -> 69800 | AB31: 0.235530086 | AC31: =VLOOKUP($T31,タイヤ条件サマリ!$N:$O,2,0) -> 2000 | AD31: 71800 | AE31: 0.2568245125 | AF31: 1560 | AG31: =INDEX('ホイール売価(国産)'!$A$81:$A$128,MATCH(AF31,'ホイール売価(国産)'!$B$81:$B$128,0)) -> Z-meist VS-1 BC | AH31: =VLOOKUP($AF31,'ホイール売価(国産)'!$B$81:$I$128,6,0) -> 4670 | AI31: 54240 | AJ31: =VLOOKUP($AF31,'ホイール売価(国産)'!$B$81:$I$128,8,0) -> 28000 | AK31: 73800 | AL31: 0.2650406504 | AM31: =AK31+(VLOOKUP($BF31,タイヤ条件サマリ!$I:$J,2,0)*4) -> 75800 | AN31: 0.2844327177 | AO31: 2000 | AP31: 77800 | AQ31: 0.3028277635 | AR31: 1560 | AS31: =INDEX('ホイール売価(国産)'!$A$132:$A$159,MATCH(AR31,'ホイール売価(国産)'!$B$132:$B$159,0)) -> SMACK Valkyrie | AT31: =VLOOKUP(AR31,'ホイール売価(国産)'!$B$132:$I$159,6,0) -> 6500 | AU31: 61560 | AV31: =VLOOKUP(AR31,'ホイール売価(国産)'!$B$132:$I$159,8,0) -> 38000 | AW31: 83800 | AX31: 0.2653937947 | AY31: =AW31+(VLOOKUP($BF31,タイヤ条件サマリ!$I:$J,2,0)*4) -> 85800 | AZ31: 0.2825174825 | BA31: 2000 | BB31: 87800 | BC31: 0.2988610478 | BD31: 195 | BE31: 65 | BF31: 15 | BG31: 634.5 | BH31: 数量限定 | BI31: 正規特-10,000 | BL31: 1 | BM31: ベーシック;ミニバン | BN31: 19565151 | BO31: 1 | BQ31: =IF(OR(M31="",M31=0),"-",IF(ROUNDUP(M31,-4)>160000,10000,VLOOKUP(ROUNDUP(M31,-4),タイヤ条件サマリ!$R:$S,2,FALSE))) -> 5000
A32: BRIDGESTONE | D32: VRX 逆輸入 | E32: 205/55R16 | F32: 91S | H32: 32500 | J32: 37400 | K32: 11760 | L32: 0.3618461538 | M32: 80800 | N32: 0.46 | O32: 0.4178217822 | P32: 86000 | Q32: 0.4530232558 | R32: 80800 | T32: =VLOOKUP($E32,タイヤホイールサイズ!$A:$E,3,FALSE) -> 1665 | U32: =INDEX('ホイール売価(国産)'!$A$4:$A$77,MATCH(T32,'ホイール売価(国産)'!$B$4:$B$77,0)) -> Z-meist VS-1 | V32: =VLOOKUP($T32,'ホイール売価(国産)'!$B:$I,6,FALSE) -> 4610 | W32: 65480 | X32: =VLOOKUP($T32,'ホイール売価(国産)'!$B:$I,8,FALSE) -> 23000 | Y32: 103800 | Z32: 0.3691714836 | AA32: =Y32+(VLOOKUP($BF32,タイヤ条件サマリ!$I:$J,2,0)*4) -> 105800 | AB32: 0.3810964083 | AC32: =VLOOKUP($T32,タイヤ条件サマリ!$N:$O,2,0) -> 2000 | AD32: 107800 | AE32: 0.3925788497 | AF32: 1665 | AG32: =INDEX('ホイール売価(国産)'!$A$81:$A$128,MATCH(AF32,'ホイール売価(国産)'!$B$81:$B$128,0)) -> Z-meist VS-1 BC | AH32: =VLOOKUP($AF32,'ホイール売価(国産)'!$B$81:$I$128,6,0) -> 5380 | AI32: 68560 | AJ32: =VLOOKUP($AF32,'ホイール売価(国産)'!$B$81:$I$128,8,0) -> 31000 | AK32: 111800 | AL32: 0.3867620751 | AM32: =AK32+(VLOOKUP($BF32,タイヤ条件サマリ!$I:$J,2,0)*4) -> 113800 | AN32: 0.3975395431 | AO32: 2000 | AP32: 115800 | AQ32: 0.4079447323 | AR32: 1665 | AS32: =INDEX('ホイール売価(国産)'!$A$132:$A$159,MATCH(AR32,'ホイール売価(国産)'!$B$132:$B$159,0)) -> SMACK Valkyrie | AT32: =VLOOKUP(AR32,'ホイール売価(国産)'!$B$132:$I$159,6,0) -> 7410 | AU32: 76680 | AV32: =VLOOKUP(AR32,'ホイール売価(国産)'!$B$132:$I$159,8,0) -> 43000 | AW32: 123800 | AX32: 0.3806138934 | AY32: =AW32+(VLOOKUP($BF32,タイヤ条件サマリ!$I:$J,2,0)*4) -> 125800 | AZ32: 0.3904610493 | BA32: 2000 | BB32: 127800 | BC32: 0.4 | BD32: 205 | BE32: 55 | BF32: 16 | BG32: 631.9 | BH32: 数量限定 | BI32: 正規特-12,000 | BL32: 1 | BM32: ベーシック;ミニバン | BN32: 20555161 | BO32: 1 | BQ32: =IF(OR(M32="",M32=0),"-",IF(ROUNDUP(M32,-4)>160000,10000,VLOOKUP(ROUNDUP(M32,-4),タイヤ条件サマリ!$R:$S,2,FALSE))) -> 6000
A33: BRIDGESTONE | D33: VRX 逆輸入 | E33: 205/60R16 | F33: 92S | H33: 27400 | J33: 31600 | K33: 10910 | L33: 0.3981751825 | M33: 65800 | N33: 0.48 | O33: 0.3367781155 | P33: 71000 | Q33: 0.3853521127 | R33: 65800 | T33: =VLOOKUP($E33,タイヤホイールサイズ!$A:$E,3,FALSE) -> 1665 | U33: =INDEX('ホイール売価(国産)'!$A$4:$A$77,MATCH(T33,'ホイール売価(国産)'!$B$4:$B$77,0)) -> Z-meist VS-1 | V33: =VLOOKUP($T33,'ホイール売価(国産)'!$B:$I,6,FALSE) -> 4610 | W33: 62080 | X33: =VLOOKUP($T33,'ホイール売価(国産)'!$B:$I,8,FALSE) -> 23000 | Y33: 88800 | Z33: 0.3009009009 | AA33: =Y33+(VLOOKUP($BF33,タイヤ条件サマリ!$I:$J,2,0)*4) -> 90800 | AB33: 0.3162995595 | AC33: =VLOOKUP($T33,タイヤ条件サマリ!$N:$O,2,0) -> 2000 | AD33: 92800 | AE33: 0.3310344828 | AF33: 1665 | AG33: =INDEX('ホイール売価(国産)'!$A$81:$A$128,MATCH(AF33,'ホイール売価(国産)'!$B$81:$B$128,0)) -> Z-meist VS-1 BC | AH33: =VLOOKUP($AF33,'ホイール売価(国産)'!$B$81:$I$128,6,0) -> 5380 | AI33: 65160 | AJ33: =VLOOKUP($AF33,'ホイール売価(国産)'!$B$81:$I$128,8,0) -> 31000 | AK33: 96800 | AL33: 0.3268595041 | AM33: =AK33+(VLOOKUP($BF33,タイヤ条件サマリ!$I:$J,2,0)*4) -> 98800 | AN33: 0.34048583 | AO33: 2000 | AP33: 100800 | AQ33: 0.3535714286 | AR33: 1665 | AS33: =INDEX('ホイール売価(国産)'!$A$132:$A$159,MATCH(AR33,'ホイール売価(国産)'!$B$132:$B$159,0)) -> SMACK Valkyrie | AT33: =VLOOKUP(AR33,'ホイール売価(国産)'!$B$132:$I$159,6,0) -> 7410 | AU33: 73280 | AV33: =VLOOKUP(AR33,'ホイール売価(国産)'!$B$132:$I$159,8,0) -> 43000 | AW33: 108800 | AX33: 0.3264705882 | AY33: =AW33+(VLOOKUP($BF33,タイヤ条件サマリ!$I:$J,2,0)*4) -> 110800 | AZ33: 0.3386281588 | BA33: 2000 | BB33: 112800 | BC33: 0.3503546099 | BD33: 205 | BE33: 60 | BF33: 16 | BG33: 652.4 | BH33: 数量限定 | BI33: 正規特-12,000 | BL33: 1 | BM33: ベーシック;ミニバン | BN33: 20560161 | BO33: 1 | BQ33: =IF(OR(M33="",M33=0),"-",IF(ROUNDUP(M33,-4)>160000,10000,VLOOKUP(ROUNDUP(M33,-4),タイヤ条件サマリ!$R:$S,2,FALSE))) -> 5000
A34: BRIDGESTONE | D34: VRX 逆輸入 | E34: 215/65R16 | F34: 98S | H34: 27200 | J34: 31300 | K34: 11470 | L34: 0.4216911765 | M34: 65800 | N34: 0.47 | O34: 0.3027355623 | P34: 71000 | Q34: 0.3538028169 | R34: 65800 | T34: =VLOOKUP($E34,タイヤホイールサイズ!$A:$E,3,FALSE) -> 1665 | U34: =INDEX('ホイール売価(国産)'!$A$4:$A$77,MATCH(T34,'ホイール売価(国産)'!$B$4:$B$77,0)) -> Z-meist VS-1 | V34: =VLOOKUP($T34,'ホイール売価(国産)'!$B:$I,6,FALSE) -> 4610 | W34: 64320 | X34: =VLOOKUP($T34,'ホイール売価(国産)'!$B:$I,8,FALSE) -> 23000 | Y34: 88800 | Z34: 0.2756756757 | AA34: =Y34+(VLOOKUP($BF34,タイヤ条件サマリ!$I:$J,2,0)*4) -> 90800 | AB34: 0.2916299559 | AC34: =VLOOKUP($T34,タイヤ条件サマリ!$N:$O,2,0) -> 2000 | AD34: 92800 | AE34: 0.3068965517 | AF34: 1665 | AG34: =INDEX('ホイール売価(国産)'!$A$81:$A$128,MATCH(AF34,'ホイール売価(国産)'!$B$81:$B$128,0)) -> Z-meist VS-1 BC | AH34: =VLOOKUP($AF34,'ホイール売価(国産)'!$B$81:$I$128,6,0) -> 5380 | AI34: 67400 | AJ34: =VLOOKUP($AF34,'ホイール売価(国産)'!$B$81:$I$128,8,0) -> 31000 | AK34: 96800 | AL34: 0.3037190083 | AM34: =AK34+(VLOOKUP($BF34,タイヤ条件サマリ!$I:$J,2,0)*4) -> 98800 | AN34: 0.3178137652 | AO34: 2000 | AP34: 100800 | AQ34: 0.3313492063 | AR34: 1665 | AS34: =INDEX('ホイール売価(国産)'!$A$132:$A$159,MATCH(AR34,'ホイール売価(国産)'!$B$132:$B$159,0)) -> SMACK Valkyrie | AT34: =VLOOKUP(AR34,'ホイール売価(国産)'!$B$132:$I$159,6,0) -> 7410 | AU34: 75520 | AV34: =VLOOKUP(AR34,'ホイール売価(国産)'!$B$132:$I$159,8,0) -> 43000 | AW34: 108800 | AX34: 0.3058823529 | AY34: =AW34+(VLOOKUP($BF34,タイヤ条件サマリ!$I:$J,2,0)*4) -> 110800 | AZ34: 0.3184115523 | BA34: 2000 | BB34: 112800 | BC34: 0.3304964539 | BD34: 215 | BE34: 65 | BF34: 16 | BG34: 685.9 | BH34: 数量限定 | BI34: 正規特-12,000 | BL34: 1 | BM34: ベーシック;ミニバン | BN34: 21565161 | BO34: 1 | BQ34: =IF(OR(M34="",M34=0),"-",IF(ROUNDUP(M34,-4)>160000,10000,VLOOKUP(ROUNDUP(M34,-4),タイヤ条件サマリ!$R:$S,2,FALSE))) -> 5000
A35: BRIDGESTONE | D35: VRX 逆輸入 | E35: 215/55R17 | F35: 94S | H35: 36900 | J35: 42500 | K35: 14710 | L35: 0.3986449864 | M35: 89800 | N35: 0.47 | O35: 0.344766147 | P35: 95000 | Q35: 0.3806315789 | R35: 89800 | T35: =VLOOKUP($E35,タイヤホイールサイズ!$A:$E,3,FALSE) -> 1770 | U35: =INDEX('ホイール売価(国産)'!$A$4:$A$77,MATCH(T35,'ホイール売価(国産)'!$B$4:$B$77,0)) -> Z-meist VS-1 | V35: =VLOOKUP($T35,'ホイール売価(国産)'!$B:$I,6,FALSE) -> 5480 | W35: 80760 | X35: =VLOOKUP($T35,'ホイール売価(国産)'!$B:$I,8,FALSE) -> 27000 | Y35: 116800 | Z35: 0.3085616438 | AA35: =Y35+(VLOOKUP($BF35,タイヤ条件サマリ!$I:$J,2,0)*4) -> 118800 | AB35: 0.3202020202 | AC35: =VLOOKUP($T35,タイヤ条件サマリ!$N:$O,2,0) -> 2000 | AD35: 120800 | AE35: 0.3314569536 | AF35: 1770 | AG35: =INDEX('ホイール売価(国産)'!$A$81:$A$128,MATCH(AF35,'ホイール売価(国産)'!$B$81:$B$128,0)) -> Z-meist VS-1 BC | AH35: =VLOOKUP($AF35,'ホイール売価(国産)'!$B$81:$I$128,6,0) -> 6300 | AI35: 84040 | AJ35: =VLOOKUP($AF35,'ホイール売価(国産)'!$B$81:$I$128,8,0) -> 35000 | AK35: 124800 | AL35: 0.3266025641 | AM35: =AK35+(VLOOKUP($BF35,タイヤ条件サマリ!$I:$J,2,0)*4) -> 126800 | AN35: 0.3372239748 | AO35: 2000 | AP35: 128800 | AQ35: 0.347515528 | AR35: 1770 | AS35: =INDEX('ホイール売価(国産)'!$A$132:$A$159,MATCH(AR35,'ホイール売価(国産)'!$B$132:$B$159,0)) -> SMACK Valkyrie | AT35: =VLOOKUP(AR35,'ホイール売価(国産)'!$B$132:$I$159,6,0) -> 8840 | AU35: 94200 | AV35: =VLOOKUP(AR35,'ホイール売価(国産)'!$B$132:$I$159,8,0) -> 50000 | AW35: 139800 | AX35: 0.3261802575 | AY35: =AW35+(VLOOKUP($BF35,タイヤ条件サマリ!$I:$J,2,0)*4) -> 141800 | AZ35: 0.3356840621 | BA35: 2000 | BB35: 143800 | BC35: 0.3449235049 | BD35: 215 | BE35: 55 | BF35: 17 | BG35: 668.3 | BH35: 数量限定 | BI35: 正規特-15,000 | BL35: 1 | BM35: ベーシック;ミニバン | BN35: 21555171 | BO35: 1 | BQ35: =IF(OR(M35="",M35=0),"-",IF(ROUNDUP(M35,-4)>160000,10000,VLOOKUP(ROUNDUP(M35,-4),タイヤ条件サマリ!$R:$S,2,FALSE))) -> 6000
A36: BRIDGESTONE | D36: VRX 逆輸入 | E36: 215/60R17 | F36: 96S | H36: 31200 | J36: 35900 | K36: 14710 | L36: 0.471474359 | M36: 73800 | N36: 0.485 | O36: 0.2027100271 | P36: 79000 | Q36: 0.2551898734 | R36: 73800 | T36: =VLOOKUP($E36,タイヤホイールサイズ!$A:$E,3,FALSE) -> 1770 | U36: =INDEX('ホイール売価(国産)'!$A$4:$A$77,MATCH(T36,'ホイール売価(国産)'!$B$4:$B$77,0)) -> Z-meist VS-1 | V36: =VLOOKUP($T36,'ホイール売価(国産)'!$B:$I,6,FALSE) -> 5480 | W36: 80760 | X36: =VLOOKUP($T36,'ホイール売価(国産)'!$B:$I,8,FALSE) -> 27000 | Y36: 100800 | Z36: 0.1988095238 | AA36: =Y36+(VLOOKUP($BF36,タイヤ条件サマリ!$I:$J,2,0)*4) -> 102800 | AB36: 0.2143968872 | AC36: =VLOOKUP($T36,タイヤ条件サマリ!$N:$O,2,0) -> 2000 | AD36: 104800 | AE36: 0.229389313 | AF36: 1770 | AG36: =INDEX('ホイール売価(国産)'!$A$81:$A$128,MATCH(AF36,'ホイール売価(国産)'!$B$81:$B$128,0)) -> Z-meist VS-1 BC | AH36: =VLOOKUP($AF36,'ホイール売価(国産)'!$B$81:$I$128,6,0) -> 6300 | AI36: 84040 | AJ36: =VLOOKUP($AF36,'ホイール売価(国産)'!$B$81:$I$128,8,0) -> 35000 | AK36: 108800 | AL36: 0.2275735294 | AM36: =AK36+(VLOOKUP($BF36,タイヤ条件サマリ!$I:$J,2,0)*4) -> 110800 | AN36: 0.2415162455 | AO36: 2000 | AP36: 112800 | AQ36: 0.254964539 | AR36: 1770 | AS36: =INDEX('ホイール売価(国産)'!$A$132:$A$159,MATCH(AR36,'ホイール売価(国産)'!$B$132:$B$159,0)) -> SMACK Valkyrie | AT36: =VLOOKUP(AR36,'ホイール売価(国産)'!$B$132:$I$159,6,0) -> 8840 | AU36: 94200 | AV36: =VLOOKUP(AR36,'ホイール売価(国産)'!$B$132:$I$159,8,0) -> 50000 | AW36: 123800 | AX36: 0.239095315 | AY36: =AW36+(VLOOKUP($BF36,タイヤ条件サマリ!$I:$J,2,0)*4) -> 125800 | AZ36: 0.2511923688 | BA36: 2000 | BB36: 127800 | BC36: 0.2629107981 | BD36: 215 | BE36: 60 | BF36: 17 | BG36: 689.8 | BH36: 数量限定 | BI36: 正規特-15,000 | BL36: 1 | BM36: ベーシック;ミニバン | BN36: 21560171 | BO36: 1 | BQ36: =IF(OR(M36="",M36=0),"-",IF(ROUNDUP(M36,-4)>160000,10000,VLOOKUP(ROUNDUP(M36,-4),タイヤ条件サマリ!$R:$S,2,FALSE))) -> 6000
A37: BRIDGESTONE | D37: DMV2 逆輸入 | E37: 225/60R17 | F37: 99Q | H37: 26000 | J37: 29900 | K37: 13410 | L37: 0.5157692308 | M37: 74800 | N37: 0.37 | O37: 0.2828877005 | P37: 80000 | Q37: 0.3295 | R37: 74800 | T37: =VLOOKUP($E37,タイヤホイールサイズ!$A:$E,3,FALSE) -> 1770 | U37: =INDEX('ホイール売価(国産)'!$A$4:$A$77,MATCH(T37,'ホイール売価(国産)'!$B$4:$B$77,0)) -> Z-meist VS-1 | V37: =VLOOKUP($T37,'ホイール売価(国産)'!$B:$I,6,FALSE) -> 5480 | W37: 75560 | X37: =VLOOKUP($T37,'ホイール売価(国産)'!$B:$I,8,FALSE) -> 27000 | Y37: 101800 | Z37: 0.2577603143 | AA37: =Y37+(VLOOKUP($BF37,タイヤ条件サマリ!$I:$J,2,0)*4) -> 103800 | AB37: 0.272061657 | AC37: =VLOOKUP($T37,タイヤ条件サマリ!$N:$O,2,0) -> 2000 | AD37: 105800 | AE37: 0.2858223062 | AF37: 1770 | AG37: =INDEX('ホイール売価(国産)'!$A$81:$A$128,MATCH(AF37,'ホイール売価(国産)'!$B$81:$B$128,0)) -> Z-meist VS-1 BC | AH37: =VLOOKUP($AF37,'ホイール売価(国産)'!$B$81:$I$128,6,0) -> 6300 | AI37: 78840 | AJ37: =VLOOKUP($AF37,'ホイール売価(国産)'!$B$81:$I$128,8,0) -> 35000 | AK37: 109800 | AL37: 0.2819672131 | AM37: =AK37+(VLOOKUP($BF37,タイヤ条件サマリ!$I:$J,2,0)*4) -> 111800 | AN37: 0.2948121646 | AO37: 2000 | AP37: 113800 | AQ37: 0.3072056239 | AR37: 1770 | AS37: =INDEX('ホイール売価(国産)'!$A$132:$A$159,MATCH(AR37,'ホイール売価(国産)'!$B$132:$B$159,0)) -> SMACK Valkyrie | AT37: =VLOOKUP(AR37,'ホイール売価(国産)'!$B$132:$I$159,6,0) -> 8840 | AU37: =(AT37+$K37)*4 -> 89000 | AV37: =VLOOKUP(AR37,'ホイール売価(国産)'!$B$132:$I$159,8,0) -> 50000 | AW37: =$R37+AV37 -> 124800 | AX37: =(AW37-AU37)/AW37 -> 0.2868589744 | AY37: =AW37+(VLOOKUP($BF37,タイヤ条件サマリ!$I:$J,2,0)*4) -> 126800 | AZ37: =(AY37-AU37)/AY37 -> 0.2981072555 | BA37: =AC37 -> 2000 | BB37: 128800 | BC37: =(BB37-AU37)/BB37 -> 0.3090062112 | BD37: 225 | BE37: 60 | BF37: 17 | BG37: 701.8 | BH37: 数量限定 | BI37: 正規通常-27,000 | BL37: 1 | BM37: ベーシック;ミニバン | BN37: 22560173 | BO37: 3 | BQ37: =IF(OR(M37="",M37=0),"-",IF(ROUNDUP(M37,-4)>160000,10000,VLOOKUP(ROUNDUP(M37,-4),タイヤ条件サマリ!$R:$S,2,FALSE))) -> 6000
A38: BRIDGESTONE | D38: DMV2 逆輸入 | E38: 225/65R17 | F38: 102Q | H38: 24400 | J38: 28100 | K38: 12650 | L38: 0.518442623 | M38: 68800 | N38: 0.39 | O38: 0.2645348837 | P38: 74000 | Q38: 0.3162162162 | R38: 68800 | T38: =VLOOKUP($E38,タイヤホイールサイズ!$A:$E,3,FALSE) -> 1770 | U38: =INDEX('ホイール売価(国産)'!$A$4:$A$77,MATCH(T38,'ホイール売価(国産)'!$B$4:$B$77,0)) -> Z-meist VS-1 | V38: =VLOOKUP($T38,'ホイール売価(国産)'!$B:$I,6,FALSE) -> 5480 | W38: 72520 | X38: =VLOOKUP($T38,'ホイール売価(国産)'!$B:$I,8,FALSE) -> 27000 | Y38: 95800 | Z38: 0.243006263 | AA38: =Y38+(VLOOKUP($BF38,タイヤ条件サマリ!$I:$J,2,0)*4) -> 97800 | AB38: 0.2584867076 | AC38: =VLOOKUP($T38,タイヤ条件サマリ!$N:$O,2,0) -> 2000 | AD38: 99800 | AE38: 0.2733466934 | AF38: 1770 | AG38: =INDEX('ホイール売価(国産)'!$A$81:$A$128,MATCH(AF38,'ホイール売価(国産)'!$B$81:$B$128,0)) -> Z-meist VS-1 BC | AH38: =VLOOKUP($AF38,'ホイール売価(国産)'!$B$81:$I$128,6,0) -> 6300 | AI38: 75800 | AJ38: =VLOOKUP($AF38,'ホイール売価(国産)'!$B$81:$I$128,8,0) -> 35000 | AK38: 103800 | AL38: 0.2697495183 | AM38: =AK38+(VLOOKUP($BF38,タイヤ条件サマリ!$I:$J,2,0)*4) -> 105800 | AN38: 0.2835538752 | AO38: 2000 | AP38: 107800 | AQ38: 0.2968460111 | AR38: 1770 | AS38: =INDEX('ホイール売価(国産)'!$A$132:$A$159,MATCH(AR38,'ホイール売価(国産)'!$B$132:$B$159,0)) -> SMACK Valkyrie | AT38: =VLOOKUP(AR38,'ホイール売価(国産)'!$B$132:$I$159,6,0) -> 8840 | AU38: =(AT38+$K38)*4 -> 85960 | AV38: =VLOOKUP(AR38,'ホイール売価(国産)'!$B$132:$I$159,8,0) -> 50000 | AW38: =$R38+AV38 -> 118800 | AX38: =(AW38-AU38)/AW38 -> 0.2764309764 | AY38: =AW38+(VLOOKUP($BF38,タイヤ条件サマリ!$I:$J,2,0)*4) -> 120800 | AZ38: =(AY38-AU38)/AY38 -> 0.288410596 | BA38: =AC38 -> 2000 | BB38: 122800 | BC38: =(BB38-AU38)/BB38 -> 0.3 | BD38: 225 | BE38: 65 | BF38: 17 | BG38: 724.3 | BH38: 数量限定 | BI38: 正規通常-27,000 | BL38: 1 | BM38: ベーシック;ミニバン | BN38: 22565173 | BO38: 3 | BQ38: =IF(OR(M38="",M38=0),"-",IF(ROUNDUP(M38,-4)>160000,10000,VLOOKUP(ROUNDUP(M38,-4),タイヤ条件サマリ!$R:$S,2,FALSE))) -> 5000
A39: BRIDGESTONE | D39: DMV2 逆輸入 | E39: 225/55R18 | F39: 98Q | H39: 33500 | J39: 38600 | K39: 16110 | L39: 0.4808955224 | M39: 95800 | N39: 0.38 | O39: 0.327348643 | P39: 101000 | Q39: 0.361980198 | R39: 95800 | T39: =VLOOKUP($E39,タイヤホイールサイズ!$A:$E,3,FALSE) -> 1875 | U39: =INDEX('ホイール売価(国産)'!$A$4:$A$77,MATCH(T39,'ホイール売価(国産)'!$B$4:$B$77,0)) -> Z-meist VS-1 | V39: =VLOOKUP($T39,'ホイール売価(国産)'!$B:$I,6,FALSE) -> 6900 | W39: 92040 | X39: =VLOOKUP($T39,'ホイール売価(国産)'!$B:$I,8,FALSE) -> 34000 | Y39: 129800 | Z39: 0.2909090909 | AA39: =Y39+(VLOOKUP($BF39,タイヤ条件サマリ!$I:$J,2,0)*4) -> 131800 | AB39: 0.3016691958 | AC39: =VLOOKUP($T39,タイヤ条件サマリ!$N:$O,2,0) -> 2000 | AD39: 133800 | AE39: 0.3121076233 | AF39: 1875 | AG39: =INDEX('ホイール売価(国産)'!$A$81:$A$128,MATCH(AF39,'ホイール売価(国産)'!$B$81:$B$128,0)) -> Z-meist VS-1 BC | AH39: =VLOOKUP($AF39,'ホイール売価(国産)'!$B$81:$I$128,6,0) -> 7770 | AI39: 95520 | AJ39: =VLOOKUP($AF39,'ホイール売価(国産)'!$B$81:$I$128,8,0) -> 42000 | AK39: 137800 | AL39: 0.3068214804 | AM39: =AK39+(VLOOKUP($BF39,タイヤ条件サマリ!$I:$J,2,0)*4) -> 139800 | AN39: 0.3167381974 | AO39: 2000 | AP39: 141800 | AQ39: 0.3263751763 | AR39: 1870 | AS39: =INDEX('ホイール売価(国産)'!$A$132:$A$159,MATCH(AR39,'ホイール売価(国産)'!$B$132:$B$159,0)) -> SMACK Valkyrie | AT39: =VLOOKUP(AR39,'ホイール売価(国産)'!$B$132:$I$159,6,0) -> 10920 | AU39: =(AT39+$K39)*4 -> 108120 | AV39: =VLOOKUP(AR39,'ホイール売価(国産)'!$B$132:$I$159,8,0) -> 59000 | AW39: =$R39+AV39 -> 154800 | AX39: =(AW39-AU39)/AW39 -> 0.3015503876 | AY39: =AW39+(VLOOKUP($BF39,タイヤ条件サマリ!$I:$J,2,0)*4) -> 156800 | AZ39: =(AY39-AU39)/AY39 -> 0.3104591837 | BA39: =AC39 -> 2000 | BB39: 158800 | BC39: =(BB39-AU39)/BB39 -> 0.3191435768 | BD39: 225 | BE39: 55 | BF39: 18 | BG39: 704.7 | BH39: 数量限定 | BI39: 正規通常-35,000 | BL39: 1 | BM39: ベーシック;ミニバン | BN39: 22555183 | BO39: 3 | BQ39: =IF(OR(M39="",M39=0),"-",IF(ROUNDUP(M39,-4)>160000,10000,VLOOKUP(ROUNDUP(M39,-4),タイヤ条件サマリ!$R:$S,2,FALSE))) -> 6000
A40: BRIDGESTONE | D40: DMV2 逆輸入 | E40: 235/55R18 | F40: 100Q | H40: 34600 | J40: 39800 | K40: 16960 | L40: 0.4901734104 | M40: 99800 | N40: 0.37 | O40: 0.320240481 | P40: 105000 | Q40: 0.3539047619 | R40: 99800 | T40: =VLOOKUP($E40,タイヤホイールサイズ!$A:$E,3,FALSE) -> 1875 | U40: =INDEX('ホイール売価(国産)'!$A$4:$A$77,MATCH(T40,'ホイール売価(国産)'!$B$4:$B$77,0)) -> Z-meist VS-1 | V40: =VLOOKUP($T40,'ホイール売価(国産)'!$B:$I,6,FALSE) -> 6900 | W40: 95440 | X40: =VLOOKUP($T40,'ホイール売価(国産)'!$B:$I,8,FALSE) -> 34000 | Y40: 133800 | Z40: 0.286696562 | AA40: =Y40+(VLOOKUP($BF40,タイヤ条件サマリ!$I:$J,2,0)*4) -> 135800 | AB40: 0.2972017673 | AC40: =VLOOKUP($T40,タイヤ条件サマリ!$N:$O,2,0) -> 2000 | AD40: 137800 | AE40: 0.3074020319 | AF40: 1875 | AG40: =INDEX('ホイール売価(国産)'!$A$81:$A$128,MATCH(AF40,'ホイール売価(国産)'!$B$81:$B$128,0)) -> Z-meist VS-1 BC | AH40: =VLOOKUP($AF40,'ホイール売価(国産)'!$B$81:$I$128,6,0) -> 7770 | AI40: 98920 | AJ40: =VLOOKUP($AF40,'ホイール売価(国産)'!$B$81:$I$128,8,0) -> 42000 | AK40: 141800 | AL40: 0.3023977433 | AM40: =AK40+(VLOOKUP($BF40,タイヤ条件サマリ!$I:$J,2,0)*4) -> 143800 | AN40: 0.3121001391 | AO40: 2000 | AP40: 145800 | AQ40: 0.3215363512 | AR40: 1870 | AS40: =INDEX('ホイール売価(国産)'!$A$132:$A$159,MATCH(AR40,'ホイール売価(国産)'!$B$132:$B$159,0)) -> SMACK Valkyrie | AT40: =VLOOKUP(AR40,'ホイール売価(国産)'!$B$132:$I$159,6,0) -> 10920 | AU40: =(AT40+$K40)*4 -> 111520 | AV40: =VLOOKUP(AR40,'ホイール売価(国産)'!$B$132:$I$159,8,0) -> 59000 | AW40: =$R40+AV40 -> 158800 | AX40: =(AW40-AU40)/AW40 -> 0.2977329975 | AY40: =AW40+(VLOOKUP($BF40,タイヤ条件サマリ!$I:$J,2,0)*4) -> 160800 | AZ40: =(AY40-AU40)/AY40 -> 0.3064676617 | BA40: =AC40 -> 2000 | BB40: 162800 | BC40: =(BB40-AU40)/BB40 -> 0.314987715 | BD40: 235 | BE40: 55 | BF40: 18 | BG40: 715.7 | BH40: 数量限定 | BI40: 正規通常-35,000 | BL40: 1 | BM40: ベーシック;ミニバン | BN40: 23555183 | BO40: 3 | BQ40: =IF(OR(M40="",M40=0),"-",IF(ROUNDUP(M40,-4)>160000,10000,VLOOKUP(ROUNDUP(M40,-4),タイヤ条件サマリ!$R:$S,2,FALSE))) -> 6000
A41: BRIDGESTONE | B41: 4961914458515 | C41: PXR01167 | D41: VRX2 | E41: 135/80R12 | F41: 68Q | H41: 7200 | I41: 8350 | K41: =ROUND(H41*$L41,-1) -> 5180 | L41: =タイヤ条件サマリ!$C$3 -> 0.72 | M41: =ROUND(I41*(1-$N41)*4,-3)-200 -> 27800 | N41: =タイヤ条件サマリ!$E$3 -> 0.15 | O41: =(M41-(K41*4))/M41 -> 0.254676259 | P41: =M41+(IF(OR($G41="SSR",$G41="ZP",$G41="r-f",$G41="RFT"),VLOOKUP($BF41,タイヤ条件サマリ!$I$33:$J$38,2,0),VLOOKUP($BF41,タイヤ条件サマリ!$I:$J,2,0))+$E$2+$F$2+$G$2)*4 -> 33000 | Q41: =(P41-(K41*4))/P41 -> 0.3721212121 | R41: =M41-$S41 -> 27800 | T41: =VLOOKUP($E41,タイヤホイールサイズ!$A:$E,3,FALSE) -> 1240v | U41: =INDEX('ホイール売価(国産)'!$A$4:$A$77,MATCH(T41,'ホイール売価(国産)'!$B$4:$B$77,0)) -> YF-010 | V41: =VLOOKUP($T41,'ホイール売価(国産)'!$B:$I,6,FALSE) -> 1900 | W41: =(V41+$K41)*4 -> 28320 | X41: =VLOOKUP($T41,'ホイール売価(国産)'!$B:$I,8,FALSE) -> 9000 | Y41: =$R41+X41 -> 36800 | Z41: 0.2304347826 | AA41: =Y41+IF(OR($G41="SSR",$G41="ZP",$G41="r-f",$G41="RFT"),VLOOKUP($BF41,タイヤ条件サマリ!$I$33:$J$38,2,0),VLOOKUP($BF41,タイヤ条件サマリ!$I:$J,2,0))*4 -> 38800 | AB41: 0.2701030928 | AC41: =VLOOKUP($T41,タイヤ条件サマリ!$N:$O,2,0) -> 2400 | AD41: 41200 | AE41: 0.3126213592 | AF41: =$T41 -> 1240v | AG41: =INDEX('ホイール売価(国産)'!$A$81:$A$128,MATCH(AF41,'ホイール売価(国産)'!$B$81:$B$128,0)) -> Z-meist VS-T7 | AH41: =VLOOKUP($AF41,'ホイール売価(国産)'!$B$81:$I$128,6,0) -> 3000 | AI41: =(AH41+$K41)*4 -> 32720 | AJ41: =VLOOKUP($AF41,'ホイール売価(国産)'!$B$81:$I$128,8,0) -> 14000 | AK41: =$R41+AJ41 -> 41800 | AL41: =(AK41-AI41)/AK41 -> 0.2172248804 | AM41: =AK41+IF(OR($G41="SSR",$G41="ZP",$G41="r-f",$G41="RFT"),VLOOKUP($BF41,タイヤ条件サマリ!$I$33:$J$38,2,0),VLOOKUP($BF41,タイヤ条件サマリ!$I:$J,2,0))*4 -> 43800 | AN41: =(AM41-AI41)/AM41 -> 0.2529680365 | AO41: =AC41 -> 2400 | AP41: =AM41+AO41 -> 46200 | AQ41: =(AP41-AI41)/AP41 -> 0.2917748918 | AR41: =$T41 -> 1240v | AS41: =INDEX('ホイール売価(国産)'!$A$132:$A$171,MATCH(AR41,'ホイール売価(国産)'!$B$132:$B$171,0)) -> EuroSpeed S810 | AT41: =VLOOKUP($AR41,'ホイール売価(国産)'!$B$132:$I$171,6,0) -> 3200 | AU41: =(AT41+$K41)*4 -> 33520 | AV41: =VLOOKUP($AR41,'ホイール売価(国産)'!$B$132:$I$171,8,0) -> 18000 | AW41: =$R41+AV41 -> 45800 | AX41: =(AW41-AU41)/AW41 -> 0.2681222707 | AY41: =AW41+IF(OR($G41="SSR",$G41="ZP",$G41="r-f",$G41="RFT"),VLOOKUP($BF41,タイヤ条件サマリ!$I$33:$J$38,2,0),VLOOKUP($BF41,タイヤ条件サマリ!$I:$J,2,0))*4 -> 47800 | AZ41: =(AY41-AU41)/AY41 -> 0.2987447699 | BA41: =AC41 -> 2400 | BB41: 50200 | BC41: =(BB41-AU41)/BB41 -> 0.3322709163 | BD41: 135 | BE41: 80 | BF41: 12 | BG41: 520.8 | BH41: 本部発注価格 | BL41: 1 | BM41: ベーシック;ミニバン | BN41: 13580123 | BO41: 3 | BQ41: =IF(OR(M41="",M41=0),"-",IF(ROUNDUP(M41,-4)>160000,10000,VLOOKUP(ROUNDUP(M41,-4),タイヤ条件サマリ!$R:$S,2,FALSE))) -> 4000
A42: BRIDGESTONE | B42: 4961914458539 | C42: PXR01169 | D42: VRX2 | E42: 145/80R12 | F42: 74Q | H42: 8000 | I42: 9300 | K42: 5760 | L42: =タイヤ条件サマリ!$C$3 -> 0.72 | M42: 31800 | N42: =タイヤ条件サマリ!$E$3 -> 0.15 | O42: 0.2754716981 | P42: =M42+(IF(OR($G42="SSR",$G42="ZP",$G42="r-f",$G42="RFT"),VLOOKUP($BF42,タイヤ条件サマリ!$I$33:$J$38,2,0),VLOOKUP($BF42,タイヤ条件サマリ!$I:$J,2,0))+$E$2+$F$2+$G$2)*4 -> 37000 | Q42: 0.3772972973 | R42: =M42-$S42 -> 31800 | T42: =VLOOKUP($E42,タイヤホイールサイズ!$A:$E,3,FALSE) -> 1240v | U42: =INDEX('ホイール売価(国産)'!$A$4:$A$77,MATCH(T42,'ホイール売価(国産)'!$B$4:$B$77,0)) -> YF-010 | V42: =VLOOKUP($T42,'ホイール売価(国産)'!$B:$I,6,FALSE) -> 1900 | W42: =(V42+$K42)*4 -> 30640 | X42: =VLOOKUP($T42,'ホイール売価(国産)'!$B:$I,8,FALSE) -> 9000 | Y42: =$R42+X42 -> 40800 | Z42: 0.2490196078 | AA42: =Y42+IF(OR($G42="SSR",$G42="ZP",$G42="r-f",$G42="RFT"),VLOOKUP($BF42,タイヤ条件サマリ!$I$33:$J$38,2,0),VLOOKUP($BF42,タイヤ条件サマリ!$I:$J,2,0))*4 -> 42800 | AB42: 0.2841121495 | AC42: =VLOOKUP($T42,タイヤ条件サマリ!$N:$O,2,0) -> 2400 | AD42: 45200 | AE42: 0.3221238938 | AF42: 1240v | AG42: =INDEX('ホイール売価(国産)'!$A$81:$A$128,MATCH(AF42,'ホイール売価(国産)'!$B$81:$B$128,0)) -> Z-meist VS-T7 | AH42: =VLOOKUP($AF42,'ホイール売価(国産)'!$B$81:$I$128,6,0) -> 3000 | AI42: =(AH42+$K42)*4 -> 35040 | AJ42: =VLOOKUP($AF42,'ホイール売価(国産)'!$B$81:$I$128,8,0) -> 14000 | AK42: =$R42+AJ42 -> 45800 | AL42: =(AK42-AI42)/AK42 -> 0.2349344978 | AM42: =AK42+IF(OR($G42="SSR",$G42="ZP",$G42="r-f",$G42="RFT"),VLOOKUP($BF42,タイヤ条件サマリ!$I$33:$J$38,2,0),VLOOKUP($BF42,タイヤ条件サマリ!$I:$J,2,0))*4 -> 47800 | AN42: =(AM42-AI42)/AM42 -> 0.2669456067 | AO42: =AC42 -> 2400 | AP42: =AM42+AO42 -> 50200 | AQ42: =(AP42-AI42)/AP42 -> 0.3019920319 | AR42: 1240v | AS42: =INDEX('ホイール売価(国産)'!$A$132:$A$171,MATCH(AR42,'ホイール売価(国産)'!$B$132:$B$171,0)) -> EuroSpeed S810 | AT42: =VLOOKUP($AR42,'ホイール売価(国産)'!$B$132:$I$171,6,0) -> 3200 | AU42: =(AT42+$K42)*4 -> 35840 | AV42: =VLOOKUP($AR42,'ホイール売価(国産)'!$B$132:$I$171,8,0) -> 18000 | AW42: =$R42+AV42 -> 49800 | AX42: =(AW42-AU42)/AW42 -> 0.2803212851 | AY42: =AW42+IF(OR($G42="SSR",$G42="ZP",$G42="r-f",$G42="RFT"),VLOOKUP($BF42,タイヤ条件サマリ!$I$33:$J$38,2,0),VLOOKUP($BF42,タイヤ条件サマリ!$I:$J,2,0))*4 -> 51800 | AZ42: =(AY42-AU42)/AY42 -> 0.3081081081 | BA42: =AC42 -> 2400 | BB42: 54200 | BC42: =(BB42-AU42)/BB42 -> 0.3387453875 | BD42: 145 | BE42: 80 | BF42: 12 | BG42: 536.8 | BH42: 本部発注価格 | BL42: 1 | BM42: ベーシック;ミニバン | BN42: 14580123 | BO42: 3 | BQ42: =IF(OR(M42="",M42=0),"-",IF(ROUNDUP(M42,-4)>160000,10000,VLOOKUP(ROUNDUP(M42,-4),タイヤ条件サマリ!$R:$S,2,FALSE))) -> 4000
A43: BRIDGESTONE | B43: 4961914458522 | C43: PXR01168 | D43: VRX2 | E43: 145/70R12 | F43: 69Q | H43: 8000 | I43: 9350 | K43: 5760 | L43: =タイヤ条件サマリ!$C$3 -> 0.72 | M43: 31800 | N43: =タイヤ条件サマリ!$E$3 -> 0.15 | O43: 0.2754716981 | P43: =M43+(IF(OR($G43="SSR",$G43="ZP",$G43="r-f",$G43="RFT"),VLOOKUP($BF43,タイヤ条件サマリ!$I$33:$J$38,2,0),VLOOKUP($BF43,タイヤ条件サマリ!$I:$J,2,0))+$E$2+$F$2+$G$2)*4 -> 37000 | Q43: 0.3772972973 | R43: 31800 | T43: =VLOOKUP($E43,タイヤホイールサイズ!$A:$E,3,FALSE) -> 1240v | U43: =INDEX('ホイール売価(国産)'!$A$4:$A$77,MATCH(T43,'ホイール売価(国産)'!$B$4:$B$77,0)) -> YF-010 | V43: =VLOOKUP($T43,'ホイール売価(国産)'!$B:$I,6,FALSE) -> 1900 | W43: 30640 | X43: =VLOOKUP($T43,'ホイール売価(国産)'!$B:$I,8,FALSE) -> 9000 | Y43: 40800 | Z43: 0.2490196078 | AA43: =Y43+IF(OR($G43="SSR",$G43="ZP",$G43="r-f",$G43="RFT"),VLOOKUP($BF43,タイヤ条件サマリ!$I$33:$J$38,2,0),VLOOKUP($BF43,タイヤ条件サマリ!$I:$J,2,0))*4 -> 42800 | AB43: 0.2841121495 | AC43: =VLOOKUP($T43,タイヤ条件サマリ!$N:$O,2,0) -> 2400 | AD43: 45200 | AE43: 0.3221238938 | AF43: 1240v | AG43: =INDEX('ホイール売価(国産)'!$A$81:$A$128,MATCH(AF43,'ホイール売価(国産)'!$B$81:$B$128,0)) -> Z-meist VS-T7 | AH43: =VLOOKUP($AF43,'ホイール売価(国産)'!$B$81:$I$128,6,0) -> 3000 | AI43: 35040 | AJ43: =VLOOKUP($AF43,'ホイール売価(国産)'!$B$81:$I$128,8,0) -> 14000 | AK43: 45800 | AL43: 0.2349344978 | AM43: =AK43+IF(OR($G43="SSR",$G43="ZP",$G43="r-f",$G43="RFT"),VLOOKUP($BF43,タイヤ条件サマリ!$I$33:$J$38,2,0),VLOOKUP($BF43,タイヤ条件サマリ!$I:$J,2,0))*4 -> 47800 | AN43: 0.2669456067 | AO43: 2400 | AP43: 50200 | AQ43: 0.3019920319 | AR43: 1240v | AS43: =INDEX('ホイール売価(国産)'!$A$132:$A$171,MATCH(AR43,'ホイール売価(国産)'!$B$132:$B$171,0)) -> EuroSpeed S810 | AT43: =VLOOKUP($AR43,'ホイール売価(国産)'!$B$132:$I$171,6,0) -> 3200 | AU43: 35840 | AV43: =VLOOKUP($AR43,'ホイール売価(国産)'!$B$132:$I$171,8,0) -> 18000 | AW43: 49800 | AX43: 0.2803212851 | AY43: =AW43+IF(OR($G43="SSR",$G43="ZP",$G43="r-f",$G43="RFT"),VLOOKUP($BF43,タイヤ条件サマリ!$I$33:$J$38,2,0),VLOOKUP($BF43,タイヤ条件サマリ!$I:$J,2,0))*4 -> 51800 | AZ43: 0.3081081081 | BA43: 2400 | BB43: 54200 | BC43: 0.3387453875 | BD43: 145 | BE43: 70 | BF43: 12 | BG43: 507.8 | BH43: 本部発注価格 | BL43: 1 | BM43: ベーシック;ミニバン | BN43: 14570123 | BO43: 3 | BQ43: =IF(OR(M43="",M43=0),"-",IF(ROUNDUP(M43,-4)>160000,10000,VLOOKUP(ROUNDUP(M43,-4),タイヤ条件サマリ!$R:$S,2,FALSE))) -> 4000
A44: BRIDGESTONE | B44: 4961914458546 | C44: PXR01170 | D44: VRX2 | E44: 155/70R12 | F44: 73Q | H44: 8900 | I44: 10400 | K44: 6410 | L44: =タイヤ条件サマリ!$C$3 -> 0.72 | M44: 34800 | N44: =タイヤ条件サマリ!$E$3 -> 0.15 | O44: 0.2632183908 | P44: =M44+(IF(OR($G44="SSR",$G44="ZP",$G44="r-f",$G44="RFT"),VLOOKUP($BF44,タイヤ条件サマリ!$I$33:$J$38,2,0),VLOOKUP($BF44,タイヤ条件サマリ!$I:$J,2,0))+$E$2+$F$2+$G$2)*4 -> 40000 | Q44: 0.359 | R44: 34800 | T44: =VLOOKUP($E44,タイヤホイールサイズ!$A:$E,3,FALSE) -> 1240v | U44: =INDEX('ホイール売価(国産)'!$A$4:$A$77,MATCH(T44,'ホイール売価(国産)'!$B$4:$B$77,0)) -> YF-010 | V44: =VLOOKUP($T44,'ホイール売価(国産)'!$B:$I,6,FALSE) -> 1900 | W44: 33240 | X44: =VLOOKUP($T44,'ホイール売価(国産)'!$B:$I,8,FALSE) -> 9000 | Y44: 43800 | Z44: 0.2410958904 | AA44: =Y44+IF(OR($G44="SSR",$G44="ZP",$G44="r-f",$G44="RFT"),VLOOKUP($BF44,タイヤ条件サマリ!$I$33:$J$38,2,0),VLOOKUP($BF44,タイヤ条件サマリ!$I:$J,2,0))*4 -> 45800 | AB44: 0.2742358079 | AC44: =VLOOKUP($T44,タイヤ条件サマリ!$N:$O,2,0) -> 2400 | AD44: 48200 | AE44: 0.310373444 | AF44: 1240v | AG44: =INDEX('ホイール売価(国産)'!$A$81:$A$128,MATCH(AF44,'ホイール売価(国産)'!$B$81:$B$128,0)) -> Z-meist VS-T7 | AH44: =VLOOKUP($AF44,'ホイール売価(国産)'!$B$81:$I$128,6,0) -> 3000 | AI44: 37640 | AJ44: =VLOOKUP($AF44,'ホイール売価(国産)'!$B$81:$I$128,8,0) -> 14000 | AK44: 48800 | AL44: 0.2286885246 | AM44: =AK44+IF(OR($G44="SSR",$G44="ZP",$G44="r-f",$G44="RFT"),VLOOKUP($BF44,タイヤ条件サマリ!$I$33:$J$38,2,0),VLOOKUP($BF44,タイヤ条件サマリ!$I:$J,2,0))*4 -> 50800 | AN44: 0.2590551181 | AO44: 2400 | AP44: 53200 | AQ44: 0.292481203 | AR44: 1240v | AS44: =INDEX('ホイール売価(国産)'!$A$132:$A$171,MATCH(AR44,'ホイール売価(国産)'!$B$132:$B$171,0)) -> EuroSpeed S810 | AT44: =VLOOKUP($AR44,'ホイール売価(国産)'!$B$132:$I$171,6,0) -> 3200 | AU44: 38440 | AV44: =VLOOKUP($AR44,'ホイール売価(国産)'!$B$132:$I$171,8,0) -> 18000 | AW44: 52800 | AX44: 0.271969697 | AY44: =AW44+IF(OR($G44="SSR",$G44="ZP",$G44="r-f",$G44="RFT"),VLOOKUP($BF44,タイヤ条件サマリ!$I$33:$J$38,2,0),VLOOKUP($BF44,タイヤ条件サマリ!$I:$J,2,0))*4 -> 54800 | AZ44: 0.298540146 | BA44: 2400 | BB44: 57200 | BC44: 0.327972028 | BD44: 155 | BE44: 70 | BF44: 12 | BG44: 521.8 | BH44: 本部発注価格 | BL44: 1 | BM44: ベーシック;ミニバン | BN44: 15570123 | BO44: 3 | BQ44: =IF(OR(M44="",M44=0),"-",IF(ROUNDUP(M44,-4)>160000,10000,VLOOKUP(ROUNDUP(M44,-4),タイヤ条件サマリ!$R:$S,2,FALSE))) -> 4000
A45: BRIDGESTONE | B45: 4961914458553 | C45: PXR01171 | D45: VRX2 | E45: 135/80R13 | F45: 70Q | H45: 8800 | I45: 10200 | K45: 6340 | L45: =タイヤ条件サマリ!$C$3 -> 0.72 | M45: 34800 | N45: =タイヤ条件サマリ!$E$3 -> 0.15 | O45: 0.2712643678 | P45: =M45+(IF(OR($G45="SSR",$G45="ZP",$G45="r-f",$G45="RFT"),VLOOKUP($BF45,タイヤ条件サマリ!$I$33:$J$38,2,0),VLOOKUP($BF45,タイヤ条件サマリ!$I:$J,2,0))+$E$2+$F$2+$G$2)*4 -> 40000 | Q45: 0.366 | R45: 34800 | T45: =VLOOKUP($E45,タイヤホイールサイズ!$A:$E,3,FALSE) -> 1340 | U45: =INDEX('ホイール売価(国産)'!$A$4:$A$77,MATCH(T45,'ホイール売価(国産)'!$B$4:$B$77,0)) -> Z-meist VS-T7 | V45: =VLOOKUP($T45,'ホイール売価(国産)'!$B:$I,6,FALSE) -> 3000 | W45: 37360 | X45: =VLOOKUP($T45,'ホイール売価(国産)'!$B:$I,8,FALSE) -> 14000 | Y45: 48800 | Z45: 0.2344262295 | AA45: =Y45+IF(OR($G45="SSR",$G45="ZP",$G45="r-f",$G45="RFT"),VLOOKUP($BF45,タイヤ条件サマリ!$I$33:$J$38,2,0),VLOOKUP($BF45,タイヤ条件サマリ!$I:$J,2,0))*4 -> 50800 | AB45: 0.2645669291 | AC45: =VLOOKUP($T45,タイヤ条件サマリ!$N:$O,2,0) -> 2400 | AD45: 53200 | AE45: 0.2977443609 | AF45: 1340 | AG45: =INDEX('ホイール売価(国産)'!$A$81:$A$128,MATCH(AF45,'ホイール売価(国産)'!$B$81:$B$128,0)) -> EuroSpeed S810 | AH45: =VLOOKUP($AF45,'ホイール売価(国産)'!$B$81:$I$128,6,0) -> 3300 | AI45: 38560 | AJ45: =VLOOKUP($AF45,'ホイール売価(国産)'!$B$81:$I$128,8,0) -> 20000 | AK45: 54800 | AL45: 0.296350365 | AM45: =AK45+IF(OR($G45="SSR",$G45="ZP",$G45="r-f",$G45="RFT"),VLOOKUP($BF45,タイヤ条件サマリ!$I$33:$J$38,2,0),VLOOKUP($BF45,タイヤ条件サマリ!$I:$J,2,0))*4 -> 56800 | AN45: 0.3211267606 | AO45: 2400 | AP45: 59200 | AQ45: 0.3486486486 | AR45: 1340 | AS45: =INDEX('ホイール売価(国産)'!$A$132:$A$171,MATCH(AR45,'ホイール売価(国産)'!$B$132:$B$171,0)) -> SMACK Valkyrie | AT45: =VLOOKUP($AR45,'ホイール売価(国産)'!$B$132:$I$171,6,0) -> 4810 | AU45: 44600 | AV45: =VLOOKUP($AR45,'ホイール売価(国産)'!$B$132:$I$171,8,0) -> 28000 | AW45: 62800 | AX45: 0.2898089172 | AY45: =AW45+IF(OR($G45="SSR",$G45="ZP",$G45="r-f",$G45="RFT"),VLOOKUP($BF45,タイヤ条件サマリ!$I$33:$J$38,2,0),VLOOKUP($BF45,タイヤ条件サマリ!$I:$J,2,0))*4 -> 64800 | AZ45: 0.3117283951 | BA45: 2400 | BB45: 67200 | BC45: 0.3363095238 | BD45: 135 | BE45: 80 | BF45: 13 | BG45: 546.2 | BH45: 本部発注価格 | BL45: 1 | BM45: ベーシック;ミニバン | BN45: 13580133 | BO45: 3 | BQ45: =IF(OR(M45="",M45=0),"-",IF(ROUNDUP(M45,-4)>160000,10000,VLOOKUP(ROUNDUP(M45,-4),タイヤ条件サマリ!$R:$S,2,FALSE))) -> 4000
A46: BRIDGESTONE | B46: 4961914458560 | C46: PXR01172 | D46: VRX2 | E46: 145/80R13 | F46: 75Q | H46: 8900 | I46: 9900 | K46: 6410 | L46: =タイヤ条件サマリ!$C$3 -> 0.72 | M46: 33800 | N46: =タイヤ条件サマリ!$E$3 -> 0.15 | O46: 0.2414201183 | P46: =M46+(IF(OR($G46="SSR",$G46="ZP",$G46="r-f",$G46="RFT"),VLOOKUP($BF46,タイヤ条件サマリ!$I$33:$J$38,2,0),VLOOKUP($BF46,タイヤ条件サマリ!$I:$J,2,0))+$E$2+$F$2+$G$2)*4 -> 39000 | Q46: 0.3425641026 | R46: 33800 | T46: =VLOOKUP($E46,タイヤホイールサイズ!$A:$E,3,FALSE) -> 1340 | U46: =INDEX('ホイール売価(国産)'!$A$4:$A$77,MATCH(T46,'ホイール売価(国産)'!$B$4:$B$77,0)) -> Z-meist VS-T7 | V46: =VLOOKUP($T46,'ホイール売価(国産)'!$B:$I,6,FALSE) -> 3000 | W46: 37640 | X46: =VLOOKUP($T46,'ホイール売価(国産)'!$B:$I,8,FALSE) -> 14000 | Y46: 47800 | Z46: 0.2125523013 | AA46: =Y46+IF(OR($G46="SSR",$G46="ZP",$G46="r-f",$G46="RFT"),VLOOKUP($BF46,タイヤ条件サマリ!$I$33:$J$38,2,0),VLOOKUP($BF46,タイヤ条件サマリ!$I:$J,2,0))*4 -> 49800 | AB46: 0.2441767068 | AC46: =VLOOKUP($T46,タイヤ条件サマリ!$N:$O,2,0) -> 2400 | AD46: 52200 | AE46: 0.2789272031 | AF46: 1340 | AG46: =INDEX('ホイール売価(国産)'!$A$81:$A$128,MATCH(AF46,'ホイール売価(国産)'!$B$81:$B$128,0)) -> EuroSpeed S810 | AH46: =VLOOKUP($AF46,'ホイール売価(国産)'!$B$81:$I$128,6,0) -> 3300 | AI46: 38840 | AJ46: =VLOOKUP($AF46,'ホイール売価(国産)'!$B$81:$I$128,8,0) -> 20000 | AK46: 53800 | AL46: 0.2780669145 | AM46: =AK46+IF(OR($G46="SSR",$G46="ZP",$G46="r-f",$G46="RFT"),VLOOKUP($BF46,タイヤ条件サマリ!$I$33:$J$38,2,0),VLOOKUP($BF46,タイヤ条件サマリ!$I:$J,2,0))*4 -> 55800 | AN46: 0.3039426523 | AO46: 2400 | AP46: 58200 | AQ46: 0.3326460481 | AR46: 1340 | AS46: =INDEX('ホイール売価(国産)'!$A$132:$A$171,MATCH(AR46,'ホイール売価(国産)'!$B$132:$B$171,0)) -> SMACK Valkyrie | AT46: =VLOOKUP($AR46,'ホイール売価(国産)'!$B$132:$I$171,6,0) -> 4810 | AU46: 44880 | AV46: =VLOOKUP($AR46,'ホイール売価(国産)'!$B$132:$I$171,8,0) -> 28000 | AW46: 61800 | AX46: 0.2737864078 | AY46: =AW46+IF(OR($G46="SSR",$G46="ZP",$G46="r-f",$G46="RFT"),VLOOKUP($BF46,タイヤ条件サマリ!$I$33:$J$38,2,0),VLOOKUP($BF46,タイヤ条件サマリ!$I:$J,2,0))*4 -> 63800 | AZ46: 0.2965517241 | BA46: 2400 | BB46: 66200 | BC46: 0.3220543807 | BD46: 145 | BE46: 80 | BF46: 13 | BG46: 562.2 | BH46: 本部発注価格 | BL46: 1 | BM46: ベーシック;ミニバン | BN46: 14580133 | BO46: 3 | BQ46: =IF(OR(M46="",M46=0),"-",IF(ROUNDUP(M46,-4)>160000,10000,VLOOKUP(ROUNDUP(M46,-4),タイヤ条件サマリ!$R:$S,2,FALSE))) -> 4000
A47: BRIDGESTONE | B47: 4961914458591 | C47: PXR01175 | D47: VRX2 | E47: 155/80R13 | F47: 79Q | H47: 10300 | I47: 12100 | K47: 7420 | L47: =タイヤ条件サマリ!$C$3 -> 0.72 | M47: 40800 | N47: =タイヤ条件サマリ!$E$3 -> 0.15 | O47: 0.2725490196 | P47: =M47+(IF(OR($G47="SSR",$G47="ZP",$G47="r-f",$G47="RFT"),VLOOKUP($BF47,タイヤ条件サマリ!$I$33:$J$38,2,0),VLOOKUP($BF47,タイヤ条件サマリ!$I:$J,2,0))+$E$2+$F$2+$G$2)*4 -> 46000 | Q47: 0.3547826087 | R47: 40800 | T47: =VLOOKUP($E47,タイヤホイールサイズ!$A:$E,3,FALSE) -> 1350 | U47: =INDEX('ホイール売価(国産)'!$A$4:$A$77,MATCH(T47,'ホイール売価(国産)'!$B$4:$B$77,0)) -> EUROSPEED V25 | V47: =VLOOKUP($T47,'ホイール売価(国産)'!$B:$I,6,FALSE) -> 3390 | W47: 43240 | X47: =VLOOKUP($T47,'ホイール売価(国産)'!$B:$I,8,FALSE) -> 16000 | Y47: 56800 | Z47: 0.2387323944 | AA47: =Y47+IF(OR($G47="SSR",$G47="ZP",$G47="r-f",$G47="RFT"),VLOOKUP($BF47,タイヤ条件サマリ!$I$33:$J$38,2,0),VLOOKUP($BF47,タイヤ条件サマリ!$I:$J,2,0))*4 -> 58800 | AB47: 0.2646258503 | AC47: =VLOOKUP($T47,タイヤ条件サマリ!$N:$O,2,0) -> 1600 | AD47: 60400 | AE47: 0.2841059603 | AF47: 1350 | AR47: 1350 | BD47: 155 | BE47: 80 | BF47: 13 | BG47: 578.2 | BH47: 本部発注価格 | BL47: 1 | BM47: ベーシック;ミニバン | BN47: 15580133 | BO47: 3 | BQ47: =IF(OR(M47="",M47=0),"-",IF(ROUNDUP(M47,-4)>160000,10000,VLOOKUP(ROUNDUP(M47,-4),タイヤ条件サマリ!$R:$S,2,FALSE))) -> 5000
A48: BRIDGESTONE | B48: 4961914458621 | C48: PXR01178 | D48: VRX2 | E48: 165/80R13 | F48: 83Q | H48: 11100 | I48: 13000 | K48: 7990 | L48: =タイヤ条件サマリ!$C$3 -> 0.72 | M48: 43800 | N48: =タイヤ条件サマリ!$E$3 -> 0.15 | O48: 0.2703196347 | P48: =M48+(IF(OR($G48="SSR",$G48="ZP",$G48="r-f",$G48="RFT"),VLOOKUP($BF48,タイヤ条件サマリ!$I$33:$J$38,2,0),VLOOKUP($BF48,タイヤ条件サマリ!$I:$J,2,0))+$E$2+$F$2+$G$2)*4 -> 49000 | Q48: 0.347755102 | R48: 43800 | T48: =VLOOKUP($E48,タイヤホイールサイズ!$A:$E,3,FALSE) -> 1350 | U48: =INDEX('ホイール売価(国産)'!$A$4:$A$77,MATCH(T48,'ホイール売価(国産)'!$B$4:$B$77,0)) -> EUROSPEED V25 | V48: =VLOOKUP($T48,'ホイール売価(国産)'!$B:$I,6,FALSE) -> 3390 | W48: 45520 | X48: =VLOOKUP($T48,'ホイール売価(国産)'!$B:$I,8,FALSE) -> 16000 | Y48: 59800 | Z48: 0.2387959866 | AA48: =Y48+IF(OR($G48="SSR",$G48="ZP",$G48="r-f",$G48="RFT"),VLOOKUP($BF48,タイヤ条件サマリ!$I$33:$J$38,2,0),VLOOKUP($BF48,タイヤ条件サマリ!$I:$J,2,0))*4 -> 61800 | AB48: 0.2634304207 | AC48: =VLOOKUP($T48,タイヤ条件サマリ!$N:$O,2,0) -> 1600 | AD48: 63400 | AE48: 0.2820189274 | AF48: 1350 | AR48: 1350 | BD48: 165 | BE48: 80 | BF48: 13 | BG48: 594.2 | BH48: 本部発注価格 | BL48: 1 | BM48: ベーシック;ミニバン | BN48: 16580133 | BO48: 3 | BQ48: =IF(OR(M48="",M48=0),"-",IF(ROUNDUP(M48,-4)>160000,10000,VLOOKUP(ROUNDUP(M48,-4),タイヤ条件サマリ!$R:$S,2,FALSE))) -> 5000
A49: BRIDGESTONE | B49: 4961914458584 | C49: PXR01174 | D49: VRX2 | E49: 155/70R13 | F49: 75Q | H49: 11000 | I49: 12900 | K49: 7920 | L49: =タイヤ条件サマリ!$C$3 -> 0.72 | M49: 43800 | N49: =タイヤ条件サマリ!$E$3 -> 0.15 | O49: 0.2767123288 | P49: =M49+(IF(OR($G49="SSR",$G49="ZP",$G49="r-f",$G49="RFT"),VLOOKUP($BF49,タイヤ条件サマリ!$I$33:$J$38,2,0),VLOOKUP($BF49,タイヤ条件サマリ!$I:$J,2,0))+$E$2+$F$2+$G$2)*4 -> 49000 | Q49: 0.3534693878 | R49: 43800 | T49: =VLOOKUP($E49,タイヤホイールサイズ!$A:$E,3,FALSE) -> 1340 | U49: =INDEX('ホイール売価(国産)'!$A$4:$A$77,MATCH(T49,'ホイール売価(国産)'!$B$4:$B$77,0)) -> Z-meist VS-T7 | V49: =VLOOKUP($T49,'ホイール売価(国産)'!$B:$I,6,FALSE) -> 3000 | W49: 43680 | X49: =VLOOKUP($T49,'ホイール売価(国産)'!$B:$I,8,FALSE) -> 14000 | Y49: 57800 | Z49: 0.2442906574 | AA49: =Y49+IF(OR($G49="SSR",$G49="ZP",$G49="r-f",$G49="RFT"),VLOOKUP($BF49,タイヤ条件サマリ!$I$33:$J$38,2,0),VLOOKUP($BF49,タイヤ条件サマリ!$I:$J,2,0))*4 -> 59800 | AB49: 0.2695652174 | AC49: =VLOOKUP($T49,タイヤ条件サマリ!$N:$O,2,0) -> 2400 | AD49: 62200 | AE49: 0.2977491961 | AF49: 1340 | AG49: =INDEX('ホイール売価(国産)'!$A$81:$A$128,MATCH(AF49,'ホイール売価(国産)'!$B$81:$B$128,0)) -> EuroSpeed S810 | AH49: =VLOOKUP($AF49,'ホイール売価(国産)'!$B$81:$I$128,6,0) -> 3300 | AI49: 44880 | AJ49: =VLOOKUP($AF49,'ホイール売価(国産)'!$B$81:$I$128,8,0) -> 20000 | AK49: 63800 | AL49: 0.2965517241 | AM49: =AK49+IF(OR($G49="SSR",$G49="ZP",$G49="r-f",$G49="RFT"),VLOOKUP($BF49,タイヤ条件サマリ!$I$33:$J$38,2,0),VLOOKUP($BF49,タイヤ条件サマリ!$I:$J,2,0))*4 -> 65800 | AN49: 0.3179331307 | AO49: 2400 | AP49: 68200 | AQ49: 0.3419354839 | AR49: 1340 | AS49: =INDEX('ホイール売価(国産)'!$A$132:$A$171,MATCH(AR49,'ホイール売価(国産)'!$B$132:$B$171,0)) -> SMACK Valkyrie | AT49: =VLOOKUP($AR49,'ホイール売価(国産)'!$B$132:$I$171,6,0) -> 4810 | AU49: =(AT49+$K49)*4 -> 50920 | AV49: =VLOOKUP($AR49,'ホイール売価(国産)'!$B$132:$I$171,8,0) -> 28000 | AW49: =$R49+AV49 -> 71800 | AX49: 0.2908077994 | AY49: =AW49+IF(OR($G49="SSR",$G49="ZP",$G49="r-f",$G49="RFT"),VLOOKUP($BF49,タイヤ条件サマリ!$I$33:$J$38,2,0),VLOOKUP($BF49,タイヤ条件サマリ!$I:$J,2,0))*4 -> 73800 | AZ49: 0.3100271003 | BA49: 2400 | BB49: 76200 | BC49: 0.3317585302 | BD49: 155 | BE49: 70 | BF49: 13 | BG49: 547.2 | BH49: 本部発注価格 | BL49: 1 | BM49: ベーシック;ミニバン | BN49: 15570133 | BO49: 3 | BQ49: =IF(OR(M49="",M49=0),"-",IF(ROUNDUP(M49,-4)>160000,10000,VLOOKUP(ROUNDUP(M49,-4),タイヤ条件サマリ!$R:$S,2,FALSE))) -> 5000
A50: BRIDGESTONE | B50: 4961914458614 | C50: PXR01177 | D50: VRX2 | E50: 165/70R13 | F50: 79Q | H50: 11100 | I50: 13000 | K50: 7990 | L50: =タイヤ条件サマリ!$C$3 -> 0.72 | M50: 43800 | N50: =タイヤ条件サマリ!$E$3 -> 0.15 | O50: 0.2703196347 | P50: =M50+(IF(OR($G50="SSR",$G50="ZP",$G50="r-f",$G50="RFT"),VLOOKUP($BF50,タイヤ条件サマリ!$I$33:$J$38,2,0),VLOOKUP($BF50,タイヤ条件サマリ!$I:$J,2,0))+$E$2+$F$2+$G$2)*4 -> 49000 | Q50: 0.347755102 | R50: 43800 | T50: =VLOOKUP($E50,タイヤホイールサイズ!$A:$E,3,FALSE) -> 1340 | U50: =INDEX('ホイール売価(国産)'!$A$4:$A$77,MATCH(T50,'ホイール売価(国産)'!$B$4:$B$77,0)) -> Z-meist VS-T7 | V50: =VLOOKUP($T50,'ホイール売価(国産)'!$B:$I,6,FALSE) -> 3000 | W50: 43960 | X50: =VLOOKUP($T50,'ホイール売価(国産)'!$B:$I,8,FALSE) -> 14000 | Y50: 57800 | Z50: 0.2394463668 | AA50: =Y50+IF(OR($G50="SSR",$G50="ZP",$G50="r-f",$G50="RFT"),VLOOKUP($BF50,タイヤ条件サマリ!$I$33:$J$38,2,0),VLOOKUP($BF50,タイヤ条件サマリ!$I:$J,2,0))*4 -> 59800 | AB50: 0.2648829431 | AC50: =VLOOKUP($T50,タイヤ条件サマリ!$N:$O,2,0) -> 2400 | AD50: 62200 | AE50: 0.2932475884 | AF50: 1340 | AG50: =INDEX('ホイール売価(国産)'!$A$81:$A$128,MATCH(AF50,'ホイール売価(国産)'!$B$81:$B$128,0)) -> EuroSpeed S810 | AH50: =VLOOKUP($AF50,'ホイール売価(国産)'!$B$81:$I$128,6,0) -> 3300 | AI50: 45160 | AJ50: =VLOOKUP($AF50,'ホイール売価(国産)'!$B$81:$I$128,8,0) -> 20000 | AK50: 63800 | AL50: 0.2921630094 | AM50: =AK50+IF(OR($G50="SSR",$G50="ZP",$G50="r-f",$G50="RFT"),VLOOKUP($BF50,タイヤ条件サマリ!$I$33:$J$38,2,0),VLOOKUP($BF50,タイヤ条件サマリ!$I:$J,2,0))*4 -> 65800 | AN50: 0.3136778116 | AO50: 2400 | AP50: 68200 | AQ50: 0.337829912 | AR50: 1340 | AS50: =INDEX('ホイール売価(国産)'!$A$132:$A$171,MATCH(AR50,'ホイール売価(国産)'!$B$132:$B$171,0)) -> SMACK Valkyrie | AT50: =VLOOKUP($AR50,'ホイール売価(国産)'!$B$132:$I$171,6,0) -> 4810 | AU50: 51200 | AV50: =VLOOKUP($AR50,'ホイール売価(国産)'!$B$132:$I$171,8,0) -> 28000 | AW50: 71800 | AX50: 0.286908078 | AY50: =AW50+IF(OR($G50="SSR",$G50="ZP",$G50="r-f",$G50="RFT"),VLOOKUP($BF50,タイヤ条件サマリ!$I$33:$J$38,2,0),VLOOKUP($BF50,タイヤ条件サマリ!$I:$J,2,0))*4 -> 73800 | AZ50: 0.3062330623 | BA50: 2400 | BB50: 76200 | BC50: 0.3280839895 | BD50: 165 | BE50: 70 | BF50: 13 | BG50: 561.2 | BH50: 本部発注価格 | BL50: 1 | BM50: ベーシック;ミニバン | BN50: 16570133 | BO50: 3 | BQ50: =IF(OR(M50="",M50=0),"-",IF(ROUNDUP(M50,-4)>160000,10000,VLOOKUP(ROUNDUP(M50,-4),タイヤ条件サマリ!$R:$S,2,FALSE))) -> 5000
A51: BRIDGESTONE | B51: 4961914458638 | C51: PXR01179 | D51: VRX2 | E51: 175/70R13 | F51: 82Q | H51: 12900 | I51: 15100 | K51: 9290 | L51: =タイヤ条件サマリ!$C$3 -> 0.72 | M51: 50800 | N51: =タイヤ条件サマリ!$E$3 -> 0.15 | O51: 0.268503937 | P51: =M51+(IF(OR($G51="SSR",$G51="ZP",$G51="r-f",$G51="RFT"),VLOOKUP($BF51,タイヤ条件サマリ!$I$33:$J$38,2,0),VLOOKUP($BF51,タイヤ条件サマリ!$I:$J,2,0))+$E$2+$F$2+$G$2)*4 -> 56000 | Q51: 0.3364285714 | R51: 50800 | T51: =VLOOKUP($E51,タイヤホイールサイズ!$A:$E,3,FALSE) -> 1350 | U51: =INDEX('ホイール売価(国産)'!$A$4:$A$77,MATCH(T51,'ホイール売価(国産)'!$B$4:$B$77,0)) -> EUROSPEED V25 | V51: =VLOOKUP($T51,'ホイール売価(国産)'!$B:$I,6,FALSE) -> 3390 | W51: 50720 | X51: =VLOOKUP($T51,'ホイール売価(国産)'!$B:$I,8,FALSE) -> 16000 | Y51: 66800 | Z51: 0.2407185629 | AA51: =Y51+IF(OR($G51="SSR",$G51="ZP",$G51="r-f",$G51="RFT"),VLOOKUP($BF51,タイヤ条件サマリ!$I$33:$J$38,2,0),VLOOKUP($BF51,タイヤ条件サマリ!$I:$J,2,0))*4 -> 68800 | AB51: 0.2627906977 | AC51: =VLOOKUP($T51,タイヤ条件サマリ!$N:$O,2,0) -> 1600 | AD51: 70400 | AE51: 0.2795454545 | AF51: 1350 | AR51: 1350 | BD51: 175 | BE51: 70 | BF51: 13 | BG51: 575.2 | BH51: 本部発注価格 | BL51: 1 | BM51: ベーシック;ミニバン | BN51: 17570133 | BO51: 3 | BQ51: =IF(OR(M51="",M51=0),"-",IF(ROUNDUP(M51,-4)>160000,10000,VLOOKUP(ROUNDUP(M51,-4),タイヤ条件サマリ!$R:$S,2,FALSE))) -> 5000
A52: BRIDGESTONE | B52: 4961914458577 | C52: PXR01173 | D52: VRX2 | E52: 155/65R13 | F52: 73Q | H52: 11200 | I52: 12500 | K52: 8060 | L52: =タイヤ条件サマリ!$C$3 -> 0.72 | M52: 42800 | N52: =タイヤ条件サマリ!$E$3 -> 0.15 | O52: 0.246728972 | P52: =M52+(IF(OR($G52="SSR",$G52="ZP",$G52="r-f",$G52="RFT"),VLOOKUP($BF52,タイヤ条件サマリ!$I$33:$J$38,2,0),VLOOKUP($BF52,タイヤ条件サマリ!$I:$J,2,0))+$E$2+$F$2+$G$2)*4 -> 48000 | Q52: 0.3283333333 | R52: 42800 | T52: =VLOOKUP($E52,タイヤホイールサイズ!$A:$E,3,FALSE) -> 1340 | U52: =INDEX('ホイール売価(国産)'!$A$4:$A$77,MATCH(T52,'ホイール売価(国産)'!$B$4:$B$77,0)) -> Z-meist VS-T7 | V52: =VLOOKUP($T52,'ホイール売価(国産)'!$B:$I,6,FALSE) -> 3000 | W52: 44240 | X52: =VLOOKUP($T52,'ホイール売価(国産)'!$B:$I,8,FALSE) -> 14000 | Y52: 56800 | Z52: 0.2211267606 | AA52: =Y52+IF(OR($G52="SSR",$G52="ZP",$G52="r-f",$G52="RFT"),VLOOKUP($BF52,タイヤ条件サマリ!$I$33:$J$38,2,0),VLOOKUP($BF52,タイヤ条件サマリ!$I:$J,2,0))*4 -> 58800 | AB52: 0.2476190476 | AC52: =VLOOKUP($T52,タイヤ条件サマリ!$N:$O,2,0) -> 2400 | AD52: 61200 | AE52: 0.277124183 | AF52: 1340 | AG52: =INDEX('ホイール売価(国産)'!$A$81:$A$128,MATCH(AF52,'ホイール売価(国産)'!$B$81:$B$128,0)) -> EuroSpeed S810 | AH52: =VLOOKUP($AF52,'ホイール売価(国産)'!$B$81:$I$128,6,0) -> 3300 | AI52: 45440 | AJ52: =VLOOKUP($AF52,'ホイール売価(国産)'!$B$81:$I$128,8,0) -> 20000 | AK52: 62800 | AL52: 0.276433121 | AM52: =AK52+IF(OR($G52="SSR",$G52="ZP",$G52="r-f",$G52="RFT"),VLOOKUP($BF52,タイヤ条件サマリ!$I$33:$J$38,2,0),VLOOKUP($BF52,タイヤ条件サマリ!$I:$J,2,0))*4 -> 64800 | AN52: 0.2987654321 | AO52: 2400 | AP52: 67200 | AQ52: 0.3238095238 | AR52: 1340 | AS52: =INDEX('ホイール売価(国産)'!$A$132:$A$171,MATCH(AR52,'ホイール売価(国産)'!$B$132:$B$171,0)) -> SMACK Valkyrie | AT52: =VLOOKUP($AR52,'ホイール売価(国産)'!$B$132:$I$171,6,0) -> 4810 | AU52: =(AT52+$K52)*4 -> 51480 | AV52: =VLOOKUP($AR52,'ホイール売価(国産)'!$B$132:$I$171,8,0) -> 28000 | AW52: =$R52+AV52 -> 70800 | AX52: 0.2728813559 | AY52: =AW52+IF(OR($G52="SSR",$G52="ZP",$G52="r-f",$G52="RFT"),VLOOKUP($BF52,タイヤ条件サマリ!$I$33:$J$38,2,0),VLOOKUP($BF52,タイヤ条件サマリ!$I:$J,2,0))*4 -> 72800 | AZ52: 0.2928571429 | BA52: 2400 | BB52: 75200 | BC52: 0.3154255319 | BD52: 155 | BE52: 65 | BF52: 13 | BG52: 531.7 | BH52: 本部発注価格 | BL52: 1 | BM52: ベーシック;ミニバン | BN52: 15565133 | BO52: 3 | BQ52: =IF(OR(M52="",M52=0),"-",IF(ROUNDUP(M52,-4)>160000,10000,VLOOKUP(ROUNDUP(M52,-4),タイヤ条件サマリ!$R:$S,2,FALSE))) -> 5000
A53: BRIDGESTONE | B53: 4961914458607 | C53: PXR01176 | D53: VRX2 | E53: 165/65R13 | F53: 77Q | H53: 12400 | I53: 14500 | K53: 8930 | L53: =タイヤ条件サマリ!$C$3 -> 0.72 | M53: 48800 | N53: =タイヤ条件サマリ!$E$3 -> 0.15 | O53: 0.2680327869 | P53: =M53+(IF(OR($G53="SSR",$G53="ZP",$G53="r-f",$G53="RFT"),VLOOKUP($BF53,タイヤ条件サマリ!$I$33:$J$38,2,0),VLOOKUP($BF53,タイヤ条件サマリ!$I:$J,2,0))+$E$2+$F$2+$G$2)*4 -> 54000 | Q53: 0.3385185185 | R53: 48800 | T53: =VLOOKUP($E53,タイヤホイールサイズ!$A:$E,3,FALSE) -> 1340 | U53: =INDEX('ホイール売価(国産)'!$A$4:$A$77,MATCH(T53,'ホイール売価(国産)'!$B$4:$B$77,0)) -> Z-meist VS-T7 | V53: =VLOOKUP($T53,'ホイール売価(国産)'!$B:$I,6,FALSE) -> 3000 | W53: 47720 | X53: =VLOOKUP($T53,'ホイール売価(国産)'!$B:$I,8,FALSE) -> 14000 | Y53: 62800 | Z53: 0.2401273885 | AA53: =Y53+IF(OR($G53="SSR",$G53="ZP",$G53="r-f",$G53="RFT"),VLOOKUP($BF53,タイヤ条件サマリ!$I$33:$J$38,2,0),VLOOKUP($BF53,タイヤ条件サマリ!$I:$J,2,0))*4 -> 64800 | AB53: 0.2635802469 | AC53: =VLOOKUP($T53,タイヤ条件サマリ!$N:$O,2,0) -> 2400 | AD53: 67200 | AE53: 0.2898809524 | AF53: 1340 | AG53: =INDEX('ホイール売価(国産)'!$A$81:$A$128,MATCH(AF53,'ホイール売価(国産)'!$B$81:$B$128,0)) -> EuroSpeed S810 | AH53: =VLOOKUP($AF53,'ホイール売価(国産)'!$B$81:$I$128,6,0) -> 3300 | AI53: 48920 | AJ53: =VLOOKUP($AF53,'ホイール売価(国産)'!$B$81:$I$128,8,0) -> 20000 | AK53: 68800 | AL53: 0.2889534884 | AM53: =AK53+IF(OR($G53="SSR",$G53="ZP",$G53="r-f",$G53="RFT"),VLOOKUP($BF53,タイヤ条件サマリ!$I$33:$J$38,2,0),VLOOKUP($BF53,タイヤ条件サマリ!$I:$J,2,0))*4 -> 70800 | AN53: 0.309039548 | AO53: 2400 | AP53: 73200 | AQ53: 0.3316939891 | AR53: 1340 | AS53: =INDEX('ホイール売価(国産)'!$A$132:$A$171,MATCH(AR53,'ホイール売価(国産)'!$B$132:$B$171,0)) -> SMACK Valkyrie | AT53: =VLOOKUP($AR53,'ホイール売価(国産)'!$B$132:$I$171,6,0) -> 4810 | AU53: 54960 | AV53: =VLOOKUP($AR53,'ホイール売価(国産)'!$B$132:$I$171,8,0) -> 28000 | AW53: 76800 | AX53: 0.284375 | AY53: =AW53+IF(OR($G53="SSR",$G53="ZP",$G53="r-f",$G53="RFT"),VLOOKUP($BF53,タイヤ条件サマリ!$I$33:$J$38,2,0),VLOOKUP($BF53,タイヤ条件サマリ!$I:$J,2,0))*4 -> 78800 | AZ53: 0.3025380711 | BA53: 2400 | BB53: 81200 | BC53: 0.3231527094 | BD53: 165 | BE53: 65 | BF53: 13 | BG53: 544.7 | BH53: 本部発注価格 | BL53: 1 | BM53: ベーシック;ミニバン | BN53: 16565133 | BO53: 3 | BQ53: =IF(OR(M53="",M53=0),"-",IF(ROUNDUP(M53,-4)>160000,10000,VLOOKUP(ROUNDUP(M53,-4),タイヤ条件サマリ!$R:$S,2,FALSE))) -> 5000
A54: BRIDGESTONE | B54: 4961914458720 | C54: PXR01191 | D54: VRX2 | E54: 175/80R14 | F54: 88Q | H54: 13900 | I54: 16300 | K54: 10010 | L54: =タイヤ条件サマリ!$C$3 -> 0.72 | M54: 54800 | N54: =タイヤ条件サマリ!$E$3 -> 0.15 | O54: 0.2693430657 | P54: =M54+(IF(OR($G54="SSR",$G54="ZP",$G54="r-f",$G54="RFT"),VLOOKUP($BF54,タイヤ条件サマリ!$I$33:$J$38,2,0),VLOOKUP($BF54,タイヤ条件サマリ!$I:$J,2,0))+$E$2+$F$2+$G$2)*4 -> 60000 | Q54: 0.3326666667 | R54: 54800 | T54: =VLOOKUP($E54,タイヤホイールサイズ!$A:$E,3,FALSE) -> 1450v | U54: =INDEX('ホイール売価(国産)'!$A$4:$A$77,MATCH(T54,'ホイール売価(国産)'!$B$4:$B$77,0)) -> WAO | V54: =VLOOKUP($T54,'ホイール売価(国産)'!$B:$I,6,FALSE) -> 3310 | W54: 53280 | X54: =VLOOKUP($T54,'ホイール売価(国産)'!$B:$I,8,FALSE) -> 16000 | Y54: 70800 | Z54: 0.2474576271 | AA54: =Y54+IF(OR($G54="SSR",$G54="ZP",$G54="r-f",$G54="RFT"),VLOOKUP($BF54,タイヤ条件サマリ!$I$33:$J$38,2,0),VLOOKUP($BF54,タイヤ条件サマリ!$I:$J,2,0))*4 -> 72800 | AB54: 0.2681318681 | AC54: =VLOOKUP($T54,タイヤ条件サマリ!$N:$O,2,0) -> 1600 | AD54: 74400 | AE54: 0.2838709677 | AF54: 1450v | AG54: =INDEX('ホイール売価(国産)'!$A$81:$A$128,MATCH(AF54,'ホイール売価(国産)'!$B$81:$B$128,0)) -> TIRADO γ | AH54: =VLOOKUP($AF54,'ホイール売価(国産)'!$B$81:$I$128,6,0) -> 3940 | AI54: 55800 | AJ54: =VLOOKUP($AF54,'ホイール売価(国産)'!$B$81:$I$128,8,0) -> 22000 | AK54: 76800 | AL54: 0.2734375 | AM54: =AK54+IF(OR($G54="SSR",$G54="ZP",$G54="r-f",$G54="RFT"),VLOOKUP($BF54,タイヤ条件サマリ!$I$33:$J$38,2,0),VLOOKUP($BF54,タイヤ条件サマリ!$I:$J,2,0))*4 -> 78800 | AN54: 0.2918781726 | AO54: 1600 | AP54: 80400 | AQ54: 0.3059701493 | AR54: 1450v | BD54: 175 | BE54: 80 | BF54: 14 | BG54: 635.6 | BH54: 本部発注価格 | BL54: 1 | BM54: ベーシック;ミニバン | BN54: 17580143 | BO54: 3 | BQ54: =IF(OR(M54="",M54=0),"-",IF(ROUNDUP(M54,-4)>160000,10000,VLOOKUP(ROUNDUP(M54,-4),タイヤ条件サマリ!$R:$S,2,FALSE))) -> 5000
A55: BRIDGESTONE | B55: 4961914458690 | C55: PXR01186 | D55: VRX2 | E55: 165/70R14 | F55: 81Q | H55: 12900 | I55: 15100 | K55: 9290 | L55: =タイヤ条件サマリ!$C$3 -> 0.72 | M55: 50800 | N55: =タイヤ条件サマリ!$E$3 -> 0.15 | O55: 0.268503937 | P55: =M55+(IF(OR($G55="SSR",$G55="ZP",$G55="r-f",$G55="RFT"),VLOOKUP($BF55,タイヤ条件サマリ!$I$33:$J$38,2,0),VLOOKUP($BF55,タイヤ条件サマリ!$I:$J,2,0))+$E$2+$F$2+$G$2)*4 -> 56000 | Q55: 0.3364285714 | R55: 50800 | T55: =VLOOKUP($E55,タイヤホイールサイズ!$A:$E,3,FALSE) -> 1455 | U55: =INDEX('ホイール売価(国産)'!$A$4:$A$77,MATCH(T55,'ホイール売価(国産)'!$B$4:$B$77,0)) -> Z-meist VS-T7 | V55: =VLOOKUP($T55,'ホイール売価(国産)'!$B:$I,6,FALSE) -> 3780 | W55: 52280 | X55: =VLOOKUP($T55,'ホイール売価(国産)'!$B:$I,8,FALSE) -> 19000 | Y55: 69800 | Z55: 0.2510028653 | AA55: =Y55+IF(OR($G55="SSR",$G55="ZP",$G55="r-f",$G55="RFT"),VLOOKUP($BF55,タイヤ条件サマリ!$I$33:$J$38,2,0),VLOOKUP($BF55,タイヤ条件サマリ!$I:$J,2,0))*4 -> 71800 | AB55: 0.2718662953 | AC55: =VLOOKUP($T55,タイヤ条件サマリ!$N:$O,2,0) -> 1600 | AD55: 73400 | AE55: 0.2877384196 | AF55: 1455 | AG55: =INDEX('ホイール売価(国産)'!$A$81:$A$128,MATCH(AF55,'ホイール売価(国産)'!$B$81:$B$128,0)) -> Z-meist VS-1 BC | AH55: =VLOOKUP($AF55,'ホイール売価(国産)'!$B$81:$I$128,6,0) -> 3900 | AI55: 52760 | AJ55: =VLOOKUP($AF55,'ホイール売価(国産)'!$B$81:$I$128,8,0) -> 25000 | AK55: 75800 | AL55: 0.3039577836 | AM55: =AK55+IF(OR($G55="SSR",$G55="ZP",$G55="r-f",$G55="RFT"),VLOOKUP($BF55,タイヤ条件サマリ!$I$33:$J$38,2,0),VLOOKUP($BF55,タイヤ条件サマリ!$I:$J,2,0))*4 -> 77800 | AN55: 0.3218508997 | AO55: 1600 | AP55: 79400 | AQ55: 0.3355163728 | AR55: 1455 | AS55: =INDEX('ホイール売価(国産)'!$A$132:$A$171,MATCH(AR55,'ホイール売価(国産)'!$B$132:$B$171,0)) -> SMACK Valkyrie | AT55: =VLOOKUP($AR55,'ホイール売価(国産)'!$B$132:$I$171,6,0) -> 5720 | AU55: =(AT55+$K55)*4 -> 60040 | AV55: =VLOOKUP($AR55,'ホイール売価(国産)'!$B$132:$I$171,8,0) -> 35000 | AW55: =$R55+AV55 -> 85800 | AX55: 0.3002331002 | AY55: =AW55+IF(OR($G55="SSR",$G55="ZP",$G55="r-f",$G55="RFT"),VLOOKUP($BF55,タイヤ条件サマリ!$I$33:$J$38,2,0),VLOOKUP($BF55,タイヤ条件サマリ!$I:$J,2,0))*4 -> 87800 | AZ55: 0.3161731207 | BA55: 1600 | BB55: 89400 | BC55: 0.3284116331 | BD55: 165 | BE55: 70 | BF55: 14 | BG55: 586.6 | BH55: 本部発注価格 | BL55: 1 | BM55: ベーシック;ミニバン | BN55: 16570143 | BO55: 3 | BQ55: =IF(OR(M55="",M55=0),"-",IF(ROUNDUP(M55,-4)>160000,10000,VLOOKUP(ROUNDUP(M55,-4),タイヤ条件サマリ!$R:$S,2,FALSE))) -> 5000
A56: BRIDGESTONE | B56: 4961914458713 | C56: PXR01189 | D56: VRX2 | E56: 175/70R14 | F56: 84Q | H56: 13900 | I56: 16300 | K56: 10010 | L56: =タイヤ条件サマリ!$C$3 -> 0.72 | M56: 54800 | N56: =タイヤ条件サマリ!$E$3 -> 0.15 | O56: 0.2693430657 | P56: =M56+(IF(OR($G56="SSR",$G56="ZP",$G56="r-f",$G56="RFT"),VLOOKUP($BF56,タイヤ条件サマリ!$I$33:$J$38,2,0),VLOOKUP($BF56,タイヤ条件サマリ!$I:$J,2,0))+$E$2+$F$2+$G$2)*4 -> 60000 | Q56: 0.3326666667 | R56: 54800 | T56: =VLOOKUP($E56,タイヤホイールサイズ!$A:$E,3,FALSE) -> 1455 | U56: =INDEX('ホイール売価(国産)'!$A$4:$A$77,MATCH(T56,'ホイール売価(国産)'!$B$4:$B$77,0)) -> Z-meist VS-T7 | V56: =VLOOKUP($T56,'ホイール売価(国産)'!$B:$I,6,FALSE) -> 3780 | W56: 55160 | X56: =VLOOKUP($T56,'ホイール売価(国産)'!$B:$I,8,FALSE) -> 19000 | Y56: 73800 | Z56: 0.2525745257 | AA56: =Y56+IF(OR($G56="SSR",$G56="ZP",$G56="r-f",$G56="RFT"),VLOOKUP($BF56,タイヤ条件サマリ!$I$33:$J$38,2,0),VLOOKUP($BF56,タイヤ条件サマリ!$I:$J,2,0))*4 -> 75800 | AB56: 0.2722955145 | AC56: =VLOOKUP($T56,タイヤ条件サマリ!$N:$O,2,0) -> 1600 | AD56: 77400 | AE56: 0.2873385013 | AF56: 1455 | AG56: =INDEX('ホイール売価(国産)'!$A$81:$A$128,MATCH(AF56,'ホイール売価(国産)'!$B$81:$B$128,0)) -> Z-meist VS-1 BC | AH56: =VLOOKUP($AF56,'ホイール売価(国産)'!$B$81:$I$128,6,0) -> 3900 | AI56: 55640 | AJ56: =VLOOKUP($AF56,'ホイール売価(国産)'!$B$81:$I$128,8,0) -> 25000 | AK56: 79800 | AL56: 0.3027568922 | AM56: =AK56+IF(OR($G56="SSR",$G56="ZP",$G56="r-f",$G56="RFT"),VLOOKUP($BF56,タイヤ条件サマリ!$I$33:$J$38,2,0),VLOOKUP($BF56,タイヤ条件サマリ!$I:$J,2,0))*4 -> 81800 | AN56: 0.319804401 | AO56: 1600 | AP56: 83400 | AQ56: 0.332853717 | AR56: 1455 | AS56: =INDEX('ホイール売価(国産)'!$A$132:$A$171,MATCH(AR56,'ホイール売価(国産)'!$B$132:$B$171,0)) -> SMACK Valkyrie | AT56: =VLOOKUP($AR56,'ホイール売価(国産)'!$B$132:$I$171,6,0) -> 5720 | AU56: 62920 | AV56: =VLOOKUP($AR56,'ホイール売価(国産)'!$B$132:$I$171,8,0) -> 35000 | AW56: 89800 | AX56: 0.2993318486 | AY56: =AW56+IF(OR($G56="SSR",$G56="ZP",$G56="r-f",$G56="RFT"),VLOOKUP($BF56,タイヤ条件サマリ!$I$33:$J$38,2,0),VLOOKUP($BF56,タイヤ条件サマリ!$I:$J,2,0))*4 -> 91800 | AZ56: 0.3145969499 | BA56: 1600 | BB56: 93400 | BC56: 0.3263383298 | BD56: 175 | BE56: 70 | BF56: 14 | BG56: 600.6 | BH56: 本部発注価格 | BL56: 1 | BM56: ベーシック;ミニバン | BN56: 17570143 | BO56: 3 | BQ56: =IF(OR(M56="",M56=0),"-",IF(ROUNDUP(M56,-4)>160000,10000,VLOOKUP(ROUNDUP(M56,-4),タイヤ条件サマリ!$R:$S,2,FALSE))) -> 5000
A57: BRIDGESTONE | B57: 4961914458751 | C57: PXR01196 | D57: VRX2 | E57: 185/70R14 | F57: 88Q | H57: 15700 | I57: 18400 | K57: 11300 | L57: =タイヤ条件サマリ!$C$3 -> 0.72 | M57: 62800 | N57: =タイヤ条件サマリ!$E$3 -> 0.15 | O57: 0.2802547771 | P57: =M57+(IF(OR($G57="SSR",$G57="ZP",$G57="r-f",$G57="RFT"),VLOOKUP($BF57,タイヤ条件サマリ!$I$33:$J$38,2,0),VLOOKUP($BF57,タイヤ条件サマリ!$I:$J,2,0))+$E$2+$F$2+$G$2)*4 -> 68000 | Q57: 0.3352941176 | R57: 62800 | T57: =VLOOKUP($E57,タイヤホイールサイズ!$A:$E,3,FALSE) -> 1455 | U57: =INDEX('ホイール売価(国産)'!$A$4:$A$77,MATCH(T57,'ホイール売価(国産)'!$B$4:$B$77,0)) -> Z-meist VS-T7 | V57: =VLOOKUP($T57,'ホイール売価(国産)'!$B:$I,6,FALSE) -> 3780 | W57: 60320 | X57: =VLOOKUP($T57,'ホイール売価(国産)'!$B:$I,8,FALSE) -> 19000 | Y57: 81800 | Z57: 0.262591687 | AA57: =Y57+IF(OR($G57="SSR",$G57="ZP",$G57="r-f",$G57="RFT"),VLOOKUP($BF57,タイヤ条件サマリ!$I$33:$J$38,2,0),VLOOKUP($BF57,タイヤ条件サマリ!$I:$J,2,0))*4 -> 83800 | AB57: 0.2801909308 | AC57: =VLOOKUP($T57,タイヤ条件サマリ!$N:$O,2,0) -> 1600 | AD57: 85400 | AE57: 0.293676815 | AF57: 1455 | AG57: =INDEX('ホイール売価(国産)'!$A$81:$A$128,MATCH(AF57,'ホイール売価(国産)'!$B$81:$B$128,0)) -> Z-meist VS-1 BC | AH57: =VLOOKUP($AF57,'ホイール売価(国産)'!$B$81:$I$128,6,0) -> 3900 | AI57: 60800 | AJ57: =VLOOKUP($AF57,'ホイール売価(国産)'!$B$81:$I$128,8,0) -> 25000 | AK57: 87800 | AL57: 0.3075170843 | AM57: =AK57+IF(OR($G57="SSR",$G57="ZP",$G57="r-f",$G57="RFT"),VLOOKUP($BF57,タイヤ条件サマリ!$I$33:$J$38,2,0),VLOOKUP($BF57,タイヤ条件サマリ!$I:$J,2,0))*4 -> 89800 | AN57: 0.3229398664 | AO57: 1600 | AP57: 91400 | AQ57: 0.3347921225 | AR57: 1455 | AS57: =INDEX('ホイール売価(国産)'!$A$132:$A$171,MATCH(AR57,'ホイール売価(国産)'!$B$132:$B$171,0)) -> SMACK Valkyrie | AT57: =VLOOKUP($AR57,'ホイール売価(国産)'!$B$132:$I$171,6,0) -> 5720 | AU57: 68080 | AV57: =VLOOKUP($AR57,'ホイール売価(国産)'!$B$132:$I$171,8,0) -> 35000 | AW57: 97800 | AX57: 0.3038854806 | AY57: =AW57+IF(OR($G57="SSR",$G57="ZP",$G57="r-f",$G57="RFT"),VLOOKUP($BF57,タイヤ条件サマリ!$I$33:$J$38,2,0),VLOOKUP($BF57,タイヤ条件サマリ!$I:$J,2,0))*4 -> 99800 | AZ57: 0.3178356713 | BA57: 1600 | BB57: 101400 | BC57: 0.3285996055 | BD57: 185 | BE57: 70 | BF57: 14 | BG57: 614.6 | BH57: 本部発注価格 | BL57: 1 | BM57: ベーシック;ミニバン | BN57: 18570143 | BO57: 3 | BQ57: =IF(OR(M57="",M57=0),"-",IF(ROUNDUP(M57,-4)>160000,10000,VLOOKUP(ROUNDUP(M57,-4),タイヤ条件サマリ!$R:$S,2,FALSE))) -> 5000
A58: BRIDGESTONE | B58: 4961914458775 | C58: PXR01199 | D58: VRX2 | E58: 195/70R14 | F58: 91Q | H58: 17400 | I58: 20400 | K58: 12530 | L58: =タイヤ条件サマリ!$C$3 -> 0.72 | M58: 68800 | N58: =タイヤ条件サマリ!$E$3 -> 0.15 | O58: 0.2715116279 | P58: =M58+(IF(OR($G58="SSR",$G58="ZP",$G58="r-f",$G58="RFT"),VLOOKUP($BF58,タイヤ条件サマリ!$I$33:$J$38,2,0),VLOOKUP($BF58,タイヤ条件サマリ!$I:$J,2,0))+$E$2+$F$2+$G$2)*4 -> 74000 | Q58: 0.3227027027 | R58: 68800 | T58: =VLOOKUP($E58,タイヤホイールサイズ!$A:$E,3,FALSE) -> 1455m | U58: =INDEX('ホイール売価(国産)'!$A$4:$A$77,MATCH(T58,'ホイール売価(国産)'!$B$4:$B$77,0)) -> Treffer-MH | V58: =VLOOKUP($T58,'ホイール売価(国産)'!$B:$I,6,FALSE) -> 4600 | W58: 68520 | X58: =VLOOKUP($T58,'ホイール売価(国産)'!$B:$I,8,FALSE) -> 23000 | Y58: 91800 | Z58: 0.2535947712 | AA58: =Y58+IF(OR($G58="SSR",$G58="ZP",$G58="r-f",$G58="RFT"),VLOOKUP($BF58,タイヤ条件サマリ!$I$33:$J$38,2,0),VLOOKUP($BF58,タイヤ条件サマリ!$I:$J,2,0))*4 -> 93800 | AB58: 0.2695095949 | AC58: =VLOOKUP($T58,タイヤ条件サマリ!$N:$O,2,0) -> 1600 | AD58: 95400 | AE58: 0.2817610063 | AF58: 1455m | AR58: 1455m | BD58: 195 | BE58: 70 | BF58: 14 | BG58: 628.6 | BH58: 本部発注価格 | BL58: 1 | BM58: ベーシック;ミニバン | BN58: 19570143 | BO58: 3 | BQ58: =IF(OR(M58="",M58=0),"-",IF(ROUNDUP(M58,-4)>160000,10000,VLOOKUP(ROUNDUP(M58,-4),タイヤ条件サマリ!$R:$S,2,FALSE))) -> 5000
A59: BRIDGESTONE | B59: 4961914458652 | C59: PXR01182 | D59: VRX2 | E59: 155/65R14 | F59: 75Q | H59: 11600 | I59: 13000 | K59: 8350 | L59: =タイヤ条件サマリ!$C$3 -> 0.72 | M59: 43800 | N59: =タイヤ条件サマリ!$E$3 -> 0.15 | O59: 0.2374429224 | P59: =M59+(IF(OR($G59="SSR",$G59="ZP",$G59="r-f",$G59="RFT"),VLOOKUP($BF59,タイヤ条件サマリ!$I$33:$J$38,2,0),VLOOKUP($BF59,タイヤ条件サマリ!$I:$J,2,0))+$E$2+$F$2+$G$2)*4 -> 49000 | Q59: 0.3183673469 | R59: 43800 | T59: =VLOOKUP($E59,タイヤホイールサイズ!$A:$E,3,FALSE) -> 1445 | U59: =INDEX('ホイール売価(国産)'!$A$4:$A$77,MATCH(T59,'ホイール売価(国産)'!$B$4:$B$77,0)) -> Z-meist VS-8 | V59: =VLOOKUP($T59,'ホイール売価(国産)'!$B:$I,6,FALSE) -> 3000 | W59: 45400 | X59: =VLOOKUP($T59,'ホイール売価(国産)'!$B:$I,8,FALSE) -> 14000 | Y59: 57800 | Z59: 0.214532872 | AA59: =Y59+IF(OR($G59="SSR",$G59="ZP",$G59="r-f",$G59="RFT"),VLOOKUP($BF59,タイヤ条件サマリ!$I$33:$J$38,2,0),VLOOKUP($BF59,タイヤ条件サマリ!$I:$J,2,0))*4 -> 59800 | AB59: 0.2408026756 | AC59: =VLOOKUP($T59,タイヤ条件サマリ!$N:$O,2,0) -> 2400 | AD59: 62200 | AE59: 0.270096463 | AF59: 1445 | AG59: =INDEX('ホイール売価(国産)'!$A$81:$A$128,MATCH(AF59,'ホイール売価(国産)'!$B$81:$B$128,0)) -> Z-meist VS-1 BC | AH59: =VLOOKUP($AF59,'ホイール売価(国産)'!$B$81:$I$128,6,0) -> 3810 | AI59: 48640 | AJ59: =VLOOKUP($AF59,'ホイール売価(国産)'!$B$81:$I$128,8,0) -> 20000 | AK59: 63800 | AL59: 0.2376175549 | AM59: =AK59+IF(OR($G59="SSR",$G59="ZP",$G59="r-f",$G59="RFT"),VLOOKUP($BF59,タイヤ条件サマリ!$I$33:$J$38,2,0),VLOOKUP($BF59,タイヤ条件サマリ!$I:$J,2,0))*4 -> 65800 | AN59: 0.2607902736 | AO59: 2400 | AP59: 68200 | AQ59: 0.2868035191 | AR59: 1445 | AS59: =INDEX('ホイール売価(国産)'!$A$132:$A$171,MATCH(AR59,'ホイール売価(国産)'!$B$132:$B$171,0)) -> SMACK Valkyrie | AT59: =VLOOKUP($AR59,'ホイール売価(国産)'!$B$132:$I$171,6,0) -> 5460 | AU59: =(AT59+$K59)*4 -> 55240 | AV59: =VLOOKUP($AR59,'ホイール売価(国産)'!$B$132:$I$171,8,0) -> 29000 | AW59: =$R59+AV59 -> 72800 | AX59: 0.2412087912 | AY59: =AW59+IF(OR($G59="SSR",$G59="ZP",$G59="r-f",$G59="RFT"),VLOOKUP($BF59,タイヤ条件サマリ!$I$33:$J$38,2,0),VLOOKUP($BF59,タイヤ条件サマリ!$I:$J,2,0))*4 -> 74800 | AZ59: 0.2614973262 | BA59: 2400 | BB59: 77200 | BC59: 0.2844559585 | BD59: 155 | BE59: 65 | BF59: 14 | BG59: 557.1 | BH59: 本部発注価格 | BL59: 1 | BM59: ベーシック;ミニバン | BN59: 15565143 | BO59: 3 | BQ59: =IF(OR(M59="",M59=0),"-",IF(ROUNDUP(M59,-4)>160000,10000,VLOOKUP(ROUNDUP(M59,-4),タイヤ条件サマリ!$R:$S,2,FALSE))) -> 5000
A60: BRIDGESTONE | B60: 4961914458683 | C60: PXR01185 | D60: VRX2 | E60: 165/65R14 | F60: 79Q | H60: 12700 | I60: 14900 | K60: 9140 | L60: =タイヤ条件サマリ!$C$3 -> 0.72 | M60: 50800 | N60: =タイヤ条件サマリ!$E$3 -> 0.15 | O60: 0.2803149606 | P60: =M60+(IF(OR($G60="SSR",$G60="ZP",$G60="r-f",$G60="RFT"),VLOOKUP($BF60,タイヤ条件サマリ!$I$33:$J$38,2,0),VLOOKUP($BF60,タイヤ条件サマリ!$I:$J,2,0))+$E$2+$F$2+$G$2)*4 -> 56000 | Q60: 0.3471428571 | R60: 50800 | T60: =VLOOKUP($E60,タイヤホイールサイズ!$A:$E,3,FALSE) -> 1455 | U60: =INDEX('ホイール売価(国産)'!$A$4:$A$77,MATCH(T60,'ホイール売価(国産)'!$B$4:$B$77,0)) -> Z-meist VS-T7 | V60: =VLOOKUP($T60,'ホイール売価(国産)'!$B:$I,6,FALSE) -> 3780 | W60: 51680 | X60: =VLOOKUP($T60,'ホイール売価(国産)'!$B:$I,8,FALSE) -> 19000 | Y60: 69800 | Z60: 0.2595988539 | AA60: =Y60+IF(OR($G60="SSR",$G60="ZP",$G60="r-f",$G60="RFT"),VLOOKUP($BF60,タイヤ条件サマリ!$I$33:$J$38,2,0),VLOOKUP($BF60,タイヤ条件サマリ!$I:$J,2,0))*4 -> 71800 | AB60: 0.2802228412 | AC60: =VLOOKUP($T60,タイヤ条件サマリ!$N:$O,2,0) -> 1600 | AD60: 73400 | AE60: 0.2959128065 | AF60: 1455 | AG60: =INDEX('ホイール売価(国産)'!$A$81:$A$128,MATCH(AF60,'ホイール売価(国産)'!$B$81:$B$128,0)) -> Z-meist VS-1 BC | AH60: =VLOOKUP($AF60,'ホイール売価(国産)'!$B$81:$I$128,6,0) -> 3900 | AI60: 52160 | AJ60: =VLOOKUP($AF60,'ホイール売価(国産)'!$B$81:$I$128,8,0) -> 25000 | AK60: 75800 | AL60: 0.3118733509 | AM60: =AK60+IF(OR($G60="SSR",$G60="ZP",$G60="r-f",$G60="RFT"),VLOOKUP($BF60,タイヤ条件サマリ!$I$33:$J$38,2,0),VLOOKUP($BF60,タイヤ条件サマリ!$I:$J,2,0))*4 -> 77800 | AN60: 0.329562982 | AO60: 1600 | AP60: 79400 | AQ60: 0.3430730479 | AR60: 1455 | AS60: =INDEX('ホイール売価(国産)'!$A$132:$A$171,MATCH(AR60,'ホイール売価(国産)'!$B$132:$B$171,0)) -> SMACK Valkyrie | AT60: =VLOOKUP($AR60,'ホイール売価(国産)'!$B$132:$I$171,6,0) -> 5720 | AU60: 59440 | AV60: =VLOOKUP($AR60,'ホイール売価(国産)'!$B$132:$I$171,8,0) -> 35000 | AW60: 85800 | AX60: 0.3072261072 | AY60: =AW60+IF(OR($G60="SSR",$G60="ZP",$G60="r-f",$G60="RFT"),VLOOKUP($BF60,タイヤ条件サマリ!$I$33:$J$38,2,0),VLOOKUP($BF60,タイヤ条件サマリ!$I:$J,2,0))*4 -> 87800 | AZ60: 0.3230068337 | BA60: 1600 | BB60: 89400 | BC60: 0.3351230425 | BD60: 165 | BE60: 65 | BF60: 14 | BG60: 570.1 | BH60: 本部発注価格 | BL60: 1 | BM60: ベーシック;ミニバン | BN60: 16565143 | BO60: 3 | BQ60: =IF(OR(M60="",M60=0),"-",IF(ROUNDUP(M60,-4)>160000,10000,VLOOKUP(ROUNDUP(M60,-4),タイヤ条件サマリ!$R:$S,2,FALSE))) -> 5000
A61: BRIDGESTONE | B61: 4961914458706 | C61: PXR01187 | D61: VRX2 | E61: 175/65R14 | F61: 82Q | H61: 14800 | I61: 17300 | K61: 10660 | L61: =タイヤ条件サマリ!$C$3 -> 0.72 | M61: 58800 | N61: =タイヤ条件サマリ!$E$3 -> 0.15 | O61: 0.274829932 | P61: =M61+(IF(OR($G61="SSR",$G61="ZP",$G61="r-f",$G61="RFT"),VLOOKUP($BF61,タイヤ条件サマリ!$I$33:$J$38,2,0),VLOOKUP($BF61,タイヤ条件サマリ!$I:$J,2,0))+$E$2+$F$2+$G$2)*4 -> 64000 | Q61: 0.33375 | R61: 58800 | T61: =VLOOKUP($E61,タイヤホイールサイズ!$A:$E,3,FALSE) -> 1455 | U61: =INDEX('ホイール売価(国産)'!$A$4:$A$77,MATCH(T61,'ホイール売価(国産)'!$B$4:$B$77,0)) -> Z-meist VS-T7 | V61: =VLOOKUP($T61,'ホイール売価(国産)'!$B:$I,6,FALSE) -> 3780 | W61: 57760 | X61: =VLOOKUP($T61,'ホイール売価(国産)'!$B:$I,8,FALSE) -> 19000 | Y61: 77800 | Z61: 0.2575835476 | AA61: =Y61+IF(OR($G61="SSR",$G61="ZP",$G61="r-f",$G61="RFT"),VLOOKUP($BF61,タイヤ条件サマリ!$I$33:$J$38,2,0),VLOOKUP($BF61,タイヤ条件サマリ!$I:$J,2,0))*4 -> 79800 | AB61: 0.2761904762 | AC61: =VLOOKUP($T61,タイヤ条件サマリ!$N:$O,2,0) -> 1600 | AD61: 81400 | AE61: 0.2904176904 | AF61: 1455 | AG61: =INDEX('ホイール売価(国産)'!$A$81:$A$128,MATCH(AF61,'ホイール売価(国産)'!$B$81:$B$128,0)) -> Z-meist VS-1 BC | AH61: =VLOOKUP($AF61,'ホイール売価(国産)'!$B$81:$I$128,6,0) -> 3900 | AI61: 58240 | AJ61: =VLOOKUP($AF61,'ホイール売価(国産)'!$B$81:$I$128,8,0) -> 25000 | AK61: 83800 | AL61: 0.3050119332 | AM61: =AK61+IF(OR($G61="SSR",$G61="ZP",$G61="r-f",$G61="RFT"),VLOOKUP($BF61,タイヤ条件サマリ!$I$33:$J$38,2,0),VLOOKUP($BF61,タイヤ条件サマリ!$I:$J,2,0))*4 -> 85800 | AN61: 0.3212121212 | AO61: 1600 | AP61: 87400 | AQ61: 0.3336384439 | AR61: 1455 | AS61: =INDEX('ホイール売価(国産)'!$A$132:$A$171,MATCH(AR61,'ホイール売価(国産)'!$B$132:$B$171,0)) -> SMACK Valkyrie | AT61: =VLOOKUP($AR61,'ホイール売価(国産)'!$B$132:$I$171,6,0) -> 5720 | AU61: 65520 | AV61: =VLOOKUP($AR61,'ホイール売価(国産)'!$B$132:$I$171,8,0) -> 35000 | AW61: 93800 | AX61: 0.3014925373 | AY61: =AW61+IF(OR($G61="SSR",$G61="ZP",$G61="r-f",$G61="RFT"),VLOOKUP($BF61,タイヤ条件サマリ!$I$33:$J$38,2,0),VLOOKUP($BF61,タイヤ条件サマリ!$I:$J,2,0))*4 -> 95800 | AZ61: 0.3160751566 | BA61: 1600 | BB61: 97400 | BC61: 0.3273100616 | BD61: 175 | BE61: 65 | BF61: 14 | BG61: 583.1 | BH61: 本部発注価格 | BL61: 1 | BM61: ベーシック;ミニバン | BN61: 17565143 | BO61: 3 | BQ61: =IF(OR(M61="",M61=0),"-",IF(ROUNDUP(M61,-4)>160000,10000,VLOOKUP(ROUNDUP(M61,-4),タイヤ条件サマリ!$R:$S,2,FALSE))) -> 5000
A62: BRIDGESTONE | B62: 4961914458744 | C62: PXR01194 | D62: VRX2 | E62: 185/65R14 | F62: 86Q | H62: 16000 | I62: 18700 | K62: 11520 | L62: =タイヤ条件サマリ!$C$3 -> 0.72 | M62: 63800 | N62: =タイヤ条件サマリ!$E$3 -> 0.15 | O62: 0.2777429467 | P62: =M62+(IF(OR($G62="SSR",$G62="ZP",$G62="r-f",$G62="RFT"),VLOOKUP($BF62,タイヤ条件サマリ!$I$33:$J$38,2,0),VLOOKUP($BF62,タイヤ条件サマリ!$I:$J,2,0))+$E$2+$F$2+$G$2)*4 -> 69000 | Q62: 0.332173913 | R62: 63800 | T62: =VLOOKUP($E62,タイヤホイールサイズ!$A:$E,3,FALSE) -> 1455 | U62: =INDEX('ホイール売価(国産)'!$A$4:$A$77,MATCH(T62,'ホイール売価(国産)'!$B$4:$B$77,0)) -> Z-meist VS-T7 | V62: =VLOOKUP($T62,'ホイール売価(国産)'!$B:$I,6,FALSE) -> 3780 | W62: 61200 | X62: =VLOOKUP($T62,'ホイール売価(国産)'!$B:$I,8,FALSE) -> 19000 | Y62: 82800 | Z62: 0.2608695652 | AA62: =Y62+IF(OR($G62="SSR",$G62="ZP",$G62="r-f",$G62="RFT"),VLOOKUP($BF62,タイヤ条件サマリ!$I$33:$J$38,2,0),VLOOKUP($BF62,タイヤ条件サマリ!$I:$J,2,0))*4 -> 84800 | AB62: 0.2783018868 | AC62: =VLOOKUP($T62,タイヤ条件サマリ!$N:$O,2,0) -> 1600 | AD62: 86400 | AE62: 0.2916666667 | AF62: 1455 | AG62: =INDEX('ホイール売価(国産)'!$A$81:$A$128,MATCH(AF62,'ホイール売価(国産)'!$B$81:$B$128,0)) -> Z-meist VS-1 BC | AH62: =VLOOKUP($AF62,'ホイール売価(国産)'!$B$81:$I$128,6,0) -> 3900 | AI62: 61680 | AJ62: =VLOOKUP($AF62,'ホイール売価(国産)'!$B$81:$I$128,8,0) -> 25000 | AK62: 88800 | AL62: 0.3054054054 | AM62: =AK62+IF(OR($G62="SSR",$G62="ZP",$G62="r-f",$G62="RFT"),VLOOKUP($BF62,タイヤ条件サマリ!$I$33:$J$38,2,0),VLOOKUP($BF62,タイヤ条件サマリ!$I:$J,2,0))*4 -> 90800 | AN62: 0.3207048458 | AO62: 1600 | AP62: 92400 | AQ62: 0.3324675325 | AR62: 1455 | AS62: =INDEX('ホイール売価(国産)'!$A$132:$A$171,MATCH(AR62,'ホイール売価(国産)'!$B$132:$B$171,0)) -> SMACK Valkyrie | AT62: =VLOOKUP($AR62,'ホイール売価(国産)'!$B$132:$I$171,6,0) -> 5720 | AU62: 68960 | AV62: =VLOOKUP($AR62,'ホイール売価(国産)'!$B$132:$I$171,8,0) -> 35000 | AW62: 98800 | AX62: 0.3020242915 | AY62: =AW62+IF(OR($G62="SSR",$G62="ZP",$G62="r-f",$G62="RFT"),VLOOKUP($BF62,タイヤ条件サマリ!$I$33:$J$38,2,0),VLOOKUP($BF62,タイヤ条件サマリ!$I:$J,2,0))*4 -> 100800 | AZ62: 0.3158730159 | BA62: 1600 | BB62: 102400 | BC62: 0.3265625 | BD62: 185 | BE62: 65 | BF62: 14 | BG62: 596.1 | BH62: 本部発注価格 | BL62: 1 | BM62: ベーシック;ミニバン | BN62: 18565143 | BO62: 3 | BQ62: =IF(OR(M62="",M62=0),"-",IF(ROUNDUP(M62,-4)>160000,10000,VLOOKUP(ROUNDUP(M62,-4),タイヤ条件サマリ!$R:$S,2,FALSE))) -> 5000
A63: BRIDGESTONE | B63: 4961914458768 | C63: PXR01198 | D63: VRX2 | E63: 195/65R14 | F63: 89Q | H63: 18200 | I63: 21300 | K63: 13100 | L63: =タイヤ条件サマリ!$C$3 -> 0.72 | M63: 71800 | N63: =タイヤ条件サマリ!$E$3 -> 0.15 | O63: 0.2701949861 | P63: =M63+(IF(OR($G63="SSR",$G63="ZP",$G63="r-f",$G63="RFT"),VLOOKUP($BF63,タイヤ条件サマリ!$I$33:$J$38,2,0),VLOOKUP($BF63,タイヤ条件サマリ!$I:$J,2,0))+$E$2+$F$2+$G$2)*4 -> 77000 | Q63: 0.3194805195 | R63: 71800 | T63: =VLOOKUP($E63,タイヤホイールサイズ!$A:$E,3,FALSE) -> 1455m | U63: =INDEX('ホイール売価(国産)'!$A$4:$A$77,MATCH(T63,'ホイール売価(国産)'!$B$4:$B$77,0)) -> Treffer-MH | V63: =VLOOKUP($T63,'ホイール売価(国産)'!$B:$I,6,FALSE) -> 4600 | W63: 70800 | X63: =VLOOKUP($T63,'ホイール売価(国産)'!$B:$I,8,FALSE) -> 23000 | Y63: 94800 | Z63: 0.253164557 | AA63: =Y63+IF(OR($G63="SSR",$G63="ZP",$G63="r-f",$G63="RFT"),VLOOKUP($BF63,タイヤ条件サマリ!$I$33:$J$38,2,0),VLOOKUP($BF63,タイヤ条件サマリ!$I:$J,2,0))*4 -> 96800 | AB63: 0.2685950413 | AC63: =VLOOKUP($T63,タイヤ条件サマリ!$N:$O,2,0) -> 1600 | AD63: 98400 | AE63: 0.2804878049 | AF63: 1455m | AR63: 1455m | BD63: 195 | BE63: 65 | BF63: 14 | BG63: 609.1 | BH63: 本部発注価格 | BL63: 1 | BM63: ベーシック;ミニバン | BN63: 19565143 | BO63: 3 | BQ63: =IF(OR(M63="",M63=0),"-",IF(ROUNDUP(M63,-4)>160000,10000,VLOOKUP(ROUNDUP(M63,-4),タイヤ条件サマリ!$R:$S,2,FALSE))) -> 6000
A64: BRIDGESTONE | B64: 4961914458676 | C64: PXR01184 | D64: VRX2 | E64: 165/60R14 | F64: 75Q | H64: 16600 | I64: 19400 | K64: 11950 | L64: =タイヤ条件サマリ!$C$3 -> 0.72 | M64: 65800 | N64: =タイヤ条件サマリ!$E$3 -> 0.15 | O64: 0.273556231 | P64: =M64+(IF(OR($G64="SSR",$G64="ZP",$G64="r-f",$G64="RFT"),VLOOKUP($BF64,タイヤ条件サマリ!$I$33:$J$38,2,0),VLOOKUP($BF64,タイヤ条件サマリ!$I:$J,2,0))+$E$2+$F$2+$G$2)*4 -> 71000 | Q64: 0.3267605634 | R64: 65800 | T64: =VLOOKUP($E64,タイヤホイールサイズ!$A:$E,3,FALSE) -> 1445 | U64: =INDEX('ホイール売価(国産)'!$A$4:$A$77,MATCH(T64,'ホイール売価(国産)'!$B$4:$B$77,0)) -> Z-meist VS-8 | V64: =VLOOKUP($T64,'ホイール売価(国産)'!$B:$I,6,FALSE) -> 3000 | W64: 59800 | X64: =VLOOKUP($T64,'ホイール売価(国産)'!$B:$I,8,FALSE) -> 14000 | Y64: 79800 | Z64: 0.2506265664 | AA64: =Y64+IF(OR($G64="SSR",$G64="ZP",$G64="r-f",$G64="RFT"),VLOOKUP($BF64,タイヤ条件サマリ!$I$33:$J$38,2,0),VLOOKUP($BF64,タイヤ条件サマリ!$I:$J,2,0))*4 -> 81800 | AB64: 0.2689486553 | AC64: =VLOOKUP($T64,タイヤ条件サマリ!$N:$O,2,0) -> 2400 | AD64: 84200 | AE64: 0.2897862233 | AF64: 1445 | AG64: =INDEX('ホイール売価(国産)'!$A$81:$A$128,MATCH(AF64,'ホイール売価(国産)'!$B$81:$B$128,0)) -> Z-meist VS-1 BC | AH64: =VLOOKUP($AF64,'ホイール売価(国産)'!$B$81:$I$128,6,0) -> 3810 | AI64: 63040 | AJ64: =VLOOKUP($AF64,'ホイール売価(国産)'!$B$81:$I$128,8,0) -> 20000 | AK64: 85800 | AL64: 0.2652680653 | AM64: =AK64+IF(OR($G64="SSR",$G64="ZP",$G64="r-f",$G64="RFT"),VLOOKUP($BF64,タイヤ条件サマリ!$I$33:$J$38,2,0),VLOOKUP($BF64,タイヤ条件サマリ!$I:$J,2,0))*4 -> 87800 | AN64: 0.2820045558 | AO64: 2400 | AP64: 90200 | AQ64: 0.3011086475 | AR64: 1445 | AS64: =INDEX('ホイール売価(国産)'!$A$132:$A$171,MATCH(AR64,'ホイール売価(国産)'!$B$132:$B$171,0)) -> SMACK Valkyrie | AT64: =VLOOKUP($AR64,'ホイール売価(国産)'!$B$132:$I$171,6,0) -> 5460 | AU64: =(AT64+$K64)*4 -> 69640 | AV64: =VLOOKUP($AR64,'ホイール売価(国産)'!$B$132:$I$171,8,0) -> 29000 | AW64: =$R64+AV64 -> 94800 | AX64: 0.2654008439 | AY64: =AW64+IF(OR($G64="SSR",$G64="ZP",$G64="r-f",$G64="RFT"),VLOOKUP($BF64,タイヤ条件サマリ!$I$33:$J$38,2,0),VLOOKUP($BF64,タイヤ条件サマリ!$I:$J,2,0))*4 -> 96800 | AZ64: 0.2805785124 | BA64: 2400 | BB64: 99200 | BC64: 0.297983871 | BD64: 165 | BE64: 60 | BF64: 14 | BG64: 553.6 | BH64: 本部発注価格 | BL64: 1 | BM64: ベーシック;ミニバン | BN64: 16560143 | BO64: 3 | BQ64: =IF(OR(M64="",M64=0),"-",IF(ROUNDUP(M64,-4)>160000,10000,VLOOKUP(ROUNDUP(M64,-4),タイヤ条件サマリ!$R:$S,2,FALSE))) -> 5000
A65: BRIDGESTONE | B65: 4961914458737 | C65: PXR01192 | D65: VRX2 | E65: 185/60R14 | F65: 82Q | H65: 20600 | I65: 24100 | K65: 14830 | L65: =タイヤ条件サマリ!$C$3 -> 0.72 | M65: 81800 | N65: =タイヤ条件サマリ!$E$3 -> 0.15 | O65: 0.2748166259 | P65: =M65+(IF(OR($G65="SSR",$G65="ZP",$G65="r-f",$G65="RFT"),VLOOKUP($BF65,タイヤ条件サマリ!$I$33:$J$38,2,0),VLOOKUP($BF65,タイヤ条件サマリ!$I:$J,2,0))+$E$2+$F$2+$G$2)*4 -> 87000 | Q65: 0.3181609195 | R65: 81800 | T65: =VLOOKUP($E65,タイヤホイールサイズ!$A:$E,3,FALSE) -> 1455 | U65: =INDEX('ホイール売価(国産)'!$A$4:$A$77,MATCH(T65,'ホイール売価(国産)'!$B$4:$B$77,0)) -> Z-meist VS-T7 | V65: =VLOOKUP($T65,'ホイール売価(国産)'!$B:$I,6,FALSE) -> 3780 | W65: 74440 | X65: =VLOOKUP($T65,'ホイール売価(国産)'!$B:$I,8,FALSE) -> 19000 | Y65: 100800 | Z65: 0.2615079365 | AA65: =Y65+IF(OR($G65="SSR",$G65="ZP",$G65="r-f",$G65="RFT"),VLOOKUP($BF65,タイヤ条件サマリ!$I$33:$J$38,2,0),VLOOKUP($BF65,タイヤ条件サマリ!$I:$J,2,0))*4 -> 102800 | AB65: 0.2758754864 | AC65: =VLOOKUP($T65,タイヤ条件サマリ!$N:$O,2,0) -> 1600 | AD65: 104400 | AE65: 0.2869731801 | AF65: 1455 | AG65: =INDEX('ホイール売価(国産)'!$A$81:$A$128,MATCH(AF65,'ホイール売価(国産)'!$B$81:$B$128,0)) -> Z-meist VS-1 BC | AH65: =VLOOKUP($AF65,'ホイール売価(国産)'!$B$81:$I$128,6,0) -> 3900 | AI65: 74920 | AJ65: =VLOOKUP($AF65,'ホイール売価(国産)'!$B$81:$I$128,8,0) -> 25000 | AK65: 106800 | AL65: 0.2985018727 | AM65: =AK65+IF(OR($G65="SSR",$G65="ZP",$G65="r-f",$G65="RFT"),VLOOKUP($BF65,タイヤ条件サマリ!$I$33:$J$38,2,0),VLOOKUP($BF65,タイヤ条件サマリ!$I:$J,2,0))*4 -> 108800 | AN65: 0.3113970588 | AO65: 1600 | AP65: 110400 | AQ65: 0.3213768116 | AR65: 1455 | AS65: =INDEX('ホイール売価(国産)'!$A$132:$A$171,MATCH(AR65,'ホイール売価(国産)'!$B$132:$B$171,0)) -> SMACK Valkyrie | AT65: =VLOOKUP($AR65,'ホイール売価(国産)'!$B$132:$I$171,6,0) -> 5720 | AU65: =(AT65+$K65)*4 -> 82200 | AV65: =VLOOKUP($AR65,'ホイール売価(国産)'!$B$132:$I$171,8,0) -> 35000 | AW65: =$R65+AV65 -> 116800 | AX65: 0.2962328767 | AY65: =AW65+IF(OR($G65="SSR",$G65="ZP",$G65="r-f",$G65="RFT"),VLOOKUP($BF65,タイヤ条件サマリ!$I$33:$J$38,2,0),VLOOKUP($BF65,タイヤ条件サマリ!$I:$J,2,0))*4 -> 118800 | AZ65: 0.3080808081 | BA65: 1600 | BB65: 120400 | BC65: 0.3172757475 | BD65: 185 | BE65: 60 | BF65: 14 | BG65: 577.6 | BH65: 本部発注価格 | BL65: 1 | BM65: ベーシック;ミニバン | BN65: 18560143 | BO65: 3 | BQ65: =IF(OR(M65="",M65=0),"-",IF(ROUNDUP(M65,-4)>160000,10000,VLOOKUP(ROUNDUP(M65,-4),タイヤ条件サマリ!$R:$S,2,FALSE))) -> 6000
A66: BRIDGESTONE | B66: 4961914458645 | C66: PXR01181 | D66: VRX2 | E66: 155/55R14 | F66: 69Q | H66: 16100 | I66: 18800 | K66: 11590 | L66: =タイヤ条件サマリ!$C$3 -> 0.72 | M66: 63800 | N66: =タイヤ条件サマリ!$E$3 -> 0.15 | O66: 0.273354232 | P66: =M66+(IF(OR($G66="SSR",$G66="ZP",$G66="r-f",$G66="RFT"),VLOOKUP($BF66,タイヤ条件サマリ!$I$33:$J$38,2,0),VLOOKUP($BF66,タイヤ条件サマリ!$I:$J,2,0))+$E$2+$F$2+$G$2)*4 -> 69000 | Q66: 0.328115942 | R66: 63800 | T66: =VLOOKUP($E66,タイヤホイールサイズ!$A:$E,3,FALSE) -> 1445 | U66: =INDEX('ホイール売価(国産)'!$A$4:$A$77,MATCH(T66,'ホイール売価(国産)'!$B$4:$B$77,0)) -> Z-meist VS-8 | V66: =VLOOKUP($T66,'ホイール売価(国産)'!$B:$I,6,FALSE) -> 3000 | W66: 58360 | X66: =VLOOKUP($T66,'ホイール売価(国産)'!$B:$I,8,FALSE) -> 14000 | Y66: 77800 | Z66: 0.2498714653 | AA66: =Y66+IF(OR($G66="SSR",$G66="ZP",$G66="r-f",$G66="RFT"),VLOOKUP($BF66,タイヤ条件サマリ!$I$33:$J$38,2,0),VLOOKUP($BF66,タイヤ条件サマリ!$I:$J,2,0))*4 -> 79800 | AB66: 0.2686716792 | AC66: =VLOOKUP($T66,タイヤ条件サマリ!$N:$O,2,0) -> 2400 | AD66: 82200 | AE66: 0.2900243309 | AF66: 1445 | AG66: =INDEX('ホイール売価(国産)'!$A$81:$A$128,MATCH(AF66,'ホイール売価(国産)'!$B$81:$B$128,0)) -> Z-meist VS-1 BC | AH66: =VLOOKUP($AF66,'ホイール売価(国産)'!$B$81:$I$128,6,0) -> 3810 | AI66: 61600 | AJ66: =VLOOKUP($AF66,'ホイール売価(国産)'!$B$81:$I$128,8,0) -> 20000 | AK66: 83800 | AL66: 0.2649164678 | AM66: =AK66+IF(OR($G66="SSR",$G66="ZP",$G66="r-f",$G66="RFT"),VLOOKUP($BF66,タイヤ条件サマリ!$I$33:$J$38,2,0),VLOOKUP($BF66,タイヤ条件サマリ!$I:$J,2,0))*4 -> 85800 | AN66: 0.2820512821 | AO66: 2400 | AP66: 88200 | AQ66: 0.3015873016 | AR66: 1445 | AS66: =INDEX('ホイール売価(国産)'!$A$132:$A$171,MATCH(AR66,'ホイール売価(国産)'!$B$132:$B$171,0)) -> SMACK Valkyrie | AT66: =VLOOKUP($AR66,'ホイール売価(国産)'!$B$132:$I$171,6,0) -> 5460 | AU66: 68200 | AV66: =VLOOKUP($AR66,'ホイール売価(国産)'!$B$132:$I$171,8,0) -> 29000 | AW66: 92800 | AX66: 0.2650862069 | AY66: =AW66+IF(OR($G66="SSR",$G66="ZP",$G66="r-f",$G66="RFT"),VLOOKUP($BF66,タイヤ条件サマリ!$I$33:$J$38,2,0),VLOOKUP($BF66,タイヤ条件サマリ!$I:$J,2,0))*4 -> 94800 | AZ66: 0.2805907173 | BA66: 2400 | BB66: 97200 | BC66: 0.2983539095 | BD66: 155 | BE66: 55 | BF66: 14 | BG66: 526.1 | BH66: 本部発注価格 | BL66: 1 | BM66: ベーシック;ミニバン | BN66: 15555143 | BO66: 3 | BQ66: =IF(OR(M66="",M66=0),"-",IF(ROUNDUP(M66,-4)>160000,10000,VLOOKUP(ROUNDUP(M66,-4),タイヤ条件サマリ!$R:$S,2,FALSE))) -> 5000
A67: BRIDGESTONE | B67: 4961914458669 | C67: PXR01183 | D67: VRX2 | E67: 165/55R14 | F67: 72Q | H67: 18200 | I67: 21300 | K67: 13100 | L67: =タイヤ条件サマリ!$C$3 -> 0.72 | M67: 71800 | N67: =タイヤ条件サマリ!$E$3 -> 0.15 | O67: 0.2701949861 | P67: =M67+(IF(OR($G67="SSR",$G67="ZP",$G67="r-f",$G67="RFT"),VLOOKUP($BF67,タイヤ条件サマリ!$I$33:$J$38,2,0),VLOOKUP($BF67,タイヤ条件サマリ!$I:$J,2,0))+$E$2+$F$2+$G$2)*4 -> 77000 | Q67: 0.3194805195 | R67: 71800 | T67: =VLOOKUP($E67,タイヤホイールサイズ!$A:$E,3,FALSE) -> 1445 | U67: =INDEX('ホイール売価(国産)'!$A$4:$A$77,MATCH(T67,'ホイール売価(国産)'!$B$4:$B$77,0)) -> Z-meist VS-8 | V67: =VLOOKUP($T67,'ホイール売価(国産)'!$B:$I,6,FALSE) -> 3000 | W67: 64400 | X67: =VLOOKUP($T67,'ホイール売価(国産)'!$B:$I,8,FALSE) -> 14000 | Y67: 85800 | Z67: 0.2494172494 | AA67: =Y67+IF(OR($G67="SSR",$G67="ZP",$G67="r-f",$G67="RFT"),VLOOKUP($BF67,タイヤ条件サマリ!$I$33:$J$38,2,0),VLOOKUP($BF67,タイヤ条件サマリ!$I:$J,2,0))*4 -> 87800 | AB67: 0.2665148064 | AC67: =VLOOKUP($T67,タイヤ条件サマリ!$N:$O,2,0) -> 2400 | AD67: 90200 | AE67: 0.2860310421 | AF67: 1445 | AG67: =INDEX('ホイール売価(国産)'!$A$81:$A$128,MATCH(AF67,'ホイール売価(国産)'!$B$81:$B$128,0)) -> Z-meist VS-1 BC | AH67: =VLOOKUP($AF67,'ホイール売価(国産)'!$B$81:$I$128,6,0) -> 3810 | AI67: 67640 | AJ67: =VLOOKUP($AF67,'ホイール売価(国産)'!$B$81:$I$128,8,0) -> 20000 | AK67: 91800 | AL67: 0.2631808279 | AM67: =AK67+IF(OR($G67="SSR",$G67="ZP",$G67="r-f",$G67="RFT"),VLOOKUP($BF67,タイヤ条件サマリ!$I$33:$J$38,2,0),VLOOKUP($BF67,タイヤ条件サマリ!$I:$J,2,0))*4 -> 93800 | AN67: 0.278891258 | AO67: 2400 | AP67: 96200 | AQ67: 0.2968814969 | AR67: 1445 | AS67: =INDEX('ホイール売価(国産)'!$A$132:$A$171,MATCH(AR67,'ホイール売価(国産)'!$B$132:$B$171,0)) -> SMACK Valkyrie | AT67: =VLOOKUP($AR67,'ホイール売価(国産)'!$B$132:$I$171,6,0) -> 5460 | AU67: 74240 | AV67: =VLOOKUP($AR67,'ホイール売価(国産)'!$B$132:$I$171,8,0) -> 29000 | AW67: 100800 | AX67: 0.2634920635 | AY67: =AW67+IF(OR($G67="SSR",$G67="ZP",$G67="r-f",$G67="RFT"),VLOOKUP($BF67,タイヤ条件サマリ!$I$33:$J$38,2,0),VLOOKUP($BF67,タイヤ条件サマリ!$I:$J,2,0))*4 -> 102800 | AZ67: 0.2778210117 | BA67: 2400 | BB67: 105200 | BC67: 0.2942965779 | BD67: 165 | BE67: 55 | BF67: 14 | BG67: 537.1 | BH67: 本部発注価格 | BL67: 1 | BM67: ベーシック;ミニバン | BN67: 16555143 | BO67: 3 | BQ67: =IF(OR(M67="",M67=0),"-",IF(ROUNDUP(M67,-4)>160000,10000,VLOOKUP(ROUNDUP(M67,-4),タイヤ条件サマリ!$R:$S,2,FALSE))) -> 6000
A68: BRIDGESTONE | B68: 4961914458942 | C68: PXR01225 | D68: VRX2 | E68: 205/70R15 | F68: 96Q | H68: 20900 | I68: 24500 | K68: 15050 | L68: =タイヤ条件サマリ!$C$3 -> 0.72 | M68: 82800 | N68: =タイヤ条件サマリ!$E$3 -> 0.15 | O68: 0.2729468599 | P68: =M68+(IF(OR($G68="SSR",$G68="ZP",$G68="r-f",$G68="RFT"),VLOOKUP($BF68,タイヤ条件サマリ!$I$33:$J$38,2,0),VLOOKUP($BF68,タイヤ条件サマリ!$I:$J,2,0))+$E$2+$F$2+$G$2)*4 -> 88000 | Q68: 0.3159090909 | R68: 82800 | T68: =VLOOKUP($E68,タイヤホイールサイズ!$A:$E,3,FALSE) -> 1560 | U68: =INDEX('ホイール売価(国産)'!$A$4:$A$77,MATCH(T68,'ホイール売価(国産)'!$B$4:$B$77,0)) -> Z-meist VS-T7 | V68: =VLOOKUP($T68,'ホイール売価(国産)'!$B:$I,6,FALSE) -> 4450 | W68: 78000 | X68: =VLOOKUP($T68,'ホイール売価(国産)'!$B:$I,8,FALSE) -> 22000 | Y68: 104800 | Z68: 0.2557251908 | AA68: =Y68+IF(OR($G68="SSR",$G68="ZP",$G68="r-f",$G68="RFT"),VLOOKUP($BF68,タイヤ条件サマリ!$I$33:$J$38,2,0),VLOOKUP($BF68,タイヤ条件サマリ!$I:$J,2,0))*4 -> 106800 | AB68: 0.2696629213 | AC68: =VLOOKUP($T68,タイヤ条件サマリ!$N:$O,2,0) -> 2000 | AD68: 108800 | AE68: 0.2830882353 | AF68: 1560 | AG68: =INDEX('ホイール売価(国産)'!$A$81:$A$128,MATCH(AF68,'ホイール売価(国産)'!$B$81:$B$128,0)) -> Z-meist VS-1 BC | AH68: =VLOOKUP($AF68,'ホイール売価(国産)'!$B$81:$I$128,6,0) -> 4670 | AI68: 78880 | AJ68: =VLOOKUP($AF68,'ホイール売価(国産)'!$B$81:$I$128,8,0) -> 28000 | AK68: 110800 | AL68: 0.2880866426 | AM68: =AK68+IF(OR($G68="SSR",$G68="ZP",$G68="r-f",$G68="RFT"),VLOOKUP($BF68,タイヤ条件サマリ!$I$33:$J$38,2,0),VLOOKUP($BF68,タイヤ条件サマリ!$I:$J,2,0))*4 -> 112800 | AN68: 0.3007092199 | AO68: 2000 | AP68: 114800 | AQ68: 0.3128919861 | AR68: 1560 | AS68: =INDEX('ホイール売価(国産)'!$A$132:$A$171,MATCH(AR68,'ホイール売価(国産)'!$B$132:$B$171,0)) -> SMACK Valkyrie | AT68: =VLOOKUP($AR68,'ホイール売価(国産)'!$B$132:$I$171,6,0) -> 6500 | AU68: 86200 | AV68: =VLOOKUP($AR68,'ホイール売価(国産)'!$B$132:$I$171,8,0) -> 38000 | AW68: 120800 | AX68: 0.2864238411 | AY68: =AW68+IF(OR($G68="SSR",$G68="ZP",$G68="r-f",$G68="RFT"),VLOOKUP($BF68,タイヤ条件サマリ!$I$33:$J$38,2,0),VLOOKUP($BF68,タイヤ条件サマリ!$I:$J,2,0))*4 -> 122800 | AZ68: 0.2980456026 | BA68: 2000 | BB68: 124800 | BC68: 0.3092948718 | BD68: 205 | BE68: 70 | BF68: 15 | BG68: 668 | BH68: 本部発注価格 | BL68: 1 | BM68: ベーシック;ミニバン | BN68: 20570153 | BO68: 3 | BQ68: =IF(OR(M68="",M68=0),"-",IF(ROUNDUP(M68,-4)>160000,10000,VLOOKUP(ROUNDUP(M68,-4),タイヤ条件サマリ!$R:$S,2,FALSE))) -> 6000
A69: BRIDGESTONE | B69: 4961914458966 | C69: PXR01228 | D69: VRX2 | E69: 215/70R15 | F69: 98Q | H69: 22000 | I69: 25700 | K69: 15840 | L69: =タイヤ条件サマリ!$C$3 -> 0.72 | M69: 86800 | N69: =タイヤ条件サマリ!$E$3 -> 0.15 | O69: 0.2700460829 | P69: =M69+(IF(OR($G69="SSR",$G69="ZP",$G69="r-f",$G69="RFT"),VLOOKUP($BF69,タイヤ条件サマリ!$I$33:$J$38,2,0),VLOOKUP($BF69,タイヤ条件サマリ!$I:$J,2,0))+$E$2+$F$2+$G$2)*4 -> 92000 | Q69: 0.3113043478 | R69: 86800 | T69: =VLOOKUP($E69,タイヤホイールサイズ!$A:$E,3,FALSE) -> 1560 | U69: =INDEX('ホイール売価(国産)'!$A$4:$A$77,MATCH(T69,'ホイール売価(国産)'!$B$4:$B$77,0)) -> Z-meist VS-T7 | V69: =VLOOKUP($T69,'ホイール売価(国産)'!$B:$I,6,FALSE) -> 4450 | W69: 81160 | X69: =VLOOKUP($T69,'ホイール売価(国産)'!$B:$I,8,FALSE) -> 22000 | Y69: 108800 | Z69: 0.2540441176 | AA69: =Y69+IF(OR($G69="SSR",$G69="ZP",$G69="r-f",$G69="RFT"),VLOOKUP($BF69,タイヤ条件サマリ!$I$33:$J$38,2,0),VLOOKUP($BF69,タイヤ条件サマリ!$I:$J,2,0))*4 -> 110800 | AB69: 0.2675090253 | AC69: =VLOOKUP($T69,タイヤ条件サマリ!$N:$O,2,0) -> 2000 | AD69: 112800 | AE69: 0.2804964539 | AF69: 1560 | AG69: =INDEX('ホイール売価(国産)'!$A$81:$A$128,MATCH(AF69,'ホイール売価(国産)'!$B$81:$B$128,0)) -> Z-meist VS-1 BC | AH69: =VLOOKUP($AF69,'ホイール売価(国産)'!$B$81:$I$128,6,0) -> 4670 | AI69: 82040 | AJ69: =VLOOKUP($AF69,'ホイール売価(国産)'!$B$81:$I$128,8,0) -> 28000 | AK69: 114800 | AL69: 0.2853658537 | AM69: =AK69+IF(OR($G69="SSR",$G69="ZP",$G69="r-f",$G69="RFT"),VLOOKUP($BF69,タイヤ条件サマリ!$I$33:$J$38,2,0),VLOOKUP($BF69,タイヤ条件サマリ!$I:$J,2,0))*4 -> 116800 | AN69: 0.2976027397 | AO69: 2000 | AP69: 118800 | AQ69: 0.3094276094 | AR69: 1560 | AS69: =INDEX('ホイール売価(国産)'!$A$132:$A$171,MATCH(AR69,'ホイール売価(国産)'!$B$132:$B$171,0)) -> SMACK Valkyrie | AT69: =VLOOKUP($AR69,'ホイール売価(国産)'!$B$132:$I$171,6,0) -> 6500 | AU69: 89360 | AV69: =VLOOKUP($AR69,'ホイール売価(国産)'!$B$132:$I$171,8,0) -> 38000 | AW69: 124800 | AX69: 0.283974359 | AY69: =AW69+IF(OR($G69="SSR",$G69="ZP",$G69="r-f",$G69="RFT"),VLOOKUP($BF69,タイヤ条件サマリ!$I$33:$J$38,2,0),VLOOKUP($BF69,タイヤ条件サマリ!$I:$J,2,0))*4 -> 126800 | AZ69: 0.2952681388 | BA69: 2000 | BB69: 128800 | BC69: 0.3062111801 | BD69: 215 | BE69: 70 | BF69: 15 | BG69: 682 | BH69: 本部発注価格 | BL69: 1 | BM69: ベーシック;ミニバン | BN69: 21570153 | BO69: 3 | BQ69: =IF(OR(M69="",M69=0),"-",IF(ROUNDUP(M69,-4)>160000,10000,VLOOKUP(ROUNDUP(M69,-4),タイヤ条件サマリ!$R:$S,2,FALSE))) -> 6000
A70: BRIDGESTONE | B70: 4961914458782 | C70: PXR01200 | D70: VRX2 | E70: 145/65R15 | F70: 72Q | H70: 10500 | I70: 12300 | K70: 7560 | L70: =タイヤ条件サマリ!$C$3 -> 0.72 | M70: 41800 | N70: =タイヤ条件サマリ!$E$3 -> 0.15 | O70: 0.2765550239 | P70: =M70+(IF(OR($G70="SSR",$G70="ZP",$G70="r-f",$G70="RFT"),VLOOKUP($BF70,タイヤ条件サマリ!$I$33:$J$38,2,0),VLOOKUP($BF70,タイヤ条件サマリ!$I:$J,2,0))+$E$2+$F$2+$G$2)*4 -> 47000 | Q70: 0.3565957447 | R70: 41800 | T70: =VLOOKUP($E70,タイヤホイールサイズ!$A:$E,3,FALSE) -> 1545 | U70: =INDEX('ホイール売価(国産)'!$A$4:$A$77,MATCH(T70,'ホイール売価(国産)'!$B$4:$B$77,0)) -> Z-meist VS-T7 | V70: =VLOOKUP($T70,'ホイール売価(国産)'!$B:$I,6,FALSE) -> 4380 | W70: 47760 | X70: =VLOOKUP($T70,'ホイール売価(国産)'!$B:$I,8,FALSE) -> 20000 | Y70: 61800 | Z70: 0.227184466 | AA70: =Y70+IF(OR($G70="SSR",$G70="ZP",$G70="r-f",$G70="RFT"),VLOOKUP($BF70,タイヤ条件サマリ!$I$33:$J$38,2,0),VLOOKUP($BF70,タイヤ条件サマリ!$I:$J,2,0))*4 -> 63800 | AB70: 0.2514106583 | AC70: =VLOOKUP($T70,タイヤ条件サマリ!$N:$O,2,0) -> 2400 | AD70: 66200 | AE70: 0.2785498489 | AF70: 1545 | AG70: =INDEX('ホイール売価(国産)'!$A$81:$A$128,MATCH(AF70,'ホイール売価(国産)'!$B$81:$B$128,0)) -> EuroSpeed S810 | AH70: =VLOOKUP($AF70,'ホイール売価(国産)'!$B$81:$I$128,6,0) -> 4500 | AI70: 48240 | AJ70: =VLOOKUP($AF70,'ホイール売価(国産)'!$B$81:$I$128,8,0) -> 26000 | AK70: 67800 | AL70: 0.2884955752 | AM70: =AK70+IF(OR($G70="SSR",$G70="ZP",$G70="r-f",$G70="RFT"),VLOOKUP($BF70,タイヤ条件サマリ!$I$33:$J$38,2,0),VLOOKUP($BF70,タイヤ条件サマリ!$I:$J,2,0))*4 -> 69800 | AN70: 0.3088825215 | AO70: 2400 | AP70: 72200 | AQ70: 0.3318559557 | AR70: 1545 | AS70: =INDEX('ホイール売価(国産)'!$A$132:$A$171,MATCH(AR70,'ホイール売価(国産)'!$B$132:$B$171,0)) -> SMACK Valkyrie | AT70: =VLOOKUP($AR70,'ホイール売価(国産)'!$B$132:$I$171,6,0) -> 6110 | AU70: 54680 | AV70: =VLOOKUP($AR70,'ホイール売価(国産)'!$B$132:$I$171,8,0) -> 36000 | AW70: 77800 | AX70: 0.2971722365 | AY70: =AW70+IF(OR($G70="SSR",$G70="ZP",$G70="r-f",$G70="RFT"),VLOOKUP($BF70,タイヤ条件サマリ!$I$33:$J$38,2,0),VLOOKUP($BF70,タイヤ条件サマリ!$I:$J,2,0))*4 -> 79800 | AZ70: 0.3147869674 | BA70: 2400 | BB70: =AY70+BA70 -> 82200 | BC70: 0.3347931873 | BD70: =LEFTB(E70,3) -> 145 | BE70: =MIDB(E70,5,2) -> 65 | BF70: 15 | BG70: 569.5 | BH70: 本部発注価格 | BL70: 1 | BM70: ベーシック;ミニバン | BN70: =BD70&BE70&BF70&BO70 -> 14565153 | BO70: 3 | BQ70: =IF(OR(M70="",M70=0),"-",IF(ROUNDUP(M70,-4)>160000,10000,VLOOKUP(ROUNDUP(M70,-4),タイヤ条件サマリ!$R:$S,2,FALSE))) -> 5000
A71: BRIDGESTONE | B71: 4961914458836 | C71: PXR01205 | D71: VRX2 | E71: 175/55R15 | F71: 77Q | H71: 24200 | I71: 28300 | K71: 17420 | L71: =タイヤ条件サマリ!$C$3 -> 0.72 | M71: 95800 | N71: =タイヤ条件サマリ!$E$3 -> 0.15 | O71: 0.272651357 | P71: =M71+(IF(OR($G71="SSR",$G71="ZP",$G71="r-f",$G71="RFT"),VLOOKUP($BF71,タイヤ条件サマリ!$I$33:$J$38,2,0),VLOOKUP($BF71,タイヤ条件サマリ!$I:$J,2,0))+$E$2+$F$2+$G$2)*4 -> 101000 | Q71: 0.3100990099 | R71: 95800 | T71: =VLOOKUP($E71,タイヤホイールサイズ!$A:$E,3,FALSE) -> 1555 | U71: =INDEX('ホイール売価(国産)'!$A$4:$A$77,MATCH(T71,'ホイール売価(国産)'!$B$4:$B$77,0)) -> Z-meist VS-T7 | V71: =VLOOKUP($T71,'ホイール売価(国産)'!$B:$I,6,FALSE) -> 4400 | W71: 87280 | X71: =VLOOKUP($T71,'ホイール売価(国産)'!$B:$I,8,FALSE) -> 21000 | Y71: 116800 | Z71: 0.252739726 | AA71: =Y71+IF(OR($G71="SSR",$G71="ZP",$G71="r-f",$G71="RFT"),VLOOKUP($BF71,タイヤ条件サマリ!$I$33:$J$38,2,0),VLOOKUP($BF71,タイヤ条件サマリ!$I:$J,2,0))*4 -> 118800 | AB71: 0.2653198653 | AC71: =VLOOKUP($T71,タイヤ条件サマリ!$N:$O,2,0) -> 1600 | AD71: 120400 | AE71: 0.2750830565 | AF71: 1555 | AG71: =INDEX('ホイール売価(国産)'!$A$81:$A$128,MATCH(AF71,'ホイール売価(国産)'!$B$81:$B$128,0)) -> Z-meist VS-1 BC | AH71: =VLOOKUP($AF71,'ホイール売価(国産)'!$B$81:$I$128,6,0) -> 4500 | AI71: 87680 | AJ71: =VLOOKUP($AF71,'ホイール売価(国産)'!$B$81:$I$128,8,0) -> 27000 | AK71: 122800 | AL71: 0.2859934853 | AM71: =AK71+IF(OR($G71="SSR",$G71="ZP",$G71="r-f",$G71="RFT"),VLOOKUP($BF71,タイヤ条件サマリ!$I$33:$J$38,2,0),VLOOKUP($BF71,タイヤ条件サマリ!$I:$J,2,0))*4 -> 124800 | AN71: 0.2974358974 | AO71: 1600 | AP71: 126400 | AQ71: 0.3063291139 | AR71: 1555 | AS71: =INDEX('ホイール売価(国産)'!$A$132:$A$171,MATCH(AR71,'ホイール売価(国産)'!$B$132:$B$171,0)) -> SMACK Valkyrie | AT71: =VLOOKUP($AR71,'ホイール売価(国産)'!$B$132:$I$171,6,0) -> 6370 | AU71: 95160 | AV71: =VLOOKUP($AR71,'ホイール売価(国産)'!$B$132:$I$171,8,0) -> 37000 | AW71: 132800 | AX71: 0.2834337349 | AY71: =AW71+IF(OR($G71="SSR",$G71="ZP",$G71="r-f",$G71="RFT"),VLOOKUP($BF71,タイヤ条件サマリ!$I$33:$J$38,2,0),VLOOKUP($BF71,タイヤ条件サマリ!$I:$J,2,0))*4 -> 134800 | AZ71: 0.2940652819 | BA71: 1600 | BB71: 136400 | BC71: 0.3023460411 | BD71: 175 | BE71: 55 | BF71: 15 | BG71: 573.5 | BH71: 本部発注価格 | BL71: 1 | BM71: ベーシック;ミニバン | BN71: 17555153 | BO71: 3 | BQ71: =IF(OR(M71="",M71=0),"-",IF(ROUNDUP(M71,-4)>160000,10000,VLOOKUP(ROUNDUP(M71,-4),タイヤ条件サマリ!$R:$S,2,FALSE))) -> 6000
A72: BRIDGESTONE | B72: 4961914458829 | C72: PXR01204 | D72: VRX2 | E72: 165/65R15 | F72: 81Q | H72: 14800 | I72: 17300 | K72: 10660 | L72: =タイヤ条件サマリ!$C$3 -> 0.72 | M72: 58800 | N72: =タイヤ条件サマリ!$E$3 -> 0.15 | O72: 0.274829932 | P72: =M72+(IF(OR($G72="SSR",$G72="ZP",$G72="r-f",$G72="RFT"),VLOOKUP($BF72,タイヤ条件サマリ!$I$33:$J$38,2,0),VLOOKUP($BF72,タイヤ条件サマリ!$I:$J,2,0))+$E$2+$F$2+$G$2)*4 -> 64000 | Q72: 0.33375 | R72: 58800 | T72: =VLOOKUP($E72,タイヤホイールサイズ!$A:$E,3,FALSE) -> 1545 | U72: =INDEX('ホイール売価(国産)'!$A$4:$A$77,MATCH(T72,'ホイール売価(国産)'!$B$4:$B$77,0)) -> Z-meist VS-T7 | V72: =VLOOKUP($T72,'ホイール売価(国産)'!$B:$I,6,FALSE) -> 4380 | W72: 60160 | X72: =VLOOKUP($T72,'ホイール売価(国産)'!$B:$I,8,FALSE) -> 20000 | Y72: 78800 | Z72: 0.2365482234 | AA72: =Y72+IF(OR($G72="SSR",$G72="ZP",$G72="r-f",$G72="RFT"),VLOOKUP($BF72,タイヤ条件サマリ!$I$33:$J$38,2,0),VLOOKUP($BF72,タイヤ条件サマリ!$I:$J,2,0))*4 -> 80800 | AB72: 0.2554455446 | AC72: =VLOOKUP($T72,タイヤ条件サマリ!$N:$O,2,0) -> 2400 | AD72: 83200 | AE72: 0.2769230769 | AF72: 1545 | AG72: =INDEX('ホイール売価(国産)'!$A$81:$A$128,MATCH(AF72,'ホイール売価(国産)'!$B$81:$B$128,0)) -> EuroSpeed S810 | AH72: =VLOOKUP($AF72,'ホイール売価(国産)'!$B$81:$I$128,6,0) -> 4500 | AI72: 60640 | AJ72: =VLOOKUP($AF72,'ホイール売価(国産)'!$B$81:$I$128,8,0) -> 26000 | AK72: 84800 | AL72: 0.2849056604 | AM72: =AK72+IF(OR($G72="SSR",$G72="ZP",$G72="r-f",$G72="RFT"),VLOOKUP($BF72,タイヤ条件サマリ!$I$33:$J$38,2,0),VLOOKUP($BF72,タイヤ条件サマリ!$I:$J,2,0))*4 -> 86800 | AN72: 0.3013824885 | AO72: 2400 | AP72: 89200 | AQ72: 0.3201793722 | AR72: 1545 | AS72: =INDEX('ホイール売価(国産)'!$A$132:$A$171,MATCH(AR72,'ホイール売価(国産)'!$B$132:$B$171,0)) -> SMACK Valkyrie | AT72: =VLOOKUP($AR72,'ホイール売価(国産)'!$B$132:$I$171,6,0) -> 6110 | AU72: 67080 | AV72: =VLOOKUP($AR72,'ホイール売価(国産)'!$B$132:$I$171,8,0) -> 36000 | AW72: 94800 | AX72: 0.2924050633 | AY72: =AW72+IF(OR($G72="SSR",$G72="ZP",$G72="r-f",$G72="RFT"),VLOOKUP($BF72,タイヤ条件サマリ!$I$33:$J$38,2,0),VLOOKUP($BF72,タイヤ条件サマリ!$I:$J,2,0))*4 -> 96800 | AZ72: 0.3070247934 | BA72: 2400 | BB72: 99200 | BC72: 0.3237903226 | BD72: 165 | BE72: 65 | BF72: 15 | BG72: 595.5 | BH72: 本部発注価格 | BL72: 1 | BM72: ベーシック;ミニバン | BN72: 16565153 | BO72: 3 | BQ72: =IF(OR(M72="",M72=0),"-",IF(ROUNDUP(M72,-4)>160000,10000,VLOOKUP(ROUNDUP(M72,-4),タイヤ条件サマリ!$R:$S,2,FALSE))) -> 5000
A73: BRIDGESTONE | B73: 4961914458850 | C73: PXR01207 | D73: VRX2 | E73: 175/65R15 | F73: 84Q | H73: 16000 | I73: 18700 | K73: =ROUND(H73*$L73,-1) -> 11520 | L73: =タイヤ条件サマリ!$C$3 -> 0.72 | M73: =ROUND(I73*(1-$N73)*4,-3)-200 -> 63800 | N73: =タイヤ条件サマリ!$E$3 -> 0.15 | O73: 0.2777429467 | P73: =M73+(IF(OR($G73="SSR",$G73="ZP",$G73="r-f",$G73="RFT"),VLOOKUP($BF73,タイヤ条件サマリ!$I$33:$J$38,2,0),VLOOKUP($BF73,タイヤ条件サマリ!$I:$J,2,0))+$E$2+$F$2+$G$2)*4 -> 69000 | Q73: 0.332173913 | R73: 63800 | T73: =VLOOKUP($E73,タイヤホイールサイズ!$A:$E,3,FALSE) -> 1555 | U73: =INDEX('ホイール売価(国産)'!$A$4:$A$77,MATCH(T73,'ホイール売価(国産)'!$B$4:$B$77,0)) -> Z-meist VS-T7 | V73: =VLOOKUP($T73,'ホイール売価(国産)'!$B:$I,6,FALSE) -> 4400 | W73: 63680 | X73: =VLOOKUP($T73,'ホイール売価(国産)'!$B:$I,8,FALSE) -> 21000 | Y73: 84800 | Z73: 0.2490566038 | AA73: =Y73+IF(OR($G73="SSR",$G73="ZP",$G73="r-f",$G73="RFT"),VLOOKUP($BF73,タイヤ条件サマリ!$I$33:$J$38,2,0),VLOOKUP($BF73,タイヤ条件サマリ!$I:$J,2,0))*4 -> 86800 | AB73: 0.266359447 | AC73: =VLOOKUP($T73,タイヤ条件サマリ!$N:$O,2,0) -> 1600 | AD73: 88400 | AE73: 0.279638009 | AF73: 1555 | AG73: =INDEX('ホイール売価(国産)'!$A$81:$A$128,MATCH(AF73,'ホイール売価(国産)'!$B$81:$B$128,0)) -> Z-meist VS-1 BC | AH73: =VLOOKUP($AF73,'ホイール売価(国産)'!$B$81:$I$128,6,0) -> 4500 | AI73: 64080 | AJ73: =VLOOKUP($AF73,'ホイール売価(国産)'!$B$81:$I$128,8,0) -> 27000 | AK73: 90800 | AL73: 0.2942731278 | AM73: =AK73+IF(OR($G73="SSR",$G73="ZP",$G73="r-f",$G73="RFT"),VLOOKUP($BF73,タイヤ条件サマリ!$I$33:$J$38,2,0),VLOOKUP($BF73,タイヤ条件サマリ!$I:$J,2,0))*4 -> 92800 | AN73: 0.3094827586 | AO73: 1600 | AP73: 94400 | AQ73: 0.3211864407 | AR73: 1555 | AS73: =INDEX('ホイール売価(国産)'!$A$132:$A$171,MATCH(AR73,'ホイール売価(国産)'!$B$132:$B$171,0)) -> SMACK Valkyrie | AT73: =VLOOKUP($AR73,'ホイール売価(国産)'!$B$132:$I$171,6,0) -> 6370 | AU73: 71560 | AV73: =VLOOKUP($AR73,'ホイール売価(国産)'!$B$132:$I$171,8,0) -> 37000 | AW73: 100800 | AX73: 0.2900793651 | AY73: =AW73+IF(OR($G73="SSR",$G73="ZP",$G73="r-f",$G73="RFT"),VLOOKUP($BF73,タイヤ条件サマリ!$I$33:$J$38,2,0),VLOOKUP($BF73,タイヤ条件サマリ!$I:$J,2,0))*4 -> 102800 | AZ73: 0.3038910506 | BA73: 1600 | BB73: 104400 | BC73: 0.314559387 | BD73: 175 | BE73: 65 | BF73: 15 | BG73: 608.5 | BH73: 本部発注価格 | BL73: 1 | BM73: ベーシック;ミニバン | BN73: 17565153 | BO73: 3 | BQ73: =IF(OR(M73="",M73=0),"-",IF(ROUNDUP(M73,-4)>160000,10000,VLOOKUP(ROUNDUP(M73,-4),タイヤ条件サマリ!$R:$S,2,FALSE))) -> 5000
A74: BRIDGESTONE | B74: 4961914458881 | C74: PXR01212 | D74: VRX2 | E74: 185/65R15 | F74: 88Q | H74: 18200 | I74: 21300 | K74: 13100 | L74: =タイヤ条件サマリ!$C$3 -> 0.72 | M74: 71800 | N74: =タイヤ条件サマリ!$E$3 -> 0.15 | O74: 0.2701949861 | P74: =M74+(IF(OR($G74="SSR",$G74="ZP",$G74="r-f",$G74="RFT"),VLOOKUP($BF74,タイヤ条件サマリ!$I$33:$J$38,2,0),VLOOKUP($BF74,タイヤ条件サマリ!$I:$J,2,0))+$E$2+$F$2+$G$2)*4 -> 77000 | Q74: 0.3194805195 | R74: 71800 | T74: =VLOOKUP($E74,タイヤホイールサイズ!$A:$E,3,FALSE) -> 1555 | U74: =INDEX('ホイール売価(国産)'!$A$4:$A$77,MATCH(T74,'ホイール売価(国産)'!$B$4:$B$77,0)) -> Z-meist VS-T7 | V74: =VLOOKUP($T74,'ホイール売価(国産)'!$B:$I,6,FALSE) -> 4400 | W74: 70000 | X74: =VLOOKUP($T74,'ホイール売価(国産)'!$B:$I,8,FALSE) -> 21000 | Y74: 92800 | Z74: 0.2456896552 | AA74: =Y74+IF(OR($G74="SSR",$G74="ZP",$G74="r-f",$G74="RFT"),VLOOKUP($BF74,タイヤ条件サマリ!$I$33:$J$38,2,0),VLOOKUP($BF74,タイヤ条件サマリ!$I:$J,2,0))*4 -> 94800 | AB74: 0.2616033755 | AC74: =VLOOKUP($T74,タイヤ条件サマリ!$N:$O,2,0) -> 1600 | AD74: 96400 | AE74: 0.2738589212 | AF74: 1555 | AG74: =INDEX('ホイール売価(国産)'!$A$81:$A$128,MATCH(AF74,'ホイール売価(国産)'!$B$81:$B$128,0)) -> Z-meist VS-1 BC | AH74: =VLOOKUP($AF74,'ホイール売価(国産)'!$B$81:$I$128,6,0) -> 4500 | AI74: 70400 | AJ74: =VLOOKUP($AF74,'ホイール売価(国産)'!$B$81:$I$128,8,0) -> 27000 | AK74: 98800 | AL74: 0.2874493927 | AM74: =AK74+IF(OR($G74="SSR",$G74="ZP",$G74="r-f",$G74="RFT"),VLOOKUP($BF74,タイヤ条件サマリ!$I$33:$J$38,2,0),VLOOKUP($BF74,タイヤ条件サマリ!$I:$J,2,0))*4 -> 100800 | AN74: 0.3015873016 | AO74: 1600 | AP74: 102400 | AQ74: 0.3125 | AR74: 1555 | AS74: =INDEX('ホイール売価(国産)'!$A$132:$A$171,MATCH(AR74,'ホイール売価(国産)'!$B$132:$B$171,0)) -> SMACK Valkyrie | AT74: =VLOOKUP($AR74,'ホイール売価(国産)'!$B$132:$I$171,6,0) -> 6370 | AU74: 77880 | AV74: =VLOOKUP($AR74,'ホイール売価(国産)'!$B$132:$I$171,8,0) -> 37000 | AW74: 108800 | AX74: 0.2841911765 | AY74: =AW74+IF(OR($G74="SSR",$G74="ZP",$G74="r-f",$G74="RFT"),VLOOKUP($BF74,タイヤ条件サマリ!$I$33:$J$38,2,0),VLOOKUP($BF74,タイヤ条件サマリ!$I:$J,2,0))*4 -> 110800 | AZ74: 0.2971119134 | BA74: 1600 | BB74: 112400 | BC74: 0.3071174377 | BD74: 185 | BE74: 65 | BF74: 15 | BG74: 621.5 | BH74: 本部発注価格 | BL74: 1 | BM74: ベーシック;ミニバン | BN74: 18565153 | BO74: 3 | BQ74: =IF(OR(M74="",M74=0),"-",IF(ROUNDUP(M74,-4)>160000,10000,VLOOKUP(ROUNDUP(M74,-4),タイヤ条件サマリ!$R:$S,2,FALSE))) -> 6000
A75: BRIDGESTONE | B75: 4961914458911 | C75: PXR01219 | D75: VRX2 | E75: 195/65R15 | F75: 91Q | H75: 20100 | I75: 23500 | K75: 14470 | L75: =タイヤ条件サマリ!$C$3 -> 0.72 | M75: 79800 | N75: =タイヤ条件サマリ!$E$3 -> 0.15 | O75: 0.2746867168 | P75: =M75+(IF(OR($G75="SSR",$G75="ZP",$G75="r-f",$G75="RFT"),VLOOKUP($BF75,タイヤ条件サマリ!$I$33:$J$38,2,0),VLOOKUP($BF75,タイヤ条件サマリ!$I:$J,2,0))+$E$2+$F$2+$G$2)*4 -> 85000 | Q75: 0.3190588235 | R75: 79800 | T75: =VLOOKUP($E75,タイヤホイールサイズ!$A:$E,3,FALSE) -> 1560 | U75: =INDEX('ホイール売価(国産)'!$A$4:$A$77,MATCH(T75,'ホイール売価(国産)'!$B$4:$B$77,0)) -> Z-meist VS-T7 | V75: =VLOOKUP($T75,'ホイール売価(国産)'!$B:$I,6,FALSE) -> 4450 | W75: 75680 | X75: =VLOOKUP($T75,'ホイール売価(国産)'!$B:$I,8,FALSE) -> 22000 | Y75: 101800 | Z75: 0.2565815324 | AA75: =Y75+IF(OR($G75="SSR",$G75="ZP",$G75="r-f",$G75="RFT"),VLOOKUP($BF75,タイヤ条件サマリ!$I$33:$J$38,2,0),VLOOKUP($BF75,タイヤ条件サマリ!$I:$J,2,0))*4 -> 103800 | AB75: 0.2709055877 | AC75: =VLOOKUP($T75,タイヤ条件サマリ!$N:$O,2,0) -> 2000 | AD75: 105800 | AE75: 0.2846880907 | AF75: 1560 | AG75: =INDEX('ホイール売価(国産)'!$A$81:$A$128,MATCH(AF75,'ホイール売価(国産)'!$B$81:$B$128,0)) -> Z-meist VS-1 BC | AH75: =VLOOKUP($AF75,'ホイール売価(国産)'!$B$81:$I$128,6,0) -> 4670 | AI75: 76560 | AJ75: =VLOOKUP($AF75,'ホイール売価(国産)'!$B$81:$I$128,8,0) -> 28000 | AK75: 107800 | AL75: 0.2897959184 | AM75: =AK75+IF(OR($G75="SSR",$G75="ZP",$G75="r-f",$G75="RFT"),VLOOKUP($BF75,タイヤ条件サマリ!$I$33:$J$38,2,0),VLOOKUP($BF75,タイヤ条件サマリ!$I:$J,2,0))*4 -> 109800 | AN75: 0.3027322404 | AO75: 2000 | AP75: 111800 | AQ75: 0.3152057245 | AR75: 1560 | AS75: =INDEX('ホイール売価(国産)'!$A$132:$A$171,MATCH(AR75,'ホイール売価(国産)'!$B$132:$B$171,0)) -> SMACK Valkyrie | AT75: =VLOOKUP($AR75,'ホイール売価(国産)'!$B$132:$I$171,6,0) -> 6500 | AU75: 83880 | AV75: =VLOOKUP($AR75,'ホイール売価(国産)'!$B$132:$I$171,8,0) -> 38000 | AW75: 117800 | AX75: 0.2879456706 | AY75: =AW75+IF(OR($G75="SSR",$G75="ZP",$G75="r-f",$G75="RFT"),VLOOKUP($BF75,タイヤ条件サマリ!$I$33:$J$38,2,0),VLOOKUP($BF75,タイヤ条件サマリ!$I:$J,2,0))*4 -> 119800 | AZ75: 0.2998330551 | BA75: 2000 | BB75: 121800 | BC75: 0.3113300493 | BD75: 195 | BE75: 65 | BF75: 15 | BG75: 634.5 | BH75: 本部発注価格 | BL75: 1 | BM75: ベーシック;ミニバン | BN75: 19565153 | BO75: 3 | BQ75: =IF(OR(M75="",M75=0),"-",IF(ROUNDUP(M75,-4)>160000,10000,VLOOKUP(ROUNDUP(M75,-4),タイヤ条件サマリ!$R:$S,2,FALSE))) -> 6000
A76: BRIDGESTONE | B76: 4961914458935 | C76: PXR01223 | D76: VRX2 | E76: 205/65R15 | F76: 94Q | H76: 22000 | I76: 25700 | K76: 15840 | L76: =タイヤ条件サマリ!$C$3 -> 0.72 | M76: 86800 | N76: =タイヤ条件サマリ!$E$3 -> 0.15 | O76: 0.2700460829 | P76: =M76+(IF(OR($G76="SSR",$G76="ZP",$G76="r-f",$G76="RFT"),VLOOKUP($BF76,タイヤ条件サマリ!$I$33:$J$38,2,0),VLOOKUP($BF76,タイヤ条件サマリ!$I:$J,2,0))+$E$2+$F$2+$G$2)*4 -> 92000 | Q76: 0.3113043478 | R76: 86800 | T76: =VLOOKUP($E76,タイヤホイールサイズ!$A:$E,3,FALSE) -> 1560 | U76: =INDEX('ホイール売価(国産)'!$A$4:$A$77,MATCH(T76,'ホイール売価(国産)'!$B$4:$B$77,0)) -> Z-meist VS-T7 | V76: =VLOOKUP($T76,'ホイール売価(国産)'!$B:$I,6,FALSE) -> 4450 | W76: 81160 | X76: =VLOOKUP($T76,'ホイール売価(国産)'!$B:$I,8,FALSE) -> 22000 | Y76: 108800 | Z76: 0.2540441176 | AA76: =Y76+IF(OR($G76="SSR",$G76="ZP",$G76="r-f",$G76="RFT"),VLOOKUP($BF76,タイヤ条件サマリ!$I$33:$J$38,2,0),VLOOKUP($BF76,タイヤ条件サマリ!$I:$J,2,0))*4 -> 110800 | AB76: 0.2675090253 | AC76: =VLOOKUP($T76,タイヤ条件サマリ!$N:$O,2,0) -> 2000 | AD76: 112800 | AE76: 0.2804964539 | AF76: 1560 | AG76: =INDEX('ホイール売価(国産)'!$A$81:$A$128,MATCH(AF76,'ホイール売価(国産)'!$B$81:$B$128,0)) -> Z-meist VS-1 BC | AH76: =VLOOKUP($AF76,'ホイール売価(国産)'!$B$81:$I$128,6,0) -> 4670 | AI76: 82040 | AJ76: =VLOOKUP($AF76,'ホイール売価(国産)'!$B$81:$I$128,8,0) -> 28000 | AK76: 114800 | AL76: 0.2853658537 | AM76: =AK76+IF(OR($G76="SSR",$G76="ZP",$G76="r-f",$G76="RFT"),VLOOKUP($BF76,タイヤ条件サマリ!$I$33:$J$38,2,0),VLOOKUP($BF76,タイヤ条件サマリ!$I:$J,2,0))*4 -> 116800 | AN76: 0.2976027397 | AO76: 2000 | AP76: 118800 | AQ76: 0.3094276094 | AR76: 1560 | AS76: =INDEX('ホイール売価(国産)'!$A$132:$A$171,MATCH(AR76,'ホイール売価(国産)'!$B$132:$B$171,0)) -> SMACK Valkyrie | AT76: =VLOOKUP($AR76,'ホイール売価(国産)'!$B$132:$I$171,6,0) -> 6500 | AU76: 89360 | AV76: =VLOOKUP($AR76,'ホイール売価(国産)'!$B$132:$I$171,8,0) -> 38000 | AW76: 124800 | AX76: 0.283974359 | AY76: =AW76+IF(OR($G76="SSR",$G76="ZP",$G76="r-f",$G76="RFT"),VLOOKUP($BF76,タイヤ条件サマリ!$I$33:$J$38,2,0),VLOOKUP($BF76,タイヤ条件サマリ!$I:$J,2,0))*4 -> 126800 | AZ76: 0.2952681388 | BA76: 2000 | BB76: 128800 | BC76: 0.3062111801 | BD76: 205 | BE76: 65 | BF76: 15 | BG76: 647.5 | BH76: 本部発注価格 | BL76: 1 | BM76: ベーシック;ミニバン | BN76: 20565153 | BO76: 3 | BQ76: =IF(OR(M76="",M76=0),"-",IF(ROUNDUP(M76,-4)>160000,10000,VLOOKUP(ROUNDUP(M76,-4),タイヤ条件サマリ!$R:$S,2,FALSE))) -> 6000
A77: BRIDGESTONE | B77: 4961914458959 | C77: PXR01227 | D77: VRX2 | E77: 215/65R15 | F77: 96Q | H77: 24000 | I77: 28100 | K77: 17280 | L77: =タイヤ条件サマリ!$C$3 -> 0.72 | M77: 95800 | N77: =タイヤ条件サマリ!$E$3 -> 0.15 | O77: 0.2784968685 | P77: =M77+(IF(OR($G77="SSR",$G77="ZP",$G77="r-f",$G77="RFT"),VLOOKUP($BF77,タイヤ条件サマリ!$I$33:$J$38,2,0),VLOOKUP($BF77,タイヤ条件サマリ!$I:$J,2,0))+$E$2+$F$2+$G$2)*4 -> 101000 | Q77: 0.3156435644 | R77: 95800 | T77: =VLOOKUP($E77,タイヤホイールサイズ!$A:$E,3,FALSE) -> 1560 | U77: =INDEX('ホイール売価(国産)'!$A$4:$A$77,MATCH(T77,'ホイール売価(国産)'!$B$4:$B$77,0)) -> Z-meist VS-T7 | V77: =VLOOKUP($T77,'ホイール売価(国産)'!$B:$I,6,FALSE) -> 4450 | W77: 86920 | X77: =VLOOKUP($T77,'ホイール売価(国産)'!$B:$I,8,FALSE) -> 22000 | Y77: 117800 | Z77: 0.262139219 | AA77: =Y77+IF(OR($G77="SSR",$G77="ZP",$G77="r-f",$G77="RFT"),VLOOKUP($BF77,タイヤ条件サマリ!$I$33:$J$38,2,0),VLOOKUP($BF77,タイヤ条件サマリ!$I:$J,2,0))*4 -> 119800 | AB77: 0.274457429 | AC77: =VLOOKUP($T77,タイヤ条件サマリ!$N:$O,2,0) -> 2000 | AD77: 121800 | AE77: 0.2863711002 | AF77: 1560 | AG77: =INDEX('ホイール売価(国産)'!$A$81:$A$128,MATCH(AF77,'ホイール売価(国産)'!$B$81:$B$128,0)) -> Z-meist VS-1 BC | AH77: =VLOOKUP($AF77,'ホイール売価(国産)'!$B$81:$I$128,6,0) -> 4670 | AI77: 87800 | AJ77: =VLOOKUP($AF77,'ホイール売価(国産)'!$B$81:$I$128,8,0) -> 28000 | AK77: 123800 | AL77: 0.2907915994 | AM77: =AK77+IF(OR($G77="SSR",$G77="ZP",$G77="r-f",$G77="RFT"),VLOOKUP($BF77,タイヤ条件サマリ!$I$33:$J$38,2,0),VLOOKUP($BF77,タイヤ条件サマリ!$I:$J,2,0))*4 -> 125800 | AN77: 0.3020667727 | AO77: 2000 | AP77: 127800 | AQ77: 0.3129890454 | AR77: 1560 | AS77: =INDEX('ホイール売価(国産)'!$A$132:$A$171,MATCH(AR77,'ホイール売価(国産)'!$B$132:$B$171,0)) -> SMACK Valkyrie | AT77: =VLOOKUP($AR77,'ホイール売価(国産)'!$B$132:$I$171,6,0) -> 6500 | AU77: 95120 | AV77: =VLOOKUP($AR77,'ホイール売価(国産)'!$B$132:$I$171,8,0) -> 38000 | AW77: 133800 | AX77: 0.2890881913 | AY77: =AW77+IF(OR($G77="SSR",$G77="ZP",$G77="r-f",$G77="RFT"),VLOOKUP($BF77,タイヤ条件サマリ!$I$33:$J$38,2,0),VLOOKUP($BF77,タイヤ条件サマリ!$I:$J,2,0))*4 -> 135800 | AZ77: 0.2995581738 | BA77: 2000 | BB77: 137800 | BC77: 0.309724238 | BD77: 215 | BE77: 65 | BF77: 15 | BG77: 660.5 | BH77: 本部発注価格 | BL77: 1 | BM77: ベーシック;ミニバン | BN77: 21565153 | BO77: 3 | BQ77: =IF(OR(M77="",M77=0),"-",IF(ROUNDUP(M77,-4)>160000,10000,VLOOKUP(ROUNDUP(M77,-4),タイヤ条件サマリ!$R:$S,2,FALSE))) -> 6000
A78: BRIDGESTONE | B78: 4961914458812 | C78: PXR01203 | D78: VRX2 | E78: 165/60R15 | F78: 77Q | H78: 19700 | I78: 23000 | K78: 14180 | L78: =タイヤ条件サマリ!$C$3 -> 0.72 | M78: 77800 | N78: =タイヤ条件サマリ!$E$3 -> 0.15 | O78: 0.2709511568 | P78: =M78+(IF(OR($G78="SSR",$G78="ZP",$G78="r-f",$G78="RFT"),VLOOKUP($BF78,タイヤ条件サマリ!$I$33:$J$38,2,0),VLOOKUP($BF78,タイヤ条件サマリ!$I:$J,2,0))+$E$2+$F$2+$G$2)*4 -> 83000 | Q78: 0.316626506 | R78: 77800 | T78: =VLOOKUP($E78,タイヤホイールサイズ!$A:$E,3,FALSE) -> 1545 | U78: =INDEX('ホイール売価(国産)'!$A$4:$A$77,MATCH(T78,'ホイール売価(国産)'!$B$4:$B$77,0)) -> Z-meist VS-T7 | V78: =VLOOKUP($T78,'ホイール売価(国産)'!$B:$I,6,FALSE) -> 4380 | W78: 74240 | X78: =VLOOKUP($T78,'ホイール売価(国産)'!$B:$I,8,FALSE) -> 20000 | Y78: 97800 | Z78: 0.2408997955 | AA78: =Y78+IF(OR($G78="SSR",$G78="ZP",$G78="r-f",$G78="RFT"),VLOOKUP($BF78,タイヤ条件サマリ!$I$33:$J$38,2,0),VLOOKUP($BF78,タイヤ条件サマリ!$I:$J,2,0))*4 -> 99800 | AB78: 0.2561122244 | AC78: =VLOOKUP($T78,タイヤ条件サマリ!$N:$O,2,0) -> 2400 | AD78: 102200 | AE78: 0.2735812133 | AF78: 1545 | AG78: =INDEX('ホイール売価(国産)'!$A$81:$A$128,MATCH(AF78,'ホイール売価(国産)'!$B$81:$B$128,0)) -> EuroSpeed S810 | AH78: =VLOOKUP($AF78,'ホイール売価(国産)'!$B$81:$I$128,6,0) -> 4500 | AI78: 74720 | AJ78: =VLOOKUP($AF78,'ホイール売価(国産)'!$B$81:$I$128,8,0) -> 26000 | AK78: 103800 | AL78: 0.2801541426 | AM78: =AK78+IF(OR($G78="SSR",$G78="ZP",$G78="r-f",$G78="RFT"),VLOOKUP($BF78,タイヤ条件サマリ!$I$33:$J$38,2,0),VLOOKUP($BF78,タイヤ条件サマリ!$I:$J,2,0))*4 -> 105800 | AN78: 0.2937618147 | AO78: 2400 | AP78: 108200 | AQ78: 0.3094269871 | AR78: 1545 | AS78: =INDEX('ホイール売価(国産)'!$A$132:$A$171,MATCH(AR78,'ホイール売価(国産)'!$B$132:$B$171,0)) -> SMACK Valkyrie | AT78: =VLOOKUP($AR78,'ホイール売価(国産)'!$B$132:$I$171,6,0) -> 6110 | AU78: 81160 | AV78: =VLOOKUP($AR78,'ホイール売価(国産)'!$B$132:$I$171,8,0) -> 36000 | AW78: 113800 | AX78: 0.2868189807 | AY78: =AW78+IF(OR($G78="SSR",$G78="ZP",$G78="r-f",$G78="RFT"),VLOOKUP($BF78,タイヤ条件サマリ!$I$33:$J$38,2,0),VLOOKUP($BF78,タイヤ条件サマリ!$I:$J,2,0))*4 -> 115800 | AZ78: 0.2991364421 | BA78: 2400 | BB78: 118200 | BC78: 0.3133671743 | BD78: 165 | BE78: 60 | BF78: 15 | BG78: 579 | BH78: 本部発注価格 | BL78: 1 | BM78: ベーシック;ミニバン | BN78: 16560153 | BO78: 3 | BQ78: =IF(OR(M78="",M78=0),"-",IF(ROUNDUP(M78,-4)>160000,10000,VLOOKUP(ROUNDUP(M78,-4),タイヤ条件サマリ!$R:$S,2,FALSE))) -> 6000
A79: BRIDGESTONE | B79: 4961914458843 | C79: PXR01206 | D79: VRX2 | E79: 175/60R15 | F79: 81Q | H79: 21300 | I79: 24900 | K79: 15340 | L79: =タイヤ条件サマリ!$C$3 -> 0.72 | M79: 84800 | N79: =タイヤ条件サマリ!$E$3 -> 0.15 | O79: 0.2764150943 | P79: =M79+(IF(OR($G79="SSR",$G79="ZP",$G79="r-f",$G79="RFT"),VLOOKUP($BF79,タイヤ条件サマリ!$I$33:$J$38,2,0),VLOOKUP($BF79,タイヤ条件サマリ!$I:$J,2,0))+$E$2+$F$2+$G$2)*4 -> 90000 | Q79: 0.3182222222 | R79: 84800 | T79: =VLOOKUP($E79,タイヤホイールサイズ!$A:$E,3,FALSE) -> 1555 | U79: =INDEX('ホイール売価(国産)'!$A$4:$A$77,MATCH(T79,'ホイール売価(国産)'!$B$4:$B$77,0)) -> Z-meist VS-T7 | V79: =VLOOKUP($T79,'ホイール売価(国産)'!$B:$I,6,FALSE) -> 4400 | W79: 78960 | X79: =VLOOKUP($T79,'ホイール売価(国産)'!$B:$I,8,FALSE) -> 21000 | Y79: 105800 | Z79: 0.2536862004 | AA79: =Y79+IF(OR($G79="SSR",$G79="ZP",$G79="r-f",$G79="RFT"),VLOOKUP($BF79,タイヤ条件サマリ!$I$33:$J$38,2,0),VLOOKUP($BF79,タイヤ条件サマリ!$I:$J,2,0))*4 -> 107800 | AB79: 0.2675324675 | AC79: =VLOOKUP($T79,タイヤ条件サマリ!$N:$O,2,0) -> 1600 | AD79: 109400 | AE79: 0.2782449726 | AF79: 1555 | AG79: =INDEX('ホイール売価(国産)'!$A$81:$A$128,MATCH(AF79,'ホイール売価(国産)'!$B$81:$B$128,0)) -> Z-meist VS-1 BC | AH79: =VLOOKUP($AF79,'ホイール売価(国産)'!$B$81:$I$128,6,0) -> 4500 | AI79: 79360 | AJ79: =VLOOKUP($AF79,'ホイール売価(国産)'!$B$81:$I$128,8,0) -> 27000 | AK79: 111800 | AL79: 0.2901610018 | AM79: =AK79+IF(OR($G79="SSR",$G79="ZP",$G79="r-f",$G79="RFT"),VLOOKUP($BF79,タイヤ条件サマリ!$I$33:$J$38,2,0),VLOOKUP($BF79,タイヤ条件サマリ!$I:$J,2,0))*4 -> 113800 | AN79: 0.3026362039 | AO79: 1600 | AP79: 115400 | AQ79: 0.312305026 | AR79: 1555 | AS79: =INDEX('ホイール売価(国産)'!$A$132:$A$171,MATCH(AR79,'ホイール売価(国産)'!$B$132:$B$171,0)) -> SMACK Valkyrie | AT79: =VLOOKUP($AR79,'ホイール売価(国産)'!$B$132:$I$171,6,0) -> 6370 | AU79: 86840 | AV79: =VLOOKUP($AR79,'ホイール売価(国産)'!$B$132:$I$171,8,0) -> 37000 | AW79: 121800 | AX79: 0.2870279146 | AY79: =AW79+IF(OR($G79="SSR",$G79="ZP",$G79="r-f",$G79="RFT"),VLOOKUP($BF79,タイヤ条件サマリ!$I$33:$J$38,2,0),VLOOKUP($BF79,タイヤ条件サマリ!$I:$J,2,0))*4 -> 123800 | AZ79: 0.298546042 | BA79: 1600 | BB79: 125400 | BC79: 0.3074960128 | BD79: 175 | BE79: 60 | BF79: 15 | BG79: 591 | BH79: 本部発注価格 | BL79: 1 | BM79: ベーシック;ミニバン | BN79: 17560153 | BO79: 3 | BQ79: =IF(OR(M79="",M79=0),"-",IF(ROUNDUP(M79,-4)>160000,10000,VLOOKUP(ROUNDUP(M79,-4),タイヤ条件サマリ!$R:$S,2,FALSE))) -> 6000
A80: BRIDGESTONE | B80: 4961914458874 | C80: PXR01210 | D80: VRX2 | E80: 185/60R15 | F80: 84Q | H80: 22900 | I80: 26800 | K80: 16490 | L80: =タイヤ条件サマリ!$C$3 -> 0.72 | M80: 90800 | N80: =タイヤ条件サマリ!$E$3 -> 0.15 | O80: 0.2735682819 | P80: =M80+(IF(OR($G80="SSR",$G80="ZP",$G80="r-f",$G80="RFT"),VLOOKUP($BF80,タイヤ条件サマリ!$I$33:$J$38,2,0),VLOOKUP($BF80,タイヤ条件サマリ!$I:$J,2,0))+$E$2+$F$2+$G$2)*4 -> 96000 | Q80: 0.3129166667 | R80: 90800 | T80: =VLOOKUP($E80,タイヤホイールサイズ!$A:$E,3,FALSE) -> 1555 | U80: =INDEX('ホイール売価(国産)'!$A$4:$A$77,MATCH(T80,'ホイール売価(国産)'!$B$4:$B$77,0)) -> Z-meist VS-T7 | V80: =VLOOKUP($T80,'ホイール売価(国産)'!$B:$I,6,FALSE) -> 4400 | W80: 83560 | X80: =VLOOKUP($T80,'ホイール売価(国産)'!$B:$I,8,FALSE) -> 21000 | Y80: 111800 | Z80: 0.2525939177 | AA80: =Y80+IF(OR($G80="SSR",$G80="ZP",$G80="r-f",$G80="RFT"),VLOOKUP($BF80,タイヤ条件サマリ!$I$33:$J$38,2,0),VLOOKUP($BF80,タイヤ条件サマリ!$I:$J,2,0))*4 -> 113800 | AB80: 0.2657293497 | AC80: =VLOOKUP($T80,タイヤ条件サマリ!$N:$O,2,0) -> 1600 | AD80: 115400 | AE80: 0.2759098787 | AF80: 1555 | AG80: =INDEX('ホイール売価(国産)'!$A$81:$A$128,MATCH(AF80,'ホイール売価(国産)'!$B$81:$B$128,0)) -> Z-meist VS-1 BC | AH80: =VLOOKUP($AF80,'ホイール売価(国産)'!$B$81:$I$128,6,0) -> 4500 | AI80: 83960 | AJ80: =VLOOKUP($AF80,'ホイール売価(国産)'!$B$81:$I$128,8,0) -> 27000 | AK80: 117800 | AL80: 0.2872665535 | AM80: =AK80+IF(OR($G80="SSR",$G80="ZP",$G80="r-f",$G80="RFT"),VLOOKUP($BF80,タイヤ条件サマリ!$I$33:$J$38,2,0),VLOOKUP($BF80,タイヤ条件サマリ!$I:$J,2,0))*4 -> 119800 | AN80: 0.2991652755 | AO80: 1600 | AP80: 121400 | AQ80: 0.3084019769 | AR80: 1555 | AS80: =INDEX('ホイール売価(国産)'!$A$132:$A$171,MATCH(AR80,'ホイール売価(国産)'!$B$132:$B$171,0)) -> SMACK Valkyrie | AT80: =VLOOKUP($AR80,'ホイール売価(国産)'!$B$132:$I$171,6,0) -> 6370 | AU80: 91440 | AV80: =VLOOKUP($AR80,'ホイール売価(国産)'!$B$132:$I$171,8,0) -> 37000 | AW80: 127800 | AX80: 0.2845070423 | AY80: =AW80+IF(OR($G80="SSR",$G80="ZP",$G80="r-f",$G80="RFT"),VLOOKUP($BF80,タイヤ条件サマリ!$I$33:$J$38,2,0),VLOOKUP($BF80,タイヤ条件サマリ!$I:$J,2,0))*4 -> 129800 | AZ80: 0.2955315871 | BA80: 1600 | BB80: 131400 | BC80: 0.304109589 | BD80: 185 | BE80: 60 | BF80: 15 | BG80: 603 | BH80: 本部発注価格 | BL80: 1 | BM80: ベーシック;ミニバン | BN80: 18560153 | BO80: 3 | BQ80: =IF(OR(M80="",M80=0),"-",IF(ROUNDUP(M80,-4)>160000,10000,VLOOKUP(ROUNDUP(M80,-4),タイヤ条件サマリ!$R:$S,2,FALSE))) -> 6000
A81: BRIDGESTONE | B81: 4961914458904 | C81: PXR01217 | D81: VRX2 | E81: 195/60R15 | F81: 88Q | H81: 24400 | I81: 28500 | K81: 17570 | L81: =タイヤ条件サマリ!$C$3 -> 0.72 | M81: 96800 | N81: =タイヤ条件サマリ!$E$3 -> 0.15 | O81: 0.2739669421 | P81: =M81+(IF(OR($G81="SSR",$G81="ZP",$G81="r-f",$G81="RFT"),VLOOKUP($BF81,タイヤ条件サマリ!$I$33:$J$38,2,0),VLOOKUP($BF81,タイヤ条件サマリ!$I:$J,2,0))+$E$2+$F$2+$G$2)*4 -> 102000 | Q81: 0.3109803922 | R81: 96800 | T81: =VLOOKUP($E81,タイヤホイールサイズ!$A:$E,3,FALSE) -> 1560 | U81: =INDEX('ホイール売価(国産)'!$A$4:$A$77,MATCH(T81,'ホイール売価(国産)'!$B$4:$B$77,0)) -> Z-meist VS-T7 | V81: =VLOOKUP($T81,'ホイール売価(国産)'!$B:$I,6,FALSE) -> 4450 | W81: 88080 | X81: =VLOOKUP($T81,'ホイール売価(国産)'!$B:$I,8,FALSE) -> 22000 | Y81: 118800 | Z81: 0.2585858586 | AA81: =Y81+IF(OR($G81="SSR",$G81="ZP",$G81="r-f",$G81="RFT"),VLOOKUP($BF81,タイヤ条件サマリ!$I$33:$J$38,2,0),VLOOKUP($BF81,タイヤ条件サマリ!$I:$J,2,0))*4 -> 120800 | AB81: 0.2708609272 | AC81: =VLOOKUP($T81,タイヤ条件サマリ!$N:$O,2,0) -> 2000 | AD81: 122800 | AE81: 0.2827361564 | AF81: 1560 | AG81: =INDEX('ホイール売価(国産)'!$A$81:$A$128,MATCH(AF81,'ホイール売価(国産)'!$B$81:$B$128,0)) -> Z-meist VS-1 BC | AH81: =VLOOKUP($AF81,'ホイール売価(国産)'!$B$81:$I$128,6,0) -> 4670 | AI81: 88960 | AJ81: =VLOOKUP($AF81,'ホイール売価(国産)'!$B$81:$I$128,8,0) -> 28000 | AK81: 124800 | AL81: 0.2871794872 | AM81: =AK81+IF(OR($G81="SSR",$G81="ZP",$G81="r-f",$G81="RFT"),VLOOKUP($BF81,タイヤ条件サマリ!$I$33:$J$38,2,0),VLOOKUP($BF81,タイヤ条件サマリ!$I:$J,2,0))*4 -> 126800 | AN81: 0.2984227129 | AO81: 2000 | AP81: 128800 | AQ81: 0.3093167702 | AR81: 1560 | AS81: =INDEX('ホイール売価(国産)'!$A$132:$A$171,MATCH(AR81,'ホイール売価(国産)'!$B$132:$B$171,0)) -> SMACK Valkyrie | AT81: =VLOOKUP($AR81,'ホイール売価(国産)'!$B$132:$I$171,6,0) -> 6500 | AU81: 96280 | AV81: =VLOOKUP($AR81,'ホイール売価(国産)'!$B$132:$I$171,8,0) -> 38000 | AW81: 134800 | AX81: 0.2857566766 | AY81: =AW81+IF(OR($G81="SSR",$G81="ZP",$G81="r-f",$G81="RFT"),VLOOKUP($BF81,タイヤ条件サマリ!$I$33:$J$38,2,0),VLOOKUP($BF81,タイヤ条件サマリ!$I:$J,2,0))*4 -> 136800 | AZ81: 0.2961988304 | BA81: 2000 | BB81: 138800 | BC81: 0.3063400576 | BD81: 195 | BE81: 60 | BF81: 15 | BG81: 615 | BH81: 本部発注価格 | BL81: 1 | BM81: ベーシック;ミニバン | BN81: 19560153 | BO81: 3 | BQ81: =IF(OR(M81="",M81=0),"-",IF(ROUNDUP(M81,-4)>160000,10000,VLOOKUP(ROUNDUP(M81,-4),タイヤ条件サマリ!$R:$S,2,FALSE))) -> 6000
A82: BRIDGESTONE | B82: 4961914458928 | C82: PXR01221 | D82: VRX2 | E82: 205/60R15 | F82: 91Q | H82: 26000 | I82: 30400 | K82: 18720 | L82: =タイヤ条件サマリ!$C$3 -> 0.72 | M82: 102800 | N82: =タイヤ条件サマリ!$E$3 -> 0.15 | O82: 0.2715953307 | P82: =M82+(IF(OR($G82="SSR",$G82="ZP",$G82="r-f",$G82="RFT"),VLOOKUP($BF82,タイヤ条件サマリ!$I$33:$J$38,2,0),VLOOKUP($BF82,タイヤ条件サマリ!$I:$J,2,0))+$E$2+$F$2+$G$2)*4 -> 108000 | Q82: 0.3066666667 | R82: 102800 | T82: =VLOOKUP($E82,タイヤホイールサイズ!$A:$E,3,FALSE) -> 1560 | U82: =INDEX('ホイール売価(国産)'!$A$4:$A$77,MATCH(T82,'ホイール売価(国産)'!$B$4:$B$77,0)) -> Z-meist VS-T7 | V82: =VLOOKUP($T82,'ホイール売価(国産)'!$B:$I,6,FALSE) -> 4450 | W82: 92680 | X82: =VLOOKUP($T82,'ホイール売価(国産)'!$B:$I,8,FALSE) -> 22000 | Y82: 124800 | Z82: 0.2573717949 | AA82: =Y82+IF(OR($G82="SSR",$G82="ZP",$G82="r-f",$G82="RFT"),VLOOKUP($BF82,タイヤ条件サマリ!$I$33:$J$38,2,0),VLOOKUP($BF82,タイヤ条件サマリ!$I:$J,2,0))*4 -> 126800 | AB82: 0.2690851735 | AC82: =VLOOKUP($T82,タイヤ条件サマリ!$N:$O,2,0) -> 2000 | AD82: 128800 | AE82: 0.2804347826 | AF82: 1560 | AG82: =INDEX('ホイール売価(国産)'!$A$81:$A$128,MATCH(AF82,'ホイール売価(国産)'!$B$81:$B$128,0)) -> Z-meist VS-1 BC | AH82: =VLOOKUP($AF82,'ホイール売価(国産)'!$B$81:$I$128,6,0) -> 4670 | AI82: 93560 | AJ82: =VLOOKUP($AF82,'ホイール売価(国産)'!$B$81:$I$128,8,0) -> 28000 | AK82: 130800 | AL82: 0.2847094801 | AM82: =AK82+IF(OR($G82="SSR",$G82="ZP",$G82="r-f",$G82="RFT"),VLOOKUP($BF82,タイヤ条件サマリ!$I$33:$J$38,2,0),VLOOKUP($BF82,タイヤ条件サマリ!$I:$J,2,0))*4 -> 132800 | AN82: 0.2954819277 | AO82: 2000 | AP82: 134800 | AQ82: 0.3059347181 | AR82: 1560 | AS82: =INDEX('ホイール売価(国産)'!$A$132:$A$171,MATCH(AR82,'ホイール売価(国産)'!$B$132:$B$171,0)) -> SMACK Valkyrie | AT82: =VLOOKUP($AR82,'ホイール売価(国産)'!$B$132:$I$171,6,0) -> 6500 | AU82: 100880 | AV82: =VLOOKUP($AR82,'ホイール売価(国産)'!$B$132:$I$171,8,0) -> 38000 | AW82: 140800 | AX82: 0.2835227273 | AY82: =AW82+IF(OR($G82="SSR",$G82="ZP",$G82="r-f",$G82="RFT"),VLOOKUP($BF82,タイヤ条件サマリ!$I$33:$J$38,2,0),VLOOKUP($BF82,タイヤ条件サマリ!$I:$J,2,0))*4 -> 142800 | AZ82: 0.293557423 | BA82: 2000 | BB82: 144800 | BC82: 0.3033149171 | BD82: 205 | BE82: 60 | BF82: 15 | BG82: 627 | BH82: 本部発注価格 | BL82: 1 | BM82: ベーシック;ミニバン | BN82: 20560153 | BO82: 3 | BQ82: =IF(OR(M82="",M82=0),"-",IF(ROUNDUP(M82,-4)>160000,10000,VLOOKUP(ROUNDUP(M82,-4),タイヤ条件サマリ!$R:$S,2,FALSE))) -> 8000
A83: BRIDGESTONE | B83: 4961914458805 | C83: PXR01202 | D83: VRX2 | E83: 165/55R15 | F83: 75Q | H83: 21100 | I83: 24700 | K83: 15190 | L83: =タイヤ条件サマリ!$C$3 -> 0.72 | M83: 83800 | N83: =タイヤ条件サマリ!$E$3 -> 0.15 | O83: 0.2749403341 | P83: =M83+(IF(OR($G83="SSR",$G83="ZP",$G83="r-f",$G83="RFT"),VLOOKUP($BF83,タイヤ条件サマリ!$I$33:$J$38,2,0),VLOOKUP($BF83,タイヤ条件サマリ!$I:$J,2,0))+$E$2+$F$2+$G$2)*4 -> 89000 | Q83: 0.3173033708 | R83: 83800 | T83: =VLOOKUP($E83,タイヤホイールサイズ!$A:$E,3,FALSE) -> 1545 | U83: =INDEX('ホイール売価(国産)'!$A$4:$A$77,MATCH(T83,'ホイール売価(国産)'!$B$4:$B$77,0)) -> Z-meist VS-T7 | V83: =VLOOKUP($T83,'ホイール売価(国産)'!$B:$I,6,FALSE) -> 4380 | W83: 78280 | X83: =VLOOKUP($T83,'ホイール売価(国産)'!$B:$I,8,FALSE) -> 20000 | Y83: 103800 | Z83: 0.2458574181 | AA83: =Y83+IF(OR($G83="SSR",$G83="ZP",$G83="r-f",$G83="RFT"),VLOOKUP($BF83,タイヤ条件サマリ!$I$33:$J$38,2,0),VLOOKUP($BF83,タイヤ条件サマリ!$I:$J,2,0))*4 -> 105800 | AB83: 0.2601134216 | AC83: =VLOOKUP($T83,タイヤ条件サマリ!$N:$O,2,0) -> 2400 | AD83: 108200 | AE83: 0.2765249538 | AF83: 1545 | AG83: =INDEX('ホイール売価(国産)'!$A$81:$A$128,MATCH(AF83,'ホイール売価(国産)'!$B$81:$B$128,0)) -> EuroSpeed S810 | AH83: =VLOOKUP($AF83,'ホイール売価(国産)'!$B$81:$I$128,6,0) -> 4500 | AI83: 78760 | AJ83: =VLOOKUP($AF83,'ホイール売価(国産)'!$B$81:$I$128,8,0) -> 26000 | AK83: 109800 | AL83: 0.2826958106 | AM83: =AK83+IF(OR($G83="SSR",$G83="ZP",$G83="r-f",$G83="RFT"),VLOOKUP($BF83,タイヤ条件サマリ!$I$33:$J$38,2,0),VLOOKUP($BF83,タイヤ条件サマリ!$I:$J,2,0))*4 -> 111800 | AN83: 0.2955277281 | AO83: 2400 | AP83: 114200 | AQ83: 0.3103327496 | AR83: 1545 | AS83: =INDEX('ホイール売価(国産)'!$A$132:$A$171,MATCH(AR83,'ホイール売価(国産)'!$B$132:$B$171,0)) -> SMACK Valkyrie | AT83: =VLOOKUP($AR83,'ホイール売価(国産)'!$B$132:$I$171,6,0) -> 6110 | AU83: 85200 | AV83: =VLOOKUP($AR83,'ホイール売価(国産)'!$B$132:$I$171,8,0) -> 36000 | AW83: 119800 | AX83: 0.2888146912 | AY83: =AW83+IF(OR($G83="SSR",$G83="ZP",$G83="r-f",$G83="RFT"),VLOOKUP($BF83,タイヤ条件サマリ!$I$33:$J$38,2,0),VLOOKUP($BF83,タイヤ条件サマリ!$I:$J,2,0))*4 -> 121800 | AZ83: 0.3004926108 | BA83: 2400 | BB83: 124200 | BC83: 0.3140096618 | BD83: 165 | BE83: 55 | BF83: 15 | BG83: 562.5 | BH83: 本部発注価格 | BL83: 1 | BM83: ベーシック;ミニバン | BN83: 16555153 | BO83: 3 | BQ83: =IF(OR(M83="",M83=0),"-",IF(ROUNDUP(M83,-4)>160000,10000,VLOOKUP(ROUNDUP(M83,-4),タイヤ条件サマリ!$R:$S,2,FALSE))) -> 6000
A84: BRIDGESTONE | B84: 4961914458836 | C84: PXR01205 | D84: VRX2 | E84: 175/55R15 | F84: 77Q | H84: 24200 | I84: 28300 | K84: 17420 | L84: =タイヤ条件サマリ!$C$3 -> 0.72 | M84: 95800 | N84: =タイヤ条件サマリ!$E$3 -> 0.15 | O84: 0.272651357 | P84: =M84+(IF(OR($G84="SSR",$G84="ZP",$G84="r-f",$G84="RFT"),VLOOKUP($BF84,タイヤ条件サマリ!$I$33:$J$38,2,0),VLOOKUP($BF84,タイヤ条件サマリ!$I:$J,2,0))+$E$2+$F$2+$G$2)*4 -> 101000 | Q84: 0.3100990099 | R84: 95800 | T84: =VLOOKUP($E84,タイヤホイールサイズ!$A:$E,3,FALSE) -> 1555 | U84: =INDEX('ホイール売価(国産)'!$A$4:$A$77,MATCH(T84,'ホイール売価(国産)'!$B$4:$B$77,0)) -> Z-meist VS-T7 | V84: =VLOOKUP($T84,'ホイール売価(国産)'!$B:$I,6,FALSE) -> 4400 | W84: 87280 | X84: =VLOOKUP($T84,'ホイール売価(国産)'!$B:$I,8,FALSE) -> 21000 | Y84: 116800 | Z84: 0.252739726 | AA84: =Y84+IF(OR($G84="SSR",$G84="ZP",$G84="r-f",$G84="RFT"),VLOOKUP($BF84,タイヤ条件サマリ!$I$33:$J$38,2,0),VLOOKUP($BF84,タイヤ条件サマリ!$I:$J,2,0))*4 -> 118800 | AB84: 0.2653198653 | AC84: =VLOOKUP($T84,タイヤ条件サマリ!$N:$O,2,0) -> 1600 | AD84: 120400 | AE84: 0.2750830565 | AF84: 1555 | AG84: =INDEX('ホイール売価(国産)'!$A$81:$A$128,MATCH(AF84,'ホイール売価(国産)'!$B$81:$B$128,0)) -> Z-meist VS-1 BC | AH84: =VLOOKUP($AF84,'ホイール売価(国産)'!$B$81:$I$128,6,0) -> 4500 | AI84: 87680 | AJ84: =VLOOKUP($AF84,'ホイール売価(国産)'!$B$81:$I$128,8,0) -> 27000 | AK84: 122800 | AL84: 0.2859934853 | AM84: =AK84+IF(OR($G84="SSR",$G84="ZP",$G84="r-f",$G84="RFT"),VLOOKUP($BF84,タイヤ条件サマリ!$I$33:$J$38,2,0),VLOOKUP($BF84,タイヤ条件サマリ!$I:$J,2,0))*4 -> 124800 | AN84: 0.2974358974 | AO84: 1600 | AP84: 126400 | AQ84: 0.3063291139 | AR84: 1555 | AS84: =INDEX('ホイール売価(国産)'!$A$132:$A$171,MATCH(AR84,'ホイール売価(国産)'!$B$132:$B$171,0)) -> SMACK Valkyrie | AT84: =VLOOKUP($AR84,'ホイール売価(国産)'!$B$132:$I$171,6,0) -> 6370 | AU84: 95160 | AV84: =VLOOKUP($AR84,'ホイール売価(国産)'!$B$132:$I$171,8,0) -> 37000 | AW84: 132800 | AX84: 0.2834337349 | AY84: =AW84+IF(OR($G84="SSR",$G84="ZP",$G84="r-f",$G84="RFT"),VLOOKUP($BF84,タイヤ条件サマリ!$I$33:$J$38,2,0),VLOOKUP($BF84,タイヤ条件サマリ!$I:$J,2,0))*4 -> 134800 | AZ84: 0.2940652819 | BA84: 1600 | BB84: 136400 | BC84: 0.3023460411 | BD84: 175 | BE84: 55 | BF84: 15 | BG84: 573.5 | BH84: 本部発注価格 | BL84: 1 | BM84: ベーシック;ミニバン | BN84: 17555153 | BO84: 3 | BQ84: =IF(OR(M84="",M84=0),"-",IF(ROUNDUP(M84,-4)>160000,10000,VLOOKUP(ROUNDUP(M84,-4),タイヤ条件サマリ!$R:$S,2,FALSE))) -> 6000
A85: BRIDGESTONE | B85: 4961914458867 | C85: PXR01208 | D85: VRX2 | E85: 185/55R15 | F85: 82Q | H85: 24800 | I85: 29000 | K85: 17860 | L85: =タイヤ条件サマリ!$C$3 -> 0.72 | M85: 98800 | N85: =タイヤ条件サマリ!$E$3 -> 0.15 | O85: 0.2769230769 | P85: =M85+(IF(OR($G85="SSR",$G85="ZP",$G85="r-f",$G85="RFT"),VLOOKUP($BF85,タイヤ条件サマリ!$I$33:$J$38,2,0),VLOOKUP($BF85,タイヤ条件サマリ!$I:$J,2,0))+$E$2+$F$2+$G$2)*4 -> 104000 | Q85: 0.3130769231 | R85: 98800 | T85: =VLOOKUP($E85,タイヤホイールサイズ!$A:$E,3,FALSE) -> 1555 | U85: =INDEX('ホイール売価(国産)'!$A$4:$A$77,MATCH(T85,'ホイール売価(国産)'!$B$4:$B$77,0)) -> Z-meist VS-T7 | V85: =VLOOKUP($T85,'ホイール売価(国産)'!$B:$I,6,FALSE) -> 4400 | W85: 89040 | X85: =VLOOKUP($T85,'ホイール売価(国産)'!$B:$I,8,FALSE) -> 21000 | Y85: 119800 | Z85: 0.2567612688 | AA85: =Y85+IF(OR($G85="SSR",$G85="ZP",$G85="r-f",$G85="RFT"),VLOOKUP($BF85,タイヤ条件サマリ!$I$33:$J$38,2,0),VLOOKUP($BF85,タイヤ条件サマリ!$I:$J,2,0))*4 -> 121800 | AB85: 0.2689655172 | AC85: =VLOOKUP($T85,タイヤ条件サマリ!$N:$O,2,0) -> 1600 | AD85: 123400 | AE85: 0.2784440843 | AF85: 1555 | AG85: =INDEX('ホイール売価(国産)'!$A$81:$A$128,MATCH(AF85,'ホイール売価(国産)'!$B$81:$B$128,0)) -> Z-meist VS-1 BC | AH85: =VLOOKUP($AF85,'ホイール売価(国産)'!$B$81:$I$128,6,0) -> 4500 | AI85: 89440 | AJ85: =VLOOKUP($AF85,'ホイール売価(国産)'!$B$81:$I$128,8,0) -> 27000 | AK85: 125800 | AL85: 0.2890302067 | AM85: =AK85+IF(OR($G85="SSR",$G85="ZP",$G85="r-f",$G85="RFT"),VLOOKUP($BF85,タイヤ条件サマリ!$I$33:$J$38,2,0),VLOOKUP($BF85,タイヤ条件サマリ!$I:$J,2,0))*4 -> 127800 | AN85: 0.3001564945 | AO85: 1600 | AP85: 129400 | AQ85: 0.3088098918 | AR85: 1555 | AS85: =INDEX('ホイール売価(国産)'!$A$132:$A$171,MATCH(AR85,'ホイール売価(国産)'!$B$132:$B$171,0)) -> SMACK Valkyrie | AT85: =VLOOKUP($AR85,'ホイール売価(国産)'!$B$132:$I$171,6,0) -> 6370 | AU85: 96920 | AV85: =VLOOKUP($AR85,'ホイール売価(国産)'!$B$132:$I$171,8,0) -> 37000 | AW85: 135800 | AX85: 0.2863033873 | AY85: =AW85+IF(OR($G85="SSR",$G85="ZP",$G85="r-f",$G85="RFT"),VLOOKUP($BF85,タイヤ条件サマリ!$I$33:$J$38,2,0),VLOOKUP($BF85,タイヤ条件サマリ!$I:$J,2,0))*4 -> 137800 | AZ85: 0.2966618287 | BA85: 1600 | BB85: 139400 | BC85: 0.3047345768 | BD85: 185 | BE85: 55 | BF85: 15 | BG85: 584.5 | BH85: 本部発注価格 | BL85: 1 | BM85: ベーシック;ミニバン | BN85: 18555153 | BO85: 3 | BQ85: =IF(OR(M85="",M85=0),"-",IF(ROUNDUP(M85,-4)>160000,10000,VLOOKUP(ROUNDUP(M85,-4),タイヤ条件サマリ!$R:$S,2,FALSE))) -> 6000
A86: BRIDGESTONE | B86: 4961914458898 | C86: PXR01215 | D86: VRX2 | E86: 195/55R15 | F86: 85Q | H86: 25600 | I86: 30000 | K86: 18430 | L86: =タイヤ条件サマリ!$C$3 -> 0.72 | M86: 101800 | N86: =タイヤ条件サマリ!$E$3 -> 0.15 | O86: 0.2758349705 | P86: =M86+(IF(OR($G86="SSR",$G86="ZP",$G86="r-f",$G86="RFT"),VLOOKUP($BF86,タイヤ条件サマリ!$I$33:$J$38,2,0),VLOOKUP($BF86,タイヤ条件サマリ!$I:$J,2,0))+$E$2+$F$2+$G$2)*4 -> 107000 | Q86: 0.3110280374 | R86: 101800 | T86: =VLOOKUP($E86,タイヤホイールサイズ!$A:$E,3,FALSE) -> 1555 | U86: =INDEX('ホイール売価(国産)'!$A$4:$A$77,MATCH(T86,'ホイール売価(国産)'!$B$4:$B$77,0)) -> Z-meist VS-T7 | V86: =VLOOKUP($T86,'ホイール売価(国産)'!$B:$I,6,FALSE) -> 4400 | W86: 91320 | X86: =VLOOKUP($T86,'ホイール売価(国産)'!$B:$I,8,FALSE) -> 21000 | Y86: 122800 | Z86: 0.2563517915 | AA86: =Y86+IF(OR($G86="SSR",$G86="ZP",$G86="r-f",$G86="RFT"),VLOOKUP($BF86,タイヤ条件サマリ!$I$33:$J$38,2,0),VLOOKUP($BF86,タイヤ条件サマリ!$I:$J,2,0))*4 -> 124800 | AB86: 0.2682692308 | AC86: =VLOOKUP($T86,タイヤ条件サマリ!$N:$O,2,0) -> 1600 | AD86: 126400 | AE86: 0.2775316456 | AF86: 1555 | AG86: =INDEX('ホイール売価(国産)'!$A$81:$A$128,MATCH(AF86,'ホイール売価(国産)'!$B$81:$B$128,0)) -> Z-meist VS-1 BC | AH86: =VLOOKUP($AF86,'ホイール売価(国産)'!$B$81:$I$128,6,0) -> 4500 | AI86: 91720 | AJ86: =VLOOKUP($AF86,'ホイール売価(国産)'!$B$81:$I$128,8,0) -> 27000 | AK86: 128800 | AL86: 0.2878881988 | AM86: =AK86+IF(OR($G86="SSR",$G86="ZP",$G86="r-f",$G86="RFT"),VLOOKUP($BF86,タイヤ条件サマリ!$I$33:$J$38,2,0),VLOOKUP($BF86,タイヤ条件サマリ!$I:$J,2,0))*4 -> 130800 | AN86: 0.2987767584 | AO86: 1600 | AP86: 132400 | AQ86: 0.3072507553 | AR86: 1555 | AS86: =INDEX('ホイール売価(国産)'!$A$132:$A$171,MATCH(AR86,'ホイール売価(国産)'!$B$132:$B$171,0)) -> SMACK Valkyrie | AT86: =VLOOKUP($AR86,'ホイール売価(国産)'!$B$132:$I$171,6,0) -> 6370 | AU86: 99200 | AV86: =VLOOKUP($AR86,'ホイール売価(国産)'!$B$132:$I$171,8,0) -> 37000 | AW86: 138800 | AX86: 0.2853025937 | AY86: =AW86+IF(OR($G86="SSR",$G86="ZP",$G86="r-f",$G86="RFT"),VLOOKUP($BF86,タイヤ条件サマリ!$I$33:$J$38,2,0),VLOOKUP($BF86,タイヤ条件サマリ!$I:$J,2,0))*4 -> 140800 | AZ86: 0.2954545455 | BA86: 1600 | BB86: 142400 | BC86: 0.3033707865 | BD86: 195 | BE86: 55 | BF86: 15 | BG86: 595.5 | BH86: 本部発注価格 | BL86: 1 | BM86: ベーシック;ミニバン | BN86: 19555153 | BO86: 3 | BQ86: =IF(OR(M86="",M86=0),"-",IF(ROUNDUP(M86,-4)>160000,10000,VLOOKUP(ROUNDUP(M86,-4),タイヤ条件サマリ!$R:$S,2,FALSE))) -> 8000
A87: BRIDGESTONE | B87: 4961914458799 | C87: PXR01201 | D87: VRX2 | E87: 165/50R15 | F87: 73Q | H87: 22600 | I87: 26400 | K87: 16270 | L87: =タイヤ条件サマリ!$C$3 -> 0.72 | M87: 89800 | N87: =タイヤ条件サマリ!$E$3 -> 0.15 | O87: 0.2752783964 | P87: =M87+(IF(OR($G87="SSR",$G87="ZP",$G87="r-f",$G87="RFT"),VLOOKUP($BF87,タイヤ条件サマリ!$I$33:$J$38,2,0),VLOOKUP($BF87,タイヤ条件サマリ!$I:$J,2,0))+$E$2+$F$2+$G$2)*4 -> 95000 | Q87: 0.3149473684 | R87: 89800 | T87: =VLOOKUP($E87,タイヤホイールサイズ!$A:$E,3,FALSE) -> 1545 | U87: =INDEX('ホイール売価(国産)'!$A$4:$A$77,MATCH(T87,'ホイール売価(国産)'!$B$4:$B$77,0)) -> Z-meist VS-T7 | V87: =VLOOKUP($T87,'ホイール売価(国産)'!$B:$I,6,FALSE) -> 4380 | W87: 82600 | X87: =VLOOKUP($T87,'ホイール売価(国産)'!$B:$I,8,FALSE) -> 20000 | Y87: 109800 | Z87: 0.247723133 | AA87: =Y87+IF(OR($G87="SSR",$G87="ZP",$G87="r-f",$G87="RFT"),VLOOKUP($BF87,タイヤ条件サマリ!$I$33:$J$38,2,0),VLOOKUP($BF87,タイヤ条件サマリ!$I:$J,2,0))*4 -> 111800 | AB87: 0.2611806798 | AC87: =VLOOKUP($T87,タイヤ条件サマリ!$N:$O,2,0) -> 2400 | AD87: 114200 | AE87: 0.2767075306 | AF87: 1545 | AG87: =INDEX('ホイール売価(国産)'!$A$81:$A$128,MATCH(AF87,'ホイール売価(国産)'!$B$81:$B$128,0)) -> EuroSpeed S810 | AH87: =VLOOKUP($AF87,'ホイール売価(国産)'!$B$81:$I$128,6,0) -> 4500 | AI87: 83080 | AJ87: =VLOOKUP($AF87,'ホイール売価(国産)'!$B$81:$I$128,8,0) -> 26000 | AK87: 115800 | AL87: 0.2825561313 | AM87: =AK87+IF(OR($G87="SSR",$G87="ZP",$G87="r-f",$G87="RFT"),VLOOKUP($BF87,タイヤ条件サマリ!$I$33:$J$38,2,0),VLOOKUP($BF87,タイヤ条件サマリ!$I:$J,2,0))*4 -> 117800 | AN87: 0.2947368421 | AO87: 2400 | AP87: 120200 | AQ87: 0.3088186356 | AR87: 1545 | AS87: =INDEX('ホイール売価(国産)'!$A$132:$A$171,MATCH(AR87,'ホイール売価(国産)'!$B$132:$B$171,0)) -> SMACK Valkyrie | AT87: =VLOOKUP($AR87,'ホイール売価(国産)'!$B$132:$I$171,6,0) -> 6110 | AU87: 89520 | AV87: =VLOOKUP($AR87,'ホイール売価(国産)'!$B$132:$I$171,8,0) -> 36000 | AW87: 125800 | AX87: 0.2883942766 | AY87: =AW87+IF(OR($G87="SSR",$G87="ZP",$G87="r-f",$G87="RFT"),VLOOKUP($BF87,タイヤ条件サマリ!$I$33:$J$38,2,0),VLOOKUP($BF87,タイヤ条件サマリ!$I:$J,2,0))*4 -> 127800 | AZ87: 0.2995305164 | BA87: 2400 | BB87: 130200 | BC87: 0.3124423963 | BD87: 165 | BE87: 50 | BF87: 15 | BG87: 546 | BH87: 本部発注価格 | BL87: 1 | BM87: ベーシック;ミニバン | BN87: 16550153 | BO87: 3 | BQ87: =IF(OR(M87="",M87=0),"-",IF(ROUNDUP(M87,-4)>160000,10000,VLOOKUP(ROUNDUP(M87,-4),タイヤ条件サマリ!$R:$S,2,FALSE))) -> 6000
A88: BRIDGESTONE | B88: 4961914459055 | C88: PXR01240 | D88: VRX2 | E88: 195/65R16 | F88: 92Q | H88: 24000 | I88: 28100 | K88: 17280 | L88: =タイヤ条件サマリ!$C$3 -> 0.72 | M88: 95800 | N88: =タイヤ条件サマリ!$E$3 -> 0.15 | O88: 0.2784968685 | P88: =M88+(IF(OR($G88="SSR",$G88="ZP",$G88="r-f",$G88="RFT"),VLOOKUP($BF88,タイヤ条件サマリ!$I$33:$J$38,2,0),VLOOKUP($BF88,タイヤ条件サマリ!$I:$J,2,0))+$E$2+$F$2+$G$2)*4 -> 101000 | Q88: 0.3156435644 | R88: 95800 | T88: =VLOOKUP($E88,タイヤホイールサイズ!$A:$E,3,FALSE) -> 1665 | U88: =INDEX('ホイール売価(国産)'!$A$4:$A$77,MATCH(T88,'ホイール売価(国産)'!$B$4:$B$77,0)) -> Z-meist VS-1 | V88: =VLOOKUP($T88,'ホイール売価(国産)'!$B:$I,6,FALSE) -> 4610 | W88: 87560 | X88: =VLOOKUP($T88,'ホイール売価(国産)'!$B:$I,8,FALSE) -> 23000 | Y88: 118800 | Z88: 0.262962963 | AA88: =Y88+IF(OR($G88="SSR",$G88="ZP",$G88="r-f",$G88="RFT"),VLOOKUP($BF88,タイヤ条件サマリ!$I$33:$J$38,2,0),VLOOKUP($BF88,タイヤ条件サマリ!$I:$J,2,0))*4 -> 120800 | AB88: 0.2751655629 | AC88: =VLOOKUP($T88,タイヤ条件サマリ!$N:$O,2,0) -> 2000 | AD88: 122800 | AE88: 0.286970684 | AF88: 1665 | AG88: =INDEX('ホイール売価(国産)'!$A$81:$A$128,MATCH(AF88,'ホイール売価(国産)'!$B$81:$B$128,0)) -> Z-meist VS-1 BC | AH88: =VLOOKUP($AF88,'ホイール売価(国産)'!$B$81:$I$128,6,0) -> 5380 | AI88: 90640 | AJ88: =VLOOKUP($AF88,'ホイール売価(国産)'!$B$81:$I$128,8,0) -> 31000 | AK88: 126800 | AL88: 0.2851735016 | AM88: =AK88+IF(OR($G88="SSR",$G88="ZP",$G88="r-f",$G88="RFT"),VLOOKUP($BF88,タイヤ条件サマリ!$I$33:$J$38,2,0),VLOOKUP($BF88,タイヤ条件サマリ!$I:$J,2,0))*4 -> 128800 | AN88: 0.2962732919 | AO88: 2000 | AP88: 130800 | AQ88: 0.3070336391 | AR88: 1665 | AS88: =INDEX('ホイール売価(国産)'!$A$132:$A$171,MATCH(AR88,'ホイール売価(国産)'!$B$132:$B$171,0)) -> SMACK Valkyrie | AT88: =VLOOKUP($AR88,'ホイール売価(国産)'!$B$132:$I$171,6,0) -> 7410 | AU88: 98760 | AV88: =VLOOKUP($AR88,'ホイール売価(国産)'!$B$132:$I$171,8,0) -> 43000 | AW88: 138800 | AX88: 0.2884726225 | AY88: =AW88+IF(OR($G88="SSR",$G88="ZP",$G88="r-f",$G88="RFT"),VLOOKUP($BF88,タイヤ条件サマリ!$I$33:$J$38,2,0),VLOOKUP($BF88,タイヤ条件サマリ!$I:$J,2,0))*4 -> 140800 | AZ88: 0.2985795455 | BA88: 2000 | BB88: 142800 | BC88: 0.3084033613 | BD88: 195 | BE88: 65 | BF88: 16 | BG88: 659.9 | BH88: 本部発注価格 | BL88: 1 | BM88: ベーシック;ミニバン | BN88: 19565163 | BO88: 3 | BQ88: =IF(OR(M88="",M88=0),"-",IF(ROUNDUP(M88,-4)>160000,10000,VLOOKUP(ROUNDUP(M88,-4),タイヤ条件サマリ!$R:$S,2,FALSE))) -> 6000
A89: BRIDGESTONE | B89: 4961914459093 | C89: PXR01246 | D89: VRX2 | E89: 205/65R16 | F89: 95Q | H89: 24100 | I89: 28200 | K89: 17350 | L89: =タイヤ条件サマリ!$C$3 -> 0.72 | M89: 95800 | N89: =タイヤ条件サマリ!$E$3 -> 0.15 | O89: 0.2755741127 | P89: =M89+(IF(OR($G89="SSR",$G89="ZP",$G89="r-f",$G89="RFT"),VLOOKUP($BF89,タイヤ条件サマリ!$I$33:$J$38,2,0),VLOOKUP($BF89,タイヤ条件サマリ!$I:$J,2,0))+$E$2+$F$2+$G$2)*4 -> 101000 | Q89: 0.3128712871 | R89: 95800 | T89: =VLOOKUP($E89,タイヤホイールサイズ!$A:$E,3,FALSE) -> 1665 | U89: =INDEX('ホイール売価(国産)'!$A$4:$A$77,MATCH(T89,'ホイール売価(国産)'!$B$4:$B$77,0)) -> Z-meist VS-1 | V89: =VLOOKUP($T89,'ホイール売価(国産)'!$B:$I,6,FALSE) -> 4610 | W89: 87840 | X89: =VLOOKUP($T89,'ホイール売価(国産)'!$B:$I,8,FALSE) -> 23000 | Y89: 118800 | Z89: 0.2606060606 | AA89: =Y89+IF(OR($G89="SSR",$G89="ZP",$G89="r-f",$G89="RFT"),VLOOKUP($BF89,タイヤ条件サマリ!$I$33:$J$38,2,0),VLOOKUP($BF89,タイヤ条件サマリ!$I:$J,2,0))*4 -> 120800 | AB89: 0.2728476821 | AC89: =VLOOKUP($T89,タイヤ条件サマリ!$N:$O,2,0) -> 2000 | AD89: 122800 | AE89: 0.2846905537 | AF89: 1665 | AG89: =INDEX('ホイール売価(国産)'!$A$81:$A$128,MATCH(AF89,'ホイール売価(国産)'!$B$81:$B$128,0)) -> Z-meist VS-1 BC | AH89: =VLOOKUP($AF89,'ホイール売価(国産)'!$B$81:$I$128,6,0) -> 5380 | AI89: 90920 | AJ89: =VLOOKUP($AF89,'ホイール売価(国産)'!$B$81:$I$128,8,0) -> 31000 | AK89: 126800 | AL89: 0.2829652997 | AM89: =AK89+IF(OR($G89="SSR",$G89="ZP",$G89="r-f",$G89="RFT"),VLOOKUP($BF89,タイヤ条件サマリ!$I$33:$J$38,2,0),VLOOKUP($BF89,タイヤ条件サマリ!$I:$J,2,0))*4 -> 128800 | AN89: 0.2940993789 | AO89: 2000 | AP89: 130800 | AQ89: 0.3048929664 | AR89: 1665 | AS89: =INDEX('ホイール売価(国産)'!$A$132:$A$171,MATCH(AR89,'ホイール売価(国産)'!$B$132:$B$171,0)) -> SMACK Valkyrie | AT89: =VLOOKUP($AR89,'ホイール売価(国産)'!$B$132:$I$171,6,0) -> 7410 | AU89: 99040 | AV89: =VLOOKUP($AR89,'ホイール売価(国産)'!$B$132:$I$171,8,0) -> 43000 | AW89: 138800 | AX89: 0.2864553314 | AY89: =AW89+IF(OR($G89="SSR",$G89="ZP",$G89="r-f",$G89="RFT"),VLOOKUP($BF89,タイヤ条件サマリ!$I$33:$J$38,2,0),VLOOKUP($BF89,タイヤ条件サマリ!$I:$J,2,0))*4 -> 140800 | AZ89: 0.2965909091 | BA89: 2000 | BB89: 142800 | BC89: 0.306442577 | BD89: 205 | BE89: 65 | BF89: 16 | BG89: 672.9 | BH89: 本部発注価格 | BL89: 1 | BM89: ベーシック;ミニバン | BN89: 20565163 | BO89: 3 | BQ89: =IF(OR(M89="",M89=0),"-",IF(ROUNDUP(M89,-4)>160000,10000,VLOOKUP(ROUNDUP(M89,-4),タイヤ条件サマリ!$R:$S,2,FALSE))) -> 6000
A90: BRIDGESTONE | B90: 4961914459123 | C90: PXR01252 | D90: VRX2 | E90: 215/65R16 | F90: 98Q | H90: 28000 | I90: 32800 | K90: 20160 | L90: =タイヤ条件サマリ!$C$3 -> 0.72 | M90: 111800 | N90: =タイヤ条件サマリ!$E$3 -> 0.15 | O90: 0.2787119857 | P90: =M90+(IF(OR($G90="SSR",$G90="ZP",$G90="r-f",$G90="RFT"),VLOOKUP($BF90,タイヤ条件サマリ!$I$33:$J$38,2,0),VLOOKUP($BF90,タイヤ条件サマリ!$I:$J,2,0))+$E$2+$F$2+$G$2)*4 -> 117000 | Q90: 0.3107692308 | R90: 111800 | T90: =VLOOKUP($E90,タイヤホイールサイズ!$A:$E,3,FALSE) -> 1665 | U90: =INDEX('ホイール売価(国産)'!$A$4:$A$77,MATCH(T90,'ホイール売価(国産)'!$B$4:$B$77,0)) -> Z-meist VS-1 | V90: =VLOOKUP($T90,'ホイール売価(国産)'!$B:$I,6,FALSE) -> 4610 | W90: 99080 | X90: =VLOOKUP($T90,'ホイール売価(国産)'!$B:$I,8,FALSE) -> 23000 | Y90: 134800 | Z90: 0.2649851632 | AA90: =Y90+IF(OR($G90="SSR",$G90="ZP",$G90="r-f",$G90="RFT"),VLOOKUP($BF90,タイヤ条件サマリ!$I$33:$J$38,2,0),VLOOKUP($BF90,タイヤ条件サマリ!$I:$J,2,0))*4 -> 136800 | AB90: 0.2757309942 | AC90: =VLOOKUP($T90,タイヤ条件サマリ!$N:$O,2,0) -> 2000 | AD90: 138800 | AE90: 0.286167147 | AF90: 1665 | AG90: =INDEX('ホイール売価(国産)'!$A$81:$A$128,MATCH(AF90,'ホイール売価(国産)'!$B$81:$B$128,0)) -> Z-meist VS-1 BC | AH90: =VLOOKUP($AF90,'ホイール売価(国産)'!$B$81:$I$128,6,0) -> 5380 | AI90: 102160 | AJ90: =VLOOKUP($AF90,'ホイール売価(国産)'!$B$81:$I$128,8,0) -> 31000 | AK90: 142800 | AL90: 0.2845938375 | AM90: =AK90+IF(OR($G90="SSR",$G90="ZP",$G90="r-f",$G90="RFT"),VLOOKUP($BF90,タイヤ条件サマリ!$I$33:$J$38,2,0),VLOOKUP($BF90,タイヤ条件サマリ!$I:$J,2,0))*4 -> 144800 | AN90: 0.2944751381 | AO90: 2000 | AP90: 146800 | AQ90: 0.3040871935 | AR90: 1665 | AS90: =INDEX('ホイール売価(国産)'!$A$132:$A$171,MATCH(AR90,'ホイール売価(国産)'!$B$132:$B$171,0)) -> SMACK Valkyrie | AT90: =VLOOKUP($AR90,'ホイール売価(国産)'!$B$132:$I$171,6,0) -> 7410 | AU90: 110280 | AV90: =VLOOKUP($AR90,'ホイール売価(国産)'!$B$132:$I$171,8,0) -> 43000 | AW90: 154800 | AX90: 0.2875968992 | AY90: =AW90+IF(OR($G90="SSR",$G90="ZP",$G90="r-f",$G90="RFT"),VLOOKUP($BF90,タイヤ条件サマリ!$I$33:$J$38,2,0),VLOOKUP($BF90,タイヤ条件サマリ!$I:$J,2,0))*4 -> 156800 | AZ90: 0.2966836735 | BA90: 2000 | BB90: 158800 | BC90: 0.3055415617 | BD90: 215 | BE90: 65 | BF90: 16 | BG90: 685.9 | BH90: 本部発注価格 | BL90: 1 | BM90: ベーシック;ミニバン | BN90: 21565163 | BO90: 3 | BQ90: =IF(OR(M90="",M90=0),"-",IF(ROUNDUP(M90,-4)>160000,10000,VLOOKUP(ROUNDUP(M90,-4),タイヤ条件サマリ!$R:$S,2,FALSE))) -> 8000
A91: BRIDGESTONE | B91: 4961914458980 | C91: PXR01230 | D91: VRX2 | E91: 175/60R16 | F91: 82Q | H91: 23600 | I91: 27600 | K91: 16990 | L91: =タイヤ条件サマリ!$C$3 -> 0.72 | M91: 93800 | N91: =タイヤ条件サマリ!$E$3 -> 0.15 | O91: 0.2754797441 | P91: =M91+(IF(OR($G91="SSR",$G91="ZP",$G91="r-f",$G91="RFT"),VLOOKUP($BF91,タイヤ条件サマリ!$I$33:$J$38,2,0),VLOOKUP($BF91,タイヤ条件サマリ!$I:$J,2,0))+$E$2+$F$2+$G$2)*4 -> 99000 | Q91: 0.3135353535 | R91: 93800 | T91: =VLOOKUP($E91,タイヤホイールサイズ!$A:$E,3,FALSE) -> 1660 | U91: =INDEX('ホイール売価(国産)'!$A$4:$A$77,MATCH(T91,'ホイール売価(国産)'!$B$4:$B$77,0)) -> ZACK JP-812 | V91: =VLOOKUP($T91,'ホイール売価(国産)'!$B:$I,6,FALSE) -> 5220 | W91: 88840 | X91: =VLOOKUP($T91,'ホイール売価(国産)'!$B:$I,8,FALSE) -> 26000 | Y91: 119800 | Z91: 0.2584307179 | AA91: =Y91+IF(OR($G91="SSR",$G91="ZP",$G91="r-f",$G91="RFT"),VLOOKUP($BF91,タイヤ条件サマリ!$I$33:$J$38,2,0),VLOOKUP($BF91,タイヤ条件サマリ!$I:$J,2,0))*4 -> 121800 | AB91: 0.2706075534 | AC91: =VLOOKUP($T91,タイヤ条件サマリ!$N:$O,2,0) -> 1600 | AD91: 123400 | AE91: 0.2800648298 | AF91: 1660 | AG91: =INDEX('ホイール売価(国産)'!$A$81:$A$128,MATCH(AF91,'ホイール売価(国産)'!$B$81:$B$128,0)) -> EuroSpeed V25 | AH91: =VLOOKUP($AF91,'ホイール売価(国産)'!$B$81:$I$128,6,0) -> 5730 | AI91: 90880 | AJ91: =VLOOKUP($AF91,'ホイール売価(国産)'!$B$81:$I$128,8,0) -> 34000 | AK91: 127800 | AL91: 0.2888888889 | AM91: =AK91+IF(OR($G91="SSR",$G91="ZP",$G91="r-f",$G91="RFT"),VLOOKUP($BF91,タイヤ条件サマリ!$I$33:$J$38,2,0),VLOOKUP($BF91,タイヤ条件サマリ!$I:$J,2,0))*4 -> 129800 | AN91: 0.2998459168 | AO91: 1600 | AP91: 131400 | AQ91: 0.3083713851 | AR91: 1660 | AS91: =INDEX('ホイール売価(国産)'!$A$132:$A$171,MATCH(AR91,'ホイール売価(国産)'!$B$132:$B$171,0)) -> JP STYLE Vercely | AT91: =VLOOKUP($AR91,'ホイール売価(国産)'!$B$132:$I$171,6,0) -> 7500 | AU91: 97960 | AV91: =VLOOKUP($AR91,'ホイール売価(国産)'!$B$132:$I$171,8,0) -> 43000 | AW91: 136800 | AX91: 0.2839181287 | AY91: =AW91+IF(OR($G91="SSR",$G91="ZP",$G91="r-f",$G91="RFT"),VLOOKUP($BF91,タイヤ条件サマリ!$I$33:$J$38,2,0),VLOOKUP($BF91,タイヤ条件サマリ!$I:$J,2,0))*4 -> 138800 | AZ91: 0.2942363112 | BA91: 1600 | BB91: 140400 | BC91: 0.3022792023 | BD91: 175 | BE91: 60 | BF91: 16 | BG91: 616.4 | BH91: 本部発注価格 | BL91: 1 | BM91: ベーシック;ミニバン | BN91: 17560163 | BO91: 3 | BQ91: =IF(OR(M91="",M91=0),"-",IF(ROUNDUP(M91,-4)>160000,10000,VLOOKUP(ROUNDUP(M91,-4),タイヤ条件サマリ!$R:$S,2,FALSE))) -> 6000
A92: BRIDGESTONE | B92: 4961914459000 | C92: PXR01233 | D92: VRX2 | E92: 185/60R16 | F92: 86Q | H92: 25300 | I92: 29600 | K92: 18220 | L92: =タイヤ条件サマリ!$C$3 -> 0.72 | M92: 100800 | N92: =タイヤ条件サマリ!$E$3 -> 0.15 | O92: 0.276984127 | P92: =M92+(IF(OR($G92="SSR",$G92="ZP",$G92="r-f",$G92="RFT"),VLOOKUP($BF92,タイヤ条件サマリ!$I$33:$J$38,2,0),VLOOKUP($BF92,タイヤ条件サマリ!$I:$J,2,0))+$E$2+$F$2+$G$2)*4 -> 106000 | Q92: 0.3124528302 | R92: 100800 | T92: =VLOOKUP($E92,タイヤホイールサイズ!$A:$E,3,FALSE) -> 1660 | U92: =INDEX('ホイール売価(国産)'!$A$4:$A$77,MATCH(T92,'ホイール売価(国産)'!$B$4:$B$77,0)) -> ZACK JP-812 | V92: =VLOOKUP($T92,'ホイール売価(国産)'!$B:$I,6,FALSE) -> 5220 | W92: 93760 | X92: =VLOOKUP($T92,'ホイール売価(国産)'!$B:$I,8,FALSE) -> 26000 | Y92: 126800 | Z92: 0.2605678233 | AA92: =Y92+IF(OR($G92="SSR",$G92="ZP",$G92="r-f",$G92="RFT"),VLOOKUP($BF92,タイヤ条件サマリ!$I$33:$J$38,2,0),VLOOKUP($BF92,タイヤ条件サマリ!$I:$J,2,0))*4 -> 128800 | AB92: =(AA92-W92)/AA92 -> 0.2720496894 | AC92: =VLOOKUP($T92,タイヤ条件サマリ!$N:$O,2,0) -> 1600 | AD92: =AA92+AC92 -> 130400 | AE92: =(AD92-W92)/AD92 -> 0.2809815951 | AF92: 1660 | AG92: =INDEX('ホイール売価(国産)'!$A$81:$A$128,MATCH(AF92,'ホイール売価(国産)'!$B$81:$B$128,0)) -> EuroSpeed V25 | AH92: =VLOOKUP($AF92,'ホイール売価(国産)'!$B$81:$I$128,6,0) -> 5730 | AI92: 95800 | AJ92: =VLOOKUP($AF92,'ホイール売価(国産)'!$B$81:$I$128,8,0) -> 34000 | AK92: 134800 | AL92: 0.2893175074 | AM92: =AK92+IF(OR($G92="SSR",$G92="ZP",$G92="r-f",$G92="RFT"),VLOOKUP($BF92,タイヤ条件サマリ!$I$33:$J$38,2,0),VLOOKUP($BF92,タイヤ条件サマリ!$I:$J,2,0))*4 -> 136800 | AN92: 0.2997076023 | AO92: 1600 | AP92: 138400 | AQ92: 0.3078034682 | AR92: 1660 | AS92: =INDEX('ホイール売価(国産)'!$A$132:$A$171,MATCH(AR92,'ホイール売価(国産)'!$B$132:$B$171,0)) -> JP STYLE Vercely | AT92: =VLOOKUP($AR92,'ホイール売価(国産)'!$B$132:$I$171,6,0) -> 7500 | AU92: 102880 | AV92: =VLOOKUP($AR92,'ホイール売価(国産)'!$B$132:$I$171,8,0) -> 43000 | AW92: 143800 | AX92: 0.2845618915 | AY92: =AW92+IF(OR($G92="SSR",$G92="ZP",$G92="r-f",$G92="RFT"),VLOOKUP($BF92,タイヤ条件サマリ!$I$33:$J$38,2,0),VLOOKUP($BF92,タイヤ条件サマリ!$I:$J,2,0))*4 -> 145800 | AZ92: 0.2943758573 | BA92: 1600 | BB92: 147400 | BC92: 0.3020352782 | BD92: 185 | BE92: 60 | BF92: 16 | BG92: =(BD92*(BE92/100)*2)+(BF92*25.4) -> 628.4 | BH92: 本部発注価格 | BL92: 1 | BM92: ベーシック;ミニバン | BN92: 18560163 | BO92: 3 | BQ92: =IF(OR(M92="",M92=0),"-",IF(ROUNDUP(M92,-4)>160000,10000,VLOOKUP(ROUNDUP(M92,-4),タイヤ条件サマリ!$R:$S,2,FALSE))) -> 8000
A93: BRIDGESTONE | B93: 4961914459048 | C93: PXR01239 | D93: VRX2 | E93: 195/60R16 | F93: 89Q | H93: 26900 | I93: 31500 | K93: 19370 | L93: =タイヤ条件サマリ!$C$3 -> 0.72 | M93: 106800 | N93: =タイヤ条件サマリ!$E$3 -> 0.15 | O93: 0.2745318352 | P93: =M93+(IF(OR($G93="SSR",$G93="ZP",$G93="r-f",$G93="RFT"),VLOOKUP($BF93,タイヤ条件サマリ!$I$33:$J$38,2,0),VLOOKUP($BF93,タイヤ条件サマリ!$I:$J,2,0))+$E$2+$F$2+$G$2)*4 -> 112000 | Q93: 0.3082142857 | R93: 106800 | T93: =VLOOKUP($E93,タイヤホイールサイズ!$A:$E,3,FALSE) -> 1665 | U93: =INDEX('ホイール売価(国産)'!$A$4:$A$77,MATCH(T93,'ホイール売価(国産)'!$B$4:$B$77,0)) -> Z-meist VS-1 | V93: =VLOOKUP($T93,'ホイール売価(国産)'!$B:$I,6,FALSE) -> 4610 | W93: 95920 | X93: =VLOOKUP($T93,'ホイール売価(国産)'!$B:$I,8,FALSE) -> 23000 | Y93: 129800 | Z93: =(Y93-W93)/Y93 -> 0.2610169492 | AA93: =Y93+IF(OR($G93="SSR",$G93="ZP",$G93="r-f",$G93="RFT"),VLOOKUP($BF93,タイヤ条件サマリ!$I$33:$J$38,2,0),VLOOKUP($BF93,タイヤ条件サマリ!$I:$J,2,0))*4 -> 131800 | AB93: 0.2722306525 | AC93: =VLOOKUP($T93,タイヤ条件サマリ!$N:$O,2,0) -> 2000 | AD93: 133800 | AE93: 0.2831091181 | AF93: 1665 | AG93: =INDEX('ホイール売価(国産)'!$A$81:$A$128,MATCH(AF93,'ホイール売価(国産)'!$B$81:$B$128,0)) -> Z-meist VS-1 BC | AH93: =VLOOKUP($AF93,'ホイール売価(国産)'!$B$81:$I$128,6,0) -> 5380 | AI93: 99000 | AJ93: =VLOOKUP($AF93,'ホイール売価(国産)'!$B$81:$I$128,8,0) -> 31000 | AK93: 137800 | AL93: 0.2815674891 | AM93: =AK93+IF(OR($G93="SSR",$G93="ZP",$G93="r-f",$G93="RFT"),VLOOKUP($BF93,タイヤ条件サマリ!$I$33:$J$38,2,0),VLOOKUP($BF93,タイヤ条件サマリ!$I:$J,2,0))*4 -> 139800 | AN93: 0.2918454936 | AO93: 2000 | AP93: 141800 | AQ93: 0.3018335684 | AR93: 1665 | AS93: =INDEX('ホイール売価(国産)'!$A$132:$A$171,MATCH(AR93,'ホイール売価(国産)'!$B$132:$B$171,0)) -> SMACK Valkyrie | AT93: =VLOOKUP($AR93,'ホイール売価(国産)'!$B$132:$I$171,6,0) -> 7410 | AU93: 107120 | AV93: =VLOOKUP($AR93,'ホイール売価(国産)'!$B$132:$I$171,8,0) -> 43000 | AW93: 149800 | AX93: 0.2849132176 | AY93: =AW93+IF(OR($G93="SSR",$G93="ZP",$G93="r-f",$G93="RFT"),VLOOKUP($BF93,タイヤ条件サマリ!$I$33:$J$38,2,0),VLOOKUP($BF93,タイヤ条件サマリ!$I:$J,2,0))*4 -> 151800 | AZ93: 0.2943346509 | BA93: 2000 | BB93: 153800 | BC93: 0.3035110533 | BD93: 195 | BE93: 60 | BF93: 16 | BG93: 640.4 | BH93: 本部発注価格 | BL93: 1 | BM93: ベーシック;ミニバン | BN93: 19560163 | BO93: 3 | BQ93: =IF(OR(M93="",M93=0),"-",IF(ROUNDUP(M93,-4)>160000,10000,VLOOKUP(ROUNDUP(M93,-4),タイヤ条件サマリ!$R:$S,2,FALSE))) -> 8000
A94: BRIDGESTONE | B94: 4961914459086 | C94: PXR01244 | D94: VRX2 | E94: 205/60R16 | F94: 92Q | H94: 28400 | I94: 33200 | K94: 20450 | L94: =タイヤ条件サマリ!$C$3 -> 0.72 | M94: 112800 | N94: =タイヤ条件サマリ!$E$3 -> 0.15 | O94: 0.274822695 | P94: =M94+(IF(OR($G94="SSR",$G94="ZP",$G94="r-f",$G94="RFT"),VLOOKUP($BF94,タイヤ条件サマリ!$I$33:$J$38,2,0),VLOOKUP($BF94,タイヤ条件サマリ!$I:$J,2,0))+$E$2+$F$2+$G$2)*4 -> 118000 | Q94: 0.306779661 | R94: 112800 | T94: =VLOOKUP($E94,タイヤホイールサイズ!$A:$E,3,FALSE) -> 1665 | U94: =INDEX('ホイール売価(国産)'!$A$4:$A$77,MATCH(T94,'ホイール売価(国産)'!$B$4:$B$77,0)) -> Z-meist VS-1 | V94: =VLOOKUP($T94,'ホイール売価(国産)'!$B:$I,6,FALSE) -> 4610 | W94: 100240 | X94: =VLOOKUP($T94,'ホイール売価(国産)'!$B:$I,8,FALSE) -> 23000 | Y94: 135800 | Z94: 0.2618556701 | AA94: =Y94+IF(OR($G94="SSR",$G94="ZP",$G94="r-f",$G94="RFT"),VLOOKUP($BF94,タイヤ条件サマリ!$I$33:$J$38,2,0),VLOOKUP($BF94,タイヤ条件サマリ!$I:$J,2,0))*4 -> 137800 | AB94: 0.2725689405 | AC94: =VLOOKUP($T94,タイヤ条件サマリ!$N:$O,2,0) -> 2000 | AD94: 139800 | AE94: 0.2829756795 | AF94: 1665 | AG94: =INDEX('ホイール売価(国産)'!$A$81:$A$128,MATCH(AF94,'ホイール売価(国産)'!$B$81:$B$128,0)) -> Z-meist VS-1 BC | AH94: =VLOOKUP($AF94,'ホイール売価(国産)'!$B$81:$I$128,6,0) -> 5380 | AI94: 103320 | AJ94: =VLOOKUP($AF94,'ホイール売価(国産)'!$B$81:$I$128,8,0) -> 31000 | AK94: 143800 | AL94: 0.2815020862 | AM94: =AK94+IF(OR($G94="SSR",$G94="ZP",$G94="r-f",$G94="RFT"),VLOOKUP($BF94,タイヤ条件サマリ!$I$33:$J$38,2,0),VLOOKUP($BF94,タイヤ条件サマリ!$I:$J,2,0))*4 -> 145800 | AN94: 0.2913580247 | AO94: 2000 | AP94: 147800 | AQ94: 0.300947226 | AR94: 1665 | AS94: =INDEX('ホイール売価(国産)'!$A$132:$A$171,MATCH(AR94,'ホイール売価(国産)'!$B$132:$B$171,0)) -> SMACK Valkyrie | AT94: =VLOOKUP($AR94,'ホイール売価(国産)'!$B$132:$I$171,6,0) -> 7410 | AU94: 111440 | AV94: =VLOOKUP($AR94,'ホイール売価(国産)'!$B$132:$I$171,8,0) -> 43000 | AW94: 155800 | AX94: 0.2847240051 | AY94: =AW94+IF(OR($G94="SSR",$G94="ZP",$G94="r-f",$G94="RFT"),VLOOKUP($BF94,タイヤ条件サマリ!$I$33:$J$38,2,0),VLOOKUP($BF94,タイヤ条件サマリ!$I:$J,2,0))*4 -> 157800 | AZ94: 0.2937896071 | BA94: 2000 | BB94: 159800 | BC94: 0.3026282854 | BD94: 205 | BE94: 60 | BF94: 16 | BG94: 652.4 | BH94: 本部発注価格 | BL94: 1 | BM94: ベーシック;ミニバン | BN94: 20560163 | BO94: 3 | BQ94: =IF(OR(M94="",M94=0),"-",IF(ROUNDUP(M94,-4)>160000,10000,VLOOKUP(ROUNDUP(M94,-4),タイヤ条件サマリ!$R:$S,2,FALSE))) -> 8000
A95: BRIDGESTONE | B95: 4961914459116 | C95: PXR01250 | D95: VRX2 | E95: 215/60R16 | F95: 95Q | H95: 29900 | I95: 35000 | K95: 21530 | L95: =タイヤ条件サマリ!$C$3 -> 0.72 | M95: 118800 | N95: =タイヤ条件サマリ!$E$3 -> 0.15 | O95: 0.2750841751 | P95: =M95+(IF(OR($G95="SSR",$G95="ZP",$G95="r-f",$G95="RFT"),VLOOKUP($BF95,タイヤ条件サマリ!$I$33:$J$38,2,0),VLOOKUP($BF95,タイヤ条件サマリ!$I:$J,2,0))+$E$2+$F$2+$G$2)*4 -> 124000 | Q95: 0.305483871 | R95: 118800 | T95: =VLOOKUP($E95,タイヤホイールサイズ!$A:$E,3,FALSE) -> 1665 | U95: =INDEX('ホイール売価(国産)'!$A$4:$A$77,MATCH(T95,'ホイール売価(国産)'!$B$4:$B$77,0)) -> Z-meist VS-1 | V95: =VLOOKUP($T95,'ホイール売価(国産)'!$B:$I,6,FALSE) -> 4610 | W95: 104560 | X95: =VLOOKUP($T95,'ホイール売価(国産)'!$B:$I,8,FALSE) -> 23000 | Y95: 141800 | Z95: 0.2626234133 | AA95: =Y95+IF(OR($G95="SSR",$G95="ZP",$G95="r-f",$G95="RFT"),VLOOKUP($BF95,タイヤ条件サマリ!$I$33:$J$38,2,0),VLOOKUP($BF95,タイヤ条件サマリ!$I:$J,2,0))*4 -> 143800 | AB95: 0.2728789986 | AC95: =VLOOKUP($T95,タイヤ条件サマリ!$N:$O,2,0) -> 2000 | AD95: 145800 | AE95: 0.2828532236 | AF95: 1665 | AG95: =INDEX('ホイール売価(国産)'!$A$81:$A$128,MATCH(AF95,'ホイール売価(国産)'!$B$81:$B$128,0)) -> Z-meist VS-1 BC | AH95: =VLOOKUP($AF95,'ホイール売価(国産)'!$B$81:$I$128,6,0) -> 5380 | AI95: 107640 | AJ95: =VLOOKUP($AF95,'ホイール売価(国産)'!$B$81:$I$128,8,0) -> 31000 | AK95: 149800 | AL95: 0.2814419226 | AM95: =AK95+IF(OR($G95="SSR",$G95="ZP",$G95="r-f",$G95="RFT"),VLOOKUP($BF95,タイヤ条件サマリ!$I$33:$J$38,2,0),VLOOKUP($BF95,タイヤ条件サマリ!$I:$J,2,0))*4 -> 151800 | AN95: 0.2909090909 | AO95: 2000 | AP95: 153800 | AQ95: 0.300130039 | AR95: 1665 | AS95: =INDEX('ホイール売価(国産)'!$A$132:$A$171,MATCH(AR95,'ホイール売価(国産)'!$B$132:$B$171,0)) -> SMACK Valkyrie | AT95: =VLOOKUP($AR95,'ホイール売価(国産)'!$B$132:$I$171,6,0) -> 7410 | AU95: 115760 | AV95: =VLOOKUP($AR95,'ホイール売価(国産)'!$B$132:$I$171,8,0) -> 43000 | AW95: 161800 | AX95: 0.2845488257 | AY95: =AW95+IF(OR($G95="SSR",$G95="ZP",$G95="r-f",$G95="RFT"),VLOOKUP($BF95,タイヤ条件サマリ!$I$33:$J$38,2,0),VLOOKUP($BF95,タイヤ条件サマリ!$I:$J,2,0))*4 -> 163800 | AZ95: 0.2932844933 | BA95: 2000 | BB95: 165800 | BC95: 0.3018094089 | BD95: 215 | BE95: 60 | BF95: 16 | BG95: 664.4 | BH95: 本部発注価格 | BL95: 1 | BM95: ベーシック;ミニバン | BN95: 21560163 | BO95: 3 | BQ95: =IF(OR(M95="",M95=0),"-",IF(ROUNDUP(M95,-4)>160000,10000,VLOOKUP(ROUNDUP(M95,-4),タイヤ条件サマリ!$R:$S,2,FALSE))) -> 8000
A96: BRIDGESTONE | B96: 4961914459154 | C96: PXR01258 | D96: VRX2 | E96: 225/60R16 | F96: 98Q | H96: 31600 | I96: 37000 | K96: 22750 | L96: =タイヤ条件サマリ!$C$3 -> 0.72 | M96: 125800 | N96: =タイヤ条件サマリ!$E$3 -> 0.15 | O96: 0.2766295707 | P96: =M96+(IF(OR($G96="SSR",$G96="ZP",$G96="r-f",$G96="RFT"),VLOOKUP($BF96,タイヤ条件サマリ!$I$33:$J$38,2,0),VLOOKUP($BF96,タイヤ条件サマリ!$I:$J,2,0))+$E$2+$F$2+$G$2)*4 -> 131000 | Q96: 0.3053435115 | R96: 125800 | T96: =VLOOKUP($E96,タイヤホイールサイズ!$A:$E,3,FALSE) -> 1665 | U96: =INDEX('ホイール売価(国産)'!$A$4:$A$77,MATCH(T96,'ホイール売価(国産)'!$B$4:$B$77,0)) -> Z-meist VS-1 | V96: =VLOOKUP($T96,'ホイール売価(国産)'!$B:$I,6,FALSE) -> 4610 | W96: 109440 | X96: =VLOOKUP($T96,'ホイール売価(国産)'!$B:$I,8,FALSE) -> 23000 | Y96: 148800 | Z96: 0.264516129 | AA96: =Y96+IF(OR($G96="SSR",$G96="ZP",$G96="r-f",$G96="RFT"),VLOOKUP($BF96,タイヤ条件サマリ!$I$33:$J$38,2,0),VLOOKUP($BF96,タイヤ条件サマリ!$I:$J,2,0))*4 -> 150800 | AB96: 0.274270557 | AC96: =VLOOKUP($T96,タイヤ条件サマリ!$N:$O,2,0) -> 2000 | AD96: 152800 | AE96: 0.2837696335 | AF96: 1665 | AG96: =INDEX('ホイール売価(国産)'!$A$81:$A$128,MATCH(AF96,'ホイール売価(国産)'!$B$81:$B$128,0)) -> Z-meist VS-1 BC | AH96: =VLOOKUP($AF96,'ホイール売価(国産)'!$B$81:$I$128,6,0) -> 5380 | AI96: 112520 | AJ96: =VLOOKUP($AF96,'ホイール売価(国産)'!$B$81:$I$128,8,0) -> 31000 | AK96: 156800 | AL96: 0.2823979592 | AM96: =AK96+IF(OR($G96="SSR",$G96="ZP",$G96="r-f",$G96="RFT"),VLOOKUP($BF96,タイヤ条件サマリ!$I$33:$J$38,2,0),VLOOKUP($BF96,タイヤ条件サマリ!$I:$J,2,0))*4 -> 158800 | AN96: 0.2914357683 | AO96: 2000 | AP96: 160800 | AQ96: 0.3002487562 | AR96: 1665 | AS96: =INDEX('ホイール売価(国産)'!$A$132:$A$171,MATCH(AR96,'ホイール売価(国産)'!$B$132:$B$171,0)) -> SMACK Valkyrie | AT96: =VLOOKUP($AR96,'ホイール売価(国産)'!$B$132:$I$171,6,0) -> 7410 | AU96: 120640 | AV96: =VLOOKUP($AR96,'ホイール売価(国産)'!$B$132:$I$171,8,0) -> 43000 | AW96: 168800 | AX96: 0.2853080569 | AY96: =AW96+IF(OR($G96="SSR",$G96="ZP",$G96="r-f",$G96="RFT"),VLOOKUP($BF96,タイヤ条件サマリ!$I$33:$J$38,2,0),VLOOKUP($BF96,タイヤ条件サマリ!$I:$J,2,0))*4 -> 170800 | AZ96: 0.293676815 | BA96: 2000 | BB96: 172800 | BC96: 0.3018518519 | BD96: 225 | BE96: 60 | BF96: 16 | BG96: 676.4 | BH96: 本部発注価格 | BL96: 1 | BM96: ベーシック;ミニバン | BN96: 22560163 | BO96: 3 | BQ96: =IF(OR(M96="",M96=0),"-",IF(ROUNDUP(M96,-4)>160000,10000,VLOOKUP(ROUNDUP(M96,-4),タイヤ条件サマリ!$R:$S,2,FALSE))) -> 8000
A97: BRIDGESTONE | B97: 4961914458997 | C97: PXR01231 | D97: VRX2 | E97: 185/55R16 | F97: 83Q | H97: 29200 | I97: 34200 | K97: 21020 | L97: =タイヤ条件サマリ!$C$3 -> 0.72 | M97: 115800 | N97: =タイヤ条件サマリ!$E$3 -> 0.15 | O97: 0.2739205527 | P97: =M97+(IF(OR($G97="SSR",$G97="ZP",$G97="r-f",$G97="RFT"),VLOOKUP($BF97,タイヤ条件サマリ!$I$33:$J$38,2,0),VLOOKUP($BF97,タイヤ条件サマリ!$I:$J,2,0))+$E$2+$F$2+$G$2)*4 -> 121000 | Q97: 0.3051239669 | R97: 115800 | T97: =VLOOKUP($E97,タイヤホイールサイズ!$A:$E,3,FALSE) -> 1660 | U97: =INDEX('ホイール売価(国産)'!$A$4:$A$77,MATCH(T97,'ホイール売価(国産)'!$B$4:$B$77,0)) -> ZACK JP-812 | V97: =VLOOKUP($T97,'ホイール売価(国産)'!$B:$I,6,FALSE) -> 5220 | W97: 104960 | X97: =VLOOKUP($T97,'ホイール売価(国産)'!$B:$I,8,FALSE) -> 26000 | Y97: 141800 | Z97: 0.2598025388 | AA97: =Y97+IF(OR($G97="SSR",$G97="ZP",$G97="r-f",$G97="RFT"),VLOOKUP($BF97,タイヤ条件サマリ!$I$33:$J$38,2,0),VLOOKUP($BF97,タイヤ条件サマリ!$I:$J,2,0))*4 -> 143800 | AB97: 0.2700973574 | AC97: =VLOOKUP($T97,タイヤ条件サマリ!$N:$O,2,0) -> 1600 | AD97: 145400 | AE97: 0.2781292985 | AF97: 1660 | AG97: =INDEX('ホイール売価(国産)'!$A$81:$A$128,MATCH(AF97,'ホイール売価(国産)'!$B$81:$B$128,0)) -> EuroSpeed V25 | AH97: =VLOOKUP($AF97,'ホイール売価(国産)'!$B$81:$I$128,6,0) -> 5730 | AI97: 107000 | AJ97: =VLOOKUP($AF97,'ホイール売価(国産)'!$B$81:$I$128,8,0) -> 34000 | AK97: 149800 | AL97: 0.2857142857 | AM97: =AK97+IF(OR($G97="SSR",$G97="ZP",$G97="r-f",$G97="RFT"),VLOOKUP($BF97,タイヤ条件サマリ!$I$33:$J$38,2,0),VLOOKUP($BF97,タイヤ条件サマリ!$I:$J,2,0))*4 -> 151800 | AN97: 0.2951251647 | AO97: 1600 | AP97: 153400 | AQ97: 0.3024771838 | AR97: 1660 | AS97: =INDEX('ホイール売価(国産)'!$A$132:$A$171,MATCH(AR97,'ホイール売価(国産)'!$B$132:$B$171,0)) -> JP STYLE Vercely | AT97: =VLOOKUP($AR97,'ホイール売価(国産)'!$B$132:$I$171,6,0) -> 7500 | AU97: 114080 | AV97: =VLOOKUP($AR97,'ホイール売価(国産)'!$B$132:$I$171,8,0) -> 43000 | AW97: 158800 | AX97: 0.2816120907 | AY97: =AW97+IF(OR($G97="SSR",$G97="ZP",$G97="r-f",$G97="RFT"),VLOOKUP($BF97,タイヤ条件サマリ!$I$33:$J$38,2,0),VLOOKUP($BF97,タイヤ条件サマリ!$I:$J,2,0))*4 -> 160800 | AZ97: 0.2905472637 | BA97: 1600 | BB97: 162400 | BC97: 0.2975369458 | BD97: 185 | BE97: 55 | BF97: 16 | BG97: 609.9 | BH97: 本部発注価格 | BL97: 1 | BM97: ベーシック;ミニバン | BN97: 18555163 | BO97: 3 | BQ97: =IF(OR(M97="",M97=0),"-",IF(ROUNDUP(M97,-4)>160000,10000,VLOOKUP(ROUNDUP(M97,-4),タイヤ条件サマリ!$R:$S,2,FALSE))) -> 8000
A98: BRIDGESTONE | B98: 4961914459031 | C98: PXR01237 | D98: VRX2 | E98: 195/55R16 | F98: 87Q | H98: 31400 | I98: 36700 | K98: 22610 | L98: =タイヤ条件サマリ!$C$3 -> 0.72 | M98: 124800 | N98: =タイヤ条件サマリ!$E$3 -> 0.15 | O98: 0.2753205128 | P98: =M98+(IF(OR($G98="SSR",$G98="ZP",$G98="r-f",$G98="RFT"),VLOOKUP($BF98,タイヤ条件サマリ!$I$33:$J$38,2,0),VLOOKUP($BF98,タイヤ条件サマリ!$I:$J,2,0))+$E$2+$F$2+$G$2)*4 -> 130000 | Q98: 0.3043076923 | R98: 124800 | T98: =VLOOKUP($E98,タイヤホイールサイズ!$A:$E,3,FALSE) -> 1660 | U98: =INDEX('ホイール売価(国産)'!$A$4:$A$77,MATCH(T98,'ホイール売価(国産)'!$B$4:$B$77,0)) -> ZACK JP-812 | V98: =VLOOKUP($T98,'ホイール売価(国産)'!$B:$I,6,FALSE) -> 5220 | W98: 111320 | X98: =VLOOKUP($T98,'ホイール売価(国産)'!$B:$I,8,FALSE) -> 26000 | Y98: 150800 | Z98: 0.2618037135 | AA98: =Y98+IF(OR($G98="SSR",$G98="ZP",$G98="r-f",$G98="RFT"),VLOOKUP($BF98,タイヤ条件サマリ!$I$33:$J$38,2,0),VLOOKUP($BF98,タイヤ条件サマリ!$I:$J,2,0))*4 -> 152800 | AB98: 0.2714659686 | AC98: =VLOOKUP($T98,タイヤ条件サマリ!$N:$O,2,0) -> 1600 | AD98: 154400 | AE98: 0.279015544 | AF98: 1660 | AG98: =INDEX('ホイール売価(国産)'!$A$81:$A$128,MATCH(AF98,'ホイール売価(国産)'!$B$81:$B$128,0)) -> EuroSpeed V25 | AH98: =VLOOKUP($AF98,'ホイール売価(国産)'!$B$81:$I$128,6,0) -> 5730 | AI98: 113360 | AJ98: =VLOOKUP($AF98,'ホイール売価(国産)'!$B$81:$I$128,8,0) -> 34000 | AK98: 158800 | AL98: 0.2861460957 | AM98: =AK98+IF(OR($G98="SSR",$G98="ZP",$G98="r-f",$G98="RFT"),VLOOKUP($BF98,タイヤ条件サマリ!$I$33:$J$38,2,0),VLOOKUP($BF98,タイヤ条件サマリ!$I:$J,2,0))*4 -> 160800 | AN98: 0.2950248756 | AO98: 1600 | AP98: 162400 | AQ98: 0.3019704433 | AR98: 1660 | AS98: =INDEX('ホイール売価(国産)'!$A$132:$A$171,MATCH(AR98,'ホイール売価(国産)'!$B$132:$B$171,0)) -> JP STYLE Vercely | AT98: =VLOOKUP($AR98,'ホイール売価(国産)'!$B$132:$I$171,6,0) -> 7500 | AU98: 120440 | AV98: =VLOOKUP($AR98,'ホイール売価(国産)'!$B$132:$I$171,8,0) -> 43000 | AW98: 167800 | AX98: 0.2822407628 | AY98: =AW98+IF(OR($G98="SSR",$G98="ZP",$G98="r-f",$G98="RFT"),VLOOKUP($BF98,タイヤ条件サマリ!$I$33:$J$38,2,0),VLOOKUP($BF98,タイヤ条件サマリ!$I:$J,2,0))*4 -> 169800 | AZ98: 0.2906949352 | BA98: 1600 | BB98: 171400 | BC98: 0.2973162194 | BD98: 195 | BE98: 55 | BF98: 16 | BG98: 620.9 | BH98: 本部発注価格 | BL98: 1 | BM98: ベーシック;ミニバン | BN98: 19555163 | BO98: 3 | BQ98: =IF(OR(M98="",M98=0),"-",IF(ROUNDUP(M98,-4)>160000,10000,VLOOKUP(ROUNDUP(M98,-4),タイヤ条件サマリ!$R:$S,2,FALSE))) -> 8000
A99: BRIDGESTONE | B99: 4961914459079 | C99: PXR01242 | D99: VRX2 | E99: 205/55R16 | F99: 91Q | H99: 33500 | I99: 39200 | K99: 24120 | L99: =タイヤ条件サマリ!$C$3 -> 0.72 | M99: 132800 | N99: =タイヤ条件サマリ!$E$3 -> 0.15 | O99: 0.2734939759 | P99: =M99+(IF(OR($G99="SSR",$G99="ZP",$G99="r-f",$G99="RFT"),VLOOKUP($BF99,タイヤ条件サマリ!$I$33:$J$38,2,0),VLOOKUP($BF99,タイヤ条件サマリ!$I:$J,2,0))+$E$2+$F$2+$G$2)*4 -> 138000 | Q99: 0.3008695652 | R99: 132800 | T99: =VLOOKUP($E99,タイヤホイールサイズ!$A:$E,3,FALSE) -> 1665 | U99: =INDEX('ホイール売価(国産)'!$A$4:$A$77,MATCH(T99,'ホイール売価(国産)'!$B$4:$B$77,0)) -> Z-meist VS-1 | V99: =VLOOKUP($T99,'ホイール売価(国産)'!$B:$I,6,FALSE) -> 4610 | W99: 114920 | X99: =VLOOKUP($T99,'ホイール売価(国産)'!$B:$I,8,FALSE) -> 23000 | Y99: 155800 | Z99: 0.2623876765 | AA99: =Y99+IF(OR($G99="SSR",$G99="ZP",$G99="r-f",$G99="RFT"),VLOOKUP($BF99,タイヤ条件サマリ!$I$33:$J$38,2,0),VLOOKUP($BF99,タイヤ条件サマリ!$I:$J,2,0))*4 -> 157800 | AB99: 0.2717363752 | AC99: =VLOOKUP($T99,タイヤ条件サマリ!$N:$O,2,0) -> 2000 | AD99: 159800 | AE99: 0.2808510638 | AF99: 1665 | AG99: =INDEX('ホイール売価(国産)'!$A$81:$A$128,MATCH(AF99,'ホイール売価(国産)'!$B$81:$B$128,0)) -> Z-meist VS-1 BC | AH99: =VLOOKUP($AF99,'ホイール売価(国産)'!$B$81:$I$128,6,0) -> 5380 | AI99: 118000 | AJ99: =VLOOKUP($AF99,'ホイール売価(国産)'!$B$81:$I$128,8,0) -> 31000 | AK99: 163800 | AL99: 0.2796092796 | AM99: =AK99+IF(OR($G99="SSR",$G99="ZP",$G99="r-f",$G99="RFT"),VLOOKUP($BF99,タイヤ条件サマリ!$I$33:$J$38,2,0),VLOOKUP($BF99,タイヤ条件サマリ!$I:$J,2,0))*4 -> 165800 | AN99: 0.2882991556 | AO99: 2000 | AP99: 167800 | AQ99: 0.2967818832 | AR99: 1665 | AS99: =INDEX('ホイール売価(国産)'!$A$132:$A$171,MATCH(AR99,'ホイール売価(国産)'!$B$132:$B$171,0)) -> SMACK Valkyrie | AT99: =VLOOKUP($AR99,'ホイール売価(国産)'!$B$132:$I$171,6,0) -> 7410 | AU99: 126120 | AV99: =VLOOKUP($AR99,'ホイール売価(国産)'!$B$132:$I$171,8,0) -> 43000 | AW99: 175800 | AX99: 0.2825938567 | AY99: =AW99+IF(OR($G99="SSR",$G99="ZP",$G99="r-f",$G99="RFT"),VLOOKUP($BF99,タイヤ条件サマリ!$I$33:$J$38,2,0),VLOOKUP($BF99,タイヤ条件サマリ!$I:$J,2,0))*4 -> 177800 | AZ99: 0.290663667 | BA99: 2000 | BB99: 179800 | BC99: 0.2985539488 | BD99: 205 | BE99: 55 | BF99: 16 | BG99: 631.9 | BH99: 本部発注価格 | BL99: 1 | BM99: ベーシック;ミニバン | BN99: 20555163 | BO99: 3 | BQ99: =IF(OR(M99="",M99=0),"-",IF(ROUNDUP(M99,-4)>160000,10000,VLOOKUP(ROUNDUP(M99,-4),タイヤ条件サマリ!$R:$S,2,FALSE))) -> 8000
A100: BRIDGESTONE | B100: 4961914459109 | C100: PXR01248 | D100: VRX2 | E100: 215/55R16 | F100: 93Q | H100: 35000 | I100: 41000 | K100: 25200 | L100: =タイヤ条件サマリ!$C$3 -> 0.72 | M100: 138800 | N100: =タイヤ条件サマリ!$E$3 -> 0.15 | O100: 0.2737752161 | P100: =M100+(IF(OR($G100="SSR",$G100="ZP",$G100="r-f",$G100="RFT"),VLOOKUP($BF100,タイヤ条件サマリ!$I$33:$J$38,2,0),VLOOKUP($BF100,タイヤ条件サマリ!$I:$J,2,0))+$E$2+$F$2+$G$2)*4 -> 144000 | Q100: 0.3 | R100: 138800 | T100: =VLOOKUP($E100,タイヤホイールサイズ!$A:$E,3,FALSE) -> 1665 | U100: =INDEX('ホイール売価(国産)'!$A$4:$A$77,MATCH(T100,'ホイール売価(国産)'!$B$4:$B$77,0)) -> Z-meist VS-1 | V100: =VLOOKUP($T100,'ホイール売価(国産)'!$B:$I,6,FALSE) -> 4610 | W100: 119240 | X100: =VLOOKUP($T100,'ホイール売価(国産)'!$B:$I,8,FALSE) -> 23000 | Y100: 161800 | Z100: 0.2630407911 | AA100: =Y100+IF(OR($G100="SSR",$G100="ZP",$G100="r-f",$G100="RFT"),VLOOKUP($BF100,タイヤ条件サマリ!$I$33:$J$38,2,0),VLOOKUP($BF100,タイヤ条件サマリ!$I:$J,2,0))*4 -> 163800 | AB100: 0.272039072 | AC100: =VLOOKUP($T100,タイヤ条件サマリ!$N:$O,2,0) -> 2000 | AD100: 165800 | AE100: 0.2808202654 | AF100: 1665 | AG100: =INDEX('ホイール売価(国産)'!$A$81:$A$128,MATCH(AF100,'ホイール売価(国産)'!$B$81:$B$128,0)) -> Z-meist VS-1 BC | AH100: =VLOOKUP($AF100,'ホイール売価(国産)'!$B$81:$I$128,6,0) -> 5380 | AI100: 122320 | AJ100: =VLOOKUP($AF100,'ホイール売価(国産)'!$B$81:$I$128,8,0) -> 31000 | AK100: 169800 | AL100: 0.279623086 | AM100: =AK100+IF(OR($G100="SSR",$G100="ZP",$G100="r-f",$G100="RFT"),VLOOKUP($BF100,タイヤ条件サマリ!$I$33:$J$38,2,0),VLOOKUP($BF100,タイヤ条件サマリ!$I:$J,2,0))*4 -> 171800 | AN100: 0.2880093132 | AO100: 2000 | AP100: 173800 | AQ100: 0.2962025316 | AR100: 1665 | AS100: =INDEX('ホイール売価(国産)'!$A$132:$A$171,MATCH(AR100,'ホイール売価(国産)'!$B$132:$B$171,0)) -> SMACK Valkyrie | AT100: =VLOOKUP($AR100,'ホイール売価(国産)'!$B$132:$I$171,6,0) -> 7410 | AU100: 130440 | AV100: =VLOOKUP($AR100,'ホイール売価(国産)'!$B$132:$I$171,8,0) -> 43000 | AW100: 181800 | AX100: 0.2825082508 | AY100: =AW100+IF(OR($G100="SSR",$G100="ZP",$G100="r-f",$G100="RFT"),VLOOKUP($BF100,タイヤ条件サマリ!$I$33:$J$38,2,0),VLOOKUP($BF100,タイヤ条件サマリ!$I:$J,2,0))*4 -> 183800 | AZ100: 0.2903155604 | BA100: 2000 | BB100: 185800 | BC100: 0.2979547901 | BD100: 215 | BE100: 55 | BF100: 16 | BG100: 642.9 | BH100: 本部発注価格 | BL100: 1 | BM100: ベーシック;ミニバン | BN100: 21555163 | BO100: 3 | BQ100: =IF(OR(M100="",M100=0),"-",IF(ROUNDUP(M100,-4)>160000,10000,VLOOKUP(ROUNDUP(M100,-4),タイヤ条件サマリ!$R:$S,2,FALSE))) -> 8000
A101: BRIDGESTONE | B101: 4961914459147 | C101: PXR01256 | D101: VRX2 | E101: 225/55R16 | F101: 99Q XL | H101: 37300 | I101: 43600 | K101: 26860 | L101: =タイヤ条件サマリ!$C$3 -> 0.72 | M101: 147800 | N101: =タイヤ条件サマリ!$E$3 -> 0.15 | O101: 0.2730717185 | P101: =M101+(IF(OR($G101="SSR",$G101="ZP",$G101="r-f",$G101="RFT"),VLOOKUP($BF101,タイヤ条件サマリ!$I$33:$J$38,2,0),VLOOKUP($BF101,タイヤ条件サマリ!$I:$J,2,0))+$E$2+$F$2+$G$2)*4 -> 153000 | Q101: 0.2977777778 | R101: 147800 | T101: =VLOOKUP($E101,タイヤホイールサイズ!$A:$E,3,FALSE) -> 1665 | U101: =INDEX('ホイール売価(国産)'!$A$4:$A$77,MATCH(T101,'ホイール売価(国産)'!$B$4:$B$77,0)) -> Z-meist VS-1 | V101: =VLOOKUP($T101,'ホイール売価(国産)'!$B:$I,6,FALSE) -> 4610 | W101: 125880 | X101: =VLOOKUP($T101,'ホイール売価(国産)'!$B:$I,8,FALSE) -> 23000 | Y101: 170800 | Z101: 0.2629976581 | AA101: =Y101+IF(OR($G101="SSR",$G101="ZP",$G101="r-f",$G101="RFT"),VLOOKUP($BF101,タイヤ条件サマリ!$I$33:$J$38,2,0),VLOOKUP($BF101,タイヤ条件サマリ!$I:$J,2,0))*4 -> 172800 | AB101: 0.2715277778 | AC101: =VLOOKUP($T101,タイヤ条件サマリ!$N:$O,2,0) -> 2000 | AD101: 174800 | AE101: 0.2798627002 | AF101: 1665 | AG101: =INDEX('ホイール売価(国産)'!$A$81:$A$128,MATCH(AF101,'ホイール売価(国産)'!$B$81:$B$128,0)) -> Z-meist VS-1 BC | AH101: =VLOOKUP($AF101,'ホイール売価(国産)'!$B$81:$I$128,6,0) -> 5380 | AI101: 128960 | AJ101: =VLOOKUP($AF101,'ホイール売価(国産)'!$B$81:$I$128,8,0) -> 31000 | AK101: 178800 | AL101: 0.2787472036 | AM101: =AK101+IF(OR($G101="SSR",$G101="ZP",$G101="r-f",$G101="RFT"),VLOOKUP($BF101,タイヤ条件サマリ!$I$33:$J$38,2,0),VLOOKUP($BF101,タイヤ条件サマリ!$I:$J,2,0))*4 -> 180800 | AN101: 0.2867256637 | AO101: 2000 | AP101: 182800 | AQ101: 0.2945295405 | AR101: 1665 | AS101: =INDEX('ホイール売価(国産)'!$A$132:$A$171,MATCH(AR101,'ホイール売価(国産)'!$B$132:$B$171,0)) -> SMACK Valkyrie | AT101: =VLOOKUP($AR101,'ホイール売価(国産)'!$B$132:$I$171,6,0) -> 7410 | AU101: 137080 | AV101: =VLOOKUP($AR101,'ホイール売価(国産)'!$B$132:$I$171,8,0) -> 43000 | AW101: 190800 | AX101: 0.2815513627 | AY101: =AW101+IF(OR($G101="SSR",$G101="ZP",$G101="r-f",$G101="RFT"),VLOOKUP($BF101,タイヤ条件サマリ!$I$33:$J$38,2,0),VLOOKUP($BF101,タイヤ条件サマリ!$I:$J,2,0))*4 -> 192800 | AZ101: 0.2890041494 | BA101: 2000 | BB101: 194800 | BC101: 0.2963039014 | BD101: 225 | BE101: 55 | BF101: 16 | BG101: 653.9 | BH101: 本部発注価格 | BL101: 1 | BM101: ベーシック;ミニバン | BN101: 22555163 | BO101: 3 | BQ101: =IF(OR(M101="",M101=0),"-",IF(ROUNDUP(M101,-4)>160000,10000,VLOOKUP(ROUNDUP(M101,-4),タイヤ条件サマリ!$R:$S,2,FALSE))) -> 8000
A102: BRIDGESTONE | B102: 4961914458973 | C102: PXR01229 | D102: VRX2 | E102: 165/50R16 | F102: 75Q | H102: 24800 | I102: 29000 | K102: 17860 | L102: =タイヤ条件サマリ!$C$3 -> 0.72 | M102: 98800 | N102: =タイヤ条件サマリ!$E$3 -> 0.15 | O102: 0.2769230769 | P102: =M102+(IF(OR($G102="SSR",$G102="ZP",$G102="r-f",$G102="RFT"),VLOOKUP($BF102,タイヤ条件サマリ!$I$33:$J$38,2,0),VLOOKUP($BF102,タイヤ条件サマリ!$I:$J,2,0))+$E$2+$F$2+$G$2)*4 -> 104000 | Q102: 0.3130769231 | R102: 98800 | T102: =VLOOKUP($E102,タイヤホイールサイズ!$A:$E,3,FALSE) -> 1650 | U102: =INDEX('ホイール売価(国産)'!$A$4:$A$77,MATCH(T102,'ホイール売価(国産)'!$B$4:$B$77,0)) -> ZACK SPORT-1 | V102: =VLOOKUP($T102,'ホイール売価(国産)'!$B:$I,6,FALSE) -> 5220 | W102: 92320 | X102: =VLOOKUP($T102,'ホイール売価(国産)'!$B:$I,8,FALSE) -> 26000 | Y102: 124800 | Z102: 0.2602564103 | AA102: =Y102+IF(OR($G102="SSR",$G102="ZP",$G102="r-f",$G102="RFT"),VLOOKUP($BF102,タイヤ条件サマリ!$I$33:$J$38,2,0),VLOOKUP($BF102,タイヤ条件サマリ!$I:$J,2,0))*4 -> 126800 | AB102: 0.2719242902 | AC102: =VLOOKUP($T102,タイヤ条件サマリ!$N:$O,2,0) -> 2400 | AD102: 129200 | AE102: 0.2854489164 | AF102: 1650 | AG102: =INDEX('ホイール売価(国産)'!$A$81:$A$128,MATCH(AF102,'ホイール売価(国産)'!$B$81:$B$128,0)) -> JP STYLE Wolx | AH102: =VLOOKUP($AF102,'ホイール売価(国産)'!$B$81:$I$128,6,0) -> 6075 | AI102: 95740 | AJ102: =VLOOKUP($AF102,'ホイール売価(国産)'!$B$81:$I$128,8,0) -> 34000 | AK102: 132800 | AL102: 0.2790662651 | AM102: =AK102+IF(OR($G102="SSR",$G102="ZP",$G102="r-f",$G102="RFT"),VLOOKUP($BF102,タイヤ条件サマリ!$I$33:$J$38,2,0),VLOOKUP($BF102,タイヤ条件サマリ!$I:$J,2,0))*4 -> 134800 | AN102: 0.2897626113 | AO102: 2400 | AP102: 137200 | AQ102: 0.3021865889 | AR102: 1650 | AS102: =INDEX('ホイール売価(国産)'!$A$132:$A$171,MATCH(AR102,'ホイール売価(国産)'!$B$132:$B$171,0)) -> SMACK VANISH | AT102: =VLOOKUP($AR102,'ホイール売価(国産)'!$B$132:$I$171,6,0) -> 7020 | AU102: 99520 | AV102: =VLOOKUP($AR102,'ホイール売価(国産)'!$B$132:$I$171,8,0) -> 38000 | AW102: 136800 | AX102: 0.2725146199 | AY102: =AW102+IF(OR($G102="SSR",$G102="ZP",$G102="r-f",$G102="RFT"),VLOOKUP($BF102,タイヤ条件サマリ!$I$33:$J$38,2,0),VLOOKUP($BF102,タイヤ条件サマリ!$I:$J,2,0))*4 -> 138800 | AZ102: 0.2829971182 | BA102: 2400 | BB102: 141200 | BC102: 0.295184136 | BD102: 165 | BE102: 50 | BF102: 16 | BG102: 571.4 | BH102: 本部発注価格 | BL102: 1 | BM102: ベーシック;ミニバン | BN102: 16550163 | BO102: 3 | BQ102: =IF(OR(M102="",M102=0),"-",IF(ROUNDUP(M102,-4)>160000,10000,VLOOKUP(ROUNDUP(M102,-4),タイヤ条件サマリ!$R:$S,2,FALSE))) -> 6000
A103: BRIDGESTONE | B103: 4961914459024 | C103: PXR01235 | D103: VRX2 | E103: 195/50R16 | F103: 88Q XL | H103: 31500 | I103: 36900 | K103: 22680 | L103: =タイヤ条件サマリ!$C$3 -> 0.72 | M103: 124800 | N103: =タイヤ条件サマリ!$E$3 -> 0.15 | O103: 0.2730769231 | P103: =M103+(IF(OR($G103="SSR",$G103="ZP",$G103="r-f",$G103="RFT"),VLOOKUP($BF103,タイヤ条件サマリ!$I$33:$J$38,2,0),VLOOKUP($BF103,タイヤ条件サマリ!$I:$J,2,0))+$E$2+$F$2+$G$2)*4 -> 130000 | Q103: 0.3021538462 | R103: 124800 | T103: =VLOOKUP($E103,タイヤホイールサイズ!$A:$E,3,FALSE) -> 1660 | U103: =INDEX('ホイール売価(国産)'!$A$4:$A$77,MATCH(T103,'ホイール売価(国産)'!$B$4:$B$77,0)) -> ZACK JP-812 | V103: =VLOOKUP($T103,'ホイール売価(国産)'!$B:$I,6,FALSE) -> 5220 | W103: 111600 | X103: =VLOOKUP($T103,'ホイール売価(国産)'!$B:$I,8,FALSE) -> 26000 | Y103: 150800 | Z103: 0.2599469496 | AA103: =Y103+IF(OR($G103="SSR",$G103="ZP",$G103="r-f",$G103="RFT"),VLOOKUP($BF103,タイヤ条件サマリ!$I$33:$J$38,2,0),VLOOKUP($BF103,タイヤ条件サマリ!$I:$J,2,0))*4 -> 152800 | AB103: 0.2696335079 | AC103: =VLOOKUP($T103,タイヤ条件サマリ!$N:$O,2,0) -> 1600 | AD103: 154400 | AE103: 0.2772020725 | AF103: 1660 | AG103: =INDEX('ホイール売価(国産)'!$A$81:$A$128,MATCH(AF103,'ホイール売価(国産)'!$B$81:$B$128,0)) -> EuroSpeed V25 | AH103: =VLOOKUP($AF103,'ホイール売価(国産)'!$B$81:$I$128,6,0) -> 5730 | AI103: 113640 | AJ103: =VLOOKUP($AF103,'ホイール売価(国産)'!$B$81:$I$128,8,0) -> 34000 | AK103: 158800 | AL103: 0.2843828715 | AM103: =AK103+IF(OR($G103="SSR",$G103="ZP",$G103="r-f",$G103="RFT"),VLOOKUP($BF103,タイヤ条件サマリ!$I$33:$J$38,2,0),VLOOKUP($BF103,タイヤ条件サマリ!$I:$J,2,0))*4 -> 160800 | AN103: 0.2932835821 | AO103: 1600 | AP103: 162400 | AQ103: 0.3002463054 | AR103: 1660 | AS103: =INDEX('ホイール売価(国産)'!$A$132:$A$171,MATCH(AR103,'ホイール売価(国産)'!$B$132:$B$171,0)) -> JP STYLE Vercely | AT103: =VLOOKUP($AR103,'ホイール売価(国産)'!$B$132:$I$171,6,0) -> 7500 | AU103: 120720 | AV103: =VLOOKUP($AR103,'ホイール売価(国産)'!$B$132:$I$171,8,0) -> 43000 | AW103: 167800 | AX103: 0.2805721097 | AY103: =AW103+IF(OR($G103="SSR",$G103="ZP",$G103="r-f",$G103="RFT"),VLOOKUP($BF103,タイヤ条件サマリ!$I$33:$J$38,2,0),VLOOKUP($BF103,タイヤ条件サマリ!$I:$J,2,0))*4 -> 169800 | AZ103: 0.2890459364 | BA103: 1600 | BB103: 171400 | BC103: 0.2956826138 | BD103: 195 | BE103: 50 | BF103: 16 | BG103: 601.4 | BH103: 本部発注価格 | BL103: 1 | BM103: ベーシック;ミニバン | BN103: 19550163 | BO103: 3 | BQ103: =IF(OR(M103="",M103=0),"-",IF(ROUNDUP(M103,-4)>160000,10000,VLOOKUP(ROUNDUP(M103,-4),タイヤ条件サマリ!$R:$S,2,FALSE))) -> 8000
A104: BRIDGESTONE | B104: 4961914459062 | C104: PXR01241 | D104: VRX2 | E104: 205/50R16 | F104: 87Q | H104: 33700 | I104: 39400 | K104: 24260 | L104: =タイヤ条件サマリ!$C$3 -> 0.72 | M104: 133800 | N104: =タイヤ条件サマリ!$E$3 -> 0.15 | O104: 0.2747384155 | P104: =M104+(IF(OR($G104="SSR",$G104="ZP",$G104="r-f",$G104="RFT"),VLOOKUP($BF104,タイヤ条件サマリ!$I$33:$J$38,2,0),VLOOKUP($BF104,タイヤ条件サマリ!$I:$J,2,0))+$E$2+$F$2+$G$2)*4 -> 139000 | Q104: 0.3018705036 | R104: 133800 | T104: =VLOOKUP($E104,タイヤホイールサイズ!$A:$E,3,FALSE) -> 1665 | U104: =INDEX('ホイール売価(国産)'!$A$4:$A$77,MATCH(T104,'ホイール売価(国産)'!$B$4:$B$77,0)) -> Z-meist VS-1 | V104: =VLOOKUP($T104,'ホイール売価(国産)'!$B:$I,6,FALSE) -> 4610 | W104: 115480 | X104: =VLOOKUP($T104,'ホイール売価(国産)'!$B:$I,8,FALSE) -> 23000 | Y104: 156800 | Z104: 0.2635204082 | AA104: =Y104+IF(OR($G104="SSR",$G104="ZP",$G104="r-f",$G104="RFT"),VLOOKUP($BF104,タイヤ条件サマリ!$I$33:$J$38,2,0),VLOOKUP($BF104,タイヤ条件サマリ!$I:$J,2,0))*4 -> 158800 | AB104: 0.2727959698 | AC104: =VLOOKUP($T104,タイヤ条件サマリ!$N:$O,2,0) -> 2000 | AD104: 160800 | AE104: 0.281840796 | AF104: 1665 | AG104: =INDEX('ホイール売価(国産)'!$A$81:$A$128,MATCH(AF104,'ホイール売価(国産)'!$B$81:$B$128,0)) -> Z-meist VS-1 BC | AH104: =VLOOKUP($AF104,'ホイール売価(国産)'!$B$81:$I$128,6,0) -> 5380 | AI104: 118560 | AJ104: =VLOOKUP($AF104,'ホイール売価(国産)'!$B$81:$I$128,8,0) -> 31000 | AK104: 164800 | AL104: 0.2805825243 | AM104: =AK104+IF(OR($G104="SSR",$G104="ZP",$G104="r-f",$G104="RFT"),VLOOKUP($BF104,タイヤ条件サマリ!$I$33:$J$38,2,0),VLOOKUP($BF104,タイヤ条件サマリ!$I:$J,2,0))*4 -> 166800 | AN104: 0.2892086331 | AO104: 2000 | AP104: 168800 | AQ104: 0.2976303318 | AR104: 1665 | AS104: =INDEX('ホイール売価(国産)'!$A$132:$A$171,MATCH(AR104,'ホイール売価(国産)'!$B$132:$B$171,0)) -> SMACK Valkyrie | AT104: =VLOOKUP($AR104,'ホイール売価(国産)'!$B$132:$I$171,6,0) -> 7410 | AU104: 126680 | AV104: =VLOOKUP($AR104,'ホイール売価(国産)'!$B$132:$I$171,8,0) -> 43000 | AW104: 176800 | AX104: 0.2834841629 | AY104: =AW104+IF(OR($G104="SSR",$G104="ZP",$G104="r-f",$G104="RFT"),VLOOKUP($BF104,タイヤ条件サマリ!$I$33:$J$38,2,0),VLOOKUP($BF104,タイヤ条件サマリ!$I:$J,2,0))*4 -> 178800 | AZ104: 0.2914988814 | BA104: 2000 | BB104: 180800 | BC104: 0.2993362832 | BD104: 205 | BE104: 50 | BF104: 16 | BG104: 611.4 | BH104: 本部発注価格 | BL104: 1 | BM104: ベーシック;ミニバン | BN104: 20550163 | BO104: 3 | BQ104: =IF(OR(M104="",M104=0),"-",IF(ROUNDUP(M104,-4)>160000,10000,VLOOKUP(ROUNDUP(M104,-4),タイヤ条件サマリ!$R:$S,2,FALSE))) -> 8000
A105: BRIDGESTONE | B105: 4961914459130 | C105: PXR01254 | D105: VRX2 | E105: 225/50R16 | F105: 92Q | H105: 38200 | I105: 44700 | K105: =ROUND(H105*$L105,-1) -> 27500 | L105: =タイヤ条件サマリ!$C$3 -> 0.72 | M105: =ROUND(I105*(1-$N105)*4,-3)-200 -> 151800 | N105: =タイヤ条件サマリ!$E$3 -> 0.15 | O105: =(M105-(K105*4))/M105 -> 0.2753623188 | P105: =M105+(IF(OR($G105="SSR",$G105="ZP",$G105="r-f",$G105="RFT"),VLOOKUP($BF105,タイヤ条件サマリ!$I$33:$J$38,2,0),VLOOKUP($BF105,タイヤ条件サマリ!$I:$J,2,0))+$E$2+$F$2+$G$2)*4 -> 157000 | Q105: =(P105-(K105*4))/P105 -> 0.2993630573 | R105: 151800 | T105: =VLOOKUP($E105,タイヤホイールサイズ!$A:$E,3,FALSE) -> 1665 | U105: =INDEX('ホイール売価(国産)'!$A$4:$A$77,MATCH(T105,'ホイール売価(国産)'!$B$4:$B$77,0)) -> Z-meist VS-1 | V105: =VLOOKUP($T105,'ホイール売価(国産)'!$B:$I,6,FALSE) -> 4610 | W105: 128440 | X105: =VLOOKUP($T105,'ホイール売価(国産)'!$B:$I,8,FALSE) -> 23000 | Y105: 174800 | Z105: 0.2652173913 | AA105: =Y105+IF(OR($G105="SSR",$G105="ZP",$G105="r-f",$G105="RFT"),VLOOKUP($BF105,タイヤ条件サマリ!$I$33:$J$38,2,0),VLOOKUP($BF105,タイヤ条件サマリ!$I:$J,2,0))*4 -> 176800 | AB105: 0.2735294118 | AC105: =VLOOKUP($T105,タイヤ条件サマリ!$N:$O,2,0) -> 2000 | AD105: 178800 | AE105: 0.281655481 | AF105: =$T105 -> 1665 | AG105: =INDEX('ホイール売価(国産)'!$A$81:$A$128,MATCH(AF105,'ホイール売価(国産)'!$B$81:$B$128,0)) -> Z-meist VS-1 BC | AH105: =VLOOKUP($AF105,'ホイール売価(国産)'!$B$81:$I$128,6,0) -> 5380 | AI105: 131520 | AJ105: =VLOOKUP($AF105,'ホイール売価(国産)'!$B$81:$I$128,8,0) -> 31000 | AK105: 182800 | AL105: 0.2805251641 | AM105: =AK105+IF(OR($G105="SSR",$G105="ZP",$G105="r-f",$G105="RFT"),VLOOKUP($BF105,タイヤ条件サマリ!$I$33:$J$38,2,0),VLOOKUP($BF105,タイヤ条件サマリ!$I:$J,2,0))*4 -> 184800 | AN105: 0.2883116883 | AO105: 2000 | AP105: 186800 | AQ105: 0.2959314775 | AR105: =$T105 -> 1665 | AS105: =INDEX('ホイール売価(国産)'!$A$132:$A$171,MATCH(AR105,'ホイール売価(国産)'!$B$132:$B$171,0)) -> SMACK Valkyrie | AT105: =VLOOKUP($AR105,'ホイール売価(国産)'!$B$132:$I$171,6,0) -> 7410 | AU105: 139640 | AV105: =VLOOKUP($AR105,'ホイール売価(国産)'!$B$132:$I$171,8,0) -> 43000 | AW105: 194800 | AX105: 0.2831622177 | AY105: =AW105+IF(OR($G105="SSR",$G105="ZP",$G105="r-f",$G105="RFT"),VLOOKUP($BF105,タイヤ条件サマリ!$I$33:$J$38,2,0),VLOOKUP($BF105,タイヤ条件サマリ!$I:$J,2,0))*4 -> 196800 | AZ105: 0.2904471545 | BA105: 2000 | BB105: 198800 | BC105: 0.2975855131 | BD105: 225 | BE105: 50 | BF105: 16 | BG105: 631.4 | BH105: 本部発注価格 | BL105: 1 | BM105: ベーシック;ミニバン | BN105: 22550163 | BO105: 3 | BQ105: =IF(OR(M105="",M105=0),"-",IF(ROUNDUP(M105,-4)>160000,10000,VLOOKUP(ROUNDUP(M105,-4),タイヤ条件サマリ!$R:$S,2,FALSE))) -> 10000
A106: BRIDGESTONE | B106: 4961914459017 | C106: PXR01234 | D106: VRX2 | E106: 195/45R16 | F106: 80Q | H106: 29800 | I106: 34900 | K106: 21460 | L106: =タイヤ条件サマリ!$C$3 -> 0.72 | M106: 118800 | N106: =タイヤ条件サマリ!$E$3 -> 0.15 | O106: 0.2774410774 | P106: =M106+(IF(OR($G106="SSR",$G106="ZP",$G106="r-f",$G106="RFT"),VLOOKUP($BF106,タイヤ条件サマリ!$I$33:$J$38,2,0),VLOOKUP($BF106,タイヤ条件サマリ!$I:$J,2,0))+$E$2+$F$2+$G$2)*4 -> 124000 | Q106: 0.3077419355 | R106: =M106-$S106 -> 118800 | T106: =VLOOKUP($E106,タイヤホイールサイズ!$A:$E,3,FALSE) -> 1660 | U106: =INDEX('ホイール売価(国産)'!$A$4:$A$77,MATCH(T106,'ホイール売価(国産)'!$B$4:$B$77,0)) -> ZACK JP-812 | V106: =VLOOKUP($T106,'ホイール売価(国産)'!$B:$I,6,FALSE) -> 5220 | W106: =(V106+$K106)*4 -> 106720 | X106: =VLOOKUP($T106,'ホイール売価(国産)'!$B:$I,8,FALSE) -> 26000 | Y106: =$R106+X106 -> 144800 | Z106: 0.2629834254 | AA106: =Y106+IF(OR($G106="SSR",$G106="ZP",$G106="r-f",$G106="RFT"),VLOOKUP($BF106,タイヤ条件サマリ!$I$33:$J$38,2,0),VLOOKUP($BF106,タイヤ条件サマリ!$I:$J,2,0))*4 -> 146800 | AB106: 0.2730245232 | AC106: =VLOOKUP($T106,タイヤ条件サマリ!$N:$O,2,0) -> 1600 | AD106: 148400 | AE106: 0.2808625337 | AF106: 1660 | AG106: =INDEX('ホイール売価(国産)'!$A$81:$A$128,MATCH(AF106,'ホイール売価(国産)'!$B$81:$B$128,0)) -> EuroSpeed V25 | AH106: =VLOOKUP($AF106,'ホイール売価(国産)'!$B$81:$I$128,6,0) -> 5730 | AI106: =(AH106+$K106)*4 -> 108760 | AJ106: =VLOOKUP($AF106,'ホイール売価(国産)'!$B$81:$I$128,8,0) -> 34000 | AK106: =$R106+AJ106 -> 152800 | AL106: =(AK106-AI106)/AK106 -> 0.2882198953 | AM106: =AK106+IF(OR($G106="SSR",$G106="ZP",$G106="r-f",$G106="RFT"),VLOOKUP($BF106,タイヤ条件サマリ!$I$33:$J$38,2,0),VLOOKUP($BF106,タイヤ条件サマリ!$I:$J,2,0))*4 -> 154800 | AN106: =(AM106-AI106)/AM106 -> 0.2974160207 | AO106: =AC106 -> 1600 | AP106: =AM106+AO106 -> 156400 | AQ106: =(AP106-AI106)/AP106 -> 0.3046035806 | AR106: 1660 | AS106: =INDEX('ホイール売価(国産)'!$A$132:$A$171,MATCH(AR106,'ホイール売価(国産)'!$B$132:$B$171,0)) -> JP STYLE Vercely | AT106: =VLOOKUP($AR106,'ホイール売価(国産)'!$B$132:$I$171,6,0) -> 7500 | AU106: 115840 | AV106: =VLOOKUP($AR106,'ホイール売価(国産)'!$B$132:$I$171,8,0) -> 43000 | AW106: 161800 | AX106: =(AW106-AU106)/AW106 -> 0.2840543881 | AY106: =AW106+IF(OR($G106="SSR",$G106="ZP",$G106="r-f",$G106="RFT"),VLOOKUP($BF106,タイヤ条件サマリ!$I$33:$J$38,2,0),VLOOKUP($BF106,タイヤ条件サマリ!$I:$J,2,0))*4 -> 163800 | AZ106: =(AY106-AU106)/AY106 -> 0.2927960928 | BA106: =AC106 -> 1600 | BB106: 165400 | BC106: =(BB106-AU106)/BB106 -> 0.299637243 | BD106: 195 | BE106: 45 | BF106: 16 | BG106: 581.9 | BH106: 本部発注価格 | BL106: 1 | BM106: ベーシック;ミニバン | BN106: 19545163 | BO106: 3 | BQ106: =IF(OR(M106="",M106=0),"-",IF(ROUNDUP(M106,-4)>160000,10000,VLOOKUP(ROUNDUP(M106,-4),タイヤ条件サマリ!$R:$S,2,FALSE))) -> 8000
A107: BRIDGESTONE | B107: 4961914459239 | C107: PXR01272 | D107: VRX2 | E107: 215/60R17 | F107: 96Q | H107: 32400 | I107: 37900 | K107: 23330 | L107: =タイヤ条件サマリ!$C$3 -> 0.72 | M107: 128800 | N107: =タイヤ条件サマリ!$E$3 -> 0.15 | O107: 0.2754658385 | P107: =M107+(IF(OR($G107="SSR",$G107="ZP",$G107="r-f",$G107="RFT"),VLOOKUP($BF107,タイヤ条件サマリ!$I$33:$J$38,2,0),VLOOKUP($BF107,タイヤ条件サマリ!$I:$J,2,0))+$E$2+$F$2+$G$2)*4 -> 134000 | Q107: 0.3035820896 | R107: 128800 | T107: =VLOOKUP($E107,タイヤホイールサイズ!$A:$E,3,FALSE) -> 1770 | U107: =INDEX('ホイール売価(国産)'!$A$4:$A$77,MATCH(T107,'ホイール売価(国産)'!$B$4:$B$77,0)) -> Z-meist VS-1 | V107: =VLOOKUP($T107,'ホイール売価(国産)'!$B:$I,6,FALSE) -> 5480 | W107: 115240 | X107: =VLOOKUP($T107,'ホイール売価(国産)'!$B:$I,8,FALSE) -> 27000 | Y107: 155800 | Z107: 0.2603337612 | AA107: =Y107+IF(OR($G107="SSR",$G107="ZP",$G107="r-f",$G107="RFT"),VLOOKUP($BF107,タイヤ条件サマリ!$I$33:$J$38,2,0),VLOOKUP($BF107,タイヤ条件サマリ!$I:$J,2,0))*4 -> 157800 | AB107: 0.2697084918 | AC107: =VLOOKUP($T107,タイヤ条件サマリ!$N:$O,2,0) -> 2000 | AD107: 159800 | AE107: 0.2788485607 | AF107: 1770 | AG107: =INDEX('ホイール売価(国産)'!$A$81:$A$128,MATCH(AF107,'ホイール売価(国産)'!$B$81:$B$128,0)) -> Z-meist VS-1 BC | AH107: =VLOOKUP($AF107,'ホイール売価(国産)'!$B$81:$I$128,6,0) -> 6300 | AI107: 118520 | AJ107: =VLOOKUP($AF107,'ホイール売価(国産)'!$B$81:$I$128,8,0) -> 35000 | AK107: 163800 | AL107: 0.2764346764 | AM107: =AK107+IF(OR($G107="SSR",$G107="ZP",$G107="r-f",$G107="RFT"),VLOOKUP($BF107,タイヤ条件サマリ!$I$33:$J$38,2,0),VLOOKUP($BF107,タイヤ条件サマリ!$I:$J,2,0))*4 -> 165800 | AN107: 0.2851628468 | AO107: 2000 | AP107: 167800 | AQ107: 0.2936829559 | AR107: 1770 | AS107: =INDEX('ホイール売価(国産)'!$A$132:$A$171,MATCH(AR107,'ホイール売価(国産)'!$B$132:$B$171,0)) -> SMACK Valkyrie | AT107: =VLOOKUP($AR107,'ホイール売価(国産)'!$B$132:$I$171,6,0) -> 8840 | AU107: 128680 | AV107: =VLOOKUP($AR107,'ホイール売価(国産)'!$B$132:$I$171,8,0) -> 50000 | AW107: 178800 | AX107: 0.2803131991 | AY107: =AW107+IF(OR($G107="SSR",$G107="ZP",$G107="r-f",$G107="RFT"),VLOOKUP($BF107,タイヤ条件サマリ!$I$33:$J$38,2,0),VLOOKUP($BF107,タイヤ条件サマリ!$I:$J,2,0))*4 -> 180800 | AZ107: 0.2882743363 | BA107: 2000 | BB107: 182800 | BC107: 0.2960612691 | BD107: 215 | BE107: 60 | BF107: 17 | BG107: 689.8 | BH107: 本部発注価格 | BL107: 1 | BM107: ベーシック;ミニバン | BN107: 21560173 | BO107: 3 | BQ107: =IF(OR(M107="",M107=0),"-",IF(ROUNDUP(M107,-4)>160000,10000,VLOOKUP(ROUNDUP(M107,-4),タイヤ条件サマリ!$R:$S,2,FALSE))) -> 8000
A108: BRIDGESTONE | B108: 4961914459277 | C108: PXR01281 | D108: VRX2 | E108: 225/60R17 | F108: 99Q | H108: 33900 | I108: 39700 | K108: 24410 | L108: =タイヤ条件サマリ!$C$3 -> 0.72 | M108: 134800 | N108: =タイヤ条件サマリ!$E$3 -> 0.15 | O108: 0.2756676558 | P108: =M108+(IF(OR($G108="SSR",$G108="ZP",$G108="r-f",$G108="RFT"),VLOOKUP($BF108,タイヤ条件サマリ!$I$33:$J$38,2,0),VLOOKUP($BF108,タイヤ条件サマリ!$I:$J,2,0))+$E$2+$F$2+$G$2)*4 -> 140000 | Q108: 0.3025714286 | R108: 134800 | T108: =VLOOKUP($E108,タイヤホイールサイズ!$A:$E,3,FALSE) -> 1770 | U108: =INDEX('ホイール売価(国産)'!$A$4:$A$77,MATCH(T108,'ホイール売価(国産)'!$B$4:$B$77,0)) -> Z-meist VS-1 | V108: =VLOOKUP($T108,'ホイール売価(国産)'!$B:$I,6,FALSE) -> 5480 | W108: 119560 | X108: =VLOOKUP($T108,'ホイール売価(国産)'!$B:$I,8,FALSE) -> 27000 | Y108: 161800 | Z108: 0.2610630408 | AA108: =Y108+IF(OR($G108="SSR",$G108="ZP",$G108="r-f",$G108="RFT"),VLOOKUP($BF108,タイヤ条件サマリ!$I$33:$J$38,2,0),VLOOKUP($BF108,タイヤ条件サマリ!$I:$J,2,0))*4 -> 163800 | AB108: 0.2700854701 | AC108: =VLOOKUP($T108,タイヤ条件サマリ!$N:$O,2,0) -> 2000 | AD108: 165800 | AE108: 0.2788902292 | AF108: 1770 | AG108: =INDEX('ホイール売価(国産)'!$A$81:$A$128,MATCH(AF108,'ホイール売価(国産)'!$B$81:$B$128,0)) -> Z-meist VS-1 BC | AH108: =VLOOKUP($AF108,'ホイール売価(国産)'!$B$81:$I$128,6,0) -> 6300 | AI108: 122840 | AJ108: =VLOOKUP($AF108,'ホイール売価(国産)'!$B$81:$I$128,8,0) -> 35000 | AK108: 169800 | AL108: 0.2765606596 | AM108: =AK108+IF(OR($G108="SSR",$G108="ZP",$G108="r-f",$G108="RFT"),VLOOKUP($BF108,タイヤ条件サマリ!$I$33:$J$38,2,0),VLOOKUP($BF108,タイヤ条件サマリ!$I:$J,2,0))*4 -> 171800 | AN108: 0.2849825378 | AO108: 2000 | AP108: 173800 | AQ108: 0.2932105869 | AR108: 1770 | AS108: =INDEX('ホイール売価(国産)'!$A$132:$A$171,MATCH(AR108,'ホイール売価(国産)'!$B$132:$B$171,0)) -> SMACK Valkyrie | AT108: =VLOOKUP($AR108,'ホイール売価(国産)'!$B$132:$I$171,6,0) -> 8840 | AU108: 133000 | AV108: =VLOOKUP($AR108,'ホイール売価(国産)'!$B$132:$I$171,8,0) -> 50000 | AW108: 184800 | AX108: 0.2803030303 | AY108: =AW108+IF(OR($G108="SSR",$G108="ZP",$G108="r-f",$G108="RFT"),VLOOKUP($BF108,タイヤ条件サマリ!$I$33:$J$38,2,0),VLOOKUP($BF108,タイヤ条件サマリ!$I:$J,2,0))*4 -> 186800 | AZ108: 0.2880085653 | BA108: 2000 | BB108: 188800 | BC108: 0.2955508475 | BD108: 225 | BE108: 60 | BF108: 17 | BG108: 701.8 | BH108: 本部発注価格 | BL108: 1 | BM108: ベーシック;ミニバン | BN108: 22560173 | BO108: 3 | BQ108: =IF(OR(M108="",M108=0),"-",IF(ROUNDUP(M108,-4)>160000,10000,VLOOKUP(ROUNDUP(M108,-4),タイヤ条件サマリ!$R:$S,2,FALSE))) -> 8000
A109: BRIDGESTONE | B109: 4961914459192 | C109: PXR01265 | D109: VRX2 | E109: 205/55R17 | F109: 91Q | H109: 36500 | I109: 42700 | K109: 26280 | L109: =タイヤ条件サマリ!$C$3 -> 0.72 | M109: 144800 | N109: =タイヤ条件サマリ!$E$3 -> 0.15 | O109: 0.2740331492 | P109: =M109+(IF(OR($G109="SSR",$G109="ZP",$G109="r-f",$G109="RFT"),VLOOKUP($BF109,タイヤ条件サマリ!$I$33:$J$38,2,0),VLOOKUP($BF109,タイヤ条件サマリ!$I:$J,2,0))+$E$2+$F$2+$G$2)*4 -> 150000 | Q109: 0.2992 | R109: 144800 | T109: =VLOOKUP($E109,タイヤホイールサイズ!$A:$E,3,FALSE) -> 1770 | U109: =INDEX('ホイール売価(国産)'!$A$4:$A$77,MATCH(T109,'ホイール売価(国産)'!$B$4:$B$77,0)) -> Z-meist VS-1 | V109: =VLOOKUP($T109,'ホイール売価(国産)'!$B:$I,6,FALSE) -> 5480 | W109: 127040 | X109: =VLOOKUP($T109,'ホイール売価(国産)'!$B:$I,8,FALSE) -> 27000 | Y109: 171800 | Z109: 0.2605355064 | AA109: =Y109+IF(OR($G109="SSR",$G109="ZP",$G109="r-f",$G109="RFT"),VLOOKUP($BF109,タイヤ条件サマリ!$I$33:$J$38,2,0),VLOOKUP($BF109,タイヤ条件サマリ!$I:$J,2,0))*4 -> 173800 | AB109: 0.2690448792 | AC109: =VLOOKUP($T109,タイヤ条件サマリ!$N:$O,2,0) -> 2000 | AD109: 175800 | AE109: 0.2773606371 | AF109: 1770 | AG109: =INDEX('ホイール売価(国産)'!$A$81:$A$128,MATCH(AF109,'ホイール売価(国産)'!$B$81:$B$128,0)) -> Z-meist VS-1 BC | AH109: =VLOOKUP($AF109,'ホイール売価(国産)'!$B$81:$I$128,6,0) -> 6300 | AI109: 130320 | AJ109: =VLOOKUP($AF109,'ホイール売価(国産)'!$B$81:$I$128,8,0) -> 35000 | AK109: 179800 | AL109: 0.2751946607 | AM109: =AK109+IF(OR($G109="SSR",$G109="ZP",$G109="r-f",$G109="RFT"),VLOOKUP($BF109,タイヤ条件サマリ!$I$33:$J$38,2,0),VLOOKUP($BF109,タイヤ条件サマリ!$I:$J,2,0))*4 -> 181800 | AN109: 0.2831683168 | AO109: 2000 | AP109: 183800 | AQ109: 0.290968444 | AR109: 1770 | AS109: =INDEX('ホイール売価(国産)'!$A$132:$A$171,MATCH(AR109,'ホイール売価(国産)'!$B$132:$B$171,0)) -> SMACK Valkyrie | AT109: =VLOOKUP($AR109,'ホイール売価(国産)'!$B$132:$I$171,6,0) -> 8840 | AU109: 140480 | AV109: =VLOOKUP($AR109,'ホイール売価(国産)'!$B$132:$I$171,8,0) -> 50000 | AW109: 194800 | AX109: 0.2788501027 | AY109: =AW109+IF(OR($G109="SSR",$G109="ZP",$G109="r-f",$G109="RFT"),VLOOKUP($BF109,タイヤ条件サマリ!$I$33:$J$38,2,0),VLOOKUP($BF109,タイヤ条件サマリ!$I:$J,2,0))*4 -> 196800 | AZ109: 0.2861788618 | BA109: 2000 | BB109: 198800 | BC109: 0.293360161 | BD109: 205 | BE109: 55 | BF109: 17 | BG109: 657.3 | BH109: 本部発注価格 | BL109: 1 | BM109: ベーシック;ミニバン | BN109: 20555173 | BO109: 3 | BQ109: =IF(OR(M109="",M109=0),"-",IF(ROUNDUP(M109,-4)>160000,10000,VLOOKUP(ROUNDUP(M109,-4),タイヤ条件サマリ!$R:$S,2,FALSE))) -> 8000
A110: BRIDGESTONE | B110: 4961914459222 | C110: PXR01270 | D110: VRX2 | E110: 215/55R17 | F110: 94Q | H110: 38000 | I110: 44500 | K110: 27360 | L110: =タイヤ条件サマリ!$C$3 -> 0.72 | M110: 150800 | N110: =タイヤ条件サマリ!$E$3 -> 0.15 | O110: 0.274270557 | P110: =M110+(IF(OR($G110="SSR",$G110="ZP",$G110="r-f",$G110="RFT"),VLOOKUP($BF110,タイヤ条件サマリ!$I$33:$J$38,2,0),VLOOKUP($BF110,タイヤ条件サマリ!$I:$J,2,0))+$E$2+$F$2+$G$2)*4 -> 156000 | Q110: 0.2984615385 | R110: 150800 | T110: =VLOOKUP($E110,タイヤホイールサイズ!$A:$E,3,FALSE) -> 1770 | U110: =INDEX('ホイール売価(国産)'!$A$4:$A$77,MATCH(T110,'ホイール売価(国産)'!$B$4:$B$77,0)) -> Z-meist VS-1 | V110: =VLOOKUP($T110,'ホイール売価(国産)'!$B:$I,6,FALSE) -> 5480 | W110: 131360 | X110: =VLOOKUP($T110,'ホイール売価(国産)'!$B:$I,8,FALSE) -> 27000 | Y110: 177800 | Z110: 0.261192351 | AA110: =Y110+IF(OR($G110="SSR",$G110="ZP",$G110="r-f",$G110="RFT"),VLOOKUP($BF110,タイヤ条件サマリ!$I$33:$J$38,2,0),VLOOKUP($BF110,タイヤ条件サマリ!$I:$J,2,0))*4 -> 179800 | AB110: 0.2694104561 | AC110: =VLOOKUP($T110,タイヤ条件サマリ!$N:$O,2,0) -> 2000 | AD110: 181800 | AE110: 0.2774477448 | AF110: 1770 | AG110: =INDEX('ホイール売価(国産)'!$A$81:$A$128,MATCH(AF110,'ホイール売価(国産)'!$B$81:$B$128,0)) -> Z-meist VS-1 BC | AH110: =VLOOKUP($AF110,'ホイール売価(国産)'!$B$81:$I$128,6,0) -> 6300 | AI110: 134640 | AJ110: =VLOOKUP($AF110,'ホイール売価(国産)'!$B$81:$I$128,8,0) -> 35000 | AK110: 185800 | AL110: 0.2753498385 | AM110: =AK110+IF(OR($G110="SSR",$G110="ZP",$G110="r-f",$G110="RFT"),VLOOKUP($BF110,タイヤ条件サマリ!$I$33:$J$38,2,0),VLOOKUP($BF110,タイヤ条件サマリ!$I:$J,2,0))*4 -> 187800 | AN110: 0.2830670927 | AO110: 2000 | AP110: 189800 | AQ110: 0.2906217071 | AR110: 1770 | AS110: =INDEX('ホイール売価(国産)'!$A$132:$A$171,MATCH(AR110,'ホイール売価(国産)'!$B$132:$B$171,0)) -> SMACK Valkyrie | AT110: =VLOOKUP($AR110,'ホイール売価(国産)'!$B$132:$I$171,6,0) -> 8840 | AU110: 144800 | AV110: =VLOOKUP($AR110,'ホイール売価(国産)'!$B$132:$I$171,8,0) -> 50000 | AW110: 200800 | AX110: 0.2788844622 | AY110: =AW110+IF(OR($G110="SSR",$G110="ZP",$G110="r-f",$G110="RFT"),VLOOKUP($BF110,タイヤ条件サマリ!$I$33:$J$38,2,0),VLOOKUP($BF110,タイヤ条件サマリ!$I:$J,2,0))*4 -> 202800 | AZ110: 0.2859960552 | BA110: 2000 | BB110: 204800 | BC110: 0.29296875 | BD110: 215 | BE110: 55 | BF110: 17 | BG110: 668.3 | BH110: 本部発注価格 | BL110: 1 | BM110: ベーシック;ミニバン | BN110: 21555173 | BO110: 3 | BQ110: =IF(OR(M110="",M110=0),"-",IF(ROUNDUP(M110,-4)>160000,10000,VLOOKUP(ROUNDUP(M110,-4),タイヤ条件サマリ!$R:$S,2,FALSE))) -> 10000
A111: BRIDGESTONE | B111: 4961914459260 | C111: PXR01278 | D111: VRX2 | E111: 225/55R17 | F111: 97Q | H111: 40100 | I111: 46900 | K111: 28870 | L111: =タイヤ条件サマリ!$C$3 -> 0.72 | M111: 158800 | N111: =タイヤ条件サマリ!$E$3 -> 0.15 | O111: 0.2727959698 | P111: =M111+(IF(OR($G111="SSR",$G111="ZP",$G111="r-f",$G111="RFT"),VLOOKUP($BF111,タイヤ条件サマリ!$I$33:$J$38,2,0),VLOOKUP($BF111,タイヤ条件サマリ!$I:$J,2,0))+$E$2+$F$2+$G$2)*4 -> 164000 | Q111: 0.2958536585 | R111: 158800 | T111: =VLOOKUP($E111,タイヤホイールサイズ!$A:$E,3,FALSE) -> 1770 | U111: =INDEX('ホイール売価(国産)'!$A$4:$A$77,MATCH(T111,'ホイール売価(国産)'!$B$4:$B$77,0)) -> Z-meist VS-1 | V111: =VLOOKUP($T111,'ホイール売価(国産)'!$B:$I,6,FALSE) -> 5480 | W111: 137400 | X111: =VLOOKUP($T111,'ホイール売価(国産)'!$B:$I,8,FALSE) -> 27000 | Y111: 185800 | Z111: 0.2604951561 | AA111: =Y111+IF(OR($G111="SSR",$G111="ZP",$G111="r-f",$G111="RFT"),VLOOKUP($BF111,タイヤ条件サマリ!$I$33:$J$38,2,0),VLOOKUP($BF111,タイヤ条件サマリ!$I:$J,2,0))*4 -> 187800 | AB111: 0.268370607 | AC111: =VLOOKUP($T111,タイヤ条件サマリ!$N:$O,2,0) -> 2000 | AD111: 189800 | AE111: 0.2760800843 | AF111: 1770 | AG111: =INDEX('ホイール売価(国産)'!$A$81:$A$128,MATCH(AF111,'ホイール売価(国産)'!$B$81:$B$128,0)) -> Z-meist VS-1 BC | AH111: =VLOOKUP($AF111,'ホイール売価(国産)'!$B$81:$I$128,6,0) -> 6300 | AI111: 140680 | AJ111: =VLOOKUP($AF111,'ホイール売価(国産)'!$B$81:$I$128,8,0) -> 35000 | AK111: 193800 | AL111: 0.2740970072 | AM111: =AK111+IF(OR($G111="SSR",$G111="ZP",$G111="r-f",$G111="RFT"),VLOOKUP($BF111,タイヤ条件サマリ!$I$33:$J$38,2,0),VLOOKUP($BF111,タイヤ条件サマリ!$I:$J,2,0))*4 -> 195800 | AN111: 0.2815117467 | AO111: 2000 | AP111: 197800 | AQ111: 0.288776542 | AR111: 1770 | AS111: =INDEX('ホイール売価(国産)'!$A$132:$A$171,MATCH(AR111,'ホイール売価(国産)'!$B$132:$B$171,0)) -> SMACK Valkyrie | AT111: =VLOOKUP($AR111,'ホイール売価(国産)'!$B$132:$I$171,6,0) -> 8840 | AU111: 150840 | AV111: =VLOOKUP($AR111,'ホイール売価(国産)'!$B$132:$I$171,8,0) -> 50000 | AW111: 208800 | AX111: 0.2775862069 | AY111: =AW111+IF(OR($G111="SSR",$G111="ZP",$G111="r-f",$G111="RFT"),VLOOKUP($BF111,タイヤ条件サマリ!$I$33:$J$38,2,0),VLOOKUP($BF111,タイヤ条件サマリ!$I:$J,2,0))*4 -> 210800 | AZ111: 0.2844402277 | BA111: 2000 | BB111: 212800 | BC111: 0.2911654135 | BD111: 225 | BE111: 55 | BF111: 17 | BG111: 679.3 | BH111: 本部発注価格 | BL111: 1 | BM111: ベーシック;ミニバン | BN111: 22555173 | BO111: 3 | BQ111: =IF(OR(M111="",M111=0),"-",IF(ROUNDUP(M111,-4)>160000,10000,VLOOKUP(ROUNDUP(M111,-4),タイヤ条件サマリ!$R:$S,2,FALSE))) -> 10000
A112: BRIDGESTONE | B112: 4961914459307 | C112: PXR01285 | D112: VRX2 | E112: 235/55R17 | F112: 99Q | H112: 42300 | I112: 49500 | K112: 30460 | L112: =タイヤ条件サマリ!$C$3 -> 0.72 | M112: 167800 | N112: =タイヤ条件サマリ!$E$3 -> 0.15 | O112: 0.273897497 | P112: =M112+(IF(OR($G112="SSR",$G112="ZP",$G112="r-f",$G112="RFT"),VLOOKUP($BF112,タイヤ条件サマリ!$I$33:$J$38,2,0),VLOOKUP($BF112,タイヤ条件サマリ!$I:$J,2,0))+$E$2+$F$2+$G$2)*4 -> 173000 | Q112: 0.2957225434 | R112: 167800 | BD112: 235 | BE112: 55 | BF112: 17 | BG112: 690.3 | BH112: 本部発注価格 | BL112: 1 | BM112: ベーシック;ミニバン | BN112: 23555173 | BO112: 3 | BQ112: =IF(OR(M112="",M112=0),"-",IF(ROUNDUP(M112,-4)>160000,10000,VLOOKUP(ROUNDUP(M112,-4),タイヤ条件サマリ!$R:$S,2,FALSE))) -> 10000
A113: BRIDGESTONE | B113: 4961914459185 | C113: PXR01263 | D113: VRX2 | E113: 205/50R17 | F113: 93Q XL | H113: 35900 | I113: 42000 | K113: 25850 | L113: =タイヤ条件サマリ!$C$3 -> 0.72 | M113: 142800 | N113: =タイヤ条件サマリ!$E$3 -> 0.15 | O113: 0.2759103641 | P113: =M113+(IF(OR($G113="SSR",$G113="ZP",$G113="r-f",$G113="RFT"),VLOOKUP($BF113,タイヤ条件サマリ!$I$33:$J$38,2,0),VLOOKUP($BF113,タイヤ条件サマリ!$I:$J,2,0))+$E$2+$F$2+$G$2)*4 -> 148000 | Q113: 0.3013513514 | R113: 142800 | T113: =VLOOKUP($E113,タイヤホイールサイズ!$A:$E,3,FALSE) -> 1770 | U113: =INDEX('ホイール売価(国産)'!$A$4:$A$77,MATCH(T113,'ホイール売価(国産)'!$B$4:$B$77,0)) -> Z-meist VS-1 | V113: =VLOOKUP($T113,'ホイール売価(国産)'!$B:$I,6,FALSE) -> 5480 | W113: 125320 | X113: =VLOOKUP($T113,'ホイール売価(国産)'!$B:$I,8,FALSE) -> 27000 | Y113: 169800 | Z113: 0.2619552415 | AA113: =Y113+IF(OR($G113="SSR",$G113="ZP",$G113="r-f",$G113="RFT"),VLOOKUP($BF113,タイヤ条件サマリ!$I$33:$J$38,2,0),VLOOKUP($BF113,タイヤ条件サマリ!$I:$J,2,0))*4 -> 171800 | AB113: 0.2705471478 | AC113: =VLOOKUP($T113,タイヤ条件サマリ!$N:$O,2,0) -> 2000 | AD113: 173800 | AE113: 0.2789413119 | AF113: 1770 | AG113: =INDEX('ホイール売価(国産)'!$A$81:$A$128,MATCH(AF113,'ホイール売価(国産)'!$B$81:$B$128,0)) -> Z-meist VS-1 BC | AH113: =VLOOKUP($AF113,'ホイール売価(国産)'!$B$81:$I$128,6,0) -> 6300 | AI113: 128600 | AJ113: =VLOOKUP($AF113,'ホイール売価(国産)'!$B$81:$I$128,8,0) -> 35000 | AK113: 177800 | AL113: 0.2767154106 | AM113: =AK113+IF(OR($G113="SSR",$G113="ZP",$G113="r-f",$G113="RFT"),VLOOKUP($BF113,タイヤ条件サマリ!$I$33:$J$38,2,0),VLOOKUP($BF113,タイヤ条件サマリ!$I:$J,2,0))*4 -> 179800 | AN113: 0.2847608454 | AO113: 2000 | AP113: 181800 | AQ113: 0.2926292629 | AR113: 1770 | AS113: =INDEX('ホイール売価(国産)'!$A$132:$A$171,MATCH(AR113,'ホイール売価(国産)'!$B$132:$B$171,0)) -> SMACK Valkyrie | AT113: =VLOOKUP($AR113,'ホイール売価(国産)'!$B$132:$I$171,6,0) -> 8840 | AU113: 138760 | AV113: =VLOOKUP($AR113,'ホイール売価(国産)'!$B$132:$I$171,8,0) -> 50000 | AW113: 192800 | AX113: =(AW113-AU113)/AW113 -> 0.2802904564 | AY113: =AW113+IF(OR($G113="SSR",$G113="ZP",$G113="r-f",$G113="RFT"),VLOOKUP($BF113,タイヤ条件サマリ!$I$33:$J$38,2,0),VLOOKUP($BF113,タイヤ条件サマリ!$I:$J,2,0))*4 -> 194800 | AZ113: =(AY113-AU113)/AY113 -> 0.2876796715 | BA113: =AC113 -> 2000 | BB113: =AY113+BA113 -> 196800 | BC113: =(BB113-AU113)/BB113 -> 0.2949186992 | BD113: 205 | BE113: 50 | BF113: 17 | BG113: 636.8 | BH113: 本部発注価格 | BL113: 1 | BM113: ベーシック;ミニバン | BN113: 20550173 | BO113: 3 | BQ113: =IF(OR(M113="",M113=0),"-",IF(ROUNDUP(M113,-4)>160000,10000,VLOOKUP(ROUNDUP(M113,-4),タイヤ条件サマリ!$R:$S,2,FALSE))) -> 8000
A114: BRIDGESTONE | B114: 4961914459215 | C114: PXR01268 | D114: VRX2 | E114: 215/50R17 | F114: 91Q | H114: 39600 | I114: 46300 | K114: 28510 | L114: =タイヤ条件サマリ!$C$3 -> 0.72 | M114: 156800 | N114: =タイヤ条件サマリ!$E$3 -> 0.15 | O114: 0.2727040816 | P114: =M114+(IF(OR($G114="SSR",$G114="ZP",$G114="r-f",$G114="RFT"),VLOOKUP($BF114,タイヤ条件サマリ!$I$33:$J$38,2,0),VLOOKUP($BF114,タイヤ条件サマリ!$I:$J,2,0))+$E$2+$F$2+$G$2)*4 -> 162000 | Q114: 0.2960493827 | R114: 156800 | T114: =VLOOKUP($E114,タイヤホイールサイズ!$A:$E,3,FALSE) -> 1770 | U114: =INDEX('ホイール売価(国産)'!$A$4:$A$77,MATCH(T114,'ホイール売価(国産)'!$B$4:$B$77,0)) -> Z-meist VS-1 | V114: =VLOOKUP($T114,'ホイール売価(国産)'!$B:$I,6,FALSE) -> 5480 | W114: 135960 | X114: =VLOOKUP($T114,'ホイール売価(国産)'!$B:$I,8,FALSE) -> 27000 | Y114: 183800 | Z114: 0.2602829162 | AA114: =Y114+IF(OR($G114="SSR",$G114="ZP",$G114="r-f",$G114="RFT"),VLOOKUP($BF114,タイヤ条件サマリ!$I$33:$J$38,2,0),VLOOKUP($BF114,タイヤ条件サマリ!$I:$J,2,0))*4 -> 185800 | AB114: 0.2682454252 | AC114: =VLOOKUP($T114,タイヤ条件サマリ!$N:$O,2,0) -> 2000 | AD114: 187800 | AE114: 0.2760383387 | AF114: 1770 | AG114: =INDEX('ホイール売価(国産)'!$A$81:$A$128,MATCH(AF114,'ホイール売価(国産)'!$B$81:$B$128,0)) -> Z-meist VS-1 BC | AH114: =VLOOKUP($AF114,'ホイール売価(国産)'!$B$81:$I$128,6,0) -> 6300 | AI114: 139240 | AJ114: =VLOOKUP($AF114,'ホイール売価(国産)'!$B$81:$I$128,8,0) -> 35000 | AK114: 191800 | AL114: 0.2740354536 | AM114: =AK114+IF(OR($G114="SSR",$G114="ZP",$G114="r-f",$G114="RFT"),VLOOKUP($BF114,タイヤ条件サマリ!$I$33:$J$38,2,0),VLOOKUP($BF114,タイヤ条件サマリ!$I:$J,2,0))*4 -> 193800 | AN114: 0.2815273478 | AO114: 2000 | AP114: 195800 | AQ114: 0.28886619 | AR114: 1770 | AS114: =INDEX('ホイール売価(国産)'!$A$132:$A$171,MATCH(AR114,'ホイール売価(国産)'!$B$132:$B$171,0)) -> SMACK Valkyrie | AT114: =VLOOKUP($AR114,'ホイール売価(国産)'!$B$132:$I$171,6,0) -> 8840 | AU114: 149400 | AV114: =VLOOKUP($AR114,'ホイール売価(国産)'!$B$132:$I$171,8,0) -> 50000 | AW114: 206800 | AX114: 0.2775628627 | AY114: =AW114+IF(OR($G114="SSR",$G114="ZP",$G114="r-f",$G114="RFT"),VLOOKUP($BF114,タイヤ条件サマリ!$I$33:$J$38,2,0),VLOOKUP($BF114,タイヤ条件サマリ!$I:$J,2,0))*4 -> 208800 | AZ114: 0.2844827586 | BA114: 2000 | BB114: 210800 | BC114: 0.2912713472 | BD114: 215 | BE114: 50 | BF114: 17 | BG114: 646.8 | BH114: 本部発注価格 | BL114: 1 | BM114: ベーシック;ミニバン | BN114: 21550173 | BO114: 3 | BQ114: =IF(OR(M114="",M114=0),"-",IF(ROUNDUP(M114,-4)>160000,10000,VLOOKUP(ROUNDUP(M114,-4),タイヤ条件サマリ!$R:$S,2,FALSE))) -> 10000
